Workbook

Sheet Feuil1 (hidden)
C1: FC1 40 | D1: FC1 44 | E1: FC1 48 | F1: FC1 53 | G1: FC1 58 | H1: FC1 63 | I1: FC1 69 | J1: FC1 +69 | K1: FC2 44 | L1: FC2 48 | M1: FC2 53 | N1: FC2 58 | O1: FC2 63 | P1: FC2 69 | Q1: FC2 +69 | R1: FJ48 | S1: FJ53 | T1: FJ58 | U1: FJ63 | V1: FJ69 | W1: FJ75 | X1: FJ+75 | Y1: FS48 | Z1: FS53 | AA1: FS58 | AB1: FS63 | AC1: FS69 | AD1: FS75 | AE1: FS+75 | AF1: C1 45 | AG1: C1 50 | AH1: C1 56 | AI1: C1 62 | AJ1: C1 69 | AK1: C1 77 | AL1: C1 85 | AM1: C1 94 | AN1: C1 +94 | AO1: C2 50 | AP1: C2 56 | AQ1: C2 62 | AR1: C2 69 | AS1: C2 77 | AT1: C2 85 | AU1: C2 94 | AV1: C2 +94 | AW1: J56 | AX1: J62 | AY1: J69 | AZ1: J77 | BA1: J85 | BB1: J94 | BC1: J105 | BD1: J+105 | BE1: S56 | BF1: S62 | BG1: S69 | BH1: S77 | BI1: S85 | BJ1: S94 | BK1: S105 | BL1: S+105
B2: DEBUTANT | C2: 20 | D2: 25 | E2: 25 | F2: 35 | G2: 40 | H2: 45 | I2: 50 | J2: 60 | K2: 30 | L2: 35 | M2: 45 | N2: 50 | O2: 55 | P2: 60 | Q2: 70 | R2: 45 | S2: 55 | T2: 60 | U2: 65 | V2: 70 | W2: 80 | X2: 90 | Y2: 55 | Z2: 65 | AA2: 70 | AB2: 75 | AC2: 80 | AD2: 95 | AE2: 100 | AF2: 35 | AG2: 40 | AH2: 50 | AI2: 75 | AJ2: 85 | AK2: 90 | AL2: 100 | AM2: 110 | AN2: 120 | AO2: 45 | AP2: 65 | AQ2: 85 | AR2: 95 | AS2: 110 | AT2: 120 | AU2: 125 | AV2: 135 | AW2: 80 | AX2: 90 | AY2: 110 | AZ2: 130 | BA2: 145 | BB2: 150 | BC2: 155 | BD2: 165 | BE2: 95 | BF2: 120 | BG2: 130 | BH2: 150 | BI2: 165 | BJ2: 170 | BK2: 175 | BL2: 185
B3: DEPARTEMENTAL | C3: 25 | D3: 35 | E3: 35 | F3: 45 | G3: 50 | H3: 55 | I3: 60 | J3: 70 | K3: 40 | L3: 45 | M3: 55 | N3: 60 | O3: 65 | P3: 70 | Q3: 80 | R3: 55 | S3: 65 | T3: 70 | U3: 75 | V3: 80 | W3: 95 | X3: 100 | Y3: 65 | Z3: 75 | AA3: 80 | AB3: 85 | AC3: 90 | AD3: 105 | AE3: 110 | AF3: 50 | AG3: 55 | AH3: 70 | AI3: 95 | AJ3: 105 | AK3: 110 | AL3: 120 | AM3: 130 | AN3: 140 | AO3: 65 | AP3: 85 | AQ3: 105 | AR3: 115 | AS3: 130 | AT3: 140 | AU3: 145 | AV3: 155 | AW3: 100 | AX3: 120 | AY3: 130 | AZ3: 150 | BA3: 165 | BB3: 170 | BC3: 175 | BD3: 185 | BE3: 115 | BF3: 135 | BG3: 150 | BH3: 170 | BI3: 185 | BJ3: 190 | BK3: 195 | BL3: 205
B4: REGIONAL | C4: 35 | D4: 40 | E4: 45 | F4: 55 | G4: 60 | H4: 65 | I4: 70 | J4: 80 | K4: 50 | L4: 55 | M4: 65 | N4: 70 | O4: 75 | P4: 80 | Q4: 95 | R4: 65 | S4: 75 | T4: 80 | U4: 85 | V4: 90 | W4: 105 | X4: 110 | Y4: 75 | Z4: 85 | AA4: 90 | AB4: 95 | AC4: 105 | AD4: 115 | AE4: 125 | AF4: 60 | AG4: 65 | AH4: 85 | AI4: 105 | AJ4: 115 | AK4: 130 | AL4: 140 | AM4: 145 | AN4: 155 | AO4: 80 | AP4: 100 | AQ4: 120 | AR4: 130 | AS4: 150 | AT4: 160 | AU4: 165 | AV4: 175 | AW4: 115 | AX4: 135 | AY4: 150 | AZ4: 170 | BA4: 185 | BB4: 190 | BC4: 195 | BD4: 205 | BE4: 130 | BF4: 150 | BG4: 170 | BH4: 190 | BI4: 205 | BJ4: 215 | BK4: 220 | BL4: 225
B5: INTERREGIONAL | C5: 45 | D5: 50 | E5: 55 | F5: 65 | G5: 70 | H5: 75 | I5: 80 | J5: 95 | K5: 60 | L5: 65 | M5: 75 | N5: 80 | O5: 85 | P5: 90 | Q5: 105 | R5: 75 | S5: 85 | T5: 90 | U5: 95 | V5: 105 | W5: 115 | X5: 125 | Y5: 85 | Z5: 95 | AA5: 100 | AB5: 110 | AC5: 120 | AD5: 130 | AE5: 140 | AF5: 75 | AG5: 80 | AH5: 100 | AI5: 120 | AJ5: 130 | AK5: 150 | AL5: 160 | AM5: 165 | AN5: 175 | AO5: 95 | AP5: 115 | AQ5: 135 | AR5: 150 | AS5: 170 | AT5: 180 | AU5: 185 | AV5: 195 | AW5: 130 | AX5: 150 | AY5: 170 | AZ5: 190 | BA5: 205 | BB5: 215 | BC5: 220 | BD5: 225 | BE5: 145 | BF5: 170 | BG5: 190 | BH5: 210 | BI5: 225 | BJ5: 235 | BK5: 245 | BL5: 250
B6: FEDERAL | C6: 50 | D6: 60 | E6: 65 | F6: 75 | G6: 80 | H6: 85 | I6: 90 | J6: 105 | K6: 70 | L6: 75 | M6: 85 | N6: 90 | O6: 95 | P6: 105 | Q6: 115 | R6: 85 | S6: 95 | T6: 100 | U6: 110 | V6: 120 | W6: 130 | X6: 140 | Y6: 95 | Z6: 105 | AA6: 115 | AB6: 125 | AC6: 135 | AD6: 145 | AE6: 150 | AF6: 90 | AG6: 95 | AH6: 115 | AI6: 135 | AJ6: 150 | AK6: 170 | AL6: 180 | AM6: 185 | AN6: 195 | AO6: 110 | AP6: 130 | AQ6: 150 | AR6: 170 | AS6: 185 | AT6: 200 | AU6: 210 | AV6: 220 | AW6: 145 | AX6: 170 | AY6: 190 | AZ6: 210 | BA6: 225 | BB6: 235 | BC6: 245 | BD6: 250 | BE6: 170 | BF6: 190 | BG6: 220 | BH6: 240 | BI6: 250 | BJ6: 260 | BK6: 270 | BL6: 280
B7: NATIONAL | C7: 60 | D7: 70 | E7: 75 | F7: 85 | G7: 90 | H7: 95 | I7: 105 | J7: 115 | K7: 80 | L7: 85 | M7: 95 | N7: 100 | O7: 110 | P7: 120 | Q7: 130 | R7: 95 | S7: 105 | T7: 115 | U7: 125 | V7: 135 | W7: 145 | X7: 150 | Y7: 110 | Z7: 120 | AA7: 130 | AB7: 140 | AC7: 150 | AD7: 160 | AE7: 170 | AF7: 105 | AG7: 110 | AH7: 130 | AI7: 150 | AJ7: 170 | AK7: 185 | AL7: 200 | AM7: 210 | AN7: 220 | AO7: 120 | AP7: 145 | AQ7: 170 | AR7: 190 | AS7: 200 | AT7: 220 | AU7: 225 | AV7: 235 | AW7: 170 | AX7: 190 | AY7: 220 | AZ7: 240 | BA7: 250 | BB7: 260 | BC7: 270 | BD7: 280 | BE7: 190 | BF7: 210 | BG7: 240 | BH7: 265 | BI7: 280 | BJ7: 290 | BK7: 300 | BL7: 310
B8: INTERNATIONAL B | C8: 70 | D8: 80 | E8: 85 | F8: 95 | G8: 100 | H8: 110 | I8: 120 | J8: 130 | K8: 90 | L8: 95 | M8: 105 | N8: 115 | O8: 125 | P8: 135 | Q8: 145 | R8: 110 | S8: 120 | T8: 130 | U8: 140 | V8: 150 | W8: 160 | X8: 170 | Y8: 125 | Z8: 140 | AA8: 150 | AB8: 160 | AC8: 170 | AD8: 180 | AE8: 190 | AF8: 115 | AG8: 120 | AH8: 145 | AI8: 170 | AJ8: 190 | AK8: 200 | AL8: 220 | AM8: 225 | AN8: 235 | AO8: 135 | AP8: 170 | AQ8: 190 | AR8: 210 | AS8: 220 | AT8: 240 | AU8: 250 | AV8: 260 | AW8: 190 | AX8: 210 | AY8: 240 | AZ8: 260 | BA8: 280 | BB8: 290 | BC8: 300 | BD8: 310 | BE8: 210 | BF8: 230 | BG8: 260 | BH8: 285 | BI8: 300 | BJ8: 310 | BK8: 325 | BL8: 330
B9: INTERNATIONAL A | C9: 80 | D9: 90 | E9: 95 | F9: 105 | G9: 115 | H9: 125 | I9: 135 | J9: 145 | K9: 100 | L9: 110 | M9: 120 | N9: 130 | O9: 140 | P9: 150 | Q9: 160 | R9: 125 | S9: 135 | T9: 150 | U9: 160 | V9: 170 | W9: 180 | X9: 190 | Y9: 140 | Z9: 160 | AA9: 170 | AB9: 180 | AC9: 190 | AD9: 195 | AE9: 210 | AF9: 130 | AG9: 135 | AH9: 170 | AI9: 190 | AJ9: 210 | AK9: 220 | AL9: 240 | AM9: 250 | AN9: 260 | AO9: 150 | AP9: 190 | AQ9: 210 | AR9: 230 | AS9: 250 | AT9: 260 | AU9: 280 | AV9: 280 | AW9: 210 | AX9: 230 | AY9: 250 | AZ9: 285 | BA9: 300 | BB9: 310 | BC9: 325 | BD9: 330 | BE9: 225 | BF9: 255 | BG9: 275 | BH9: 305 | BI9: 325 | BJ9: 330 | BK9: 345 | BL9: 355
B10: OLYMPIQUE | C10: 1000 | D10: 1000 | E10: 1000 | F10: 1000 | G10: 1000 | H10: 1000 | I10: 1000 | J10: 1000 | K10: 1000 | L10: 1000 | M10: 1000 | N10: 1000 | O10: 1000 | P10: 1000 | Q10: 1000 | R10: 1000 | S10: 1000 | T10: 1000 | U10: 1000 | V10: 1000 | W10: 1000 | X10: 1000 | Y10: 155 | Z10: 175 | AA10: 190 | AB10: 200 | AC10: 205 | AD10: 210 | AE10: 225 | AF10: 1000 | AG10: 1000 | AH10: 1000 | AI10: 1000 | AJ10: 1000 | AK10: 1000 | AL10: 10000 | AM10: 1000 | AN10: 1000 | AO10: 1000 | AP10: 1000 | AQ10: 1000 | AR10: 1000 | AS10: 1000 | AT10: 10000 | AU10: 1000 | AV10: 1000 | AW10: 1000 | AX10: 1000 | AY10: 1000 | AZ10: 10000 | BA10: 1000 | BB10: 1000 | BC10: 1000 | BD10: 10000 | BE10: 240 | BF10: 270 | BG10: 290 | BH10: 320 | BI10: 345 | BJ10: 355 | BK10: 365 | BL10: 375
B11: MINIME | C11: CADET | D11: CADET | E11: JUNIOR | F11: SENIOR | H11: MINIME | I11: CADETTE | J11: CADETTE | K11: JUNIOR | L11: SENIOR
A12: 20.01 | B12: NON | C12: C1 45 | D12: C2 50 | E12: J56 | F12: S56 | G12: 20.01 | H12: NON | I12: FC1 40 | J12: FC2 44 | K12: FJ48 | L12: FS48
A13: 34.01 | B13: NON | C13: C1 45 | D13: C2 50 | E13: J56 | F13: S56 | G13: 30.01 | H13: NON | I13: FC1 40 | J13: FC2 44 | K13: FJ48 | L13: FS48
A14: 38.01 | B14: NON | C14: C1 45 | D14: C2 50 | E14: J56 | F14: S56 | G14: 35.01 | H14: NON | I14: FC1 40 | J14: FC2 44 | K14: FJ48 | L14: FS48
A15: 40.01 | B15: NON | C15: C1 45 | D15: C2 50 | E15: J56 | F15: S56 | G15: 36.01 | H15: NON | I15: FC1 40 | J15: FC2 44 | K15: FJ48 | L15: FS48
A16: 45.01 | B16: NON | C16: C1 50 | D16: C2 50 | E16: J56 | F16: S56 | G16: 40.01 | H16: NON | I16: FC1 44 | J16: FC2 44 | K16: FJ48 | L16: FS48
A17: 50.01 | B17: NON | C17: C1 56 | D17: C2 56 | E17: J56 | F17: S56 | G17: 44.01 | H17: NON | I17: FC1 48 | J17: FC2 48 | K17: FJ48 | L17: FS48
A18: 52.05 | B18: NON | C18: C1 56 | D18: C2 56 | E18: J56 | F18: S56 | G18: 48.01 | H18: NON | I18: FC1 53 | J18: FC2 53 | K18: FJ53 | L18: FS53
A19: 56.01 | B19: NON | C19: C1 62 | D19: C2 62 | E19: J62 | F19: S62 | G19: 53.01 | H19: NON | I19: FC1 58 | J19: FC2 58 | K19: FJ58 | L19: FS58
A20: 62.01 | B20: NON | C20: C1 69 | D20: C2 69 | E20: J69 | F20: S69 | G20: 58.01 | H20: NON | I20: FC1 63 | J20: FC2 63 | K20: FJ63 | L20: FS63
A21: 69.01 | B21: NON | C21: C1 77 | D21: C2 77 | E21: J77 | F21: S77 | G21: 63.01 | H21: NON | I21: FC1 69 | J21: FC2 69 | K21: FJ69 | L21: FS69
A22: 77.01 | B22: NON | C22: C1 85 | D22: C2 85 | E22: J85 | F22: S85 | G22: 69.01 | H22: NON | I22: FC1 +69 | J22: FC2 +69 | K22: FJ75 | L22: FS75
A23: 85.01 | B23: NON | C23: C1 94 | D23: C2 94 | E23: J94 | F23: S94 | G23: 75.01 | H23: NON | I23: FC1 +69 | J23: FC2 +69 | K23: FJ+75 | L23: FS+75
A24: 94.01 | B24: NON | C24: C1 +94 | D24: C2 +94 | E24: J105 | F24: S105 | G24: 110 | H24: NON | I24: FC1 +69 | J24: FC2 +69 | K24: FJ+75 | L24: FS+75
A25: 105.01 | B25: NON | C25: C1 +94 | D25: C2 +94 | E25: J+105 | F25: S+105 | G25: 140 | H25: NON | I25: FC1 +69 | J25: FC2 +69 | K25: FJ+75 | L25: FS+75
A26: 110 | B26: NON | C26: C1 +94 | D26: C2 +94 | E26: J+105 | F26: S+105
A27: 120 | B27: NON | C27: C1 +94 | D27: C2 +94 | E27: J+105 | F27: S+105
A28: 130 | B28: NON | C28: C1 +94 | D28: C2 +94 | E28: J+105 | F28: S+105
A29: 140 | B29: NON | C29: C1 +94 | D29: C2 +94 | E29: J+105 | F29: S+105

Sheet CADETS 1
F1: LISTING NATIONAL | H1: MASCULINS et FEMININES | Q1: DATE : | S1: 2015-03-15
G2: CHALLENGE D'HIVER 2015
A4: SEXE | B4: ZONE | C4: REG. | D4: CL. | E4: LICENCE | F4: NOMS | G4: Prénoms | H4: AN | I4: POIDS | J4: CLUB | K4: NAT | L4: 1 | M4: 2 | N4: 3 | O4: ARR | P4: 1 | Q4: 2 | R4: 3 | S4: EP-J | T4: Total | U4: KP-2PC | V4: SERIE | X4: Catég | Y4: IWF | AB4: DEB | AC4: DEP + | AD4: REG + | AE4: IRG + | AF4: FED + | AG4: NAT + | AH4: INTB + | AI4: INTA + | AJ4: OLY +
AB5: =T5-HLOOKUP(X5,Feuil1!$C$1:$BL$10,2,FALSE) ->  | AC5: =T5-HLOOKUP(X5,Feuil1!$C$1:$BL$10,3,FALSE) ->  | AD5: =T5-HLOOKUP(X5,Feuil1!$C$1:$BL$10,4,FALSE) ->  | AE5: =T5-HLOOKUP(X5,Feuil1!$C$1:$BL$10,5,FALSE) ->  | AF5: =T5-HLOOKUP(X5,Feuil1!$C$1:$BL$10,6,FALSE) ->  | AG5: =T5-HLOOKUP(X5,Feuil1!$C$1:$BL$10,7,FALSE) ->  | AH5: =T5-HLOOKUP(X5,Feuil1!$C$1:$BL$10,8,FALSE) ->  | AI5: =T5-HLOOKUP(X5,Feuil1!$C$1:$BL$10,9,FALSE) ->  | AJ5: =T5-HLOOKUP(X5,Feuil1!$C$1:$BL$10,10,FALSE) ->  | AQ5: =IF(AJ5>=0,$AJ$4,IF(AI5>=0,$AI$4,IF(AH5>=0,$AH$4,IF(AG5>=0,$AG$4,IF(AF5>=0,$AF$4,IF(AE5>=0,$AE$4,IF(AD5>=0,$AD$4,IF(AC5>=0,$AC$4,$AB$4)))))))) -> 
A6: F | B6: SEST | C6: LAN | D6: 1 | E6: 378497 | F6: MONTESSINOS | G6: Lucile | H6: 2001 | I6: 35.5 | J6: Frontignan AC | K6: F | L6: 14 | M6: 17 | N6: 19 | O6: =IF(H6="","",IF(MAXA(L6:N6)<=0,0,MAXA(L6:N6))) -> 19 | P6: -20 | Q6: 21 | R6: 23 | S6: =IF(H6="","",IF(MAXA(P6:R6)<=0,0,MAXA(P6:R6))) -> 23 | T6: =IF(H6="","",IF(OR(O6=0,S6=0),0,O6+S6)) -> 42 | U6: =T6-I6*2 -> -29 | V6: =IF(H6="","",AQ6) -> REG + | W6: =IF(AJ6>=0,AJ6,IF(AI6>=0,AI6,IF(AH6>=0,AH6,IF(AG6>=0,AG6,IF(AF6>=0,AF6,IF(AE6>=0,AE6,IF(AD6>=0,AD6,IF(AC6>=0,AC6,AB6)))))))) -> 7 | X6: =IF(I6="","",IF(A6="H",IF(OR(H6="SEN",H6<1995),VLOOKUP(I6,Feuil1!$A$11:$G$29,6),IF(AND(H6>1994,H6<1998),VLOOKUP(I6,Feuil1!$A$11:$G$29,5),IF(AND(H6>1997,H6<2000),VLOOKUP(I6,Feuil1!$A$11:$G$29,4),IF(AND(H6>1999,H6<2002),VLOOKUP(I6,Feuil1!$A$11:$G$29,3),VLOOKUP(I6,Feuil1!$A$11:$G$29,2))))),IF(OR(H6="SEN",H6<1995),VLOOKUP(I6,Feuil1!$G$11:$L$25,6),IF(AND(H6>1994,H6<1998),VLOOKUP(I6,Feuil1!$G$11:$L$25,5),IF(AND(H6>1997,H6<2000),VLOOKUP(I6,Feuil1!$G$11:$L$25,4),IF(AND(H6>1999,H6<2002),VLOOKUP(I6,Feuil1!$G$11:$L$25,3),VLOOKUP(I6,Feuil1!$G$11:$L$25,2))))))) -> FC1 40 | Y6: =IF(I6="","",IF(A6="H",10^(0.794358141*LOG(I6/174.393)^2)*T6,IF(A6="F",10^(0.89726074*LOG(I6/148.026)^2)*T6,""))) -> 92.95619264 | AB6: =T6-HLOOKUP(X6,Feuil1!$C$1:$BL$10,2,FALSE) -> 22 | AC6: =T6-HLOOKUP(X6,Feuil1!$C$1:$BL$10,3,FALSE) -> 17 | AD6: =T6-HLOOKUP(X6,Feuil1!$C$1:$BL$10,4,FALSE) -> 7 | AE6: =T6-HLOOKUP(X6,Feuil1!$C$1:$BL$10,5,FALSE) -> -3 | AF6: =T6-HLOOKUP(X6,Feuil1!$C$1:$BL$10,6,FALSE) -> -8 | AG6: =T6-HLOOKUP(X6,Feuil1!$C$1:$BL$10,7,FALSE) -> -18 | AH6: =T6-HLOOKUP(X6,Feuil1!$C$1:$BL$10,8,FALSE) -> -28 | AI6: =T6-HLOOKUP(X6,Feuil1!$C$1:$BL$10,9,FALSE) -> -38 | AJ6: =T6-HLOOKUP(X6,Feuil1!$C$1:$BL$10,10,FALSE) -> -958 | AQ6: REG +
AB7: =T7-HLOOKUP(X7,Feuil1!$C$1:$BL$10,2,FALSE) ->  | AC7: =T7-HLOOKUP(X7,Feuil1!$C$1:$BL$10,3,FALSE) ->  | AD7: =T7-HLOOKUP(X7,Feuil1!$C$1:$BL$10,4,FALSE) ->  | AE7: =T7-HLOOKUP(X7,Feuil1!$C$1:$BL$10,5,FALSE) ->  | AF7: =T7-HLOOKUP(X7,Feuil1!$C$1:$BL$10,6,FALSE) ->  | AG7: =T7-HLOOKUP(X7,Feuil1!$C$1:$BL$10,7,FALSE) ->  | AH7: =T7-HLOOKUP(X7,Feuil1!$C$1:$BL$10,8,FALSE) ->  | AI7: =T7-HLOOKUP(X7,Feuil1!$C$1:$BL$10,9,FALSE) ->  | AJ7: =T7-HLOOKUP(X7,Feuil1!$C$1:$BL$10,10,FALSE) -> 
A8: F | B8: NE | C8: ALS | D8: 1 | E8: 366668 | F8: BURCKEL | G8: Mélissa | H8: 2001 | I8: 47.8 | J8: Dorlisheim FH | K8: F | L8: 20 | M8: 22 | N8: 25 | O8: =IF(H8="","",IF(MAXA(L8:N8)<=0,0,MAXA(L8:N8))) -> 25 | P8: 23 | Q8: 25 | R8: 27 | S8: =IF(H8="","",IF(MAXA(P8:R8)<=0,0,MAXA(P8:R8))) -> 27 | T8: =IF(H8="","",IF(OR(O8=0,S8=0),0,O8+S8)) -> 52 | U8: =T8-I8*2 -> -43.6 | V8: =IF(H8="","",AQ8) -> REG + | W8: =IF(AJ8>=0,AJ8,IF(AI8>=0,AI8,IF(AH8>=0,AH8,IF(AG8>=0,AG8,IF(AF8>=0,AF8,IF(AE8>=0,AE8,IF(AD8>=0,AD8,IF(AC8>=0,AC8,AB8)))))))) -> 7 | X8: =IF(I8="","",IF(A8="H",IF(OR(H8="SEN",H8<1995),VLOOKUP(I8,Feuil1!$A$11:$G$29,6),IF(AND(H8>1994,H8<1998),VLOOKUP(I8,Feuil1!$A$11:$G$29,5),IF(AND(H8>1997,H8<2000),VLOOKUP(I8,Feuil1!$A$11:$G$29,4),IF(AND(H8>1999,H8<2002),VLOOKUP(I8,Feuil1!$A$11:$G$29,3),VLOOKUP(I8,Feuil1!$A$11:$G$29,2))))),IF(OR(H8="SEN",H8<1995),VLOOKUP(I8,Feuil1!$G$11:$L$25,6),IF(AND(H8>1994,H8<1998),VLOOKUP(I8,Feuil1!$G$11:$L$25,5),IF(AND(H8>1997,H8<2000),VLOOKUP(I8,Feuil1!$G$11:$L$25,4),IF(AND(H8>1999,H8<2002),VLOOKUP(I8,Feuil1!$G$11:$L$25,3),VLOOKUP(I8,Feuil1!$G$11:$L$25,2))))))) -> FC1 48 | Y8: =IF(I8="","",IF(A8="H",10^(0.794358141*LOG(I8/174.393)^2)*T8,IF(A8="F",10^(0.89726074*LOG(I8/148.026)^2)*T8,""))) -> 85.55327947 | AB8: =T8-HLOOKUP(X8,Feuil1!$C$1:$BL$10,2,FALSE) -> 27 | AC8: =T8-HLOOKUP(X8,Feuil1!$C$1:$BL$10,3,FALSE) -> 17 | AD8: =T8-HLOOKUP(X8,Feuil1!$C$1:$BL$10,4,FALSE) -> 7 | AE8: =T8-HLOOKUP(X8,Feuil1!$C$1:$BL$10,5,FALSE) -> -3 | AF8: =T8-HLOOKUP(X8,Feuil1!$C$1:$BL$10,6,FALSE) -> -13 | AG8: =T8-HLOOKUP(X8,Feuil1!$C$1:$BL$10,7,FALSE) -> -23 | AH8: =T8-HLOOKUP(X8,Feuil1!$C$1:$BL$10,8,FALSE) -> -33 | AI8: =T8-HLOOKUP(X8,Feuil1!$C$1:$BL$10,9,FALSE) -> -43 | AJ8: =T8-HLOOKUP(X8,Feuil1!$C$1:$BL$10,10,FALSE) -> -948 | AQ8: REG +
A9: F | B9: N | C9: PIC | D9: 2 | E9: 378362 | F9: CHAUVIN | G9: Appoline | H9: 2001 | I9: 47 | J9: Villers-Bretonneux KC | K9: F | L9: 18 | M9: 20 | N9: -22 | O9: =IF(H9="","",IF(MAXA(L9:N9)<=0,0,MAXA(L9:N9))) -> 20 | P9: 26 | Q9: -28 | R9: 28 | S9: =IF(H9="","",IF(MAXA(P9:R9)<=0,0,MAXA(P9:R9))) -> 28 | T9: =IF(H9="","",IF(OR(O9=0,S9=0),0,O9+S9)) -> 48 | U9: =T9-I9*2 -> -46 | V9: =IF(H9="","",AQ9) -> REG + | W9: =IF(AJ9>=0,AJ9,IF(AI9>=0,AI9,IF(AH9>=0,AH9,IF(AG9>=0,AG9,IF(AF9>=0,AF9,IF(AE9>=0,AE9,IF(AD9>=0,AD9,IF(AC9>=0,AC9,AB9)))))))) -> 3 | X9: =IF(I9="","",IF(A9="H",IF(OR(H9="SEN",H9<1995),VLOOKUP(I9,Feuil1!$A$11:$G$29,6),IF(AND(H9>1994,H9<1998),VLOOKUP(I9,Feuil1!$A$11:$G$29,5),IF(AND(H9>1997,H9<2000),VLOOKUP(I9,Feuil1!$A$11:$G$29,4),IF(AND(H9>1999,H9<2002),VLOOKUP(I9,Feuil1!$A$11:$G$29,3),VLOOKUP(I9,Feuil1!$A$11:$G$29,2))))),IF(OR(H9="SEN",H9<1995),VLOOKUP(I9,Feuil1!$G$11:$L$25,6),IF(AND(H9>1994,H9<1998),VLOOKUP(I9,Feuil1!$G$11:$L$25,5),IF(AND(H9>1997,H9<2000),VLOOKUP(I9,Feuil1!$G$11:$L$25,4),IF(AND(H9>1999,H9<2002),VLOOKUP(I9,Feuil1!$G$11:$L$25,3),VLOOKUP(I9,Feuil1!$G$11:$L$25,2))))))) -> FC1 48 | Y9: =IF(I9="","",IF(A9="H",10^(0.794358141*LOG(I9/174.393)^2)*T9,IF(A9="F",10^(0.89726074*LOG(I9/148.026)^2)*T9,""))) -> 80.16414283 | AB9: =T9-HLOOKUP(X9,Feuil1!$C$1:$BL$10,2,FALSE) -> 23 | AC9: =T9-HLOOKUP(X9,Feuil1!$C$1:$BL$10,3,FALSE) -> 13 | AD9: =T9-HLOOKUP(X9,Feuil1!$C$1:$BL$10,4,FALSE) -> 3 | AE9: =T9-HLOOKUP(X9,Feuil1!$C$1:$BL$10,5,FALSE) -> -7 | AF9: =T9-HLOOKUP(X9,Feuil1!$C$1:$BL$10,6,FALSE) -> -17 | AG9: =T9-HLOOKUP(X9,Feuil1!$C$1:$BL$10,7,FALSE) -> -27 | AH9: =T9-HLOOKUP(X9,Feuil1!$C$1:$BL$10,8,FALSE) -> -37 | AI9: =T9-HLOOKUP(X9,Feuil1!$C$1:$BL$10,9,FALSE) -> -47 | AJ9: =T9-HLOOKUP(X9,Feuil1!$C$1:$BL$10,10,FALSE) -> -952 | AQ9: REG +
AB10: =T10-HLOOKUP(X10,Feuil1!$C$1:$BL$10,2,FALSE) ->  | AC10: =T10-HLOOKUP(X10,Feuil1!$C$1:$BL$10,3,FALSE) ->  | AD10: =T10-HLOOKUP(X10,Feuil1!$C$1:$BL$10,4,FALSE) ->  | AE10: =T10-HLOOKUP(X10,Feuil1!$C$1:$BL$10,5,FALSE) ->  | AF10: =T10-HLOOKUP(X10,Feuil1!$C$1:$BL$10,6,FALSE) ->  | AG10: =T10-HLOOKUP(X10,Feuil1!$C$1:$BL$10,7,FALSE) ->  | AH10: =T10-HLOOKUP(X10,Feuil1!$C$1:$BL$10,8,FALSE) ->  | AI10: =T10-HLOOKUP(X10,Feuil1!$C$1:$BL$10,9,FALSE) ->  | AJ10: =T10-HLOOKUP(X10,Feuil1!$C$1:$BL$10,10,FALSE) -> 
A11: F | B11: SO | C11: AQU | D11: 1 | E11: 277040 | F11: GIRAUD | G11: HECTORINE | H11: 2000 | I11: 58 | J11: ASOA AQUITAINE | K11: F | L11: 32 | M11: -35 | N11: 35 | O11: =IF(H11="","",IF(MAXA(L11:N11)<=0,0,MAXA(L11:N11))) -> 35 | P11: 42 | Q11: 45 | R11: 47 | S11: =IF(H11="","",IF(MAXA(P11:R11)<=0,0,MAXA(P11:R11))) -> 47 | T11: =IF(H11="","",IF(OR(O11=0,S11=0),0,O11+S11)) -> 82 | U11: =T11-I11*2 -> -34 | V11: =IF(H11="","",AQ11) -> FED + | W11: =IF(AJ11>=0,AJ11,IF(AI11>=0,AI11,IF(AH11>=0,AH11,IF(AG11>=0,AG11,IF(AF11>=0,AF11,IF(AE11>=0,AE11,IF(AD11>=0,AD11,IF(AC11>=0,AC11,AB11)))))))) -> 2 | X11: =IF(I11="","",IF(A11="H",IF(OR(H11="SEN",H11<1995),VLOOKUP(I11,Feuil1!$A$11:$G$29,6),IF(AND(H11>1994,H11<1998),VLOOKUP(I11,Feuil1!$A$11:$G$29,5),IF(AND(H11>1997,H11<2000),VLOOKUP(I11,Feuil1!$A$11:$G$29,4),IF(AND(H11>1999,H11<2002),VLOOKUP(I11,Feuil1!$A$11:$G$29,3),VLOOKUP(I11,Feuil1!$A$11:$G$29,2))))),IF(OR(H11="SEN",H11<1995),VLOOKUP(I11,Feuil1!$G$11:$L$25,6),IF(AND(H11>1994,H11<1998),VLOOKUP(I11,Feuil1!$G$11:$L$25,5),IF(AND(H11>1997,H11<2000),VLOOKUP(I11,Feuil1!$G$11:$L$25,4),IF(AND(H11>1999,H11<2002),VLOOKUP(I11,Feuil1!$G$11:$L$25,3),VLOOKUP(I11,Feuil1!$G$11:$L$25,2))))))) -> FC1 58 | Y11: =IF(I11="","",IF(A11="H",10^(0.794358141*LOG(I11/174.393)^2)*T11,IF(A11="F",10^(0.89726074*LOG(I11/148.026)^2)*T11,""))) -> 115.4458905 | AB11: =T11-HLOOKUP(X11,Feuil1!$C$1:$BL$10,2,FALSE) -> 42 | AC11: =T11-HLOOKUP(X11,Feuil1!$C$1:$BL$10,3,FALSE) -> 32 | AD11: =T11-HLOOKUP(X11,Feuil1!$C$1:$BL$10,4,FALSE) -> 22 | AE11: =T11-HLOOKUP(X11,Feuil1!$C$1:$BL$10,5,FALSE) -> 12 | AF11: =T11-HLOOKUP(X11,Feuil1!$C$1:$BL$10,6,FALSE) -> 2 | AG11: =T11-HLOOKUP(X11,Feuil1!$C$1:$BL$10,7,FALSE) -> -8 | AH11: =T11-HLOOKUP(X11,Feuil1!$C$1:$BL$10,8,FALSE) -> -18 | AI11: =T11-HLOOKUP(X11,Feuil1!$C$1:$BL$10,9,FALSE) -> -33 | AJ11: =T11-HLOOKUP(X11,Feuil1!$C$1:$BL$10,10,FALSE) -> -918 | AQ11: FED +
A12: F | B12: NE | C12: CHA | D12: 2 | E12: 355066 | F12: MECHIACK | G12: Chloé | H12: 2001 | I12: 54.1 | J12: Langres HM | K12: F | L12: 26 | M12: 29 | N12: -31 | O12: =IF(H12="","",IF(MAXA(L12:N12)<=0,0,MAXA(L12:N12))) -> 29 | P12: 35 | Q12: 38 | R12: 41 | S12: =IF(H12="","",IF(MAXA(P12:R12)<=0,0,MAXA(P12:R12))) -> 41 | T12: =IF(H12="","",IF(OR(O12=0,S12=0),0,O12+S12)) -> 70 | U12: =T12-I12*2 -> -38.2 | V12: =IF(H12="","",AQ12) -> IRG + | W12: =IF(AJ12>=0,AJ12,IF(AI12>=0,AI12,IF(AH12>=0,AH12,IF(AG12>=0,AG12,IF(AF12>=0,AF12,IF(AE12>=0,AE12,IF(AD12>=0,AD12,IF(AC12>=0,AC12,AB12)))))))) -> 0 | X12: =IF(I12="","",IF(A12="H",IF(OR(H12="SEN",H12<1995),VLOOKUP(I12,Feuil1!$A$11:$G$29,6),IF(AND(H12>1994,H12<1998),VLOOKUP(I12,Feuil1!$A$11:$G$29,5),IF(AND(H12>1997,H12<2000),VLOOKUP(I12,Feuil1!$A$11:$G$29,4),IF(AND(H12>1999,H12<2002),VLOOKUP(I12,Feuil1!$A$11:$G$29,3),VLOOKUP(I12,Feuil1!$A$11:$G$29,2))))),IF(OR(H12="SEN",H12<1995),VLOOKUP(I12,Feuil1!$G$11:$L$25,6),IF(AND(H12>1994,H12<1998),VLOOKUP(I12,Feuil1!$G$11:$L$25,5),IF(AND(H12>1997,H12<2000),VLOOKUP(I12,Feuil1!$G$11:$L$25,4),IF(AND(H12>1999,H12<2002),VLOOKUP(I12,Feuil1!$G$11:$L$25,3),VLOOKUP(I12,Feuil1!$G$11:$L$25,2))))))) -> FC1 58 | Y12: =IF(I12="","",IF(A12="H",10^(0.794358141*LOG(I12/174.393)^2)*T12,IF(A12="F",10^(0.89726074*LOG(I12/148.026)^2)*T12,""))) -> 103.8860927 | AB12: =T12-HLOOKUP(X12,Feuil1!$C$1:$BL$10,2,FALSE) -> 30 | AC12: =T12-HLOOKUP(X12,Feuil1!$C$1:$BL$10,3,FALSE) -> 20 | AD12: =T12-HLOOKUP(X12,Feuil1!$C$1:$BL$10,4,FALSE) -> 10 | AE12: =T12-HLOOKUP(X12,Feuil1!$C$1:$BL$10,5,FALSE) -> 0 | AF12: =T12-HLOOKUP(X12,Feuil1!$C$1:$BL$10,6,FALSE) -> -10 | AG12: =T12-HLOOKUP(X12,Feuil1!$C$1:$BL$10,7,FALSE) -> -20 | AH12: =T12-HLOOKUP(X12,Feuil1!$C$1:$BL$10,8,FALSE) -> -30 | AI12: =T12-HLOOKUP(X12,Feuil1!$C$1:$BL$10,9,FALSE) -> -45 | AJ12: =T12-HLOOKUP(X12,Feuil1!$C$1:$BL$10,10,FALSE) -> -930 | AQ12: IRG +
A13: F | B13: SEST | C13: PRO | D13: 3 | E13: 391362 | F13: PEREIRA MARTIN | G13: TATIANA | H13: 2001 | I13: 57.5 | J13: EEAR MONTEUX | K13: F | L13: 18 | M13: -22 | N13: 22 | O13: =IF(H13="","",IF(MAXA(L13:N13)<=0,0,MAXA(L13:N13))) -> 22 | P13: 28 | Q13: 32 | R13: 35 | S13: =IF(H13="","",IF(MAXA(P13:R13)<=0,0,MAXA(P13:R13))) -> 35 | T13: =IF(H13="","",IF(OR(O13=0,S13=0),0,O13+S13)) -> 57 | U13: =T13-I13*2 -> -58 | V13: =IF(H13="","",AQ13) -> DEP + | W13: =IF(AJ13>=0,AJ13,IF(AI13>=0,AI13,IF(AH13>=0,AH13,IF(AG13>=0,AG13,IF(AF13>=0,AF13,IF(AE13>=0,AE13,IF(AD13>=0,AD13,IF(AC13>=0,AC13,AB13)))))))) -> 7 | X13: =IF(I13="","",IF(A13="H",IF(OR(H13="SEN",H13<1995),VLOOKUP(I13,Feuil1!$A$11:$G$29,6),IF(AND(H13>1994,H13<1998),VLOOKUP(I13,Feuil1!$A$11:$G$29,5),IF(AND(H13>1997,H13<2000),VLOOKUP(I13,Feuil1!$A$11:$G$29,4),IF(AND(H13>1999,H13<2002),VLOOKUP(I13,Feuil1!$A$11:$G$29,3),VLOOKUP(I13,Feuil1!$A$11:$G$29,2))))),IF(OR(H13="SEN",H13<1995),VLOOKUP(I13,Feuil1!$G$11:$L$25,6),IF(AND(H13>1994,H13<1998),VLOOKUP(I13,Feuil1!$G$11:$L$25,5),IF(AND(H13>1997,H13<2000),VLOOKUP(I13,Feuil1!$G$11:$L$25,4),IF(AND(H13>1999,H13<2002),VLOOKUP(I13,Feuil1!$G$11:$L$25,3),VLOOKUP(I13,Feuil1!$G$11:$L$25,2))))))) -> FC1 58 | Y13: =IF(I13="","",IF(A13="H",10^(0.794358141*LOG(I13/174.393)^2)*T13,IF(A13="F",10^(0.89726074*LOG(I13/148.026)^2)*T13,""))) -> 80.76028838 | AB13: =T13-HLOOKUP(X13,Feuil1!$C$1:$BL$10,2,FALSE) -> 17 | AC13: =T13-HLOOKUP(X13,Feuil1!$C$1:$BL$10,3,FALSE) -> 7 | AD13: =T13-HLOOKUP(X13,Feuil1!$C$1:$BL$10,4,FALSE) -> -3 | AE13: =T13-HLOOKUP(X13,Feuil1!$C$1:$BL$10,5,FALSE) -> -13 | AF13: =T13-HLOOKUP(X13,Feuil1!$C$1:$BL$10,6,FALSE) -> -23 | AG13: =T13-HLOOKUP(X13,Feuil1!$C$1:$BL$10,7,FALSE) -> -33 | AH13: =T13-HLOOKUP(X13,Feuil1!$C$1:$BL$10,8,FALSE) -> -43 | AI13: =T13-HLOOKUP(X13,Feuil1!$C$1:$BL$10,9,FALSE) -> -58 | AJ13: =T13-HLOOKUP(X13,Feuil1!$C$1:$BL$10,10,FALSE) -> -943 | AQ13: DEP +
A14: F | B14: NE | C14: ALS | D14: 4 | E14: 374732 | F14: FERON-GRIMM | G14: LILOU | H14: 2001 | I14: 56.3 | J14: ASPTT Strasbourg | K14: F | L14: 17 | M14: 20 | N14: -22 | O14: =IF(H14="","",IF(MAXA(L14:N14)<=0,0,MAXA(L14:N14))) -> 20 | P14: -21 | Q14: 21 | R14: 24 | S14: =IF(H14="","",IF(MAXA(P14:R14)<=0,0,MAXA(P14:R14))) -> 24 | T14: =IF(H14="","",IF(OR(O14=0,S14=0),0,O14+S14)) -> 44 | U14: =T14-I14*2 -> -68.6 | V14: =IF(H14="","",AQ14) -> DEB | W14: =IF(AJ14>=0,AJ14,IF(AI14>=0,AI14,IF(AH14>=0,AH14,IF(AG14>=0,AG14,IF(AF14>=0,AF14,IF(AE14>=0,AE14,IF(AD14>=0,AD14,IF(AC14>=0,AC14,AB14)))))))) -> 4 | X14: =IF(I14="","",IF(A14="H",IF(OR(H14="SEN",H14<1995),VLOOKUP(I14,Feuil1!$A$11:$G$29,6),IF(AND(H14>1994,H14<1998),VLOOKUP(I14,Feuil1!$A$11:$G$29,5),IF(AND(H14>1997,H14<2000),VLOOKUP(I14,Feuil1!$A$11:$G$29,4),IF(AND(H14>1999,H14<2002),VLOOKUP(I14,Feuil1!$A$11:$G$29,3),VLOOKUP(I14,Feuil1!$A$11:$G$29,2))))),IF(OR(H14="SEN",H14<1995),VLOOKUP(I14,Feuil1!$G$11:$L$25,6),IF(AND(H14>1994,H14<1998),VLOOKUP(I14,Feuil1!$G$11:$L$25,5),IF(AND(H14>1997,H14<2000),VLOOKUP(I14,Feuil1!$G$11:$L$25,4),IF(AND(H14>1999,H14<2002),VLOOKUP(I14,Feuil1!$G$11:$L$25,3),VLOOKUP(I14,Feuil1!$G$11:$L$25,2))))))) -> FC1 58 | Y14: =IF(I14="","",IF(A14="H",10^(0.794358141*LOG(I14/174.393)^2)*T14,IF(A14="F",10^(0.89726074*LOG(I14/148.026)^2)*T14,""))) -> 63.32877297 | AB14: =T14-HLOOKUP(X14,Feuil1!$C$1:$BL$10,2,FALSE) -> 4 | AC14: =T14-HLOOKUP(X14,Feuil1!$C$1:$BL$10,3,FALSE) -> -6 | AD14: =T14-HLOOKUP(X14,Feuil1!$C$1:$BL$10,4,FALSE) -> -16 | AE14: =T14-HLOOKUP(X14,Feuil1!$C$1:$BL$10,5,FALSE) -> -26 | AF14: =T14-HLOOKUP(X14,Feuil1!$C$1:$BL$10,6,FALSE) -> -36 | AG14: =T14-HLOOKUP(X14,Feuil1!$C$1:$BL$10,7,FALSE) -> -46 | AH14: =T14-HLOOKUP(X14,Feuil1!$C$1:$BL$10,8,FALSE) -> -56 | AI14: =T14-HLOOKUP(X14,Feuil1!$C$1:$BL$10,9,FALSE) -> -71 | AJ14: =T14-HLOOKUP(X14,Feuil1!$C$1:$BL$10,10,FALSE) -> -956 | AQ14: DEB
AB15: =T15-HLOOKUP(X15,Feuil1!$C$1:$BL$10,2,FALSE) ->  | AC15: =T15-HLOOKUP(X15,Feuil1!$C$1:$BL$10,3,FALSE) ->  | AD15: =T15-HLOOKUP(X15,Feuil1!$C$1:$BL$10,4,FALSE) ->  | AE15: =T15-HLOOKUP(X15,Feuil1!$C$1:$BL$10,5,FALSE) ->  | AF15: =T15-HLOOKUP(X15,Feuil1!$C$1:$BL$10,6,FALSE) ->  | AG15: =T15-HLOOKUP(X15,Feuil1!$C$1:$BL$10,7,FALSE) ->  | AH15: =T15-HLOOKUP(X15,Feuil1!$C$1:$BL$10,8,FALSE) ->  | AI15: =T15-HLOOKUP(X15,Feuil1!$C$1:$BL$10,9,FALSE) ->  | AJ15: =T15-HLOOKUP(X15,Feuil1!$C$1:$BL$10,10,FALSE) -> 
A16: F | B16: CO | C16: BRE | D16: 1 | E16: 357283 | F16: VAN KERKHOVE | G16: Charline | H16: 2001 | I16: 59.9 | J16: AL QUIMPER | K16: F | L16: 20 | M16: 23 | N16: 26 | O16: =IF(H16="","",IF(MAXA(L16:N16)<=0,0,MAXA(L16:N16))) -> 26 | P16: 29 | Q16: 32 | R16: -35 | S16: =IF(H16="","",IF(MAXA(P16:R16)<=0,0,MAXA(P16:R16))) -> 32 | T16: =IF(H16="","",IF(OR(O16=0,S16=0),0,O16+S16)) -> 58 | U16: =T16-I16*2 -> -61.8 | V16: =IF(H16="","",AQ16) -> DEP + | W16: =IF(AJ16>=0,AJ16,IF(AI16>=0,AI16,IF(AH16>=0,AH16,IF(AG16>=0,AG16,IF(AF16>=0,AF16,IF(AE16>=0,AE16,IF(AD16>=0,AD16,IF(AC16>=0,AC16,AB16)))))))) -> 3 | X16: =IF(I16="","",IF(A16="H",IF(OR(H16="SEN",H16<1995),VLOOKUP(I16,Feuil1!$A$11:$G$29,6),IF(AND(H16>1994,H16<1998),VLOOKUP(I16,Feuil1!$A$11:$G$29,5),IF(AND(H16>1997,H16<2000),VLOOKUP(I16,Feuil1!$A$11:$G$29,4),IF(AND(H16>1999,H16<2002),VLOOKUP(I16,Feuil1!$A$11:$G$29,3),VLOOKUP(I16,Feuil1!$A$11:$G$29,2))))),IF(OR(H16="SEN",H16<1995),VLOOKUP(I16,Feuil1!$G$11:$L$25,6),IF(AND(H16>1994,H16<1998),VLOOKUP(I16,Feuil1!$G$11:$L$25,5),IF(AND(H16>1997,H16<2000),VLOOKUP(I16,Feuil1!$G$11:$L$25,4),IF(AND(H16>1999,H16<2002),VLOOKUP(I16,Feuil1!$G$11:$L$25,3),VLOOKUP(I16,Feuil1!$G$11:$L$25,2))))))) -> FC1 63 | Y16: =IF(I16="","",IF(A16="H",10^(0.794358141*LOG(I16/174.393)^2)*T16,IF(A16="F",10^(0.89726074*LOG(I16/148.026)^2)*T16,""))) -> 79.78961794 | AB16: =T16-HLOOKUP(X16,Feuil1!$C$1:$BL$10,2,FALSE) -> 13 | AC16: =T16-HLOOKUP(X16,Feuil1!$C$1:$BL$10,3,FALSE) -> 3 | AD16: =T16-HLOOKUP(X16,Feuil1!$C$1:$BL$10,4,FALSE) -> -7 | AE16: =T16-HLOOKUP(X16,Feuil1!$C$1:$BL$10,5,FALSE) -> -17 | AF16: =T16-HLOOKUP(X16,Feuil1!$C$1:$BL$10,6,FALSE) -> -27 | AG16: =T16-HLOOKUP(X16,Feuil1!$C$1:$BL$10,7,FALSE) -> -37 | AH16: =T16-HLOOKUP(X16,Feuil1!$C$1:$BL$10,8,FALSE) -> -52 | AI16: =T16-HLOOKUP(X16,Feuil1!$C$1:$BL$10,9,FALSE) -> -67 | AJ16: =T16-HLOOKUP(X16,Feuil1!$C$1:$BL$10,10,FALSE) -> -942 | AQ16: DEP +
AB17: =T17-HLOOKUP(X17,Feuil1!$C$1:$BL$10,2,FALSE) ->  | AC17: =T17-HLOOKUP(X17,Feuil1!$C$1:$BL$10,3,FALSE) ->  | AD17: =T17-HLOOKUP(X17,Feuil1!$C$1:$BL$10,4,FALSE) ->  | AE17: =T17-HLOOKUP(X17,Feuil1!$C$1:$BL$10,5,FALSE) ->  | AF17: =T17-HLOOKUP(X17,Feuil1!$C$1:$BL$10,6,FALSE) ->  | AG17: =T17-HLOOKUP(X17,Feuil1!$C$1:$BL$10,7,FALSE) ->  | AH17: =T17-HLOOKUP(X17,Feuil1!$C$1:$BL$10,8,FALSE) ->  | AI17: =T17-HLOOKUP(X17,Feuil1!$C$1:$BL$10,9,FALSE) ->  | AJ17: =T17-HLOOKUP(X17,Feuil1!$C$1:$BL$10,10,FALSE) -> 
A18: F | B18: CO | C18: BRE | D18: 1 | E18: 378676 | F18: JAFFRY | G18: Laureline | H18: 2001 | I18: 64.25 | J18: CHM Plouhinec | K18: F | L18: 26 | M18: 28 | N18: -30 | O18: =IF(H18="","",IF(MAXA(L18:N18)<=0,0,MAXA(L18:N18))) -> 28 | P18: 35 | Q18: 38 | R18: -40 | S18: =IF(H18="","",IF(MAXA(P18:R18)<=0,0,MAXA(P18:R18))) -> 38 | T18: =IF(H18="","",IF(OR(O18=0,S18=0),0,O18+S18)) -> 66 | U18: =T18-I18*2 -> -62.5 | V18: =IF(H18="","",AQ18) -> DEP + | W18: =IF(AJ18>=0,AJ18,IF(AI18>=0,AI18,IF(AH18>=0,AH18,IF(AG18>=0,AG18,IF(AF18>=0,AF18,IF(AE18>=0,AE18,IF(AD18>=0,AD18,IF(AC18>=0,AC18,AB18)))))))) -> 6 | X18: =IF(I18="","",IF(A18="H",IF(OR(H18="SEN",H18<1995),VLOOKUP(I18,Feuil1!$A$11:$G$29,6),IF(AND(H18>1994,H18<1998),VLOOKUP(I18,Feuil1!$A$11:$G$29,5),IF(AND(H18>1997,H18<2000),VLOOKUP(I18,Feuil1!$A$11:$G$29,4),IF(AND(H18>1999,H18<2002),VLOOKUP(I18,Feuil1!$A$11:$G$29,3),VLOOKUP(I18,Feuil1!$A$11:$G$29,2))))),IF(OR(H18="SEN",H18<1995),VLOOKUP(I18,Feuil1!$G$11:$L$25,6),IF(AND(H18>1994,H18<1998),VLOOKUP(I18,Feuil1!$G$11:$L$25,5),IF(AND(H18>1997,H18<2000),VLOOKUP(I18,Feuil1!$G$11:$L$25,4),IF(AND(H18>1999,H18<2002),VLOOKUP(I18,Feuil1!$G$11:$L$25,3),VLOOKUP(I18,Feuil1!$G$11:$L$25,2))))))) -> FC1 69 | Y18: =IF(I18="","",IF(A18="H",10^(0.794358141*LOG(I18/174.393)^2)*T18,IF(A18="F",10^(0.89726074*LOG(I18/148.026)^2)*T18,""))) -> 86.58182869 | AB18: =T18-HLOOKUP(X18,Feuil1!$C$1:$BL$10,2,FALSE) -> 16 | AC18: =T18-HLOOKUP(X18,Feuil1!$C$1:$BL$10,3,FALSE) -> 6 | AD18: =T18-HLOOKUP(X18,Feuil1!$C$1:$BL$10,4,FALSE) -> -4 | AE18: =T18-HLOOKUP(X18,Feuil1!$C$1:$BL$10,5,FALSE) -> -14 | AF18: =T18-HLOOKUP(X18,Feuil1!$C$1:$BL$10,6,FALSE) -> -24 | AG18: =T18-HLOOKUP(X18,Feuil1!$C$1:$BL$10,7,FALSE) -> -39 | AH18: =T18-HLOOKUP(X18,Feuil1!$C$1:$BL$10,8,FALSE) -> -54 | AI18: =T18-HLOOKUP(X18,Feuil1!$C$1:$BL$10,9,FALSE) -> -69 | AJ18: =T18-HLOOKUP(X18,Feuil1!$C$1:$BL$10,10,FALSE) -> -934 | AQ18: DEP +
A19: F | B19: N | C19: PIC | D19: 2 | E19: 371430 | F19: LEMORT | G19: Marine | H19: 2000 | I19: 68.4 | J19: La Ferté Milon CMHM | K19: F | L19: 25 | M19: 27 | N19: -29 | O19: =IF(H19="","",IF(MAXA(L19:N19)<=0,0,MAXA(L19:N19))) -> 27 | P19: 30 | Q19: 35 | R19: 38 | S19: =IF(H19="","",IF(MAXA(P19:R19)<=0,0,MAXA(P19:R19))) -> 38 | T19: =IF(H19="","",IF(OR(O19=0,S19=0),0,O19+S19)) -> 65 | U19: =T19-I19*2 -> -71.8 | V19: =IF(H19="","",AQ19) -> DEP + | W19: =IF(AJ19>=0,AJ19,IF(AI19>=0,AI19,IF(AH19>=0,AH19,IF(AG19>=0,AG19,IF(AF19>=0,AF19,IF(AE19>=0,AE19,IF(AD19>=0,AD19,IF(AC19>=0,AC19,AB19)))))))) -> 5 | X19: =IF(I19="","",IF(A19="H",IF(OR(H19="SEN",H19<1995),VLOOKUP(I19,Feuil1!$A$11:$G$29,6),IF(AND(H19>1994,H19<1998),VLOOKUP(I19,Feuil1!$A$11:$G$29,5),IF(AND(H19>1997,H19<2000),VLOOKUP(I19,Feuil1!$A$11:$G$29,4),IF(AND(H19>1999,H19<2002),VLOOKUP(I19,Feuil1!$A$11:$G$29,3),VLOOKUP(I19,Feuil1!$A$11:$G$29,2))))),IF(OR(H19="SEN",H19<1995),VLOOKUP(I19,Feuil1!$G$11:$L$25,6),IF(AND(H19>1994,H19<1998),VLOOKUP(I19,Feuil1!$G$11:$L$25,5),IF(AND(H19>1997,H19<2000),VLOOKUP(I19,Feuil1!$G$11:$L$25,4),IF(AND(H19>1999,H19<2002),VLOOKUP(I19,Feuil1!$G$11:$L$25,3),VLOOKUP(I19,Feuil1!$G$11:$L$25,2))))))) -> FC1 69 | Y19: =IF(I19="","",IF(A19="H",10^(0.794358141*LOG(I19/174.393)^2)*T19,IF(A19="F",10^(0.89726074*LOG(I19/148.026)^2)*T19,""))) -> 81.9932279 | AB19: =T19-HLOOKUP(X19,Feuil1!$C$1:$BL$10,2,FALSE) -> 15 | AC19: =T19-HLOOKUP(X19,Feuil1!$C$1:$BL$10,3,FALSE) -> 5 | AD19: =T19-HLOOKUP(X19,Feuil1!$C$1:$BL$10,4,FALSE) -> -5 | AE19: =T19-HLOOKUP(X19,Feuil1!$C$1:$BL$10,5,FALSE) -> -15 | AF19: =T19-HLOOKUP(X19,Feuil1!$C$1:$BL$10,6,FALSE) -> -25 | AG19: =T19-HLOOKUP(X19,Feuil1!$C$1:$BL$10,7,FALSE) -> -40 | AH19: =T19-HLOOKUP(X19,Feuil1!$C$1:$BL$10,8,FALSE) -> -55 | AI19: =T19-HLOOKUP(X19,Feuil1!$C$1:$BL$10,9,FALSE) -> -70 | AJ19: =T19-HLOOKUP(X19,Feuil1!$C$1:$BL$10,10,FALSE) -> -935 | AQ19: DEP +
AB20: =T20-HLOOKUP(X20,Feuil1!$C$1:$BL$10,2,FALSE) ->  | AC20: =T20-HLOOKUP(X20,Feuil1!$C$1:$BL$10,3,FALSE) ->  | AD20: =T20-HLOOKUP(X20,Feuil1!$C$1:$BL$10,4,FALSE) ->  | AE20: =T20-HLOOKUP(X20,Feuil1!$C$1:$BL$10,5,FALSE) ->  | AF20: =T20-HLOOKUP(X20,Feuil1!$C$1:$BL$10,6,FALSE) ->  | AG20: =T20-HLOOKUP(X20,Feuil1!$C$1:$BL$10,7,FALSE) ->  | AH20: =T20-HLOOKUP(X20,Feuil1!$C$1:$BL$10,8,FALSE) ->  | AI20: =T20-HLOOKUP(X20,Feuil1!$C$1:$BL$10,9,FALSE) ->  | AJ20: =T20-HLOOKUP(X20,Feuil1!$C$1:$BL$10,10,FALSE) -> 
A21: F | B21: N | C21: PIC | D21: 1 | E21: 328806 | F21: ALLAL BEN MAATI | G21: Chloé | H21: 2000 | I21: 72.4 | J21: Péronne AAEEP | K21: F | L21: 31 | M21: 33 | N21: 34 | O21: =IF(H21="","",IF(MAXA(L21:N21)<=0,0,MAXA(L21:N21))) -> 34 | P21: 40 | Q21: 43 | R21: -46 | S21: =IF(H21="","",IF(MAXA(P21:R21)<=0,0,MAXA(P21:R21))) -> 43 | T21: =IF(H21="","",IF(OR(O21=0,S21=0),0,O21+S21)) -> 77 | U21: =T21-I21*2 -> -67.8 | V21: =IF(H21="","",AQ21) -> DEP + | W21: =IF(AJ21>=0,AJ21,IF(AI21>=0,AI21,IF(AH21>=0,AH21,IF(AG21>=0,AG21,IF(AF21>=0,AF21,IF(AE21>=0,AE21,IF(AD21>=0,AD21,IF(AC21>=0,AC21,AB21)))))))) -> 7 | X21: =IF(I21="","",IF(A21="H",IF(OR(H21="SEN",H21<1995),VLOOKUP(I21,Feuil1!$A$11:$G$29,6),IF(AND(H21>1994,H21<1998),VLOOKUP(I21,Feuil1!$A$11:$G$29,5),IF(AND(H21>1997,H21<2000),VLOOKUP(I21,Feuil1!$A$11:$G$29,4),IF(AND(H21>1999,H21<2002),VLOOKUP(I21,Feuil1!$A$11:$G$29,3),VLOOKUP(I21,Feuil1!$A$11:$G$29,2))))),IF(OR(H21="SEN",H21<1995),VLOOKUP(I21,Feuil1!$G$11:$L$25,6),IF(AND(H21>1994,H21<1998),VLOOKUP(I21,Feuil1!$G$11:$L$25,5),IF(AND(H21>1997,H21<2000),VLOOKUP(I21,Feuil1!$G$11:$L$25,4),IF(AND(H21>1999,H21<2002),VLOOKUP(I21,Feuil1!$G$11:$L$25,3),VLOOKUP(I21,Feuil1!$G$11:$L$25,2))))))) -> FC1 +69 | Y21: =IF(I21="","",IF(A21="H",10^(0.794358141*LOG(I21/174.393)^2)*T21,IF(A21="F",10^(0.89726074*LOG(I21/148.026)^2)*T21,""))) -> 93.98342607 | AB21: =T21-HLOOKUP(X21,Feuil1!$C$1:$BL$10,2,FALSE) -> 17 | AC21: =T21-HLOOKUP(X21,Feuil1!$C$1:$BL$10,3,FALSE) -> 7 | AD21: =T21-HLOOKUP(X21,Feuil1!$C$1:$BL$10,4,FALSE) -> -3 | AE21: =T21-HLOOKUP(X21,Feuil1!$C$1:$BL$10,5,FALSE) -> -18 | AF21: =T21-HLOOKUP(X21,Feuil1!$C$1:$BL$10,6,FALSE) -> -28 | AG21: =T21-HLOOKUP(X21,Feuil1!$C$1:$BL$10,7,FALSE) -> -38 | AH21: =T21-HLOOKUP(X21,Feuil1!$C$1:$BL$10,8,FALSE) -> -53 | AI21: =T21-HLOOKUP(X21,Feuil1!$C$1:$BL$10,9,FALSE) -> -68 | AJ21: =T21-HLOOKUP(X21,Feuil1!$C$1:$BL$10,10,FALSE) -> -923 | AQ21: DEP +
A22: F | B22: NE | C22: ALS | D22: 2 | E22: 369106 | F22: MAILLOT | G22: OCEANE | H22: 2000 | I22: 78.2 | J22: ASPTT Strasbourg | K22: F | L22: 20 | M22: 22 | N22: -23 | O22: =IF(H22="","",IF(MAXA(L22:N22)<=0,0,MAXA(L22:N22))) -> 22 | P22: 22 | Q22: 25 | R22: 27 | S22: =IF(H22="","",IF(MAXA(P22:R22)<=0,0,MAXA(P22:R22))) -> 27 | T22: =IF(H22="","",IF(OR(O22=0,S22=0),0,O22+S22)) -> 49 | U22: =T22-I22*2 -> -107.4 | V22: =IF(H22="","",AQ22) -> DEB | W22: =IF(AJ22>=0,AJ22,IF(AI22>=0,AI22,IF(AH22>=0,AH22,IF(AG22>=0,AG22,IF(AF22>=0,AF22,IF(AE22>=0,AE22,IF(AD22>=0,AD22,IF(AC22>=0,AC22,AB22)))))))) -> -11 | X22: =IF(I22="","",IF(A22="H",IF(OR(H22="SEN",H22<1995),VLOOKUP(I22,Feuil1!$A$11:$G$29,6),IF(AND(H22>1994,H22<1998),VLOOKUP(I22,Feuil1!$A$11:$G$29,5),IF(AND(H22>1997,H22<2000),VLOOKUP(I22,Feuil1!$A$11:$G$29,4),IF(AND(H22>1999,H22<2002),VLOOKUP(I22,Feuil1!$A$11:$G$29,3),VLOOKUP(I22,Feuil1!$A$11:$G$29,2))))),IF(OR(H22="SEN",H22<1995),VLOOKUP(I22,Feuil1!$G$11:$L$25,6),IF(AND(H22>1994,H22<1998),VLOOKUP(I22,Feuil1!$G$11:$L$25,5),IF(AND(H22>1997,H22<2000),VLOOKUP(I22,Feuil1!$G$11:$L$25,4),IF(AND(H22>1999,H22<2002),VLOOKUP(I22,Feuil1!$G$11:$L$25,3),VLOOKUP(I22,Feuil1!$G$11:$L$25,2))))))) -> FC1 +69 | Y22: =IF(I22="","",IF(A22="H",10^(0.794358141*LOG(I22/174.393)^2)*T22,IF(A22="F",10^(0.89726074*LOG(I22/148.026)^2)*T22,""))) -> 57.42582686 | AB22: =T22-HLOOKUP(X22,Feuil1!$C$1:$BL$10,2,FALSE) -> -11 | AC22: =T22-HLOOKUP(X22,Feuil1!$C$1:$BL$10,3,FALSE) -> -21 | AD22: =T22-HLOOKUP(X22,Feuil1!$C$1:$BL$10,4,FALSE) -> -31 | AE22: =T22-HLOOKUP(X22,Feuil1!$C$1:$BL$10,5,FALSE) -> -46 | AF22: =T22-HLOOKUP(X22,Feuil1!$C$1:$BL$10,6,FALSE) -> -56 | AG22: =T22-HLOOKUP(X22,Feuil1!$C$1:$BL$10,7,FALSE) -> -66 | AH22: =T22-HLOOKUP(X22,Feuil1!$C$1:$BL$10,8,FALSE) -> -81 | AI22: =T22-HLOOKUP(X22,Feuil1!$C$1:$BL$10,9,FALSE) -> -96 | AJ22: =T22-HLOOKUP(X22,Feuil1!$C$1:$BL$10,10,FALSE) -> -951 | AQ22: DEB
AB23: =T23-HLOOKUP(X23,Feuil1!$C$1:$BL$10,2,FALSE) ->  | AC23: =T23-HLOOKUP(X23,Feuil1!$C$1:$BL$10,3,FALSE) ->  | AD23: =T23-HLOOKUP(X23,Feuil1!$C$1:$BL$10,4,FALSE) ->  | AE23: =T23-HLOOKUP(X23,Feuil1!$C$1:$BL$10,5,FALSE) ->  | AF23: =T23-HLOOKUP(X23,Feuil1!$C$1:$BL$10,6,FALSE) ->  | AG23: =T23-HLOOKUP(X23,Feuil1!$C$1:$BL$10,7,FALSE) ->  | AH23: =T23-HLOOKUP(X23,Feuil1!$C$1:$BL$10,8,FALSE) ->  | AI23: =T23-HLOOKUP(X23,Feuil1!$C$1:$BL$10,9,FALSE) ->  | AJ23: =T23-HLOOKUP(X23,Feuil1!$C$1:$BL$10,10,FALSE) -> 
AB24: =T24-HLOOKUP(X24,Feuil1!$C$1:$BL$10,2,FALSE) ->  | AC24: =T24-HLOOKUP(X24,Feuil1!$C$1:$BL$10,3,FALSE) ->  | AD24: =T24-HLOOKUP(X24,Feuil1!$C$1:$BL$10,4,FALSE) ->  | AE24: =T24-HLOOKUP(X24,Feuil1!$C$1:$BL$10,5,FALSE) ->  | AF24: =T24-HLOOKUP(X24,Feuil1!$C$1:$BL$10,6,FALSE) ->  | AG24: =T24-HLOOKUP(X24,Feuil1!$C$1:$BL$10,7,FALSE) ->  | AH24: =T24-HLOOKUP(X24,Feuil1!$C$1:$BL$10,8,FALSE) ->  | AI24: =T24-HLOOKUP(X24,Feuil1!$C$1:$BL$10,9,FALSE) ->  | AJ24: =T24-HLOOKUP(X24,Feuil1!$C$1:$BL$10,10,FALSE) ->  | AQ24: =IF(AJ24>=0,$AJ$4,IF(AI24>=0,$AI$4,IF(AH24>=0,$AH$4,IF(AG24>=0,$AG$4,IF(AF24>=0,$AF$4,IF(AE24>=0,$AE$4,IF(AD24>=0,$AD$4,IF(AC24>=0,$AC$4,$AB$4)))))))) -> 
A25: H | B25: NE | C25: ALS | D25: 1 | E25: 327576 | F25: MARTZ | G25: LEO | H25: 2000 | I25: 43 | J25: CHM Andlau | K25: F | L25: -32 | M25: 32 | N25: -34 | O25: =IF(H25="","",IF(MAXA(L25:N25)<=0,0,MAXA(L25:N25))) -> 32 | P25: 35 | Q25: 39 | R25: 41 | S25: =IF(H25="","",IF(MAXA(P25:R25)<=0,0,MAXA(P25:R25))) -> 41 | T25: =IF(H25="","",IF(OR(O25=0,S25=0),0,O25+S25)) -> 73 | U25: =T25-I25*2 -> -13 | V25: =IF(H25="","",AQ25) -> REG + | W25: =IF(AJ25>=0,AJ25,IF(AI25>=0,AI25,IF(AH25>=0,AH25,IF(AG25>=0,AG25,IF(AF25>=0,AF25,IF(AE25>=0,AE25,IF(AD25>=0,AD25,IF(AC25>=0,AC25,AB25)))))))) -> 13 | X25: =IF(I25="","",IF(A25="H",IF(OR(H25="SEN",H25<1995),VLOOKUP(I25,Feuil1!$A$11:$G$29,6),IF(AND(H25>1994,H25<1998),VLOOKUP(I25,Feuil1!$A$11:$G$29,5),IF(AND(H25>1997,H25<2000),VLOOKUP(I25,Feuil1!$A$11:$G$29,4),IF(AND(H25>1999,H25<2002),VLOOKUP(I25,Feuil1!$A$11:$G$29,3),VLOOKUP(I25,Feuil1!$A$11:$G$29,2))))),IF(OR(H25="SEN",H25<1995),VLOOKUP(I25,Feuil1!$G$11:$L$25,6),IF(AND(H25>1994,H25<1998),VLOOKUP(I25,Feuil1!$G$11:$L$25,5),IF(AND(H25>1997,H25<2000),VLOOKUP(I25,Feuil1!$G$11:$L$25,4),IF(AND(H25>1999,H25<2002),VLOOKUP(I25,Feuil1!$G$11:$L$25,3),VLOOKUP(I25,Feuil1!$G$11:$L$25,2))))))) -> C1 45 | Y25: =IF(I25="","",IF(A25="H",10^(0.794358141*LOG(I25/174.393)^2)*T25,IF(A25="F",10^(0.89726074*LOG(I25/148.026)^2)*T25,""))) -> 143.5578681 | AB25: =T25-HLOOKUP(X25,Feuil1!$C$1:$BL$10,2,FALSE) -> 38 | AC25: =T25-HLOOKUP(X25,Feuil1!$C$1:$BL$10,3,FALSE) -> 23 | AD25: =T25-HLOOKUP(X25,Feuil1!$C$1:$BL$10,4,FALSE) -> 13 | AE25: =T25-HLOOKUP(X25,Feuil1!$C$1:$BL$10,5,FALSE) -> -2 | AF25: =T25-HLOOKUP(X25,Feuil1!$C$1:$BL$10,6,FALSE) -> -17 | AG25: =T25-HLOOKUP(X25,Feuil1!$C$1:$BL$10,7,FALSE) -> -32 | AH25: =T25-HLOOKUP(X25,Feuil1!$C$1:$BL$10,8,FALSE) -> -42 | AI25: =T25-HLOOKUP(X25,Feuil1!$C$1:$BL$10,9,FALSE) -> -57 | AJ25: =T25-HLOOKUP(X25,Feuil1!$C$1:$BL$10,10,FALSE) -> -927 | AQ25: =IF(AJ25>=0,$AJ$4,IF(AI25>=0,$AI$4,IF(AH25>=0,$AH$4,IF(AG25>=0,$AG$4,IF(AF25>=0,$AF$4,IF(AE25>=0,$AE$4,IF(AD25>=0,$AD$4,IF(AC25>=0,$AC$4,$AB$4)))))))) -> REG +
A26: H | B26: DOM | C26: GUA | D26: 2 | E26: 379132 | F26: MOLINIER | G26: Hugo | H26: 2001 | I26: 44.5 | J26: AHCS/Pointe à Pitre | K26: F | L26: 28 | M26: 32 | N26: 34 | O26: 34 | P26: 33 | Q26: 35 | R26: 38 | S26: 38 | T26: 72 | U26: -17 | V26: REG + | W26: 12 | X26: =IF(I26="","",IF(A26="H",IF(OR(H26="SEN",H26<1995),VLOOKUP(I26,Feuil1!$A$11:$G$29,6),IF(AND(H26>1994,H26<1998),VLOOKUP(I26,Feuil1!$A$11:$G$29,5),IF(AND(H26>1997,H26<2000),VLOOKUP(I26,Feuil1!$A$11:$G$29,4),IF(AND(H26>1999,H26<2002),VLOOKUP(I26,Feuil1!$A$11:$G$29,3),VLOOKUP(I26,Feuil1!$A$11:$G$29,2))))),IF(OR(H26="SEN",H26<1995),VLOOKUP(I26,Feuil1!$G$11:$L$25,6),IF(AND(H26>1994,H26<1998),VLOOKUP(I26,Feuil1!$G$11:$L$25,5),IF(AND(H26>1997,H26<2000),VLOOKUP(I26,Feuil1!$G$11:$L$25,4),IF(AND(H26>1999,H26<2002),VLOOKUP(I26,Feuil1!$G$11:$L$25,3),VLOOKUP(I26,Feuil1!$G$11:$L$25,2))))))) -> C1 45 | Y26: 137.0335842 | AB26: =T26-HLOOKUP(X26,Feuil1!$C$1:$BL$10,2,FALSE) -> 37 | AC26: =T26-HLOOKUP(X26,Feuil1!$C$1:$BL$10,3,FALSE) -> 22 | AD26: =T26-HLOOKUP(X26,Feuil1!$C$1:$BL$10,4,FALSE) -> 12 | AE26: =T26-HLOOKUP(X26,Feuil1!$C$1:$BL$10,5,FALSE) -> -3 | AF26: =T26-HLOOKUP(X26,Feuil1!$C$1:$BL$10,6,FALSE) -> -18 | AG26: =T26-HLOOKUP(X26,Feuil1!$C$1:$BL$10,7,FALSE) -> -33 | AH26: =T26-HLOOKUP(X26,Feuil1!$C$1:$BL$10,8,FALSE) -> -43 | AI26: =T26-HLOOKUP(X26,Feuil1!$C$1:$BL$10,9,FALSE) -> -58 | AJ26: =T26-HLOOKUP(X26,Feuil1!$C$1:$BL$10,10,FALSE) -> -928 | AQ26: REG +
A27: H | B27: DOM | C27: GUY | D27: 3 | E27: 377221 | F27: MARTIN | G27: Mathieu | H27: 2000 | I27: 41.2 | J27: ASCP/Guyane | K27: F | L27: 30 | M27: 33 | N27: -35 | O27: 33 | P27: 33 | Q27: 36 | R27: 38 | S27: 38 | T27: 71 | U27: -11.4 | V27: REG + | W27: 11 | X27: =IF(I27="","",IF(A27="H",IF(OR(H27="SEN",H27<1995),VLOOKUP(I27,Feuil1!$A$11:$G$29,6),IF(AND(H27>1994,H27<1998),VLOOKUP(I27,Feuil1!$A$11:$G$29,5),IF(AND(H27>1997,H27<2000),VLOOKUP(I27,Feuil1!$A$11:$G$29,4),IF(AND(H27>1999,H27<2002),VLOOKUP(I27,Feuil1!$A$11:$G$29,3),VLOOKUP(I27,Feuil1!$A$11:$G$29,2))))),IF(OR(H27="SEN",H27<1995),VLOOKUP(I27,Feuil1!$G$11:$L$25,6),IF(AND(H27>1994,H27<1998),VLOOKUP(I27,Feuil1!$G$11:$L$25,5),IF(AND(H27>1997,H27<2000),VLOOKUP(I27,Feuil1!$G$11:$L$25,4),IF(AND(H27>1999,H27<2002),VLOOKUP(I27,Feuil1!$G$11:$L$25,3),VLOOKUP(I27,Feuil1!$G$11:$L$25,2))))))) -> C1 45 | Y27: 145.6052175 | AB27: =T27-HLOOKUP(X27,Feuil1!$C$1:$BL$10,2,FALSE) -> 36 | AC27: =T27-HLOOKUP(X27,Feuil1!$C$1:$BL$10,3,FALSE) -> 21 | AD27: =T27-HLOOKUP(X27,Feuil1!$C$1:$BL$10,4,FALSE) -> 11 | AE27: =T27-HLOOKUP(X27,Feuil1!$C$1:$BL$10,5,FALSE) -> -4 | AF27: =T27-HLOOKUP(X27,Feuil1!$C$1:$BL$10,6,FALSE) -> -19 | AG27: =T27-HLOOKUP(X27,Feuil1!$C$1:$BL$10,7,FALSE) -> -34 | AH27: =T27-HLOOKUP(X27,Feuil1!$C$1:$BL$10,8,FALSE) -> -44 | AI27: =T27-HLOOKUP(X27,Feuil1!$C$1:$BL$10,9,FALSE) -> -59 | AJ27: =T27-HLOOKUP(X27,Feuil1!$C$1:$BL$10,10,FALSE) -> -929 | AQ27: REG +
A28: H | B28: DOM | C28: GUA | D28: 4 | E28: 380461 | F28: GRANDMAN | G28: Lionel | H28: 2001 | I28: 41.3 | J28: AHCS/Pointe à Pitre | K28: F | L28: 28 | M28: 32 | N28: -35 | O28: 32 | P28: 32 | Q28: 37 | R28: -40 | S28: 37 | T28: 69 | U28: -13.6 | V28: REG + | W28: 9 | X28: =IF(I28="","",IF(A28="H",IF(OR(H28="SEN",H28<1995),VLOOKUP(I28,Feuil1!$A$11:$G$29,6),IF(AND(H28>1994,H28<1998),VLOOKUP(I28,Feuil1!$A$11:$G$29,5),IF(AND(H28>1997,H28<2000),VLOOKUP(I28,Feuil1!$A$11:$G$29,4),IF(AND(H28>1999,H28<2002),VLOOKUP(I28,Feuil1!$A$11:$G$29,3),VLOOKUP(I28,Feuil1!$A$11:$G$29,2))))),IF(OR(H28="SEN",H28<1995),VLOOKUP(I28,Feuil1!$G$11:$L$25,6),IF(AND(H28>1994,H28<1998),VLOOKUP(I28,Feuil1!$G$11:$L$25,5),IF(AND(H28>1997,H28<2000),VLOOKUP(I28,Feuil1!$G$11:$L$25,4),IF(AND(H28>1999,H28<2002),VLOOKUP(I28,Feuil1!$G$11:$L$25,3),VLOOKUP(I28,Feuil1!$G$11:$L$25,2))))))) -> C1 45 | Y28: 141.1628506 | AB28: =T28-HLOOKUP(X28,Feuil1!$C$1:$BL$10,2,FALSE) -> 34 | AC28: =T28-HLOOKUP(X28,Feuil1!$C$1:$BL$10,3,FALSE) -> 19 | AD28: =T28-HLOOKUP(X28,Feuil1!$C$1:$BL$10,4,FALSE) -> 9 | AE28: =T28-HLOOKUP(X28,Feuil1!$C$1:$BL$10,5,FALSE) -> -6 | AF28: =T28-HLOOKUP(X28,Feuil1!$C$1:$BL$10,6,FALSE) -> -21 | AG28: =T28-HLOOKUP(X28,Feuil1!$C$1:$BL$10,7,FALSE) -> -36 | AH28: =T28-HLOOKUP(X28,Feuil1!$C$1:$BL$10,8,FALSE) -> -46 | AI28: =T28-HLOOKUP(X28,Feuil1!$C$1:$BL$10,9,FALSE) -> -61 | AJ28: =T28-HLOOKUP(X28,Feuil1!$C$1:$BL$10,10,FALSE) -> -931 | AQ28: REG +
A29: H | B29: CO | C29: CEN | D29: 5 | E29: 378404 | F29: DAUMAS | G29: Niels | H29: 2001 | I29: 44.8 | J29: AAJ BLOIS | K29: F | L29: 25 | M29: 27 | N29: 29 | O29: 29 | P29: 35 | Q29: 38 | R29: 40 | S29: 40 | T29: 69 | U29: -20.6 | V29: REG + | W29: 9 | X29: =IF(I29="","",IF(A29="H",IF(OR(H29="SEN",H29<1995),VLOOKUP(I29,Feuil1!$A$11:$G$29,6),IF(AND(H29>1994,H29<1998),VLOOKUP(I29,Feuil1!$A$11:$G$29,5),IF(AND(H29>1997,H29<2000),VLOOKUP(I29,Feuil1!$A$11:$G$29,4),IF(AND(H29>1999,H29<2002),VLOOKUP(I29,Feuil1!$A$11:$G$29,3),VLOOKUP(I29,Feuil1!$A$11:$G$29,2))))),IF(OR(H29="SEN",H29<1995),VLOOKUP(I29,Feuil1!$G$11:$L$25,6),IF(AND(H29>1994,H29<1998),VLOOKUP(I29,Feuil1!$G$11:$L$25,5),IF(AND(H29>1997,H29<2000),VLOOKUP(I29,Feuil1!$G$11:$L$25,4),IF(AND(H29>1999,H29<2002),VLOOKUP(I29,Feuil1!$G$11:$L$25,3),VLOOKUP(I29,Feuil1!$G$11:$L$25,2))))))) -> C1 45 | Y29: 130.4969962 | AB29: =T29-HLOOKUP(X29,Feuil1!$C$1:$BL$10,2,FALSE) -> 34 | AC29: =T29-HLOOKUP(X29,Feuil1!$C$1:$BL$10,3,FALSE) -> 19 | AD29: =T29-HLOOKUP(X29,Feuil1!$C$1:$BL$10,4,FALSE) -> 9 | AE29: =T29-HLOOKUP(X29,Feuil1!$C$1:$BL$10,5,FALSE) -> -6 | AF29: =T29-HLOOKUP(X29,Feuil1!$C$1:$BL$10,6,FALSE) -> -21 | AG29: =T29-HLOOKUP(X29,Feuil1!$C$1:$BL$10,7,FALSE) -> -36 | AH29: =T29-HLOOKUP(X29,Feuil1!$C$1:$BL$10,8,FALSE) -> -46 | AI29: =T29-HLOOKUP(X29,Feuil1!$C$1:$BL$10,9,FALSE) -> -61 | AJ29: =T29-HLOOKUP(X29,Feuil1!$C$1:$BL$10,10,FALSE) -> -931 | AQ29: REG +
A30: H | B30: NE | C30: FCO | D30: 6 | E30: 376274 | F30: LECOMTE | G30: Kylian | H30: 2000 | I30: 43.7 | J30: CHLuxeuil | K30: F | L30: 25 | M30: -28 | N30: 28 | O30: 28 | P30: -32 | Q30: 32 | R30: 37 | S30: 37 | T30: 65 | U30: -22.4 | V30: REG + | W30: 5 | X30: =IF(I30="","",IF(A30="H",IF(OR(H30="SEN",H30<1995),VLOOKUP(I30,Feuil1!$A$11:$G$29,6),IF(AND(H30>1994,H30<1998),VLOOKUP(I30,Feuil1!$A$11:$G$29,5),IF(AND(H30>1997,H30<2000),VLOOKUP(I30,Feuil1!$A$11:$G$29,4),IF(AND(H30>1999,H30<2002),VLOOKUP(I30,Feuil1!$A$11:$G$29,3),VLOOKUP(I30,Feuil1!$A$11:$G$29,2))))),IF(OR(H30="SEN",H30<1995),VLOOKUP(I30,Feuil1!$G$11:$L$25,6),IF(AND(H30>1994,H30<1998),VLOOKUP(I30,Feuil1!$G$11:$L$25,5),IF(AND(H30>1997,H30<2000),VLOOKUP(I30,Feuil1!$G$11:$L$25,4),IF(AND(H30>1999,H30<2002),VLOOKUP(I30,Feuil1!$G$11:$L$25,3),VLOOKUP(I30,Feuil1!$G$11:$L$25,2))))))) -> C1 45 | Y30: 125.8582747 | AB30: =T30-HLOOKUP(X30,Feuil1!$C$1:$BL$10,2,FALSE) -> 30 | AC30: =T30-HLOOKUP(X30,Feuil1!$C$1:$BL$10,3,FALSE) -> 15 | AD30: =T30-HLOOKUP(X30,Feuil1!$C$1:$BL$10,4,FALSE) -> 5 | AE30: =T30-HLOOKUP(X30,Feuil1!$C$1:$BL$10,5,FALSE) -> -10 | AF30: =T30-HLOOKUP(X30,Feuil1!$C$1:$BL$10,6,FALSE) -> -25 | AG30: =T30-HLOOKUP(X30,Feuil1!$C$1:$BL$10,7,FALSE) -> -40 | AH30: =T30-HLOOKUP(X30,Feuil1!$C$1:$BL$10,8,FALSE) -> -50 | AI30: =T30-HLOOKUP(X30,Feuil1!$C$1:$BL$10,9,FALSE) -> -65 | AJ30: =T30-HLOOKUP(X30,Feuil1!$C$1:$BL$10,10,FALSE) -> -935 | AQ30: REG +
A31: H | B31: NE | C31: LOR | D31: 7 | E31: 332322 | F31: SIERADZKI | G31: Lucas | H31: 2001 | I31: 36.5 | J31: A.O.C.Pte-ROSSELLE | K31: F | L31: 25 | M31: 28 | N31: -30 | O31: 28 | P31: 30 | Q31: 32 | R31: -35 | S31: 32 | T31: 60 | U31: -13 | V31: REG + | W31: 0 | X31: =IF(I31="","",IF(A31="H",IF(OR(H31="SEN",H31<1995),VLOOKUP(I31,Feuil1!$A$11:$G$29,6),IF(AND(H31>1994,H31<1998),VLOOKUP(I31,Feuil1!$A$11:$G$29,5),IF(AND(H31>1997,H31<2000),VLOOKUP(I31,Feuil1!$A$11:$G$29,4),IF(AND(H31>1999,H31<2002),VLOOKUP(I31,Feuil1!$A$11:$G$29,3),VLOOKUP(I31,Feuil1!$A$11:$G$29,2))))),IF(OR(H31="SEN",H31<1995),VLOOKUP(I31,Feuil1!$G$11:$L$25,6),IF(AND(H31>1994,H31<1998),VLOOKUP(I31,Feuil1!$G$11:$L$25,5),IF(AND(H31>1997,H31<2000),VLOOKUP(I31,Feuil1!$G$11:$L$25,4),IF(AND(H31>1999,H31<2002),VLOOKUP(I31,Feuil1!$G$11:$L$25,3),VLOOKUP(I31,Feuil1!$G$11:$L$25,2))))))) -> C1 45 | Y31: 139.5204111 | AB31: =T31-HLOOKUP(X31,Feuil1!$C$1:$BL$10,2,FALSE) -> 25 | AC31: =T31-HLOOKUP(X31,Feuil1!$C$1:$BL$10,3,FALSE) -> 10 | AD31: =T31-HLOOKUP(X31,Feuil1!$C$1:$BL$10,4,FALSE) -> 0 | AE31: =T31-HLOOKUP(X31,Feuil1!$C$1:$BL$10,5,FALSE) -> -15 | AF31: =T31-HLOOKUP(X31,Feuil1!$C$1:$BL$10,6,FALSE) -> -30 | AG31: =T31-HLOOKUP(X31,Feuil1!$C$1:$BL$10,7,FALSE) -> -45 | AH31: =T31-HLOOKUP(X31,Feuil1!$C$1:$BL$10,8,FALSE) -> -55 | AI31: =T31-HLOOKUP(X31,Feuil1!$C$1:$BL$10,9,FALSE) -> -70 | AJ31: =T31-HLOOKUP(X31,Feuil1!$C$1:$BL$10,10,FALSE) -> -940 | AQ31: REG +
A32: H | B32: NE | C32: ALS | D32: 8 | E32: 376850 | F32: LECLERC | G32: YANN | H32: 2001 | I32: 37.8 | J32: Dorlisheim FH | K32: F | L32: 22 | M32: -25 | N32: 25 | O32: 25 | P32: 28 | Q32: 31 | R32: -34 | S32: 31 | T32: 56 | U32: -19.6 | V32: DEP + | W32: 6 | X32: =IF(I32="","",IF(A32="H",IF(OR(H32="SEN",H32<1995),VLOOKUP(I32,Feuil1!$A$11:$G$29,6),IF(AND(H32>1994,H32<1998),VLOOKUP(I32,Feuil1!$A$11:$G$29,5),IF(AND(H32>1997,H32<2000),VLOOKUP(I32,Feuil1!$A$11:$G$29,4),IF(AND(H32>1999,H32<2002),VLOOKUP(I32,Feuil1!$A$11:$G$29,3),VLOOKUP(I32,Feuil1!$A$11:$G$29,2))))),IF(OR(H32="SEN",H32<1995),VLOOKUP(I32,Feuil1!$G$11:$L$25,6),IF(AND(H32>1994,H32<1998),VLOOKUP(I32,Feuil1!$G$11:$L$25,5),IF(AND(H32>1997,H32<2000),VLOOKUP(I32,Feuil1!$G$11:$L$25,4),IF(AND(H32>1999,H32<2002),VLOOKUP(I32,Feuil1!$G$11:$L$25,3),VLOOKUP(I32,Feuil1!$G$11:$L$25,2))))))) -> C1 45 | Y32: 125.4459513 | AB32: =T32-HLOOKUP(X32,Feuil1!$C$1:$BL$10,2,FALSE) -> 21 | AC32: =T32-HLOOKUP(X32,Feuil1!$C$1:$BL$10,3,FALSE) -> 6 | AD32: =T32-HLOOKUP(X32,Feuil1!$C$1:$BL$10,4,FALSE) -> -4 | AE32: =T32-HLOOKUP(X32,Feuil1!$C$1:$BL$10,5,FALSE) -> -19 | AF32: =T32-HLOOKUP(X32,Feuil1!$C$1:$BL$10,6,FALSE) -> -34 | AG32: =T32-HLOOKUP(X32,Feuil1!$C$1:$BL$10,7,FALSE) -> -49 | AH32: =T32-HLOOKUP(X32,Feuil1!$C$1:$BL$10,8,FALSE) -> -59 | AI32: =T32-HLOOKUP(X32,Feuil1!$C$1:$BL$10,9,FALSE) -> -74 | AJ32: =T32-HLOOKUP(X32,Feuil1!$C$1:$BL$10,10,FALSE) -> -944 | AQ32: DEP +
A33: H | B33: N | C33: PIC | D33: 9 | E33: 317387 | F33: FLEURY | G33: Alex | H33: 2001 | I33: 36.2 | J33: Hirson CEHT | K33: F | L33: 18 | M33: 22 | N33: -25 | O33: 22 | P33: 30 | Q33: -34 | R33: -34 | S33: 30 | T33: 52 | U33: -20.4 | V33: DEP + | W33: 2 | X33: =IF(I33="","",IF(A33="H",IF(OR(H33="SEN",H33<1995),VLOOKUP(I33,Feuil1!$A$11:$G$29,6),IF(AND(H33>1994,H33<1998),VLOOKUP(I33,Feuil1!$A$11:$G$29,5),IF(AND(H33>1997,H33<2000),VLOOKUP(I33,Feuil1!$A$11:$G$29,4),IF(AND(H33>1999,H33<2002),VLOOKUP(I33,Feuil1!$A$11:$G$29,3),VLOOKUP(I33,Feuil1!$A$11:$G$29,2))))),IF(OR(H33="SEN",H33<1995),VLOOKUP(I33,Feuil1!$G$11:$L$25,6),IF(AND(H33>1994,H33<1998),VLOOKUP(I33,Feuil1!$G$11:$L$25,5),IF(AND(H33>1997,H33<2000),VLOOKUP(I33,Feuil1!$G$11:$L$25,4),IF(AND(H33>1999,H33<2002),VLOOKUP(I33,Feuil1!$G$11:$L$25,3),VLOOKUP(I33,Feuil1!$G$11:$L$25,2))))))) -> C1 45 | Y33: 122.0022685 | AB33: =T33-HLOOKUP(X33,Feuil1!$C$1:$BL$10,2,FALSE) -> 17 | AC33: =T33-HLOOKUP(X33,Feuil1!$C$1:$BL$10,3,FALSE) -> 2 | AD33: =T33-HLOOKUP(X33,Feuil1!$C$1:$BL$10,4,FALSE) -> -8 | AE33: =T33-HLOOKUP(X33,Feuil1!$C$1:$BL$10,5,FALSE) -> -23 | AF33: =T33-HLOOKUP(X33,Feuil1!$C$1:$BL$10,6,FALSE) -> -38 | AG33: =T33-HLOOKUP(X33,Feuil1!$C$1:$BL$10,7,FALSE) -> -53 | AH33: =T33-HLOOKUP(X33,Feuil1!$C$1:$BL$10,8,FALSE) -> -63 | AI33: =T33-HLOOKUP(X33,Feuil1!$C$1:$BL$10,9,FALSE) -> -78 | AJ33: =T33-HLOOKUP(X33,Feuil1!$C$1:$BL$10,10,FALSE) -> -948 | AQ33: DEP +
A34: H | B34: N | C34: NPC | D34: 10 | E34: 390389 | F34: RYCKEBUSCH | G34: Alex | H34: 2000 | I34: 38.6 | J34: ROSENDAEL | K34: F | L34: 17 | M34: 20 | N34: 22 | O34: 22 | P34: -26 | Q34: 28 | R34: 30 | S34: 30 | T34: 52 | U34: -25.2 | V34: DEP + | W34: 2 | X34: =IF(I34="","",IF(A34="H",IF(OR(H34="SEN",H34<1995),VLOOKUP(I34,Feuil1!$A$11:$G$29,6),IF(AND(H34>1994,H34<1998),VLOOKUP(I34,Feuil1!$A$11:$G$29,5),IF(AND(H34>1997,H34<2000),VLOOKUP(I34,Feuil1!$A$11:$G$29,4),IF(AND(H34>1999,H34<2002),VLOOKUP(I34,Feuil1!$A$11:$G$29,3),VLOOKUP(I34,Feuil1!$A$11:$G$29,2))))),IF(OR(H34="SEN",H34<1995),VLOOKUP(I34,Feuil1!$G$11:$L$25,6),IF(AND(H34>1994,H34<1998),VLOOKUP(I34,Feuil1!$G$11:$L$25,5),IF(AND(H34>1997,H34<2000),VLOOKUP(I34,Feuil1!$G$11:$L$25,4),IF(AND(H34>1999,H34<2002),VLOOKUP(I34,Feuil1!$G$11:$L$25,3),VLOOKUP(I34,Feuil1!$G$11:$L$25,2))))))) -> C1 45 | Y34: 113.9573197 | AB34: =T34-HLOOKUP(X34,Feuil1!$C$1:$BL$10,2,FALSE) -> 17 | AC34: =T34-HLOOKUP(X34,Feuil1!$C$1:$BL$10,3,FALSE) -> 2 | AD34: =T34-HLOOKUP(X34,Feuil1!$C$1:$BL$10,4,FALSE) -> -8 | AE34: =T34-HLOOKUP(X34,Feuil1!$C$1:$BL$10,5,FALSE) -> -23 | AF34: =T34-HLOOKUP(X34,Feuil1!$C$1:$BL$10,6,FALSE) -> -38 | AG34: =T34-HLOOKUP(X34,Feuil1!$C$1:$BL$10,7,FALSE) -> -53 | AH34: =T34-HLOOKUP(X34,Feuil1!$C$1:$BL$10,8,FALSE) -> -63 | AI34: =T34-HLOOKUP(X34,Feuil1!$C$1:$BL$10,9,FALSE) -> -78 | AJ34: =T34-HLOOKUP(X34,Feuil1!$C$1:$BL$10,10,FALSE) -> -948 | AQ34: DEP +
A35: H | B35: N | C35: IDF | D35: 11 | E35: 381135 | F35: PEREIRA | G35: STAN | H35: 2001 | I35: 39 | J35: FRANCONVILLE | K35: F | L35: 21 | M35: 23 | N35: -25 | O35: 23 | P35: 29 | Q35: -32 | R35: -32 | S35: 29 | T35: 52 | U35: -26 | V35: DEP + | W35: 2 | X35: =IF(I35="","",IF(A35="H",IF(OR(H35="SEN",H35<1995),VLOOKUP(I35,Feuil1!$A$11:$G$29,6),IF(AND(H35>1994,H35<1998),VLOOKUP(I35,Feuil1!$A$11:$G$29,5),IF(AND(H35>1997,H35<2000),VLOOKUP(I35,Feuil1!$A$11:$G$29,4),IF(AND(H35>1999,H35<2002),VLOOKUP(I35,Feuil1!$A$11:$G$29,3),VLOOKUP(I35,Feuil1!$A$11:$G$29,2))))),IF(OR(H35="SEN",H35<1995),VLOOKUP(I35,Feuil1!$G$11:$L$25,6),IF(AND(H35>1994,H35<1998),VLOOKUP(I35,Feuil1!$G$11:$L$25,5),IF(AND(H35>1997,H35<2000),VLOOKUP(I35,Feuil1!$G$11:$L$25,4),IF(AND(H35>1999,H35<2002),VLOOKUP(I35,Feuil1!$G$11:$L$25,3),VLOOKUP(I35,Feuil1!$G$11:$L$25,2))))))) -> C1 45 | Y35: 112.7455586 | AB35: =T35-HLOOKUP(X35,Feuil1!$C$1:$BL$10,2,FALSE) -> 17 | AC35: =T35-HLOOKUP(X35,Feuil1!$C$1:$BL$10,3,FALSE) -> 2 | AD35: =T35-HLOOKUP(X35,Feuil1!$C$1:$BL$10,4,FALSE) -> -8 | AE35: =T35-HLOOKUP(X35,Feuil1!$C$1:$BL$10,5,FALSE) -> -23 | AF35: =T35-HLOOKUP(X35,Feuil1!$C$1:$BL$10,6,FALSE) -> -38 | AG35: =T35-HLOOKUP(X35,Feuil1!$C$1:$BL$10,7,FALSE) -> -53 | AH35: =T35-HLOOKUP(X35,Feuil1!$C$1:$BL$10,8,FALSE) -> -63 | AI35: =T35-HLOOKUP(X35,Feuil1!$C$1:$BL$10,9,FALSE) -> -78 | AJ35: =T35-HLOOKUP(X35,Feuil1!$C$1:$BL$10,10,FALSE) -> -948 | AQ35: DEP +
A36: H | B36: NE | C36: ALS | D36: 12 | E36: 381283 | F36: BUCHER | G36: LEO | H36: 2001 | I36: 42.7 | J36: SR Obernai HM | K36: F | L36: 15 | M36: 17 | N36: 20 | O36: 20 | P36: 20 | Q36: 23 | R36: -26 | S36: 23 | T36: 43 | U36: -42.4 | V36: DEB | W36: 8 | X36: =IF(I36="","",IF(A36="H",IF(OR(H36="SEN",H36<1995),VLOOKUP(I36,Feuil1!$A$11:$G$29,6),IF(AND(H36>1994,H36<1998),VLOOKUP(I36,Feuil1!$A$11:$G$29,5),IF(AND(H36>1997,H36<2000),VLOOKUP(I36,Feuil1!$A$11:$G$29,4),IF(AND(H36>1999,H36<2002),VLOOKUP(I36,Feuil1!$A$11:$G$29,3),VLOOKUP(I36,Feuil1!$A$11:$G$29,2))))),IF(OR(H36="SEN",H36<1995),VLOOKUP(I36,Feuil1!$G$11:$L$25,6),IF(AND(H36>1994,H36<1998),VLOOKUP(I36,Feuil1!$G$11:$L$25,5),IF(AND(H36>1997,H36<2000),VLOOKUP(I36,Feuil1!$G$11:$L$25,4),IF(AND(H36>1999,H36<2002),VLOOKUP(I36,Feuil1!$G$11:$L$25,3),VLOOKUP(I36,Feuil1!$G$11:$L$25,2))))))) -> C1 45 | Y36: 85.13678561 | AB36: =T36-HLOOKUP(X36,Feuil1!$C$1:$BL$10,2,FALSE) -> 8 | AC36: =T36-HLOOKUP(X36,Feuil1!$C$1:$BL$10,3,FALSE) -> -7 | AD36: =T36-HLOOKUP(X36,Feuil1!$C$1:$BL$10,4,FALSE) -> -17 | AE36: =T36-HLOOKUP(X36,Feuil1!$C$1:$BL$10,5,FALSE) -> -32 | AF36: =T36-HLOOKUP(X36,Feuil1!$C$1:$BL$10,6,FALSE) -> -47 | AG36: =T36-HLOOKUP(X36,Feuil1!$C$1:$BL$10,7,FALSE) -> -62 | AH36: =T36-HLOOKUP(X36,Feuil1!$C$1:$BL$10,8,FALSE) -> -72 | AI36: =T36-HLOOKUP(X36,Feuil1!$C$1:$BL$10,9,FALSE) -> -87 | AJ36: =T36-HLOOKUP(X36,Feuil1!$C$1:$BL$10,10,FALSE) -> -957 | AQ36: DEB
A37: H | B37: N | C37: PIC | D37: 13 | E37: 329325 | F37: MENESSON | G37: Valentin | H37: 2000 | I37: 33.4 | J37: Hirson CEHT | K37: F | L37: 14 | M37: -17 | N37: -17 | O37: 14 | P37: 20 | Q37: 23 | R37: 26 | S37: 26 | T37: 40 | U37: -26.8 | V37: DEB | W37: 5 | X37: =IF(I37="","",IF(A37="H",IF(OR(H37="SEN",H37<1995),VLOOKUP(I37,Feuil1!$A$11:$G$29,6),IF(AND(H37>1994,H37<1998),VLOOKUP(I37,Feuil1!$A$11:$G$29,5),IF(AND(H37>1997,H37<2000),VLOOKUP(I37,Feuil1!$A$11:$G$29,4),IF(AND(H37>1999,H37<2002),VLOOKUP(I37,Feuil1!$A$11:$G$29,3),VLOOKUP(I37,Feuil1!$A$11:$G$29,2))))),IF(OR(H37="SEN",H37<1995),VLOOKUP(I37,Feuil1!$G$11:$L$25,6),IF(AND(H37>1994,H37<1998),VLOOKUP(I37,Feuil1!$G$11:$L$25,5),IF(AND(H37>1997,H37<2000),VLOOKUP(I37,Feuil1!$G$11:$L$25,4),IF(AND(H37>1999,H37<2002),VLOOKUP(I37,Feuil1!$G$11:$L$25,3),VLOOKUP(I37,Feuil1!$G$11:$L$25,2))))))) -> C1 45 | Y37: 102.641433 | AB37: =T37-HLOOKUP(X37,Feuil1!$C$1:$BL$10,2,FALSE) -> 5 | AC37: =T37-HLOOKUP(X37,Feuil1!$C$1:$BL$10,3,FALSE) -> -10 | AD37: =T37-HLOOKUP(X37,Feuil1!$C$1:$BL$10,4,FALSE) -> -20 | AE37: =T37-HLOOKUP(X37,Feuil1!$C$1:$BL$10,5,FALSE) -> -35 | AF37: =T37-HLOOKUP(X37,Feuil1!$C$1:$BL$10,6,FALSE) -> -50 | AG37: =T37-HLOOKUP(X37,Feuil1!$C$1:$BL$10,7,FALSE) -> -65 | AH37: =T37-HLOOKUP(X37,Feuil1!$C$1:$BL$10,8,FALSE) -> -75 | AI37: =T37-HLOOKUP(X37,Feuil1!$C$1:$BL$10,9,FALSE) -> -90 | AJ37: =T37-HLOOKUP(X37,Feuil1!$C$1:$BL$10,10,FALSE) -> -960 | AQ37: DEB
A38: H | B38: CO | C38: PDL | D38: 14 | E38: 386514 | F38: HERVÉ | G38: Mathew | H38: 2001 | I38: 34.2 | J38: CJF LAVAL - VOUTRÉ | K38: F | L38: 11 | M38: -13 | N38: 13 | O38: 13 | P38: 17 | Q38: -19 | R38: 19 | S38: 19 | T38: 32 | U38: -36.4 | V38: DEB | W38: -3 | X38: =IF(I38="","",IF(A38="H",IF(OR(H38="SEN",H38<1995),VLOOKUP(I38,Feuil1!$A$11:$G$29,6),IF(AND(H38>1994,H38<1998),VLOOKUP(I38,Feuil1!$A$11:$G$29,5),IF(AND(H38>1997,H38<2000),VLOOKUP(I38,Feuil1!$A$11:$G$29,4),IF(AND(H38>1999,H38<2002),VLOOKUP(I38,Feuil1!$A$11:$G$29,3),VLOOKUP(I38,Feuil1!$A$11:$G$29,2))))),IF(OR(H38="SEN",H38<1995),VLOOKUP(I38,Feuil1!$G$11:$L$25,6),IF(AND(H38>1994,H38<1998),VLOOKUP(I38,Feuil1!$G$11:$L$25,5),IF(AND(H38>1997,H38<2000),VLOOKUP(I38,Feuil1!$G$11:$L$25,4),IF(AND(H38>1999,H38<2002),VLOOKUP(I38,Feuil1!$G$11:$L$25,3),VLOOKUP(I38,Feuil1!$G$11:$L$25,2))))))) -> C1 45 | Y38: 79.94185437 | AB38: =T38-HLOOKUP(X38,Feuil1!$C$1:$BL$10,2,FALSE) -> -3 | AC38: =T38-HLOOKUP(X38,Feuil1!$C$1:$BL$10,3,FALSE) -> -18 | AD38: =T38-HLOOKUP(X38,Feuil1!$C$1:$BL$10,4,FALSE) -> -28 | AE38: =T38-HLOOKUP(X38,Feuil1!$C$1:$BL$10,5,FALSE) -> -43 | AF38: =T38-HLOOKUP(X38,Feuil1!$C$1:$BL$10,6,FALSE) -> -58 | AG38: =T38-HLOOKUP(X38,Feuil1!$C$1:$BL$10,7,FALSE) -> -73 | AH38: =T38-HLOOKUP(X38,Feuil1!$C$1:$BL$10,8,FALSE) -> -83 | AI38: =T38-HLOOKUP(X38,Feuil1!$C$1:$BL$10,9,FALSE) -> -98 | AJ38: =T38-HLOOKUP(X38,Feuil1!$C$1:$BL$10,10,FALSE) -> -968 | AQ38: DEB
AB39: =T39-HLOOKUP(X39,Feuil1!$C$1:$BL$10,2,FALSE) ->  | AC39: =T39-HLOOKUP(X39,Feuil1!$C$1:$BL$10,3,FALSE) ->  | AD39: =T39-HLOOKUP(X39,Feuil1!$C$1:$BL$10,4,FALSE) ->  | AE39: =T39-HLOOKUP(X39,Feuil1!$C$1:$BL$10,5,FALSE) ->  | AF39: =T39-HLOOKUP(X39,Feuil1!$C$1:$BL$10,6,FALSE) ->  | AG39: =T39-HLOOKUP(X39,Feuil1!$C$1:$BL$10,7,FALSE) ->  | AH39: =T39-HLOOKUP(X39,Feuil1!$C$1:$BL$10,8,FALSE) ->  | AI39: =T39-HLOOKUP(X39,Feuil1!$C$1:$BL$10,9,FALSE) ->  | AJ39: =T39-HLOOKUP(X39,Feuil1!$C$1:$BL$10,10,FALSE) -> 
A40: H | B40: N | C40: NPC | D40: 1 | E40: 351701 | F40: BOUGEARD | G40: Dylan | H40: 2001 | I40: 45.9 | J40: AO Sallaumines | K40: F | L40: 36 | M40: -39 | N40: -39 | O40: =IF(H40="","",IF(MAXA(L40:N40)<=0,0,MAXA(L40:N40))) -> 36 | P40: 46 | Q40: 49 | R40: -51 | S40: =IF(H40="","",IF(MAXA(P40:R40)<=0,0,MAXA(P40:R40))) -> 49 | T40: =IF(H40="","",IF(OR(O40=0,S40=0),0,O40+S40)) -> 85 | U40: =T40-I40*2 -> -6.8 | V40: =IF(H40="","",AQ40) -> IRG + | W40: =IF(AJ40>=0,AJ40,IF(AI40>=0,AI40,IF(AH40>=0,AH40,IF(AG40>=0,AG40,IF(AF40>=0,AF40,IF(AE40>=0,AE40,IF(AD40>=0,AD40,IF(AC40>=0,AC40,AB40)))))))) -> 5 | X40: =IF(I40="","",IF(A40="H",IF(OR(H40="SEN",H40<1995),VLOOKUP(I40,Feuil1!$A$11:$G$29,6),IF(AND(H40>1994,H40<1998),VLOOKUP(I40,Feuil1!$A$11:$G$29,5),IF(AND(H40>1997,H40<2000),VLOOKUP(I40,Feuil1!$A$11:$G$29,4),IF(AND(H40>1999,H40<2002),VLOOKUP(I40,Feuil1!$A$11:$G$29,3),VLOOKUP(I40,Feuil1!$A$11:$G$29,2))))),IF(OR(H40="SEN",H40<1995),VLOOKUP(I40,Feuil1!$G$11:$L$25,6),IF(AND(H40>1994,H40<1998),VLOOKUP(I40,Feuil1!$G$11:$L$25,5),IF(AND(H40>1997,H40<2000),VLOOKUP(I40,Feuil1!$G$11:$L$25,4),IF(AND(H40>1999,H40<2002),VLOOKUP(I40,Feuil1!$G$11:$L$25,3),VLOOKUP(I40,Feuil1!$G$11:$L$25,2))))))) -> C1 50 | Y40: =IF(I40="","",IF(A40="H",10^(0.794358141*LOG(I40/174.393)^2)*T40,IF(A40="F",10^(0.89726074*LOG(I40/148.026)^2)*T40,""))) -> 157.1736394 | AB40: =T40-HLOOKUP(X40,Feuil1!$C$1:$BL$10,2,FALSE) -> 45 | AC40: =T40-HLOOKUP(X40,Feuil1!$C$1:$BL$10,3,FALSE) -> 30 | AD40: =T40-HLOOKUP(X40,Feuil1!$C$1:$BL$10,4,FALSE) -> 20 | AE40: =T40-HLOOKUP(X40,Feuil1!$C$1:$BL$10,5,FALSE) -> 5 | AF40: =T40-HLOOKUP(X40,Feuil1!$C$1:$BL$10,6,FALSE) -> -10 | AG40: =T40-HLOOKUP(X40,Feuil1!$C$1:$BL$10,7,FALSE) -> -25 | AH40: =T40-HLOOKUP(X40,Feuil1!$C$1:$BL$10,8,FALSE) -> -35 | AI40: =T40-HLOOKUP(X40,Feuil1!$C$1:$BL$10,9,FALSE) -> -50 | AJ40: =T40-HLOOKUP(X40,Feuil1!$C$1:$BL$10,10,FALSE) -> -915 | AQ40: =IF(AJ40>=0,$AJ$4,IF(AI40>=0,$AI$4,IF(AH40>=0,$AH$4,IF(AG40>=0,$AG$4,IF(AF40>=0,$AF$4,IF(AE40>=0,$AE$4,IF(AD40>=0,$AD$4,IF(AC40>=0,$AC$4,$AB$4)))))))) -> IRG +
A41: H | B41: NE | C41: BOU | D41: 2 | E41: 345094 | F41: WITTMANN | G41: Maxime | H41: 2001 | I41: 50 | J41: Mont de Rême | K41: F | L41: 32 | M41: 34 | N41: 36 | O41: 36 | P41: 42 | Q41: 44 | R41: 46 | S41: 46 | T41: 82 | U41: -18 | V41: IRG + | W41: 2 | X41: =IF(I41="","",IF(A41="H",IF(OR(H41="SEN",H41<1995),VLOOKUP(I41,Feuil1!$A$11:$G$29,6),IF(AND(H41>1994,H41<1998),VLOOKUP(I41,Feuil1!$A$11:$G$29,5),IF(AND(H41>1997,H41<2000),VLOOKUP(I41,Feuil1!$A$11:$G$29,4),IF(AND(H41>1999,H41<2002),VLOOKUP(I41,Feuil1!$A$11:$G$29,3),VLOOKUP(I41,Feuil1!$A$11:$G$29,2))))),IF(OR(H41="SEN",H41<1995),VLOOKUP(I41,Feuil1!$G$11:$L$25,6),IF(AND(H41>1994,H41<1998),VLOOKUP(I41,Feuil1!$G$11:$L$25,5),IF(AND(H41>1997,H41<2000),VLOOKUP(I41,Feuil1!$G$11:$L$25,4),IF(AND(H41>1999,H41<2002),VLOOKUP(I41,Feuil1!$G$11:$L$25,3),VLOOKUP(I41,Feuil1!$G$11:$L$25,2))))))) -> C1 50 | Y41: 140.4912608 | AB41: =T41-HLOOKUP(X41,Feuil1!$C$1:$BL$10,2,FALSE) -> 42 | AC41: =T41-HLOOKUP(X41,Feuil1!$C$1:$BL$10,3,FALSE) -> 27 | AD41: =T41-HLOOKUP(X41,Feuil1!$C$1:$BL$10,4,FALSE) -> 17 | AE41: =T41-HLOOKUP(X41,Feuil1!$C$1:$BL$10,5,FALSE) -> 2 | AF41: =T41-HLOOKUP(X41,Feuil1!$C$1:$BL$10,6,FALSE) -> -13 | AG41: =T41-HLOOKUP(X41,Feuil1!$C$1:$BL$10,7,FALSE) -> -28 | AH41: =T41-HLOOKUP(X41,Feuil1!$C$1:$BL$10,8,FALSE) -> -38 | AI41: =T41-HLOOKUP(X41,Feuil1!$C$1:$BL$10,9,FALSE) -> -53 | AJ41: =T41-HLOOKUP(X41,Feuil1!$C$1:$BL$10,10,FALSE) -> -918 | AQ41: IRG +
A42: H | B42: N | C42: IDF | D42: 3 | E42: 360587 | F42: SANTOS FERREIRA | G42: ROMAIN | H42: 2000 | I42: 48.2 | J42: RUEIL | K42: F | L42: 28 | M42: 31 | N42: -34 | O42: 31 | P42: 34 | Q42: 37 | R42: -40 | S42: 37 | T42: 68 | U42: -28.4 | V42: REG + | W42: 3 | X42: =IF(I42="","",IF(A42="H",IF(OR(H42="SEN",H42<1995),VLOOKUP(I42,Feuil1!$A$11:$G$29,6),IF(AND(H42>1994,H42<1998),VLOOKUP(I42,Feuil1!$A$11:$G$29,5),IF(AND(H42>1997,H42<2000),VLOOKUP(I42,Feuil1!$A$11:$G$29,4),IF(AND(H42>1999,H42<2002),VLOOKUP(I42,Feuil1!$A$11:$G$29,3),VLOOKUP(I42,Feuil1!$A$11:$G$29,2))))),IF(OR(H42="SEN",H42<1995),VLOOKUP(I42,Feuil1!$G$11:$L$25,6),IF(AND(H42>1994,H42<1998),VLOOKUP(I42,Feuil1!$G$11:$L$25,5),IF(AND(H42>1997,H42<2000),VLOOKUP(I42,Feuil1!$G$11:$L$25,4),IF(AND(H42>1999,H42<2002),VLOOKUP(I42,Feuil1!$G$11:$L$25,3),VLOOKUP(I42,Feuil1!$G$11:$L$25,2))))))) -> C1 50 | Y42: 120.3014687 | AB42: =T42-HLOOKUP(X42,Feuil1!$C$1:$BL$10,2,FALSE) -> 28 | AC42: =T42-HLOOKUP(X42,Feuil1!$C$1:$BL$10,3,FALSE) -> 13 | AD42: =T42-HLOOKUP(X42,Feuil1!$C$1:$BL$10,4,FALSE) -> 3 | AE42: =T42-HLOOKUP(X42,Feuil1!$C$1:$BL$10,5,FALSE) -> -12 | AF42: =T42-HLOOKUP(X42,Feuil1!$C$1:$BL$10,6,FALSE) -> -27 | AG42: =T42-HLOOKUP(X42,Feuil1!$C$1:$BL$10,7,FALSE) -> -42 | AH42: =T42-HLOOKUP(X42,Feuil1!$C$1:$BL$10,8,FALSE) -> -52 | AI42: =T42-HLOOKUP(X42,Feuil1!$C$1:$BL$10,9,FALSE) -> -67 | AJ42: =T42-HLOOKUP(X42,Feuil1!$C$1:$BL$10,10,FALSE) -> -932 | AQ42: REG +
A43: H | B43: NE | C43: ALS | D43: 4 | E43: 380685 | F43: CRIQUI | G43: MATTHIAS | H43: 2001 | I43: 49.9 | J43: Dorlisheim FH | K43: F | L43: 28 | M43: 31 | N43: -35 | O43: 31 | P43: 31 | Q43: 34 | R43: 36 | S43: 36 | T43: 67 | U43: -32.8 | V43: REG + | W43: 2 | X43: =IF(I43="","",IF(A43="H",IF(OR(H43="SEN",H43<1995),VLOOKUP(I43,Feuil1!$A$11:$G$29,6),IF(AND(H43>1994,H43<1998),VLOOKUP(I43,Feuil1!$A$11:$G$29,5),IF(AND(H43>1997,H43<2000),VLOOKUP(I43,Feuil1!$A$11:$G$29,4),IF(AND(H43>1999,H43<2002),VLOOKUP(I43,Feuil1!$A$11:$G$29,3),VLOOKUP(I43,Feuil1!$A$11:$G$29,2))))),IF(OR(H43="SEN",H43<1995),VLOOKUP(I43,Feuil1!$G$11:$L$25,6),IF(AND(H43>1994,H43<1998),VLOOKUP(I43,Feuil1!$G$11:$L$25,5),IF(AND(H43>1997,H43<2000),VLOOKUP(I43,Feuil1!$G$11:$L$25,4),IF(AND(H43>1999,H43<2002),VLOOKUP(I43,Feuil1!$G$11:$L$25,3),VLOOKUP(I43,Feuil1!$G$11:$L$25,2))))))) -> C1 50 | Y43: 114.9900625 | AB43: =T43-HLOOKUP(X43,Feuil1!$C$1:$BL$10,2,FALSE) -> 27 | AC43: =T43-HLOOKUP(X43,Feuil1!$C$1:$BL$10,3,FALSE) -> 12 | AD43: =T43-HLOOKUP(X43,Feuil1!$C$1:$BL$10,4,FALSE) -> 2 | AE43: =T43-HLOOKUP(X43,Feuil1!$C$1:$BL$10,5,FALSE) -> -13 | AF43: =T43-HLOOKUP(X43,Feuil1!$C$1:$BL$10,6,FALSE) -> -28 | AG43: =T43-HLOOKUP(X43,Feuil1!$C$1:$BL$10,7,FALSE) -> -43 | AH43: =T43-HLOOKUP(X43,Feuil1!$C$1:$BL$10,8,FALSE) -> -53 | AI43: =T43-HLOOKUP(X43,Feuil1!$C$1:$BL$10,9,FALSE) -> -68 | AJ43: =T43-HLOOKUP(X43,Feuil1!$C$1:$BL$10,10,FALSE) -> -933 | AQ43: REG +
A44: H | B44: N | C44: NPC | D44: 5 | E44: 366025 | F44: KEHLI | G44: Taslim | H44: 2000 | I44: 48.3 | J44: AO Sallaumines | K44: F | L44: 23 | M44: 25 | N44: 27 | O44: 27 | P44: 32 | Q44: 35 | R44: 38 | S44: 38 | T44: 65 | U44: -31.6 | V44: REG + | W44: 0 | X44: =IF(I44="","",IF(A44="H",IF(OR(H44="SEN",H44<1995),VLOOKUP(I44,Feuil1!$A$11:$G$29,6),IF(AND(H44>1994,H44<1998),VLOOKUP(I44,Feuil1!$A$11:$G$29,5),IF(AND(H44>1997,H44<2000),VLOOKUP(I44,Feuil1!$A$11:$G$29,4),IF(AND(H44>1999,H44<2002),VLOOKUP(I44,Feuil1!$A$11:$G$29,3),VLOOKUP(I44,Feuil1!$A$11:$G$29,2))))),IF(OR(H44="SEN",H44<1995),VLOOKUP(I44,Feuil1!$G$11:$L$25,6),IF(AND(H44>1994,H44<1998),VLOOKUP(I44,Feuil1!$G$11:$L$25,5),IF(AND(H44>1997,H44<2000),VLOOKUP(I44,Feuil1!$G$11:$L$25,4),IF(AND(H44>1999,H44<2002),VLOOKUP(I44,Feuil1!$G$11:$L$25,3),VLOOKUP(I44,Feuil1!$G$11:$L$25,2))))))) -> C1 50 | Y44: 114.7829527 | AB44: =T44-HLOOKUP(X44,Feuil1!$C$1:$BL$10,2,FALSE) -> 25 | AC44: =T44-HLOOKUP(X44,Feuil1!$C$1:$BL$10,3,FALSE) -> 10 | AD44: =T44-HLOOKUP(X44,Feuil1!$C$1:$BL$10,4,FALSE) -> 0 | AE44: =T44-HLOOKUP(X44,Feuil1!$C$1:$BL$10,5,FALSE) -> -15 | AF44: =T44-HLOOKUP(X44,Feuil1!$C$1:$BL$10,6,FALSE) -> -30 | AG44: =T44-HLOOKUP(X44,Feuil1!$C$1:$BL$10,7,FALSE) -> -45 | AH44: =T44-HLOOKUP(X44,Feuil1!$C$1:$BL$10,8,FALSE) -> -55 | AI44: =T44-HLOOKUP(X44,Feuil1!$C$1:$BL$10,9,FALSE) -> -70 | AJ44: =T44-HLOOKUP(X44,Feuil1!$C$1:$BL$10,10,FALSE) -> -935 | AQ44: REG +
A45: H | B45: NE | C45: CHA | D45: 6 | E45: 376656 | F45: GUSTIN | G45: Eliséo | H45: 2001 | I45: 46.5 | J45: Reims HM | K45: F | L45: 23 | M45: 26 | N45: -28 | O45: 26 | P45: 33 | Q45: 36 | R45: -38 | S45: 36 | T45: 62 | U45: -31 | V45: DEP + | W45: 7 | X45: =IF(I45="","",IF(A45="H",IF(OR(H45="SEN",H45<1995),VLOOKUP(I45,Feuil1!$A$11:$G$29,6),IF(AND(H45>1994,H45<1998),VLOOKUP(I45,Feuil1!$A$11:$G$29,5),IF(AND(H45>1997,H45<2000),VLOOKUP(I45,Feuil1!$A$11:$G$29,4),IF(AND(H45>1999,H45<2002),VLOOKUP(I45,Feuil1!$A$11:$G$29,3),VLOOKUP(I45,Feuil1!$A$11:$G$29,2))))),IF(OR(H45="SEN",H45<1995),VLOOKUP(I45,Feuil1!$G$11:$L$25,6),IF(AND(H45>1994,H45<1998),VLOOKUP(I45,Feuil1!$G$11:$L$25,5),IF(AND(H45>1997,H45<2000),VLOOKUP(I45,Feuil1!$G$11:$L$25,4),IF(AND(H45>1999,H45<2002),VLOOKUP(I45,Feuil1!$G$11:$L$25,3),VLOOKUP(I45,Feuil1!$G$11:$L$25,2))))))) -> C1 50 | Y45: 113.2877706 | AB45: =T45-HLOOKUP(X45,Feuil1!$C$1:$BL$10,2,FALSE) -> 22 | AC45: =T45-HLOOKUP(X45,Feuil1!$C$1:$BL$10,3,FALSE) -> 7 | AD45: =T45-HLOOKUP(X45,Feuil1!$C$1:$BL$10,4,FALSE) -> -3 | AE45: =T45-HLOOKUP(X45,Feuil1!$C$1:$BL$10,5,FALSE) -> -18 | AF45: =T45-HLOOKUP(X45,Feuil1!$C$1:$BL$10,6,FALSE) -> -33 | AG45: =T45-HLOOKUP(X45,Feuil1!$C$1:$BL$10,7,FALSE) -> -48 | AH45: =T45-HLOOKUP(X45,Feuil1!$C$1:$BL$10,8,FALSE) -> -58 | AI45: =T45-HLOOKUP(X45,Feuil1!$C$1:$BL$10,9,FALSE) -> -73 | AJ45: =T45-HLOOKUP(X45,Feuil1!$C$1:$BL$10,10,FALSE) -> -938 | AQ45: DEP +
A46: H | B46: SEST | C46: PRO | D46: 7 | E46: 326189 | F46: POUBLAN | G46: QUENTIN | H46: 2000 | I46: 46.3 | J46: EEAR MONTEUX | K46: F | L46: 17 | M46: 20 | N46: 22 | O46: 22 | P46: 25 | Q46: 30 | R46: 33 | S46: 33 | T46: 55 | U46: -37.6 | V46: DEP + | W46: 0 | X46: =IF(I46="","",IF(A46="H",IF(OR(H46="SEN",H46<1995),VLOOKUP(I46,Feuil1!$A$11:$G$29,6),IF(AND(H46>1994,H46<1998),VLOOKUP(I46,Feuil1!$A$11:$G$29,5),IF(AND(H46>1997,H46<2000),VLOOKUP(I46,Feuil1!$A$11:$G$29,4),IF(AND(H46>1999,H46<2002),VLOOKUP(I46,Feuil1!$A$11:$G$29,3),VLOOKUP(I46,Feuil1!$A$11:$G$29,2))))),IF(OR(H46="SEN",H46<1995),VLOOKUP(I46,Feuil1!$G$11:$L$25,6),IF(AND(H46>1994,H46<1998),VLOOKUP(I46,Feuil1!$G$11:$L$25,5),IF(AND(H46>1997,H46<2000),VLOOKUP(I46,Feuil1!$G$11:$L$25,4),IF(AND(H46>1999,H46<2002),VLOOKUP(I46,Feuil1!$G$11:$L$25,3),VLOOKUP(I46,Feuil1!$G$11:$L$25,2))))))) -> C1 50 | Y46: 100.8937179 | AB46: =T46-HLOOKUP(X46,Feuil1!$C$1:$BL$10,2,FALSE) -> 15 | AC46: =T46-HLOOKUP(X46,Feuil1!$C$1:$BL$10,3,FALSE) -> 0 | AD46: =T46-HLOOKUP(X46,Feuil1!$C$1:$BL$10,4,FALSE) -> -10 | AE46: =T46-HLOOKUP(X46,Feuil1!$C$1:$BL$10,5,FALSE) -> -25 | AF46: =T46-HLOOKUP(X46,Feuil1!$C$1:$BL$10,6,FALSE) -> -40 | AG46: =T46-HLOOKUP(X46,Feuil1!$C$1:$BL$10,7,FALSE) -> -55 | AH46: =T46-HLOOKUP(X46,Feuil1!$C$1:$BL$10,8,FALSE) -> -65 | AI46: =T46-HLOOKUP(X46,Feuil1!$C$1:$BL$10,9,FALSE) -> -80 | AJ46: =T46-HLOOKUP(X46,Feuil1!$C$1:$BL$10,10,FALSE) -> -945 | AQ46: DEP +
A47: H | B47: NE | C47: ALS | D47: 8 | E47: 384535 | F47: FABRIANO | G47: ROMAIN | H47: 2001 | I47: 48.9 | J47: SR Obernai HM | K47: F | L47: 20 | M47: 23 | N47: -25 | O47: 23 | P47: 25 | Q47: 28 | R47: 32 | S47: 32 | T47: 55 | U47: -42.8 | V47: DEP + | W47: 0 | X47: =IF(I47="","",IF(A47="H",IF(OR(H47="SEN",H47<1995),VLOOKUP(I47,Feuil1!$A$11:$G$29,6),IF(AND(H47>1994,H47<1998),VLOOKUP(I47,Feuil1!$A$11:$G$29,5),IF(AND(H47>1997,H47<2000),VLOOKUP(I47,Feuil1!$A$11:$G$29,4),IF(AND(H47>1999,H47<2002),VLOOKUP(I47,Feuil1!$A$11:$G$29,3),VLOOKUP(I47,Feuil1!$A$11:$G$29,2))))),IF(OR(H47="SEN",H47<1995),VLOOKUP(I47,Feuil1!$G$11:$L$25,6),IF(AND(H47>1994,H47<1998),VLOOKUP(I47,Feuil1!$G$11:$L$25,5),IF(AND(H47>1997,H47<2000),VLOOKUP(I47,Feuil1!$G$11:$L$25,4),IF(AND(H47>1999,H47<2002),VLOOKUP(I47,Feuil1!$G$11:$L$25,3),VLOOKUP(I47,Feuil1!$G$11:$L$25,2))))))) -> C1 50 | Y47: 96.07268558 | AB47: =T47-HLOOKUP(X47,Feuil1!$C$1:$BL$10,2,FALSE) -> 15 | AC47: =T47-HLOOKUP(X47,Feuil1!$C$1:$BL$10,3,FALSE) -> 0 | AD47: =T47-HLOOKUP(X47,Feuil1!$C$1:$BL$10,4,FALSE) -> -10 | AE47: =T47-HLOOKUP(X47,Feuil1!$C$1:$BL$10,5,FALSE) -> -25 | AF47: =T47-HLOOKUP(X47,Feuil1!$C$1:$BL$10,6,FALSE) -> -40 | AG47: =T47-HLOOKUP(X47,Feuil1!$C$1:$BL$10,7,FALSE) -> -55 | AH47: =T47-HLOOKUP(X47,Feuil1!$C$1:$BL$10,8,FALSE) -> -65 | AI47: =T47-HLOOKUP(X47,Feuil1!$C$1:$BL$10,9,FALSE) -> -80 | AJ47: =T47-HLOOKUP(X47,Feuil1!$C$1:$BL$10,10,FALSE) -> -945 | AQ47: DEP +
A48: H | B48: NE | C48: ALS | D48: 9 | E48: 381292 | F48: BOEHUER | G48: JEAN | H48: 2001 | I48: 49.2 | J48: SR Obernai HM | K48: F | L48: 17 | M48: 20 | N48: 23 | O48: 23 | P48: 25 | Q48: 28 | R48: -31 | S48: 28 | T48: 51 | U48: -47.4 | V48: DEB | W48: 11 | X48: =IF(I48="","",IF(A48="H",IF(OR(H48="SEN",H48<1995),VLOOKUP(I48,Feuil1!$A$11:$G$29,6),IF(AND(H48>1994,H48<1998),VLOOKUP(I48,Feuil1!$A$11:$G$29,5),IF(AND(H48>1997,H48<2000),VLOOKUP(I48,Feuil1!$A$11:$G$29,4),IF(AND(H48>1999,H48<2002),VLOOKUP(I48,Feuil1!$A$11:$G$29,3),VLOOKUP(I48,Feuil1!$A$11:$G$29,2))))),IF(OR(H48="SEN",H48<1995),VLOOKUP(I48,Feuil1!$G$11:$L$25,6),IF(AND(H48>1994,H48<1998),VLOOKUP(I48,Feuil1!$G$11:$L$25,5),IF(AND(H48>1997,H48<2000),VLOOKUP(I48,Feuil1!$G$11:$L$25,4),IF(AND(H48>1999,H48<2002),VLOOKUP(I48,Feuil1!$G$11:$L$25,3),VLOOKUP(I48,Feuil1!$G$11:$L$25,2))))))) -> C1 50 | Y48: 88.60998099 | AB48: =T48-HLOOKUP(X48,Feuil1!$C$1:$BL$10,2,FALSE) -> 11 | AC48: =T48-HLOOKUP(X48,Feuil1!$C$1:$BL$10,3,FALSE) -> -4 | AD48: =T48-HLOOKUP(X48,Feuil1!$C$1:$BL$10,4,FALSE) -> -14 | AE48: =T48-HLOOKUP(X48,Feuil1!$C$1:$BL$10,5,FALSE) -> -29 | AF48: =T48-HLOOKUP(X48,Feuil1!$C$1:$BL$10,6,FALSE) -> -44 | AG48: =T48-HLOOKUP(X48,Feuil1!$C$1:$BL$10,7,FALSE) -> -59 | AH48: =T48-HLOOKUP(X48,Feuil1!$C$1:$BL$10,8,FALSE) -> -69 | AI48: =T48-HLOOKUP(X48,Feuil1!$C$1:$BL$10,9,FALSE) -> -84 | AJ48: =T48-HLOOKUP(X48,Feuil1!$C$1:$BL$10,10,FALSE) -> -949 | AQ48: DEB
A49: H | B49: SEST | C49: PRO | D49: 10 | E49: 390196 | F49: DEWAAL | G49: ANDRE | H49: 2001 | I49: 45.9 | J49: ISTRES SPORTS | K49: F | L49: 15 | M49: 18 | N49: 21 | O49: 21 | P49: 22 | Q49: 25 | R49: 28 | S49: 28 | T49: 49 | U49: -42.8 | V49: DEB | W49: 9 | X49: =IF(I49="","",IF(A49="H",IF(OR(H49="SEN",H49<1995),VLOOKUP(I49,Feuil1!$A$11:$G$29,6),IF(AND(H49>1994,H49<1998),VLOOKUP(I49,Feuil1!$A$11:$G$29,5),IF(AND(H49>1997,H49<2000),VLOOKUP(I49,Feuil1!$A$11:$G$29,4),IF(AND(H49>1999,H49<2002),VLOOKUP(I49,Feuil1!$A$11:$G$29,3),VLOOKUP(I49,Feuil1!$A$11:$G$29,2))))),IF(OR(H49="SEN",H49<1995),VLOOKUP(I49,Feuil1!$G$11:$L$25,6),IF(AND(H49>1994,H49<1998),VLOOKUP(I49,Feuil1!$G$11:$L$25,5),IF(AND(H49>1997,H49<2000),VLOOKUP(I49,Feuil1!$G$11:$L$25,4),IF(AND(H49>1999,H49<2002),VLOOKUP(I49,Feuil1!$G$11:$L$25,3),VLOOKUP(I49,Feuil1!$G$11:$L$25,2))))))) -> C1 50 | Y49: 90.60598037 | AB49: =T49-HLOOKUP(X49,Feuil1!$C$1:$BL$10,2,FALSE) -> 9 | AC49: =T49-HLOOKUP(X49,Feuil1!$C$1:$BL$10,3,FALSE) -> -6 | AD49: =T49-HLOOKUP(X49,Feuil1!$C$1:$BL$10,4,FALSE) -> -16 | AE49: =T49-HLOOKUP(X49,Feuil1!$C$1:$BL$10,5,FALSE) -> -31 | AF49: =T49-HLOOKUP(X49,Feuil1!$C$1:$BL$10,6,FALSE) -> -46 | AG49: =T49-HLOOKUP(X49,Feuil1!$C$1:$BL$10,7,FALSE) -> -61 | AH49: =T49-HLOOKUP(X49,Feuil1!$C$1:$BL$10,8,FALSE) -> -71 | AI49: =T49-HLOOKUP(X49,Feuil1!$C$1:$BL$10,9,FALSE) -> -86 | AJ49: =T49-HLOOKUP(X49,Feuil1!$C$1:$BL$10,10,FALSE) -> -951 | AQ49: DEB
A50: H | B50: N | C50: PIC | D50: 11 | E50: 378363 | F50: DEGOUY | G50: Maxandre | H50: 2001 | I50: 45.8 | J50: Villers-Bretonneux KC | K50: F | L50: 20 | M50: -25 | N50: -25 | O50: 20 | P50: 23 | Q50: 27 | R50: -31 | S50: 27 | T50: 47 | U50: -44.6 | V50: DEB | W50: 7 | X50: =IF(I50="","",IF(A50="H",IF(OR(H50="SEN",H50<1995),VLOOKUP(I50,Feuil1!$A$11:$G$29,6),IF(AND(H50>1994,H50<1998),VLOOKUP(I50,Feuil1!$A$11:$G$29,5),IF(AND(H50>1997,H50<2000),VLOOKUP(I50,Feuil1!$A$11:$G$29,4),IF(AND(H50>1999,H50<2002),VLOOKUP(I50,Feuil1!$A$11:$G$29,3),VLOOKUP(I50,Feuil1!$A$11:$G$29,2))))),IF(OR(H50="SEN",H50<1995),VLOOKUP(I50,Feuil1!$G$11:$L$25,6),IF(AND(H50>1994,H50<1998),VLOOKUP(I50,Feuil1!$G$11:$L$25,5),IF(AND(H50>1997,H50<2000),VLOOKUP(I50,Feuil1!$G$11:$L$25,4),IF(AND(H50>1999,H50<2002),VLOOKUP(I50,Feuil1!$G$11:$L$25,3),VLOOKUP(I50,Feuil1!$G$11:$L$25,2))))))) -> C1 50 | Y50: 87.08267018 | AB50: =T50-HLOOKUP(X50,Feuil1!$C$1:$BL$10,2,FALSE) -> 7 | AC50: =T50-HLOOKUP(X50,Feuil1!$C$1:$BL$10,3,FALSE) -> -8 | AD50: =T50-HLOOKUP(X50,Feuil1!$C$1:$BL$10,4,FALSE) -> -18 | AE50: =T50-HLOOKUP(X50,Feuil1!$C$1:$BL$10,5,FALSE) -> -33 | AF50: =T50-HLOOKUP(X50,Feuil1!$C$1:$BL$10,6,FALSE) -> -48 | AG50: =T50-HLOOKUP(X50,Feuil1!$C$1:$BL$10,7,FALSE) -> -63 | AH50: =T50-HLOOKUP(X50,Feuil1!$C$1:$BL$10,8,FALSE) -> -73 | AI50: =T50-HLOOKUP(X50,Feuil1!$C$1:$BL$10,9,FALSE) -> -88 | AJ50: =T50-HLOOKUP(X50,Feuil1!$C$1:$BL$10,10,FALSE) -> -953 | AQ50: DEB
A51: H | B51: NE | C51: ALS | D51: 12 | E51: 389913 | F51: CLEMENTZ | G51: EMERIC | H51: 2000 | I51: 49.8 | J51: MJC Ungersheim | K51: F | L51: 17 | M51: 20 | N51: 23 | O51: 23 | P51: 24 | Q51: -27 | R51: -27 | S51: 24 | T51: 47 | U51: -52.6 | V51: DEB | W51: 7 | X51: =IF(I51="","",IF(A51="H",IF(OR(H51="SEN",H51<1995),VLOOKUP(I51,Feuil1!$A$11:$G$29,6),IF(AND(H51>1994,H51<1998),VLOOKUP(I51,Feuil1!$A$11:$G$29,5),IF(AND(H51>1997,H51<2000),VLOOKUP(I51,Feuil1!$A$11:$G$29,4),IF(AND(H51>1999,H51<2002),VLOOKUP(I51,Feuil1!$A$11:$G$29,3),VLOOKUP(I51,Feuil1!$A$11:$G$29,2))))),IF(OR(H51="SEN",H51<1995),VLOOKUP(I51,Feuil1!$G$11:$L$25,6),IF(AND(H51>1994,H51<1998),VLOOKUP(I51,Feuil1!$G$11:$L$25,5),IF(AND(H51>1997,H51<2000),VLOOKUP(I51,Feuil1!$G$11:$L$25,4),IF(AND(H51>1999,H51<2002),VLOOKUP(I51,Feuil1!$G$11:$L$25,3),VLOOKUP(I51,Feuil1!$G$11:$L$25,2))))))) -> C1 50 | Y51: 80.80460739 | AB51: =T51-HLOOKUP(X51,Feuil1!$C$1:$BL$10,2,FALSE) -> 7 | AC51: =T51-HLOOKUP(X51,Feuil1!$C$1:$BL$10,3,FALSE) -> -8 | AD51: =T51-HLOOKUP(X51,Feuil1!$C$1:$BL$10,4,FALSE) -> -18 | AE51: =T51-HLOOKUP(X51,Feuil1!$C$1:$BL$10,5,FALSE) -> -33 | AF51: =T51-HLOOKUP(X51,Feuil1!$C$1:$BL$10,6,FALSE) -> -48 | AG51: =T51-HLOOKUP(X51,Feuil1!$C$1:$BL$10,7,FALSE) -> -63 | AH51: =T51-HLOOKUP(X51,Feuil1!$C$1:$BL$10,8,FALSE) -> -73 | AI51: =T51-HLOOKUP(X51,Feuil1!$C$1:$BL$10,9,FALSE) -> -88 | AJ51: =T51-HLOOKUP(X51,Feuil1!$C$1:$BL$10,10,FALSE) -> -953 | AQ51: DEB
A52: H | B52: N | C52: NPC | D52: 13 | E52: 383862 | F52: COUPIGNY | G52: Michel | H52: 2001 | I52: 48.3 | J52: A.O.SALLAUMINES | K52: F | L52: 18 | M52: 20 | N52: -22 | O52: 20 | P52: 20 | Q52: 22 | R52: 24 | S52: 24 | T52: 44 | U52: -52.6 | V52: DEB | W52: 4 | X52: =IF(I52="","",IF(A52="H",IF(OR(H52="SEN",H52<1995),VLOOKUP(I52,Feuil1!$A$11:$G$29,6),IF(AND(H52>1994,H52<1998),VLOOKUP(I52,Feuil1!$A$11:$G$29,5),IF(AND(H52>1997,H52<2000),VLOOKUP(I52,Feuil1!$A$11:$G$29,4),IF(AND(H52>1999,H52<2002),VLOOKUP(I52,Feuil1!$A$11:$G$29,3),VLOOKUP(I52,Feuil1!$A$11:$G$29,2))))),IF(OR(H52="SEN",H52<1995),VLOOKUP(I52,Feuil1!$G$11:$L$25,6),IF(AND(H52>1994,H52<1998),VLOOKUP(I52,Feuil1!$G$11:$L$25,5),IF(AND(H52>1997,H52<2000),VLOOKUP(I52,Feuil1!$G$11:$L$25,4),IF(AND(H52>1999,H52<2002),VLOOKUP(I52,Feuil1!$G$11:$L$25,3),VLOOKUP(I52,Feuil1!$G$11:$L$25,2))))))) -> C1 50 | Y52: 77.69922952 | AB52: =T52-HLOOKUP(X52,Feuil1!$C$1:$BL$10,2,FALSE) -> 4 | AC52: =T52-HLOOKUP(X52,Feuil1!$C$1:$BL$10,3,FALSE) -> -11 | AD52: =T52-HLOOKUP(X52,Feuil1!$C$1:$BL$10,4,FALSE) -> -21 | AE52: =T52-HLOOKUP(X52,Feuil1!$C$1:$BL$10,5,FALSE) -> -36 | AF52: =T52-HLOOKUP(X52,Feuil1!$C$1:$BL$10,6,FALSE) -> -51 | AG52: =T52-HLOOKUP(X52,Feuil1!$C$1:$BL$10,7,FALSE) -> -66 | AH52: =T52-HLOOKUP(X52,Feuil1!$C$1:$BL$10,8,FALSE) -> -76 | AI52: =T52-HLOOKUP(X52,Feuil1!$C$1:$BL$10,9,FALSE) -> -91 | AJ52: =T52-HLOOKUP(X52,Feuil1!$C$1:$BL$10,10,FALSE) -> -956 | AQ52: DEB
AB53: =T53-HLOOKUP(X53,Feuil1!$C$1:$BL$10,2,FALSE) ->  | AC53: =T53-HLOOKUP(X53,Feuil1!$C$1:$BL$10,3,FALSE) ->  | AD53: =T53-HLOOKUP(X53,Feuil1!$C$1:$BL$10,4,FALSE) ->  | AE53: =T53-HLOOKUP(X53,Feuil1!$C$1:$BL$10,5,FALSE) ->  | AF53: =T53-HLOOKUP(X53,Feuil1!$C$1:$BL$10,6,FALSE) ->  | AG53: =T53-HLOOKUP(X53,Feuil1!$C$1:$BL$10,7,FALSE) ->  | AH53: =T53-HLOOKUP(X53,Feuil1!$C$1:$BL$10,8,FALSE) ->  | AI53: =T53-HLOOKUP(X53,Feuil1!$C$1:$BL$10,9,FALSE) ->  | AJ53: =T53-HLOOKUP(X53,Feuil1!$C$1:$BL$10,10,FALSE) -> 
A54: H | B54: N | C54: NPC | D54: 1 | E54: 311192 | F54: JURKOWSKI | G54: Alexis | H54: 2000 | I54: 54.8 | J54: AO Sallaumines | K54: F | L54: -48 | M54: 49 | N54: -53 | O54: =IF(H54="","",IF(MAXA(L54:N54)<=0,0,MAXA(L54:N54))) -> 49 | P54: 68 | Q54: 72 | R54: 74 | S54: =IF(H54="","",IF(MAXA(P54:R54)<=0,0,MAXA(P54:R54))) -> 74 | T54: =IF(H54="","",IF(OR(O54=0,S54=0),0,O54+S54)) -> 123 | U54: =T54-I54*2 -> 13.4 | V54: =IF(H54="","",AQ54) -> FED + | W54: =IF(AJ54>=0,AJ54,IF(AI54>=0,AI54,IF(AH54>=0,AH54,IF(AG54>=0,AG54,IF(AF54>=0,AF54,IF(AE54>=0,AE54,IF(AD54>=0,AD54,IF(AC54>=0,AC54,AB54)))))))) -> 8 | X54: =IF(I54="","",IF(A54="H",IF(OR(H54="SEN",H54<1995),VLOOKUP(I54,Feuil1!$A$11:$G$29,6),IF(AND(H54>1994,H54<1998),VLOOKUP(I54,Feuil1!$A$11:$G$29,5),IF(AND(H54>1997,H54<2000),VLOOKUP(I54,Feuil1!$A$11:$G$29,4),IF(AND(H54>1999,H54<2002),VLOOKUP(I54,Feuil1!$A$11:$G$29,3),VLOOKUP(I54,Feuil1!$A$11:$G$29,2))))),IF(OR(H54="SEN",H54<1995),VLOOKUP(I54,Feuil1!$G$11:$L$25,6),IF(AND(H54>1994,H54<1998),VLOOKUP(I54,Feuil1!$G$11:$L$25,5),IF(AND(H54>1997,H54<2000),VLOOKUP(I54,Feuil1!$G$11:$L$25,4),IF(AND(H54>1999,H54<2002),VLOOKUP(I54,Feuil1!$G$11:$L$25,3),VLOOKUP(I54,Feuil1!$G$11:$L$25,2))))))) -> C1 56 | Y54: =IF(I54="","",IF(A54="H",10^(0.794358141*LOG(I54/174.393)^2)*T54,IF(A54="F",10^(0.89726074*LOG(I54/148.026)^2)*T54,""))) -> 195.2917661 | AB54: =T54-HLOOKUP(X54,Feuil1!$C$1:$BL$10,2,FALSE) -> 73 | AC54: =T54-HLOOKUP(X54,Feuil1!$C$1:$BL$10,3,FALSE) -> 53 | AD54: =T54-HLOOKUP(X54,Feuil1!$C$1:$BL$10,4,FALSE) -> 38 | AE54: =T54-HLOOKUP(X54,Feuil1!$C$1:$BL$10,5,FALSE) -> 23 | AF54: =T54-HLOOKUP(X54,Feuil1!$C$1:$BL$10,6,FALSE) -> 8 | AG54: =T54-HLOOKUP(X54,Feuil1!$C$1:$BL$10,7,FALSE) -> -7 | AH54: =T54-HLOOKUP(X54,Feuil1!$C$1:$BL$10,8,FALSE) -> -22 | AI54: =T54-HLOOKUP(X54,Feuil1!$C$1:$BL$10,9,FALSE) -> -47 | AJ54: =T54-HLOOKUP(X54,Feuil1!$C$1:$BL$10,10,FALSE) -> -877 | AQ54: =IF(AJ54>=0,$AJ$4,IF(AI54>=0,$AI$4,IF(AH54>=0,$AH$4,IF(AG54>=0,$AG$4,IF(AF54>=0,$AF$4,IF(AE54>=0,$AE$4,IF(AD54>=0,$AD$4,IF(AC54>=0,$AC$4,$AB$4)))))))) -> FED +
A55: H | B55: SE | C55: AUV | D55: 2 | E55: 319977 | F55: ALTAYRAC | G55: Thomas | H55: 2000 | I55: 53.45 | J55: CHM AURILLAC | K55: F | L55: 37 | M55: 40 | N55: 43 | O55: 43 | P55: 50 | Q55: -52 | R55: 52 | S55: 52 | T55: 95 | U55: -11.9 | V55: REG + | W55: 10 | X55: =IF(I55="","",IF(A55="H",IF(OR(H55="SEN",H55<1995),VLOOKUP(I55,Feuil1!$A$11:$G$29,6),IF(AND(H55>1994,H55<1998),VLOOKUP(I55,Feuil1!$A$11:$G$29,5),IF(AND(H55>1997,H55<2000),VLOOKUP(I55,Feuil1!$A$11:$G$29,4),IF(AND(H55>1999,H55<2002),VLOOKUP(I55,Feuil1!$A$11:$G$29,3),VLOOKUP(I55,Feuil1!$A$11:$G$29,2))))),IF(OR(H55="SEN",H55<1995),VLOOKUP(I55,Feuil1!$G$11:$L$25,6),IF(AND(H55>1994,H55<1998),VLOOKUP(I55,Feuil1!$G$11:$L$25,5),IF(AND(H55>1997,H55<2000),VLOOKUP(I55,Feuil1!$G$11:$L$25,4),IF(AND(H55>1999,H55<2002),VLOOKUP(I55,Feuil1!$G$11:$L$25,3),VLOOKUP(I55,Feuil1!$G$11:$L$25,2))))))) -> C1 56 | Y55: 153.9033628 | AB55: =T55-HLOOKUP(X55,Feuil1!$C$1:$BL$10,2,FALSE) -> 45 | AC55: =T55-HLOOKUP(X55,Feuil1!$C$1:$BL$10,3,FALSE) -> 25 | AD55: =T55-HLOOKUP(X55,Feuil1!$C$1:$BL$10,4,FALSE) -> 10 | AE55: =T55-HLOOKUP(X55,Feuil1!$C$1:$BL$10,5,FALSE) -> -5 | AF55: =T55-HLOOKUP(X55,Feuil1!$C$1:$BL$10,6,FALSE) -> -20 | AG55: =T55-HLOOKUP(X55,Feuil1!$C$1:$BL$10,7,FALSE) -> -35 | AH55: =T55-HLOOKUP(X55,Feuil1!$C$1:$BL$10,8,FALSE) -> -50 | AI55: =T55-HLOOKUP(X55,Feuil1!$C$1:$BL$10,9,FALSE) -> -75 | AJ55: =T55-HLOOKUP(X55,Feuil1!$C$1:$BL$10,10,FALSE) -> -905 | AQ55: REG +
A56: H | B56: N | C56: NPC | D56: 3 | E56: 383861 | F56: BOULANGER | G56: Christopher | H56: 2000 | I56: 52.3 | J56: A.O.SALLAUMINES | K56: F | L56: 37 | M56: 40 | N56: 42 | O56: 42 | P56: -47 | Q56: 47 | R56: 51 | S56: 51 | T56: 93 | U56: -11.6 | V56: REG + | W56: 8 | X56: =IF(I56="","",IF(A56="H",IF(OR(H56="SEN",H56<1995),VLOOKUP(I56,Feuil1!$A$11:$G$29,6),IF(AND(H56>1994,H56<1998),VLOOKUP(I56,Feuil1!$A$11:$G$29,5),IF(AND(H56>1997,H56<2000),VLOOKUP(I56,Feuil1!$A$11:$G$29,4),IF(AND(H56>1999,H56<2002),VLOOKUP(I56,Feuil1!$A$11:$G$29,3),VLOOKUP(I56,Feuil1!$A$11:$G$29,2))))),IF(OR(H56="SEN",H56<1995),VLOOKUP(I56,Feuil1!$G$11:$L$25,6),IF(AND(H56>1994,H56<1998),VLOOKUP(I56,Feuil1!$G$11:$L$25,5),IF(AND(H56>1997,H56<2000),VLOOKUP(I56,Feuil1!$G$11:$L$25,4),IF(AND(H56>1999,H56<2002),VLOOKUP(I56,Feuil1!$G$11:$L$25,3),VLOOKUP(I56,Feuil1!$G$11:$L$25,2))))))) -> C1 56 | Y56: 153.3859817 | AB56: =T56-HLOOKUP(X56,Feuil1!$C$1:$BL$10,2,FALSE) -> 43 | AC56: =T56-HLOOKUP(X56,Feuil1!$C$1:$BL$10,3,FALSE) -> 23 | AD56: =T56-HLOOKUP(X56,Feuil1!$C$1:$BL$10,4,FALSE) -> 8 | AE56: =T56-HLOOKUP(X56,Feuil1!$C$1:$BL$10,5,FALSE) -> -7 | AF56: =T56-HLOOKUP(X56,Feuil1!$C$1:$BL$10,6,FALSE) -> -22 | AG56: =T56-HLOOKUP(X56,Feuil1!$C$1:$BL$10,7,FALSE) -> -37 | AH56: =T56-HLOOKUP(X56,Feuil1!$C$1:$BL$10,8,FALSE) -> -52 | AI56: =T56-HLOOKUP(X56,Feuil1!$C$1:$BL$10,9,FALSE) -> -77 | AJ56: =T56-HLOOKUP(X56,Feuil1!$C$1:$BL$10,10,FALSE) -> -907 | AQ56: REG +
A57: H | B57: SEST | C57: RAL | D57: 4 | E57: 358683 | F57: BALME | G57: Nathan | H57: 2000 | I57: 50.1 | J57: PIERRELATTE | K57: F | L57: 38 | M57: 42 | N57: -45 | O57: 42 | P57: 50 | Q57: -54 | R57: -54 | S57: 50 | T57: 92 | U57: -8.2 | V57: REG + | W57: 7 | X57: =IF(I57="","",IF(A57="H",IF(OR(H57="SEN",H57<1995),VLOOKUP(I57,Feuil1!$A$11:$G$29,6),IF(AND(H57>1994,H57<1998),VLOOKUP(I57,Feuil1!$A$11:$G$29,5),IF(AND(H57>1997,H57<2000),VLOOKUP(I57,Feuil1!$A$11:$G$29,4),IF(AND(H57>1999,H57<2002),VLOOKUP(I57,Feuil1!$A$11:$G$29,3),VLOOKUP(I57,Feuil1!$A$11:$G$29,2))))),IF(OR(H57="SEN",H57<1995),VLOOKUP(I57,Feuil1!$G$11:$L$25,6),IF(AND(H57>1994,H57<1998),VLOOKUP(I57,Feuil1!$G$11:$L$25,5),IF(AND(H57>1997,H57<2000),VLOOKUP(I57,Feuil1!$G$11:$L$25,4),IF(AND(H57>1999,H57<2002),VLOOKUP(I57,Feuil1!$G$11:$L$25,3),VLOOKUP(I57,Feuil1!$G$11:$L$25,2))))))) -> C1 56 | Y57: 157.3533274 | AB57: =T57-HLOOKUP(X57,Feuil1!$C$1:$BL$10,2,FALSE) -> 42 | AC57: =T57-HLOOKUP(X57,Feuil1!$C$1:$BL$10,3,FALSE) -> 22 | AD57: =T57-HLOOKUP(X57,Feuil1!$C$1:$BL$10,4,FALSE) -> 7 | AE57: =T57-HLOOKUP(X57,Feuil1!$C$1:$BL$10,5,FALSE) -> -8 | AF57: =T57-HLOOKUP(X57,Feuil1!$C$1:$BL$10,6,FALSE) -> -23 | AG57: =T57-HLOOKUP(X57,Feuil1!$C$1:$BL$10,7,FALSE) -> -38 | AH57: =T57-HLOOKUP(X57,Feuil1!$C$1:$BL$10,8,FALSE) -> -53 | AI57: =T57-HLOOKUP(X57,Feuil1!$C$1:$BL$10,9,FALSE) -> -78 | AJ57: =T57-HLOOKUP(X57,Feuil1!$C$1:$BL$10,10,FALSE) -> -908 | AQ57: REG +
A58: H | B58: N | C58: NPC | D58: 5 | E58: 375306 | F58: LEURS | G58: Allan | H58: 2000 | I58: 55.2 | J58: ROSENDAEL | K58: F | L58: 30 | M58: 33 | N58: 35 | O58: 35 | P58: 42 | Q58: 46 | R58: 50 | S58: 50 | T58: 85 | U58: -25.4 | V58: REG + | W58: 0 | X58: =IF(I58="","",IF(A58="H",IF(OR(H58="SEN",H58<1995),VLOOKUP(I58,Feuil1!$A$11:$G$29,6),IF(AND(H58>1994,H58<1998),VLOOKUP(I58,Feuil1!$A$11:$G$29,5),IF(AND(H58>1997,H58<2000),VLOOKUP(I58,Feuil1!$A$11:$G$29,4),IF(AND(H58>1999,H58<2002),VLOOKUP(I58,Feuil1!$A$11:$G$29,3),VLOOKUP(I58,Feuil1!$A$11:$G$29,2))))),IF(OR(H58="SEN",H58<1995),VLOOKUP(I58,Feuil1!$G$11:$L$25,6),IF(AND(H58>1994,H58<1998),VLOOKUP(I58,Feuil1!$G$11:$L$25,5),IF(AND(H58>1997,H58<2000),VLOOKUP(I58,Feuil1!$G$11:$L$25,4),IF(AND(H58>1999,H58<2002),VLOOKUP(I58,Feuil1!$G$11:$L$25,3),VLOOKUP(I58,Feuil1!$G$11:$L$25,2))))))) -> C1 56 | Y58: 134.1784852 | AB58: =T58-HLOOKUP(X58,Feuil1!$C$1:$BL$10,2,FALSE) -> 35 | AC58: =T58-HLOOKUP(X58,Feuil1!$C$1:$BL$10,3,FALSE) -> 15 | AD58: =T58-HLOOKUP(X58,Feuil1!$C$1:$BL$10,4,FALSE) -> 0 | AE58: =T58-HLOOKUP(X58,Feuil1!$C$1:$BL$10,5,FALSE) -> -15 | AF58: =T58-HLOOKUP(X58,Feuil1!$C$1:$BL$10,6,FALSE) -> -30 | AG58: =T58-HLOOKUP(X58,Feuil1!$C$1:$BL$10,7,FALSE) -> -45 | AH58: =T58-HLOOKUP(X58,Feuil1!$C$1:$BL$10,8,FALSE) -> -60 | AI58: =T58-HLOOKUP(X58,Feuil1!$C$1:$BL$10,9,FALSE) -> -85 | AJ58: =T58-HLOOKUP(X58,Feuil1!$C$1:$BL$10,10,FALSE) -> -915 | AQ58: REG +
A59: H | B59: NE | C59: ALS | D59: 6 | E59: 381290 | F59: CECERE | G59: THOMAS | H59: 2001 | I59: 53.9 | J59: SR Obernai HM | K59: F | L59: 28 | M59: 30 | N59: 32 | O59: 32 | P59: 32 | Q59: 35 | R59: 38 | S59: 38 | T59: 70 | U59: -37.8 | V59: DEP + | W59: 0 | X59: =IF(I59="","",IF(A59="H",IF(OR(H59="SEN",H59<1995),VLOOKUP(I59,Feuil1!$A$11:$G$29,6),IF(AND(H59>1994,H59<1998),VLOOKUP(I59,Feuil1!$A$11:$G$29,5),IF(AND(H59>1997,H59<2000),VLOOKUP(I59,Feuil1!$A$11:$G$29,4),IF(AND(H59>1999,H59<2002),VLOOKUP(I59,Feuil1!$A$11:$G$29,3),VLOOKUP(I59,Feuil1!$A$11:$G$29,2))))),IF(OR(H59="SEN",H59<1995),VLOOKUP(I59,Feuil1!$G$11:$L$25,6),IF(AND(H59>1994,H59<1998),VLOOKUP(I59,Feuil1!$G$11:$L$25,5),IF(AND(H59>1997,H59<2000),VLOOKUP(I59,Feuil1!$G$11:$L$25,4),IF(AND(H59>1999,H59<2002),VLOOKUP(I59,Feuil1!$G$11:$L$25,3),VLOOKUP(I59,Feuil1!$G$11:$L$25,2))))))) -> C1 56 | Y59: 112.6321075 | AB59: =T59-HLOOKUP(X59,Feuil1!$C$1:$BL$10,2,FALSE) -> 20 | AC59: =T59-HLOOKUP(X59,Feuil1!$C$1:$BL$10,3,FALSE) -> 0 | AD59: =T59-HLOOKUP(X59,Feuil1!$C$1:$BL$10,4,FALSE) -> -15 | AE59: =T59-HLOOKUP(X59,Feuil1!$C$1:$BL$10,5,FALSE) -> -30 | AF59: =T59-HLOOKUP(X59,Feuil1!$C$1:$BL$10,6,FALSE) -> -45 | AG59: =T59-HLOOKUP(X59,Feuil1!$C$1:$BL$10,7,FALSE) -> -60 | AH59: =T59-HLOOKUP(X59,Feuil1!$C$1:$BL$10,8,FALSE) -> -75 | AI59: =T59-HLOOKUP(X59,Feuil1!$C$1:$BL$10,9,FALSE) -> -100 | AJ59: =T59-HLOOKUP(X59,Feuil1!$C$1:$BL$10,10,FALSE) -> -930 | AQ59: DEP +
A60: H | B60: NE | C60: CHA | D60: 7 | E60: 336659 | F60: GALANDON | G60: Mattéo | H60: 2001 | I60: 55 | J60: Reims HM | K60: F | L60: 23 | M60: 26 | N60: 28 | O60: 28 | P60: 33 | Q60: 37 | R60: 40 | S60: 40 | T60: 68 | U60: -42 | V60: DEB | W60: 18 | X60: =IF(I60="","",IF(A60="H",IF(OR(H60="SEN",H60<1995),VLOOKUP(I60,Feuil1!$A$11:$G$29,6),IF(AND(H60>1994,H60<1998),VLOOKUP(I60,Feuil1!$A$11:$G$29,5),IF(AND(H60>1997,H60<2000),VLOOKUP(I60,Feuil1!$A$11:$G$29,4),IF(AND(H60>1999,H60<2002),VLOOKUP(I60,Feuil1!$A$11:$G$29,3),VLOOKUP(I60,Feuil1!$A$11:$G$29,2))))),IF(OR(H60="SEN",H60<1995),VLOOKUP(I60,Feuil1!$G$11:$L$25,6),IF(AND(H60>1994,H60<1998),VLOOKUP(I60,Feuil1!$G$11:$L$25,5),IF(AND(H60>1997,H60<2000),VLOOKUP(I60,Feuil1!$G$11:$L$25,4),IF(AND(H60>1999,H60<2002),VLOOKUP(I60,Feuil1!$G$11:$L$25,3),VLOOKUP(I60,Feuil1!$G$11:$L$25,2))))))) -> C1 56 | Y60: 107.6529749 | AB60: =T60-HLOOKUP(X60,Feuil1!$C$1:$BL$10,2,FALSE) -> 18 | AC60: =T60-HLOOKUP(X60,Feuil1!$C$1:$BL$10,3,FALSE) -> -2 | AD60: =T60-HLOOKUP(X60,Feuil1!$C$1:$BL$10,4,FALSE) -> -17 | AE60: =T60-HLOOKUP(X60,Feuil1!$C$1:$BL$10,5,FALSE) -> -32 | AF60: =T60-HLOOKUP(X60,Feuil1!$C$1:$BL$10,6,FALSE) -> -47 | AG60: =T60-HLOOKUP(X60,Feuil1!$C$1:$BL$10,7,FALSE) -> -62 | AH60: =T60-HLOOKUP(X60,Feuil1!$C$1:$BL$10,8,FALSE) -> -77 | AI60: =T60-HLOOKUP(X60,Feuil1!$C$1:$BL$10,9,FALSE) -> -102 | AJ60: =T60-HLOOKUP(X60,Feuil1!$C$1:$BL$10,10,FALSE) -> -932 | AQ60: DEB
A61: H | B61: N | C61: IDF | D61: 8 | E61: 352741 | F61: ALDUY | G61: THUREL | H61: 2001 | I61: 54.5 | J61: CHAVILLE | K61: F | L61: 25 | M61: 27 | N61: -30 | O61: 27 | P61: 35 | Q61: 37 | R61: 40 | S61: 40 | T61: 67 | U61: -42 | V61: DEB | W61: 17 | X61: =IF(I61="","",IF(A61="H",IF(OR(H61="SEN",H61<1995),VLOOKUP(I61,Feuil1!$A$11:$G$29,6),IF(AND(H61>1994,H61<1998),VLOOKUP(I61,Feuil1!$A$11:$G$29,5),IF(AND(H61>1997,H61<2000),VLOOKUP(I61,Feuil1!$A$11:$G$29,4),IF(AND(H61>1999,H61<2002),VLOOKUP(I61,Feuil1!$A$11:$G$29,3),VLOOKUP(I61,Feuil1!$A$11:$G$29,2))))),IF(OR(H61="SEN",H61<1995),VLOOKUP(I61,Feuil1!$G$11:$L$25,6),IF(AND(H61>1994,H61<1998),VLOOKUP(I61,Feuil1!$G$11:$L$25,5),IF(AND(H61>1997,H61<2000),VLOOKUP(I61,Feuil1!$G$11:$L$25,4),IF(AND(H61>1999,H61<2002),VLOOKUP(I61,Feuil1!$G$11:$L$25,3),VLOOKUP(I61,Feuil1!$G$11:$L$25,2))))))) -> C1 56 | Y61: 106.8470027 | AB61: =T61-HLOOKUP(X61,Feuil1!$C$1:$BL$10,2,FALSE) -> 17 | AC61: =T61-HLOOKUP(X61,Feuil1!$C$1:$BL$10,3,FALSE) -> -3 | AD61: =T61-HLOOKUP(X61,Feuil1!$C$1:$BL$10,4,FALSE) -> -18 | AE61: =T61-HLOOKUP(X61,Feuil1!$C$1:$BL$10,5,FALSE) -> -33 | AF61: =T61-HLOOKUP(X61,Feuil1!$C$1:$BL$10,6,FALSE) -> -48 | AG61: =T61-HLOOKUP(X61,Feuil1!$C$1:$BL$10,7,FALSE) -> -63 | AH61: =T61-HLOOKUP(X61,Feuil1!$C$1:$BL$10,8,FALSE) -> -78 | AI61: =T61-HLOOKUP(X61,Feuil1!$C$1:$BL$10,9,FALSE) -> -103 | AJ61: =T61-HLOOKUP(X61,Feuil1!$C$1:$BL$10,10,FALSE) -> -933 | AQ61: DEB
A62: H | B62: NE | C62: CHA | D62: 9 | E62: 387905 | F62: RENDA | G62: Jean | H62: 2001 | I62: 51.9 | J62: Langres HM | K62: F | L62: 22 | M62: 25 | N62: 28 | O62: 28 | P62: 25 | Q62: 30 | R62: 34 | S62: 34 | T62: 62 | U62: -41.8 | V62: DEB | W62: 12 | X62: =IF(I62="","",IF(A62="H",IF(OR(H62="SEN",H62<1995),VLOOKUP(I62,Feuil1!$A$11:$G$29,6),IF(AND(H62>1994,H62<1998),VLOOKUP(I62,Feuil1!$A$11:$G$29,5),IF(AND(H62>1997,H62<2000),VLOOKUP(I62,Feuil1!$A$11:$G$29,4),IF(AND(H62>1999,H62<2002),VLOOKUP(I62,Feuil1!$A$11:$G$29,3),VLOOKUP(I62,Feuil1!$A$11:$G$29,2))))),IF(OR(H62="SEN",H62<1995),VLOOKUP(I62,Feuil1!$G$11:$L$25,6),IF(AND(H62>1994,H62<1998),VLOOKUP(I62,Feuil1!$G$11:$L$25,5),IF(AND(H62>1997,H62<2000),VLOOKUP(I62,Feuil1!$G$11:$L$25,4),IF(AND(H62>1999,H62<2002),VLOOKUP(I62,Feuil1!$G$11:$L$25,3),VLOOKUP(I62,Feuil1!$G$11:$L$25,2))))))) -> C1 56 | Y62: 102.9138626 | AB62: =T62-HLOOKUP(X62,Feuil1!$C$1:$BL$10,2,FALSE) -> 12 | AC62: =T62-HLOOKUP(X62,Feuil1!$C$1:$BL$10,3,FALSE) -> -8 | AD62: =T62-HLOOKUP(X62,Feuil1!$C$1:$BL$10,4,FALSE) -> -23 | AE62: =T62-HLOOKUP(X62,Feuil1!$C$1:$BL$10,5,FALSE) -> -38 | AF62: =T62-HLOOKUP(X62,Feuil1!$C$1:$BL$10,6,FALSE) -> -53 | AG62: =T62-HLOOKUP(X62,Feuil1!$C$1:$BL$10,7,FALSE) -> -68 | AH62: =T62-HLOOKUP(X62,Feuil1!$C$1:$BL$10,8,FALSE) -> -83 | AI62: =T62-HLOOKUP(X62,Feuil1!$C$1:$BL$10,9,FALSE) -> -108 | AJ62: =T62-HLOOKUP(X62,Feuil1!$C$1:$BL$10,10,FALSE) -> -938 | AQ62: DEB
A63: H | B63: N | C63: NPC | D63: 10 | E63: 338422 | F63: DRIEUX | G63: Remi | H63: 2001 | I63: 52.1 | J63: ROSENDAEL | K63: F | L63: 18 | M63: 20 | N63: -23 | O63: 20 | P63: 28 | Q63: 31 | R63: 33 | S63: 33 | T63: 53 | U63: -51.2 | V63: DEB | W63: 3 | X63: =IF(I63="","",IF(A63="H",IF(OR(H63="SEN",H63<1995),VLOOKUP(I63,Feuil1!$A$11:$G$29,6),IF(AND(H63>1994,H63<1998),VLOOKUP(I63,Feuil1!$A$11:$G$29,5),IF(AND(H63>1997,H63<2000),VLOOKUP(I63,Feuil1!$A$11:$G$29,4),IF(AND(H63>1999,H63<2002),VLOOKUP(I63,Feuil1!$A$11:$G$29,3),VLOOKUP(I63,Feuil1!$A$11:$G$29,2))))),IF(OR(H63="SEN",H63<1995),VLOOKUP(I63,Feuil1!$G$11:$L$25,6),IF(AND(H63>1994,H63<1998),VLOOKUP(I63,Feuil1!$G$11:$L$25,5),IF(AND(H63>1997,H63<2000),VLOOKUP(I63,Feuil1!$G$11:$L$25,4),IF(AND(H63>1999,H63<2002),VLOOKUP(I63,Feuil1!$G$11:$L$25,3),VLOOKUP(I63,Feuil1!$G$11:$L$25,2))))))) -> C1 56 | Y63: 87.69270159 | AB63: =T63-HLOOKUP(X63,Feuil1!$C$1:$BL$10,2,FALSE) -> 3 | AC63: =T63-HLOOKUP(X63,Feuil1!$C$1:$BL$10,3,FALSE) -> -17 | AD63: =T63-HLOOKUP(X63,Feuil1!$C$1:$BL$10,4,FALSE) -> -32 | AE63: =T63-HLOOKUP(X63,Feuil1!$C$1:$BL$10,5,FALSE) -> -47 | AF63: =T63-HLOOKUP(X63,Feuil1!$C$1:$BL$10,6,FALSE) -> -62 | AG63: =T63-HLOOKUP(X63,Feuil1!$C$1:$BL$10,7,FALSE) -> -77 | AH63: =T63-HLOOKUP(X63,Feuil1!$C$1:$BL$10,8,FALSE) -> -92 | AI63: =T63-HLOOKUP(X63,Feuil1!$C$1:$BL$10,9,FALSE) -> -117 | AJ63: =T63-HLOOKUP(X63,Feuil1!$C$1:$BL$10,10,FALSE) -> -947 | AQ63: DEB
A64: H | B64: CO | C64: BNO | D64: 11 | E64: 302146 | F64: FAUNY | G64: Gilles | H64: 2001 | I64: 53.3 | J64: Saint-Lô | K64: F | L64: 17 | M64: 20 | N64: 21 | O64: 21 | P64: 26 | Q64: 30 | R64: 32 | S64: 32 | T64: 53 | U64: -53.6 | V64: DEB | W64: 3 | X64: =IF(I64="","",IF(A64="H",IF(OR(H64="SEN",H64<1995),VLOOKUP(I64,Feuil1!$A$11:$G$29,6),IF(AND(H64>1994,H64<1998),VLOOKUP(I64,Feuil1!$A$11:$G$29,5),IF(AND(H64>1997,H64<2000),VLOOKUP(I64,Feuil1!$A$11:$G$29,4),IF(AND(H64>1999,H64<2002),VLOOKUP(I64,Feuil1!$A$11:$G$29,3),VLOOKUP(I64,Feuil1!$A$11:$G$29,2))))),IF(OR(H64="SEN",H64<1995),VLOOKUP(I64,Feuil1!$G$11:$L$25,6),IF(AND(H64>1994,H64<1998),VLOOKUP(I64,Feuil1!$G$11:$L$25,5),IF(AND(H64>1997,H64<2000),VLOOKUP(I64,Feuil1!$G$11:$L$25,4),IF(AND(H64>1999,H64<2002),VLOOKUP(I64,Feuil1!$G$11:$L$25,3),VLOOKUP(I64,Feuil1!$G$11:$L$25,2))))))) -> C1 56 | Y64: 86.05922013 | AB64: =T64-HLOOKUP(X64,Feuil1!$C$1:$BL$10,2,FALSE) -> 3 | AC64: =T64-HLOOKUP(X64,Feuil1!$C$1:$BL$10,3,FALSE) -> -17 | AD64: =T64-HLOOKUP(X64,Feuil1!$C$1:$BL$10,4,FALSE) -> -32 | AE64: =T64-HLOOKUP(X64,Feuil1!$C$1:$BL$10,5,FALSE) -> -47 | AF64: =T64-HLOOKUP(X64,Feuil1!$C$1:$BL$10,6,FALSE) -> -62 | AG64: =T64-HLOOKUP(X64,Feuil1!$C$1:$BL$10,7,FALSE) -> -77 | AH64: =T64-HLOOKUP(X64,Feuil1!$C$1:$BL$10,8,FALSE) -> -92 | AI64: =T64-HLOOKUP(X64,Feuil1!$C$1:$BL$10,9,FALSE) -> -117 | AJ64: =T64-HLOOKUP(X64,Feuil1!$C$1:$BL$10,10,FALSE) -> -947 | AQ64: DEB
A65: H | B65: N | C65: PIC | D65: 12 | E65: 387613 | F65: LOGER | G65: Romain | H65: 2000 | I65: 51.3 | J65: Villers-Bretonneux KC | K65: F | L65: 15 | M65: 20 | N65: 23 | O65: 23 | P65: 18 | Q65: 21 | R65: 25 | S65: 25 | T65: 48 | U65: -54.6 | V65: DEB | W65: -2 | X65: =IF(I65="","",IF(A65="H",IF(OR(H65="SEN",H65<1995),VLOOKUP(I65,Feuil1!$A$11:$G$29,6),IF(AND(H65>1994,H65<1998),VLOOKUP(I65,Feuil1!$A$11:$G$29,5),IF(AND(H65>1997,H65<2000),VLOOKUP(I65,Feuil1!$A$11:$G$29,4),IF(AND(H65>1999,H65<2002),VLOOKUP(I65,Feuil1!$A$11:$G$29,3),VLOOKUP(I65,Feuil1!$A$11:$G$29,2))))),IF(OR(H65="SEN",H65<1995),VLOOKUP(I65,Feuil1!$G$11:$L$25,6),IF(AND(H65>1994,H65<1998),VLOOKUP(I65,Feuil1!$G$11:$L$25,5),IF(AND(H65>1997,H65<2000),VLOOKUP(I65,Feuil1!$G$11:$L$25,4),IF(AND(H65>1999,H65<2002),VLOOKUP(I65,Feuil1!$G$11:$L$25,3),VLOOKUP(I65,Feuil1!$G$11:$L$25,2))))))) -> C1 56 | Y65: 80.45752846 | AB65: =T65-HLOOKUP(X65,Feuil1!$C$1:$BL$10,2,FALSE) -> -2 | AC65: =T65-HLOOKUP(X65,Feuil1!$C$1:$BL$10,3,FALSE) -> -22 | AD65: =T65-HLOOKUP(X65,Feuil1!$C$1:$BL$10,4,FALSE) -> -37 | AE65: =T65-HLOOKUP(X65,Feuil1!$C$1:$BL$10,5,FALSE) -> -52 | AF65: =T65-HLOOKUP(X65,Feuil1!$C$1:$BL$10,6,FALSE) -> -67 | AG65: =T65-HLOOKUP(X65,Feuil1!$C$1:$BL$10,7,FALSE) -> -82 | AH65: =T65-HLOOKUP(X65,Feuil1!$C$1:$BL$10,8,FALSE) -> -97 | AI65: =T65-HLOOKUP(X65,Feuil1!$C$1:$BL$10,9,FALSE) -> -122 | AJ65: =T65-HLOOKUP(X65,Feuil1!$C$1:$BL$10,10,FALSE) -> -952 | AQ65: DEB
AB66: =T66-HLOOKUP(X66,Feuil1!$C$1:$BL$10,2,FALSE) ->  | AC66: =T66-HLOOKUP(X66,Feuil1!$C$1:$BL$10,3,FALSE) ->  | AD66: =T66-HLOOKUP(X66,Feuil1!$C$1:$BL$10,4,FALSE) ->  | AE66: =T66-HLOOKUP(X66,Feuil1!$C$1:$BL$10,5,FALSE) ->  | AF66: =T66-HLOOKUP(X66,Feuil1!$C$1:$BL$10,6,FALSE) ->  | AG66: =T66-HLOOKUP(X66,Feuil1!$C$1:$BL$10,7,FALSE) ->  | AH66: =T66-HLOOKUP(X66,Feuil1!$C$1:$BL$10,8,FALSE) ->  | AI66: =T66-HLOOKUP(X66,Feuil1!$C$1:$BL$10,9,FALSE) ->  | AJ66: =T66-HLOOKUP(X66,Feuil1!$C$1:$BL$10,10,FALSE) ->  | AQ66: =IF(AJ66>=0,$AJ$4,IF(AI66>=0,$AI$4,IF(AH66>=0,$AH$4,IF(AG66>=0,$AG$4,IF(AF66>=0,$AF$4,IF(AE66>=0,$AE$4,IF(AD66>=0,$AD$4,IF(AC66>=0,$AC$4,$AB$4)))))))) -> 
A67: H | B67: SEST | C67: PRO | D67: 1 | E67: 369617 | F67: GIRARD | G67: MAXIME | H67: 2001 | I67: 57 | J67: ISTRES SPORTS | K67: F | L67: 47 | M67: 51 | N67: -55 | O67: =IF(H67="","",IF(MAXA(L67:N67)<=0,0,MAXA(L67:N67))) -> 51 | P67: 67 | Q67: 71 | R67: 75 | S67: =IF(H67="","",IF(MAXA(P67:R67)<=0,0,MAXA(P67:R67))) -> 75 | T67: =IF(H67="","",IF(OR(O67=0,S67=0),0,O67+S67)) -> 126 | U67: =T67-I67*2 -> 12 | V67: =IF(H67="","",AQ67) -> IRG + | W67: =IF(AJ67>=0,AJ67,IF(AI67>=0,AI67,IF(AH67>=0,AH67,IF(AG67>=0,AG67,IF(AF67>=0,AF67,IF(AE67>=0,AE67,IF(AD67>=0,AD67,IF(AC67>=0,AC67,AB67)))))))) -> 6 | X67: =IF(I67="","",IF(A67="H",IF(OR(H67="SEN",H67<1995),VLOOKUP(I67,Feuil1!$A$11:$G$29,6),IF(AND(H67>1994,H67<1998),VLOOKUP(I67,Feuil1!$A$11:$G$29,5),IF(AND(H67>1997,H67<2000),VLOOKUP(I67,Feuil1!$A$11:$G$29,4),IF(AND(H67>1999,H67<2002),VLOOKUP(I67,Feuil1!$A$11:$G$29,3),VLOOKUP(I67,Feuil1!$A$11:$G$29,2))))),IF(OR(H67="SEN",H67<1995),VLOOKUP(I67,Feuil1!$G$11:$L$25,6),IF(AND(H67>1994,H67<1998),VLOOKUP(I67,Feuil1!$G$11:$L$25,5),IF(AND(H67>1997,H67<2000),VLOOKUP(I67,Feuil1!$G$11:$L$25,4),IF(AND(H67>1999,H67<2002),VLOOKUP(I67,Feuil1!$G$11:$L$25,3),VLOOKUP(I67,Feuil1!$G$11:$L$25,2))))))) -> C1 62 | Y67: =IF(I67="","",IF(A67="H",10^(0.794358141*LOG(I67/174.393)^2)*T67,IF(A67="F",10^(0.89726074*LOG(I67/148.026)^2)*T67,""))) -> 193.9670016 | AB67: =T67-HLOOKUP(X67,Feuil1!$C$1:$BL$10,2,FALSE) -> 51 | AC67: =T67-HLOOKUP(X67,Feuil1!$C$1:$BL$10,3,FALSE) -> 31 | AD67: =T67-HLOOKUP(X67,Feuil1!$C$1:$BL$10,4,FALSE) -> 21 | AE67: =T67-HLOOKUP(X67,Feuil1!$C$1:$BL$10,5,FALSE) -> 6 | AF67: =T67-HLOOKUP(X67,Feuil1!$C$1:$BL$10,6,FALSE) -> -9 | AG67: =T67-HLOOKUP(X67,Feuil1!$C$1:$BL$10,7,FALSE) -> -24 | AH67: =T67-HLOOKUP(X67,Feuil1!$C$1:$BL$10,8,FALSE) -> -44 | AI67: =T67-HLOOKUP(X67,Feuil1!$C$1:$BL$10,9,FALSE) -> -64 | AJ67: =T67-HLOOKUP(X67,Feuil1!$C$1:$BL$10,10,FALSE) -> -874 | AQ67: =IF(AJ67>=0,$AJ$4,IF(AI67>=0,$AI$4,IF(AH67>=0,$AH$4,IF(AG67>=0,$AG$4,IF(AF67>=0,$AF$4,IF(AE67>=0,$AE$4,IF(AD67>=0,$AD$4,IF(AC67>=0,$AC$4,$AB$4)))))))) -> IRG +
A68: H | B68: D0M | C68: GUY | D68: 2 | E68: 382074 | F68: LUERRE | G68: José | H68: 2000 | I68: 61 | J68: ASCP/Guyane | K68: F | L68: 45 | M68: 50 | N68: -53 | O68: 50 | P68: 60 | Q68: 65 | R68: -70 | S68: 65 | T68: 115 | U68: -7 | V68: REG + | W68: 10 | X68: =IF(I68="","",IF(A68="H",IF(OR(H68="SEN",H68<1995),VLOOKUP(I68,Feuil1!$A$11:$G$29,6),IF(AND(H68>1994,H68<1998),VLOOKUP(I68,Feuil1!$A$11:$G$29,5),IF(AND(H68>1997,H68<2000),VLOOKUP(I68,Feuil1!$A$11:$G$29,4),IF(AND(H68>1999,H68<2002),VLOOKUP(I68,Feuil1!$A$11:$G$29,3),VLOOKUP(I68,Feuil1!$A$11:$G$29,2))))),IF(OR(H68="SEN",H68<1995),VLOOKUP(I68,Feuil1!$G$11:$L$25,6),IF(AND(H68>1994,H68<1998),VLOOKUP(I68,Feuil1!$G$11:$L$25,5),IF(AND(H68>1997,H68<2000),VLOOKUP(I68,Feuil1!$G$11:$L$25,4),IF(AND(H68>1999,H68<2002),VLOOKUP(I68,Feuil1!$G$11:$L$25,3),VLOOKUP(I68,Feuil1!$G$11:$L$25,2))))))) -> C1 62 | Y68: 168.2743213 | AB68: =T68-HLOOKUP(X68,Feuil1!$C$1:$BL$10,2,FALSE) -> 40 | AC68: =T68-HLOOKUP(X68,Feuil1!$C$1:$BL$10,3,FALSE) -> 20 | AD68: =T68-HLOOKUP(X68,Feuil1!$C$1:$BL$10,4,FALSE) -> 10 | AE68: =T68-HLOOKUP(X68,Feuil1!$C$1:$BL$10,5,FALSE) -> -5 | AF68: =T68-HLOOKUP(X68,Feuil1!$C$1:$BL$10,6,FALSE) -> -20 | AG68: =T68-HLOOKUP(X68,Feuil1!$C$1:$BL$10,7,FALSE) -> -35 | AH68: =T68-HLOOKUP(X68,Feuil1!$C$1:$BL$10,8,FALSE) -> -55 | AI68: =T68-HLOOKUP(X68,Feuil1!$C$1:$BL$10,9,FALSE) -> -75 | AJ68: =T68-HLOOKUP(X68,Feuil1!$C$1:$BL$10,10,FALSE) -> -885 | AQ68: REG +
A69: H | B69: NE | C69: FCO | D69: 3 | E69: 350181 | F69: BERTHELIN | G69: Simon | H69: 2000 | I69: 57.3 | J69: CHLuxeuil | K69: F | L69: -45 | M69: 45 | N69: -50 | O69: 45 | P69: 57 | Q69: 62 | R69: -65 | S69: 62 | T69: 107 | U69: -7.6 | V69: REG + | W69: 2 | X69: =IF(I69="","",IF(A69="H",IF(OR(H69="SEN",H69<1995),VLOOKUP(I69,Feuil1!$A$11:$G$29,6),IF(AND(H69>1994,H69<1998),VLOOKUP(I69,Feuil1!$A$11:$G$29,5),IF(AND(H69>1997,H69<2000),VLOOKUP(I69,Feuil1!$A$11:$G$29,4),IF(AND(H69>1999,H69<2002),VLOOKUP(I69,Feuil1!$A$11:$G$29,3),VLOOKUP(I69,Feuil1!$A$11:$G$29,2))))),IF(OR(H69="SEN",H69<1995),VLOOKUP(I69,Feuil1!$G$11:$L$25,6),IF(AND(H69>1994,H69<1998),VLOOKUP(I69,Feuil1!$G$11:$L$25,5),IF(AND(H69>1997,H69<2000),VLOOKUP(I69,Feuil1!$G$11:$L$25,4),IF(AND(H69>1999,H69<2002),VLOOKUP(I69,Feuil1!$G$11:$L$25,3),VLOOKUP(I69,Feuil1!$G$11:$L$25,2))))))) -> C1 62 | Y69: 164.0537725 | AB69: =T69-HLOOKUP(X69,Feuil1!$C$1:$BL$10,2,FALSE) -> 32 | AC69: =T69-HLOOKUP(X69,Feuil1!$C$1:$BL$10,3,FALSE) -> 12 | AD69: =T69-HLOOKUP(X69,Feuil1!$C$1:$BL$10,4,FALSE) -> 2 | AE69: =T69-HLOOKUP(X69,Feuil1!$C$1:$BL$10,5,FALSE) -> -13 | AF69: =T69-HLOOKUP(X69,Feuil1!$C$1:$BL$10,6,FALSE) -> -28 | AG69: =T69-HLOOKUP(X69,Feuil1!$C$1:$BL$10,7,FALSE) -> -43 | AH69: =T69-HLOOKUP(X69,Feuil1!$C$1:$BL$10,8,FALSE) -> -63 | AI69: =T69-HLOOKUP(X69,Feuil1!$C$1:$BL$10,9,FALSE) -> -83 | AJ69: =T69-HLOOKUP(X69,Feuil1!$C$1:$BL$10,10,FALSE) -> -893 | AQ69: REG +
A70: H | B70: SEST | C70: PRO | D70: 4 | E70: 389955 | F70: BERNARD | G70: QUENTIN | H70: 2000 | I70: 60.1 | J70: CHC MONDRAGON | K70: F | L70: 40 | M70: -43 | N70: -43 | O70: 40 | P70: 50 | Q70: 55 | R70: -60 | S70: 55 | T70: 95 | U70: -25.2 | V70: DEP + | W70: 0 | X70: =IF(I70="","",IF(A70="H",IF(OR(H70="SEN",H70<1995),VLOOKUP(I70,Feuil1!$A$11:$G$29,6),IF(AND(H70>1994,H70<1998),VLOOKUP(I70,Feuil1!$A$11:$G$29,5),IF(AND(H70>1997,H70<2000),VLOOKUP(I70,Feuil1!$A$11:$G$29,4),IF(AND(H70>1999,H70<2002),VLOOKUP(I70,Feuil1!$A$11:$G$29,3),VLOOKUP(I70,Feuil1!$A$11:$G$29,2))))),IF(OR(H70="SEN",H70<1995),VLOOKUP(I70,Feuil1!$G$11:$L$25,6),IF(AND(H70>1994,H70<1998),VLOOKUP(I70,Feuil1!$G$11:$L$25,5),IF(AND(H70>1997,H70<2000),VLOOKUP(I70,Feuil1!$G$11:$L$25,4),IF(AND(H70>1999,H70<2002),VLOOKUP(I70,Feuil1!$G$11:$L$25,3),VLOOKUP(I70,Feuil1!$G$11:$L$25,2))))))) -> C1 62 | Y70: 140.5255764 | AB70: =T70-HLOOKUP(X70,Feuil1!$C$1:$BL$10,2,FALSE) -> 20 | AC70: =T70-HLOOKUP(X70,Feuil1!$C$1:$BL$10,3,FALSE) -> 0 | AD70: =T70-HLOOKUP(X70,Feuil1!$C$1:$BL$10,4,FALSE) -> -10 | AE70: =T70-HLOOKUP(X70,Feuil1!$C$1:$BL$10,5,FALSE) -> -25 | AF70: =T70-HLOOKUP(X70,Feuil1!$C$1:$BL$10,6,FALSE) -> -40 | AG70: =T70-HLOOKUP(X70,Feuil1!$C$1:$BL$10,7,FALSE) -> -55 | AH70: =T70-HLOOKUP(X70,Feuil1!$C$1:$BL$10,8,FALSE) -> -75 | AI70: =T70-HLOOKUP(X70,Feuil1!$C$1:$BL$10,9,FALSE) -> -95 | AJ70: =T70-HLOOKUP(X70,Feuil1!$C$1:$BL$10,10,FALSE) -> -905 | AQ70: DEP +
A71: H | B71: DOM | C71: GUA | D71: 5 | E71: 379132 | F71: MOLINIER | G71: Théo | H71: 2000 | I71: 58.6 | J71: AHCS/Pointe à Pitre | K71: F | L71: 35 | M71: 40 | N71: -43 | O71: 40 | P71: 45 | Q71: 48 | R71: -50 | S71: 48 | T71: 88 | U71: -29.2 | V71: DEB | W71: 13 | X71: =IF(I71="","",IF(A71="H",IF(OR(H71="SEN",H71<1995),VLOOKUP(I71,Feuil1!$A$11:$G$29,6),IF(AND(H71>1994,H71<1998),VLOOKUP(I71,Feuil1!$A$11:$G$29,5),IF(AND(H71>1997,H71<2000),VLOOKUP(I71,Feuil1!$A$11:$G$29,4),IF(AND(H71>1999,H71<2002),VLOOKUP(I71,Feuil1!$A$11:$G$29,3),VLOOKUP(I71,Feuil1!$A$11:$G$29,2))))),IF(OR(H71="SEN",H71<1995),VLOOKUP(I71,Feuil1!$G$11:$L$25,6),IF(AND(H71>1994,H71<1998),VLOOKUP(I71,Feuil1!$G$11:$L$25,5),IF(AND(H71>1997,H71<2000),VLOOKUP(I71,Feuil1!$G$11:$L$25,4),IF(AND(H71>1999,H71<2002),VLOOKUP(I71,Feuil1!$G$11:$L$25,3),VLOOKUP(I71,Feuil1!$G$11:$L$25,2))))))) -> C1 62 | Y71: 132.6411992 | AB71: =T71-HLOOKUP(X71,Feuil1!$C$1:$BL$10,2,FALSE) -> 13 | AC71: =T71-HLOOKUP(X71,Feuil1!$C$1:$BL$10,3,FALSE) -> -7 | AD71: =T71-HLOOKUP(X71,Feuil1!$C$1:$BL$10,4,FALSE) -> -17 | AE71: =T71-HLOOKUP(X71,Feuil1!$C$1:$BL$10,5,FALSE) -> -32 | AF71: =T71-HLOOKUP(X71,Feuil1!$C$1:$BL$10,6,FALSE) -> -47 | AG71: =T71-HLOOKUP(X71,Feuil1!$C$1:$BL$10,7,FALSE) -> -62 | AH71: =T71-HLOOKUP(X71,Feuil1!$C$1:$BL$10,8,FALSE) -> -82 | AI71: =T71-HLOOKUP(X71,Feuil1!$C$1:$BL$10,9,FALSE) -> -102 | AJ71: =T71-HLOOKUP(X71,Feuil1!$C$1:$BL$10,10,FALSE) -> -912 | AQ71: DEB
A72: H | B72: NE | C72: BOU | D72: 6 | E72: 380052 | F72: DUCREUX | G72: Bastien | H72: 2000 | I72: 57.35 | J72: Tournus | K72: F | L72: 33 | M72: -37 | N72: 37 | O72: 37 | P72: 44 | Q72: 47 | R72: 50 | S72: 50 | T72: 87 | U72: -27.7 | V72: DEB | W72: 12 | X72: =IF(I72="","",IF(A72="H",IF(OR(H72="SEN",H72<1995),VLOOKUP(I72,Feuil1!$A$11:$G$29,6),IF(AND(H72>1994,H72<1998),VLOOKUP(I72,Feuil1!$A$11:$G$29,5),IF(AND(H72>1997,H72<2000),VLOOKUP(I72,Feuil1!$A$11:$G$29,4),IF(AND(H72>1999,H72<2002),VLOOKUP(I72,Feuil1!$A$11:$G$29,3),VLOOKUP(I72,Feuil1!$A$11:$G$29,2))))),IF(OR(H72="SEN",H72<1995),VLOOKUP(I72,Feuil1!$G$11:$L$25,6),IF(AND(H72>1994,H72<1998),VLOOKUP(I72,Feuil1!$G$11:$L$25,5),IF(AND(H72>1997,H72<2000),VLOOKUP(I72,Feuil1!$G$11:$L$25,4),IF(AND(H72>1999,H72<2002),VLOOKUP(I72,Feuil1!$G$11:$L$25,3),VLOOKUP(I72,Feuil1!$G$11:$L$25,2))))))) -> C1 62 | Y72: 133.3002344 | AB72: =T72-HLOOKUP(X72,Feuil1!$C$1:$BL$10,2,FALSE) -> 12 | AC72: =T72-HLOOKUP(X72,Feuil1!$C$1:$BL$10,3,FALSE) -> -8 | AD72: =T72-HLOOKUP(X72,Feuil1!$C$1:$BL$10,4,FALSE) -> -18 | AE72: =T72-HLOOKUP(X72,Feuil1!$C$1:$BL$10,5,FALSE) -> -33 | AF72: =T72-HLOOKUP(X72,Feuil1!$C$1:$BL$10,6,FALSE) -> -48 | AG72: =T72-HLOOKUP(X72,Feuil1!$C$1:$BL$10,7,FALSE) -> -63 | AH72: =T72-HLOOKUP(X72,Feuil1!$C$1:$BL$10,8,FALSE) -> -83 | AI72: =T72-HLOOKUP(X72,Feuil1!$C$1:$BL$10,9,FALSE) -> -103 | AJ72: =T72-HLOOKUP(X72,Feuil1!$C$1:$BL$10,10,FALSE) -> -913 | AQ72: DEB
A73: H | B73: N | C73: NPC | D73: 7 | E73: 366505 | F73: DELRUE | G73: Baptiste | H73: 2001 | I73: 57.6 | J73: COMINES | K73: F | L73: 35 | M73: 38 | N73: -40 | O73: 38 | P73: 45 | Q73: -48 | R73: -48 | S73: 45 | T73: 83 | U73: -32.2 | V73: DEB | W73: 8 | X73: =IF(I73="","",IF(A73="H",IF(OR(H73="SEN",H73<1995),VLOOKUP(I73,Feuil1!$A$11:$G$29,6),IF(AND(H73>1994,H73<1998),VLOOKUP(I73,Feuil1!$A$11:$G$29,5),IF(AND(H73>1997,H73<2000),VLOOKUP(I73,Feuil1!$A$11:$G$29,4),IF(AND(H73>1999,H73<2002),VLOOKUP(I73,Feuil1!$A$11:$G$29,3),VLOOKUP(I73,Feuil1!$A$11:$G$29,2))))),IF(OR(H73="SEN",H73<1995),VLOOKUP(I73,Feuil1!$G$11:$L$25,6),IF(AND(H73>1994,H73<1998),VLOOKUP(I73,Feuil1!$G$11:$L$25,5),IF(AND(H73>1997,H73<2000),VLOOKUP(I73,Feuil1!$G$11:$L$25,4),IF(AND(H73>1999,H73<2002),VLOOKUP(I73,Feuil1!$G$11:$L$25,3),VLOOKUP(I73,Feuil1!$G$11:$L$25,2))))))) -> C1 62 | Y73: 126.7485587 | AB73: =T73-HLOOKUP(X73,Feuil1!$C$1:$BL$10,2,FALSE) -> 8 | AC73: =T73-HLOOKUP(X73,Feuil1!$C$1:$BL$10,3,FALSE) -> -12 | AD73: =T73-HLOOKUP(X73,Feuil1!$C$1:$BL$10,4,FALSE) -> -22 | AE73: =T73-HLOOKUP(X73,Feuil1!$C$1:$BL$10,5,FALSE) -> -37 | AF73: =T73-HLOOKUP(X73,Feuil1!$C$1:$BL$10,6,FALSE) -> -52 | AG73: =T73-HLOOKUP(X73,Feuil1!$C$1:$BL$10,7,FALSE) -> -67 | AH73: =T73-HLOOKUP(X73,Feuil1!$C$1:$BL$10,8,FALSE) -> -87 | AI73: =T73-HLOOKUP(X73,Feuil1!$C$1:$BL$10,9,FALSE) -> -107 | AJ73: =T73-HLOOKUP(X73,Feuil1!$C$1:$BL$10,10,FALSE) -> -917 | AQ73: DEB
A74: H | B74: NE | C74: ALS | D74: 8 | E74: 327578 | F74: HOFFMANN | G74: HUGO | H74: 2001 | I74: 56.9 | J74: CHM Andlau | K74: F | L74: 35 | M74: -40 | N74: -40 | O74: 35 | P74: 35 | Q74: 40 | R74: 43 | S74: 43 | T74: 78 | U74: -35.8 | V74: DEB | W74: 3 | X74: =IF(I74="","",IF(A74="H",IF(OR(H74="SEN",H74<1995),VLOOKUP(I74,Feuil1!$A$11:$G$29,6),IF(AND(H74>1994,H74<1998),VLOOKUP(I74,Feuil1!$A$11:$G$29,5),IF(AND(H74>1997,H74<2000),VLOOKUP(I74,Feuil1!$A$11:$G$29,4),IF(AND(H74>1999,H74<2002),VLOOKUP(I74,Feuil1!$A$11:$G$29,3),VLOOKUP(I74,Feuil1!$A$11:$G$29,2))))),IF(OR(H74="SEN",H74<1995),VLOOKUP(I74,Feuil1!$G$11:$L$25,6),IF(AND(H74>1994,H74<1998),VLOOKUP(I74,Feuil1!$G$11:$L$25,5),IF(AND(H74>1997,H74<2000),VLOOKUP(I74,Feuil1!$G$11:$L$25,4),IF(AND(H74>1999,H74<2002),VLOOKUP(I74,Feuil1!$G$11:$L$25,3),VLOOKUP(I74,Feuil1!$G$11:$L$25,2))))))) -> C1 62 | Y74: 120.2377278 | AB74: =T74-HLOOKUP(X74,Feuil1!$C$1:$BL$10,2,FALSE) -> 3 | AC74: =T74-HLOOKUP(X74,Feuil1!$C$1:$BL$10,3,FALSE) -> -17 | AD74: =T74-HLOOKUP(X74,Feuil1!$C$1:$BL$10,4,FALSE) -> -27 | AE74: =T74-HLOOKUP(X74,Feuil1!$C$1:$BL$10,5,FALSE) -> -42 | AF74: =T74-HLOOKUP(X74,Feuil1!$C$1:$BL$10,6,FALSE) -> -57 | AG74: =T74-HLOOKUP(X74,Feuil1!$C$1:$BL$10,7,FALSE) -> -72 | AH74: =T74-HLOOKUP(X74,Feuil1!$C$1:$BL$10,8,FALSE) -> -92 | AI74: =T74-HLOOKUP(X74,Feuil1!$C$1:$BL$10,9,FALSE) -> -112 | AJ74: =T74-HLOOKUP(X74,Feuil1!$C$1:$BL$10,10,FALSE) -> -922 | AQ74: DEB
A75: H | B75: NE | C75: ALS | D75: 9 | E75: 381289 | F75: L'HOMMELET | G75: LUCAS | H75: 2001 | I75: 58.7 | J75: SR Obernai HM | K75: F | L75: 28 | M75: 31 | N75: 34 | O75: 34 | P75: 36 | Q75: 39 | R75: 42 | S75: 42 | T75: 76 | U75: -41.4 | V75: DEB | W75: 1 | X75: =IF(I75="","",IF(A75="H",IF(OR(H75="SEN",H75<1995),VLOOKUP(I75,Feuil1!$A$11:$G$29,6),IF(AND(H75>1994,H75<1998),VLOOKUP(I75,Feuil1!$A$11:$G$29,5),IF(AND(H75>1997,H75<2000),VLOOKUP(I75,Feuil1!$A$11:$G$29,4),IF(AND(H75>1999,H75<2002),VLOOKUP(I75,Feuil1!$A$11:$G$29,3),VLOOKUP(I75,Feuil1!$A$11:$G$29,2))))),IF(OR(H75="SEN",H75<1995),VLOOKUP(I75,Feuil1!$G$11:$L$25,6),IF(AND(H75>1994,H75<1998),VLOOKUP(I75,Feuil1!$G$11:$L$25,5),IF(AND(H75>1997,H75<2000),VLOOKUP(I75,Feuil1!$G$11:$L$25,4),IF(AND(H75>1999,H75<2002),VLOOKUP(I75,Feuil1!$G$11:$L$25,3),VLOOKUP(I75,Feuil1!$G$11:$L$25,2))))))) -> C1 62 | Y75: 114.407002 | AB75: =T75-HLOOKUP(X75,Feuil1!$C$1:$BL$10,2,FALSE) -> 1 | AC75: =T75-HLOOKUP(X75,Feuil1!$C$1:$BL$10,3,FALSE) -> -19 | AD75: =T75-HLOOKUP(X75,Feuil1!$C$1:$BL$10,4,FALSE) -> -29 | AE75: =T75-HLOOKUP(X75,Feuil1!$C$1:$BL$10,5,FALSE) -> -44 | AF75: =T75-HLOOKUP(X75,Feuil1!$C$1:$BL$10,6,FALSE) -> -59 | AG75: =T75-HLOOKUP(X75,Feuil1!$C$1:$BL$10,7,FALSE) -> -74 | AH75: =T75-HLOOKUP(X75,Feuil1!$C$1:$BL$10,8,FALSE) -> -94 | AI75: =T75-HLOOKUP(X75,Feuil1!$C$1:$BL$10,9,FALSE) -> -114 | AJ75: =T75-HLOOKUP(X75,Feuil1!$C$1:$BL$10,10,FALSE) -> -924 | AQ75: DEB
A76: H | B76: NE | C76: ALS | D76: 10 | E76: 384537 | F76: LAMY | G76: KEVIN | H76: 2001 | I76: 60.8 | J76: SR Obernai HM | K76: F | L76: 27 | M76: 29 | N76: 32 | O76: 32 | P76: 35 | Q76: -38 | R76: 38 | S76: 38 | T76: 70 | U76: -51.6 | V76: DEB | W76: -5 | X76: =IF(I76="","",IF(A76="H",IF(OR(H76="SEN",H76<1995),VLOOKUP(I76,Feuil1!$A$11:$G$29,6),IF(AND(H76>1994,H76<1998),VLOOKUP(I76,Feuil1!$A$11:$G$29,5),IF(AND(H76>1997,H76<2000),VLOOKUP(I76,Feuil1!$A$11:$G$29,4),IF(AND(H76>1999,H76<2002),VLOOKUP(I76,Feuil1!$A$11:$G$29,3),VLOOKUP(I76,Feuil1!$A$11:$G$29,2))))),IF(OR(H76="SEN",H76<1995),VLOOKUP(I76,Feuil1!$G$11:$L$25,6),IF(AND(H76>1994,H76<1998),VLOOKUP(I76,Feuil1!$G$11:$L$25,5),IF(AND(H76>1997,H76<2000),VLOOKUP(I76,Feuil1!$G$11:$L$25,4),IF(AND(H76>1999,H76<2002),VLOOKUP(I76,Feuil1!$G$11:$L$25,3),VLOOKUP(I76,Feuil1!$G$11:$L$25,2))))))) -> C1 62 | Y76: 102.6723192 | AB76: =T76-HLOOKUP(X76,Feuil1!$C$1:$BL$10,2,FALSE) -> -5 | AC76: =T76-HLOOKUP(X76,Feuil1!$C$1:$BL$10,3,FALSE) -> -25 | AD76: =T76-HLOOKUP(X76,Feuil1!$C$1:$BL$10,4,FALSE) -> -35 | AE76: =T76-HLOOKUP(X76,Feuil1!$C$1:$BL$10,5,FALSE) -> -50 | AF76: =T76-HLOOKUP(X76,Feuil1!$C$1:$BL$10,6,FALSE) -> -65 | AG76: =T76-HLOOKUP(X76,Feuil1!$C$1:$BL$10,7,FALSE) -> -80 | AH76: =T76-HLOOKUP(X76,Feuil1!$C$1:$BL$10,8,FALSE) -> -100 | AI76: =T76-HLOOKUP(X76,Feuil1!$C$1:$BL$10,9,FALSE) -> -120 | AJ76: =T76-HLOOKUP(X76,Feuil1!$C$1:$BL$10,10,FALSE) -> -930 | AQ76: DEB
A77: H | B77: SEST | C77: RAL | D77: 11 | E77: 383848 | F77: MATHEY | G77: Loic | H77: 2000 | I77: 59.5 | J77: Viriat | L77: 28 | M77: -32 | N77: -32 | O77: 28 | P77: 38 | Q77: 40 | R77: -43 | S77: 40 | T77: 68 | U77: -51 | V77: DEB | W77: -7 | X77: =IF(I77="","",IF(A77="H",IF(OR(H77="SEN",H77<1995),VLOOKUP(I77,Feuil1!$A$11:$G$29,6),IF(AND(H77>1994,H77<1998),VLOOKUP(I77,Feuil1!$A$11:$G$29,5),IF(AND(H77>1997,H77<2000),VLOOKUP(I77,Feuil1!$A$11:$G$29,4),IF(AND(H77>1999,H77<2002),VLOOKUP(I77,Feuil1!$A$11:$G$29,3),VLOOKUP(I77,Feuil1!$A$11:$G$29,2))))),IF(OR(H77="SEN",H77<1995),VLOOKUP(I77,Feuil1!$G$11:$L$25,6),IF(AND(H77>1994,H77<1998),VLOOKUP(I77,Feuil1!$G$11:$L$25,5),IF(AND(H77>1997,H77<2000),VLOOKUP(I77,Feuil1!$G$11:$L$25,4),IF(AND(H77>1999,H77<2002),VLOOKUP(I77,Feuil1!$G$11:$L$25,3),VLOOKUP(I77,Feuil1!$G$11:$L$25,2))))))) -> C1 62 | Y77: 101.3348083 | AB77: =T77-HLOOKUP(X77,Feuil1!$C$1:$BL$10,2,FALSE) -> -7 | AC77: =T77-HLOOKUP(X77,Feuil1!$C$1:$BL$10,3,FALSE) -> -27 | AD77: =T77-HLOOKUP(X77,Feuil1!$C$1:$BL$10,4,FALSE) -> -37 | AE77: =T77-HLOOKUP(X77,Feuil1!$C$1:$BL$10,5,FALSE) -> -52 | AF77: =T77-HLOOKUP(X77,Feuil1!$C$1:$BL$10,6,FALSE) -> -67 | AG77: =T77-HLOOKUP(X77,Feuil1!$C$1:$BL$10,7,FALSE) -> -82 | AH77: =T77-HLOOKUP(X77,Feuil1!$C$1:$BL$10,8,FALSE) -> -102 | AI77: =T77-HLOOKUP(X77,Feuil1!$C$1:$BL$10,9,FALSE) -> -122 | AJ77: =T77-HLOOKUP(X77,Feuil1!$C$1:$BL$10,10,FALSE) -> -932 | AQ77: DEB
A78: H | B78: NE | C78: FCO | D78: 12 | E78: 390774 | F78: KHOURY | G78: Martin | H78: 2000 | I78: 57.5 | J78: LFBesançon | K78: F | L78: 25 | M78: 30 | N78: -35 | O78: 30 | P78: 30 | Q78: 33 | R78: 36 | S78: 36 | T78: 66 | U78: -49 | V78: DEB | W78: -9 | X78: =IF(I78="","",IF(A78="H",IF(OR(H78="SEN",H78<1995),VLOOKUP(I78,Feuil1!$A$11:$G$29,6),IF(AND(H78>1994,H78<1998),VLOOKUP(I78,Feuil1!$A$11:$G$29,5),IF(AND(H78>1997,H78<2000),VLOOKUP(I78,Feuil1!$A$11:$G$29,4),IF(AND(H78>1999,H78<2002),VLOOKUP(I78,Feuil1!$A$11:$G$29,3),VLOOKUP(I78,Feuil1!$A$11:$G$29,2))))),IF(OR(H78="SEN",H78<1995),VLOOKUP(I78,Feuil1!$G$11:$L$25,6),IF(AND(H78>1994,H78<1998),VLOOKUP(I78,Feuil1!$G$11:$L$25,5),IF(AND(H78>1997,H78<2000),VLOOKUP(I78,Feuil1!$G$11:$L$25,4),IF(AND(H78>1999,H78<2002),VLOOKUP(I78,Feuil1!$G$11:$L$25,3),VLOOKUP(I78,Feuil1!$G$11:$L$25,2))))))) -> C1 62 | Y78: 100.9220647 | AB78: =T78-HLOOKUP(X78,Feuil1!$C$1:$BL$10,2,FALSE) -> -9 | AC78: =T78-HLOOKUP(X78,Feuil1!$C$1:$BL$10,3,FALSE) -> -29 | AD78: =T78-HLOOKUP(X78,Feuil1!$C$1:$BL$10,4,FALSE) -> -39 | AE78: =T78-HLOOKUP(X78,Feuil1!$C$1:$BL$10,5,FALSE) -> -54 | AF78: =T78-HLOOKUP(X78,Feuil1!$C$1:$BL$10,6,FALSE) -> -69 | AG78: =T78-HLOOKUP(X78,Feuil1!$C$1:$BL$10,7,FALSE) -> -84 | AH78: =T78-HLOOKUP(X78,Feuil1!$C$1:$BL$10,8,FALSE) -> -104 | AI78: =T78-HLOOKUP(X78,Feuil1!$C$1:$BL$10,9,FALSE) -> -124 | AJ78: =T78-HLOOKUP(X78,Feuil1!$C$1:$BL$10,10,FALSE) -> -934 | AQ78: DEB
A79: H | B79: N | C79: PIC | D79: 13 | E79: 357878 | F79: ELOY | G79: Martin | H79: 2001 | I79: 61.8 | J79: Villers-Bretonneux KC | K79: F | L79: 22 | M79: 25 | N79: -30 | O79: 25 | P79: 32 | Q79: 36 | R79: 40 | S79: 40 | T79: 65 | U79: -58.6 | V79: DEB | W79: -10 | X79: =IF(I79="","",IF(A79="H",IF(OR(H79="SEN",H79<1995),VLOOKUP(I79,Feuil1!$A$11:$G$29,6),IF(AND(H79>1994,H79<1998),VLOOKUP(I79,Feuil1!$A$11:$G$29,5),IF(AND(H79>1997,H79<2000),VLOOKUP(I79,Feuil1!$A$11:$G$29,4),IF(AND(H79>1999,H79<2002),VLOOKUP(I79,Feuil1!$A$11:$G$29,3),VLOOKUP(I79,Feuil1!$A$11:$G$29,2))))),IF(OR(H79="SEN",H79<1995),VLOOKUP(I79,Feuil1!$G$11:$L$25,6),IF(AND(H79>1994,H79<1998),VLOOKUP(I79,Feuil1!$G$11:$L$25,5),IF(AND(H79>1997,H79<2000),VLOOKUP(I79,Feuil1!$G$11:$L$25,4),IF(AND(H79>1999,H79<2002),VLOOKUP(I79,Feuil1!$G$11:$L$25,3),VLOOKUP(I79,Feuil1!$G$11:$L$25,2))))))) -> C1 62 | Y79: 94.2231416 | AB79: =T79-HLOOKUP(X79,Feuil1!$C$1:$BL$10,2,FALSE) -> -10 | AC79: =T79-HLOOKUP(X79,Feuil1!$C$1:$BL$10,3,FALSE) -> -30 | AD79: =T79-HLOOKUP(X79,Feuil1!$C$1:$BL$10,4,FALSE) -> -40 | AE79: =T79-HLOOKUP(X79,Feuil1!$C$1:$BL$10,5,FALSE) -> -55 | AF79: =T79-HLOOKUP(X79,Feuil1!$C$1:$BL$10,6,FALSE) -> -70 | AG79: =T79-HLOOKUP(X79,Feuil1!$C$1:$BL$10,7,FALSE) -> -85 | AH79: =T79-HLOOKUP(X79,Feuil1!$C$1:$BL$10,8,FALSE) -> -105 | AI79: =T79-HLOOKUP(X79,Feuil1!$C$1:$BL$10,9,FALSE) -> -125 | AJ79: =T79-HLOOKUP(X79,Feuil1!$C$1:$BL$10,10,FALSE) -> -935 | AQ79: DEB
A80: H | B80: NE | C80: BOU | D80: 14 | E80: 383618 | F80: SCNEIDER | G80: Quentin | H80: 2001 | I80: 58.35 | J80: Varennes Vauzelles | K80: F | L80: 23 | M80: 26 | N80: 28 | O80: 28 | P80: 30 | Q80: 33 | R80: 35 | S80: 35 | T80: 63 | U80: -53.7 | V80: DEB | W80: -12 | X80: =IF(I80="","",IF(A80="H",IF(OR(H80="SEN",H80<1995),VLOOKUP(I80,Feuil1!$A$11:$G$29,6),IF(AND(H80>1994,H80<1998),VLOOKUP(I80,Feuil1!$A$11:$G$29,5),IF(AND(H80>1997,H80<2000),VLOOKUP(I80,Feuil1!$A$11:$G$29,4),IF(AND(H80>1999,H80<2002),VLOOKUP(I80,Feuil1!$A$11:$G$29,3),VLOOKUP(I80,Feuil1!$A$11:$G$29,2))))),IF(OR(H80="SEN",H80<1995),VLOOKUP(I80,Feuil1!$G$11:$L$25,6),IF(AND(H80>1994,H80<1998),VLOOKUP(I80,Feuil1!$G$11:$L$25,5),IF(AND(H80>1997,H80<2000),VLOOKUP(I80,Feuil1!$G$11:$L$25,4),IF(AND(H80>1999,H80<2002),VLOOKUP(I80,Feuil1!$G$11:$L$25,3),VLOOKUP(I80,Feuil1!$G$11:$L$25,2))))))) -> C1 62 | Y80: 95.26562058 | AB80: =T80-HLOOKUP(X80,Feuil1!$C$1:$BL$10,2,FALSE) -> -12 | AC80: =T80-HLOOKUP(X80,Feuil1!$C$1:$BL$10,3,FALSE) -> -32 | AD80: =T80-HLOOKUP(X80,Feuil1!$C$1:$BL$10,4,FALSE) -> -42 | AE80: =T80-HLOOKUP(X80,Feuil1!$C$1:$BL$10,5,FALSE) -> -57 | AF80: =T80-HLOOKUP(X80,Feuil1!$C$1:$BL$10,6,FALSE) -> -72 | AG80: =T80-HLOOKUP(X80,Feuil1!$C$1:$BL$10,7,FALSE) -> -87 | AH80: =T80-HLOOKUP(X80,Feuil1!$C$1:$BL$10,8,FALSE) -> -107 | AI80: =T80-HLOOKUP(X80,Feuil1!$C$1:$BL$10,9,FALSE) -> -127 | AJ80: =T80-HLOOKUP(X80,Feuil1!$C$1:$BL$10,10,FALSE) -> -937 | AQ80: DEB
A81: H | B81: CO | C81: BNO | D81: 15 | E81: 362011 | F81: ACHOURI | G81: Teddy | H81: 2001 | I81: 59.6 | J81: Blainville | K81: F | L81: 20 | M81: 25 | N81: -29 | O81: 25 | P81: 30 | Q81: 35 | R81: 38 | S81: 38 | T81: 63 | U81: -56.2 | V81: DEB | W81: -12 | X81: =IF(I81="","",IF(A81="H",IF(OR(H81="SEN",H81<1995),VLOOKUP(I81,Feuil1!$A$11:$G$29,6),IF(AND(H81>1994,H81<1998),VLOOKUP(I81,Feuil1!$A$11:$G$29,5),IF(AND(H81>1997,H81<2000),VLOOKUP(I81,Feuil1!$A$11:$G$29,4),IF(AND(H81>1999,H81<2002),VLOOKUP(I81,Feuil1!$A$11:$G$29,3),VLOOKUP(I81,Feuil1!$A$11:$G$29,2))))),IF(OR(H81="SEN",H81<1995),VLOOKUP(I81,Feuil1!$G$11:$L$25,6),IF(AND(H81>1994,H81<1998),VLOOKUP(I81,Feuil1!$G$11:$L$25,5),IF(AND(H81>1997,H81<2000),VLOOKUP(I81,Feuil1!$G$11:$L$25,4),IF(AND(H81>1999,H81<2002),VLOOKUP(I81,Feuil1!$G$11:$L$25,3),VLOOKUP(I81,Feuil1!$G$11:$L$25,2))))))) -> C1 62 | Y81: 93.76691118 | AB81: =T81-HLOOKUP(X81,Feuil1!$C$1:$BL$10,2,FALSE) -> -12 | AC81: =T81-HLOOKUP(X81,Feuil1!$C$1:$BL$10,3,FALSE) -> -32 | AD81: =T81-HLOOKUP(X81,Feuil1!$C$1:$BL$10,4,FALSE) -> -42 | AE81: =T81-HLOOKUP(X81,Feuil1!$C$1:$BL$10,5,FALSE) -> -57 | AF81: =T81-HLOOKUP(X81,Feuil1!$C$1:$BL$10,6,FALSE) -> -72 | AG81: =T81-HLOOKUP(X81,Feuil1!$C$1:$BL$10,7,FALSE) -> -87 | AH81: =T81-HLOOKUP(X81,Feuil1!$C$1:$BL$10,8,FALSE) -> -107 | AI81: =T81-HLOOKUP(X81,Feuil1!$C$1:$BL$10,9,FALSE) -> -127 | AJ81: =T81-HLOOKUP(X81,Feuil1!$C$1:$BL$10,10,FALSE) -> -937 | AQ81: DEB
A82: H | B82: CO | C82: CEN | D82: 16 | E82: 385777 | F82: TILKI | G82: Ali | H82: 2000 | I82: 60.5 | J82: CMO ORLEANS | K82: F | L82: -27 | M82: 27 | N82: -28 | O82: 27 | P82: 35 | Q82: -40 | R82: -40 | S82: 35 | T82: 62 | U82: -59 | V82: DEB | W82: -13 | X82: =IF(I82="","",IF(A82="H",IF(OR(H82="SEN",H82<1995),VLOOKUP(I82,Feuil1!$A$11:$G$29,6),IF(AND(H82>1994,H82<1998),VLOOKUP(I82,Feuil1!$A$11:$G$29,5),IF(AND(H82>1997,H82<2000),VLOOKUP(I82,Feuil1!$A$11:$G$29,4),IF(AND(H82>1999,H82<2002),VLOOKUP(I82,Feuil1!$A$11:$G$29,3),VLOOKUP(I82,Feuil1!$A$11:$G$29,2))))),IF(OR(H82="SEN",H82<1995),VLOOKUP(I82,Feuil1!$G$11:$L$25,6),IF(AND(H82>1994,H82<1998),VLOOKUP(I82,Feuil1!$G$11:$L$25,5),IF(AND(H82>1997,H82<2000),VLOOKUP(I82,Feuil1!$G$11:$L$25,4),IF(AND(H82>1999,H82<2002),VLOOKUP(I82,Feuil1!$G$11:$L$25,3),VLOOKUP(I82,Feuil1!$G$11:$L$25,2))))))) -> C1 62 | Y82: 91.26673446 | AB82: =T82-HLOOKUP(X82,Feuil1!$C$1:$BL$10,2,FALSE) -> -13 | AC82: =T82-HLOOKUP(X82,Feuil1!$C$1:$BL$10,3,FALSE) -> -33 | AD82: =T82-HLOOKUP(X82,Feuil1!$C$1:$BL$10,4,FALSE) -> -43 | AE82: =T82-HLOOKUP(X82,Feuil1!$C$1:$BL$10,5,FALSE) -> -58 | AF82: =T82-HLOOKUP(X82,Feuil1!$C$1:$BL$10,6,FALSE) -> -73 | AG82: =T82-HLOOKUP(X82,Feuil1!$C$1:$BL$10,7,FALSE) -> -88 | AH82: =T82-HLOOKUP(X82,Feuil1!$C$1:$BL$10,8,FALSE) -> -108 | AI82: =T82-HLOOKUP(X82,Feuil1!$C$1:$BL$10,9,FALSE) -> -128 | AJ82: =T82-HLOOKUP(X82,Feuil1!$C$1:$BL$10,10,FALSE) -> -938 | AQ82: DEB
A83: H | B83: CO | C83: BRE | D83: 17 | E83: 377668 | F83: SAM | G83: Rithy | H83: 2001 | I83: 56.6 | J83: Essa Fitness | K83: F | L83: 20 | M83: 23 | N83: 25 | O83: 25 | P83: -26 | Q83: 26 | R83: 30 | S83: 30 | T83: 55 | U83: -58.2 | V83: DEB | W83: -20 | X83: =IF(I83="","",IF(A83="H",IF(OR(H83="SEN",H83<1995),VLOOKUP(I83,Feuil1!$A$11:$G$29,6),IF(AND(H83>1994,H83<1998),VLOOKUP(I83,Feuil1!$A$11:$G$29,5),IF(AND(H83>1997,H83<2000),VLOOKUP(I83,Feuil1!$A$11:$G$29,4),IF(AND(H83>1999,H83<2002),VLOOKUP(I83,Feuil1!$A$11:$G$29,3),VLOOKUP(I83,Feuil1!$A$11:$G$29,2))))),IF(OR(H83="SEN",H83<1995),VLOOKUP(I83,Feuil1!$G$11:$L$25,6),IF(AND(H83>1994,H83<1998),VLOOKUP(I83,Feuil1!$G$11:$L$25,5),IF(AND(H83>1997,H83<2000),VLOOKUP(I83,Feuil1!$G$11:$L$25,4),IF(AND(H83>1999,H83<2002),VLOOKUP(I83,Feuil1!$G$11:$L$25,3),VLOOKUP(I83,Feuil1!$G$11:$L$25,2))))))) -> C1 62 | Y83: 85.13089628 | AB83: =T83-HLOOKUP(X83,Feuil1!$C$1:$BL$10,2,FALSE) -> -20 | AC83: =T83-HLOOKUP(X83,Feuil1!$C$1:$BL$10,3,FALSE) -> -40 | AD83: =T83-HLOOKUP(X83,Feuil1!$C$1:$BL$10,4,FALSE) -> -50 | AE83: =T83-HLOOKUP(X83,Feuil1!$C$1:$BL$10,5,FALSE) -> -65 | AF83: =T83-HLOOKUP(X83,Feuil1!$C$1:$BL$10,6,FALSE) -> -80 | AG83: =T83-HLOOKUP(X83,Feuil1!$C$1:$BL$10,7,FALSE) -> -95 | AH83: =T83-HLOOKUP(X83,Feuil1!$C$1:$BL$10,8,FALSE) -> -115 | AI83: =T83-HLOOKUP(X83,Feuil1!$C$1:$BL$10,9,FALSE) -> -135 | AJ83: =T83-HLOOKUP(X83,Feuil1!$C$1:$BL$10,10,FALSE) -> -945 | AQ83: DEB
A84: H | B84: SEST | C84: RAL | D84: 18 | E84: 388825 | F84: VAVRE | G84: Corentin | H84: 2001 | I84: 56.85 | J84: VAULX EN VELIN | K84: F | L84: 14 | M84: 18 | N84: 20 | O84: 20 | P84: 20 | Q84: 24 | R84: -27 | S84: 24 | T84: 44 | U84: -69.7 | V84: DEB | W84: -31 | X84: =IF(I84="","",IF(A84="H",IF(OR(H84="SEN",H84<1995),VLOOKUP(I84,Feuil1!$A$11:$G$29,6),IF(AND(H84>1994,H84<1998),VLOOKUP(I84,Feuil1!$A$11:$G$29,5),IF(AND(H84>1997,H84<2000),VLOOKUP(I84,Feuil1!$A$11:$G$29,4),IF(AND(H84>1999,H84<2002),VLOOKUP(I84,Feuil1!$A$11:$G$29,3),VLOOKUP(I84,Feuil1!$A$11:$G$29,2))))),IF(OR(H84="SEN",H84<1995),VLOOKUP(I84,Feuil1!$G$11:$L$25,6),IF(AND(H84>1994,H84<1998),VLOOKUP(I84,Feuil1!$G$11:$L$25,5),IF(AND(H84>1997,H84<2000),VLOOKUP(I84,Feuil1!$G$11:$L$25,4),IF(AND(H84>1999,H84<2002),VLOOKUP(I84,Feuil1!$G$11:$L$25,3),VLOOKUP(I84,Feuil1!$G$11:$L$25,2))))))) -> C1 62 | Y84: 67.87252322 | AB84: =T84-HLOOKUP(X84,Feuil1!$C$1:$BL$10,2,FALSE) -> -31 | AC84: =T84-HLOOKUP(X84,Feuil1!$C$1:$BL$10,3,FALSE) -> -51 | AD84: =T84-HLOOKUP(X84,Feuil1!$C$1:$BL$10,4,FALSE) -> -61 | AE84: =T84-HLOOKUP(X84,Feuil1!$C$1:$BL$10,5,FALSE) -> -76 | AF84: =T84-HLOOKUP(X84,Feuil1!$C$1:$BL$10,6,FALSE) -> -91 | AG84: =T84-HLOOKUP(X84,Feuil1!$C$1:$BL$10,7,FALSE) -> -106 | AH84: =T84-HLOOKUP(X84,Feuil1!$C$1:$BL$10,8,FALSE) -> -126 | AI84: =T84-HLOOKUP(X84,Feuil1!$C$1:$BL$10,9,FALSE) -> -146 | AJ84: =T84-HLOOKUP(X84,Feuil1!$C$1:$BL$10,10,FALSE) -> -956 | AQ84: DEB
A85: H | B85: CO | C85: BNO | D85: 19 | E85: 378973 | F85: Malhere | G85: Axel | H85: 2001 | I85: 61.8 | J85: Giberville | K85: F | L85: 13 | M85: 15 | N85: 17 | O85: 17 | P85: 17 | Q85: 19 | R85: -21 | S85: 19 | T85: 36 | U85: -87.6 | V85: DEB | W85: -39 | X85: =IF(I85="","",IF(A85="H",IF(OR(H85="SEN",H85<1995),VLOOKUP(I85,Feuil1!$A$11:$G$29,6),IF(AND(H85>1994,H85<1998),VLOOKUP(I85,Feuil1!$A$11:$G$29,5),IF(AND(H85>1997,H85<2000),VLOOKUP(I85,Feuil1!$A$11:$G$29,4),IF(AND(H85>1999,H85<2002),VLOOKUP(I85,Feuil1!$A$11:$G$29,3),VLOOKUP(I85,Feuil1!$A$11:$G$29,2))))),IF(OR(H85="SEN",H85<1995),VLOOKUP(I85,Feuil1!$G$11:$L$25,6),IF(AND(H85>1994,H85<1998),VLOOKUP(I85,Feuil1!$G$11:$L$25,5),IF(AND(H85>1997,H85<2000),VLOOKUP(I85,Feuil1!$G$11:$L$25,4),IF(AND(H85>1999,H85<2002),VLOOKUP(I85,Feuil1!$G$11:$L$25,3),VLOOKUP(I85,Feuil1!$G$11:$L$25,2))))))) -> C1 62 | Y85: 52.18512458 | AB85: =T85-HLOOKUP(X85,Feuil1!$C$1:$BL$10,2,FALSE) -> -39 | AC85: =T85-HLOOKUP(X85,Feuil1!$C$1:$BL$10,3,FALSE) -> -59 | AD85: =T85-HLOOKUP(X85,Feuil1!$C$1:$BL$10,4,FALSE) -> -69 | AE85: =T85-HLOOKUP(X85,Feuil1!$C$1:$BL$10,5,FALSE) -> -84 | AF85: =T85-HLOOKUP(X85,Feuil1!$C$1:$BL$10,6,FALSE) -> -99 | AG85: =T85-HLOOKUP(X85,Feuil1!$C$1:$BL$10,7,FALSE) -> -114 | AH85: =T85-HLOOKUP(X85,Feuil1!$C$1:$BL$10,8,FALSE) -> -134 | AI85: =T85-HLOOKUP(X85,Feuil1!$C$1:$BL$10,9,FALSE) -> -154 | AJ85: =T85-HLOOKUP(X85,Feuil1!$C$1:$BL$10,10,FALSE) -> -964 | AQ85: DEB
AB86: =T86-HLOOKUP(X86,Feuil1!$C$1:$BL$10,2,FALSE) ->  | AC86: =T86-HLOOKUP(X86,Feuil1!$C$1:$BL$10,3,FALSE) ->  | AD86: =T86-HLOOKUP(X86,Feuil1!$C$1:$BL$10,4,FALSE) ->  | AE86: =T86-HLOOKUP(X86,Feuil1!$C$1:$BL$10,5,FALSE) ->  | AF86: =T86-HLOOKUP(X86,Feuil1!$C$1:$BL$10,6,FALSE) ->  | AG86: =T86-HLOOKUP(X86,Feuil1!$C$1:$BL$10,7,FALSE) ->  | AH86: =T86-HLOOKUP(X86,Feuil1!$C$1:$BL$10,8,FALSE) ->  | AI86: =T86-HLOOKUP(X86,Feuil1!$C$1:$BL$10,9,FALSE) ->  | AJ86: =T86-HLOOKUP(X86,Feuil1!$C$1:$BL$10,10,FALSE) -> 
A87: H | B87: CO | C87: BNO | D87: 1 | E87: 327978 | F87: PANNIER | G87: Quentin | H87: 2000 | I87: 62.8 | J87: Caen CHM | K87: F | L87: 45 | M87: 50 | N87: -55 | O87: =IF(H87="","",IF(MAXA(L87:N87)<=0,0,MAXA(L87:N87))) -> 50 | P87: 65 | Q87: 70 | R87: -73 | S87: =IF(H87="","",IF(MAXA(P87:R87)<=0,0,MAXA(P87:R87))) -> 70 | T87: =IF(H87="","",IF(OR(O87=0,S87=0),0,O87+S87)) -> 120 | U87: =T87-I87*2 -> -5.6 | V87: =IF(H87="","",AQ87) -> REG + | W87: =IF(AJ87>=0,AJ87,IF(AI87>=0,AI87,IF(AH87>=0,AH87,IF(AG87>=0,AG87,IF(AF87>=0,AF87,IF(AE87>=0,AE87,IF(AD87>=0,AD87,IF(AC87>=0,AC87,AB87)))))))) -> 5 | X87: =IF(I87="","",IF(A87="H",IF(OR(H87="SEN",H87<1995),VLOOKUP(I87,Feuil1!$A$11:$G$29,6),IF(AND(H87>1994,H87<1998),VLOOKUP(I87,Feuil1!$A$11:$G$29,5),IF(AND(H87>1997,H87<2000),VLOOKUP(I87,Feuil1!$A$11:$G$29,4),IF(AND(H87>1999,H87<2002),VLOOKUP(I87,Feuil1!$A$11:$G$29,3),VLOOKUP(I87,Feuil1!$A$11:$G$29,2))))),IF(OR(H87="SEN",H87<1995),VLOOKUP(I87,Feuil1!$G$11:$L$25,6),IF(AND(H87>1994,H87<1998),VLOOKUP(I87,Feuil1!$G$11:$L$25,5),IF(AND(H87>1997,H87<2000),VLOOKUP(I87,Feuil1!$G$11:$L$25,4),IF(AND(H87>1999,H87<2002),VLOOKUP(I87,Feuil1!$G$11:$L$25,3),VLOOKUP(I87,Feuil1!$G$11:$L$25,2))))))) -> C1 69 | Y87: =IF(I87="","",IF(A87="H",10^(0.794358141*LOG(I87/174.393)^2)*T87,IF(A87="F",10^(0.89726074*LOG(I87/148.026)^2)*T87,""))) -> 171.9785339 | AB87: =T87-HLOOKUP(X87,Feuil1!$C$1:$BL$10,2,FALSE) -> 35 | AC87: =T87-HLOOKUP(X87,Feuil1!$C$1:$BL$10,3,FALSE) -> 15 | AD87: =T87-HLOOKUP(X87,Feuil1!$C$1:$BL$10,4,FALSE) -> 5 | AE87: =T87-HLOOKUP(X87,Feuil1!$C$1:$BL$10,5,FALSE) -> -10 | AF87: =T87-HLOOKUP(X87,Feuil1!$C$1:$BL$10,6,FALSE) -> -30 | AG87: =T87-HLOOKUP(X87,Feuil1!$C$1:$BL$10,7,FALSE) -> -50 | AH87: =T87-HLOOKUP(X87,Feuil1!$C$1:$BL$10,8,FALSE) -> -70 | AI87: =T87-HLOOKUP(X87,Feuil1!$C$1:$BL$10,9,FALSE) -> -90 | AJ87: =T87-HLOOKUP(X87,Feuil1!$C$1:$BL$10,10,FALSE) -> -880 | AQ87: =IF(AJ87>=0,$AJ$4,IF(AI87>=0,$AI$4,IF(AH87>=0,$AH$4,IF(AG87>=0,$AG$4,IF(AF87>=0,$AF$4,IF(AE87>=0,$AE$4,IF(AD87>=0,$AD$4,IF(AC87>=0,$AC$4,$AB$4)))))))) -> REG +
A88: H | B88: N | C88: NPC | D88: 2 | E88: 351699 | F88: LAMBLIN | G88: Logan | H88: 2001 | I88: 65.6 | J88: A.O.SALLAUMINES | K88: F | L88: 42 | M88: 46 | N88: 48 | O88: 48 | P88: 62 | Q88: 65 | R88: 67 | S88: 67 | T88: 115 | U88: -16.2 | V88: REG + | W88: 0 | X88: =IF(I88="","",IF(A88="H",IF(OR(H88="SEN",H88<1995),VLOOKUP(I88,Feuil1!$A$11:$G$29,6),IF(AND(H88>1994,H88<1998),VLOOKUP(I88,Feuil1!$A$11:$G$29,5),IF(AND(H88>1997,H88<2000),VLOOKUP(I88,Feuil1!$A$11:$G$29,4),IF(AND(H88>1999,H88<2002),VLOOKUP(I88,Feuil1!$A$11:$G$29,3),VLOOKUP(I88,Feuil1!$A$11:$G$29,2))))),IF(OR(H88="SEN",H88<1995),VLOOKUP(I88,Feuil1!$G$11:$L$25,6),IF(AND(H88>1994,H88<1998),VLOOKUP(I88,Feuil1!$G$11:$L$25,5),IF(AND(H88>1997,H88<2000),VLOOKUP(I88,Feuil1!$G$11:$L$25,4),IF(AND(H88>1999,H88<2002),VLOOKUP(I88,Feuil1!$G$11:$L$25,3),VLOOKUP(I88,Feuil1!$G$11:$L$25,2))))))) -> C1 69 | Y88: 159.9284878 | AB88: =T88-HLOOKUP(X88,Feuil1!$C$1:$BL$10,2,FALSE) -> 30 | AC88: =T88-HLOOKUP(X88,Feuil1!$C$1:$BL$10,3,FALSE) -> 10 | AD88: =T88-HLOOKUP(X88,Feuil1!$C$1:$BL$10,4,FALSE) -> 0 | AE88: =T88-HLOOKUP(X88,Feuil1!$C$1:$BL$10,5,FALSE) -> -15 | AF88: =T88-HLOOKUP(X88,Feuil1!$C$1:$BL$10,6,FALSE) -> -35 | AG88: =T88-HLOOKUP(X88,Feuil1!$C$1:$BL$10,7,FALSE) -> -55 | AH88: =T88-HLOOKUP(X88,Feuil1!$C$1:$BL$10,8,FALSE) -> -75 | AI88: =T88-HLOOKUP(X88,Feuil1!$C$1:$BL$10,9,FALSE) -> -95 | AJ88: =T88-HLOOKUP(X88,Feuil1!$C$1:$BL$10,10,FALSE) -> -885 | AQ88: REG +
A89: H | B89: DOM | C89: GUY | D89: 3 | E89: 382076 | F89: GUEGUENIAT | G89: Kavan | H89: 2001 | I89: 68 | J89: ASCP/Guyane | K89: F | L89: 40 | M89: 45 | N89: 47 | O89: 47 | P89: 52 | Q89: 56 | R89: -60 | S89: 56 | T89: 103 | U89: -33 | V89: DEB | W89: 18 | X89: =IF(I89="","",IF(A89="H",IF(OR(H89="SEN",H89<1995),VLOOKUP(I89,Feuil1!$A$11:$G$29,6),IF(AND(H89>1994,H89<1998),VLOOKUP(I89,Feuil1!$A$11:$G$29,5),IF(AND(H89>1997,H89<2000),VLOOKUP(I89,Feuil1!$A$11:$G$29,4),IF(AND(H89>1999,H89<2002),VLOOKUP(I89,Feuil1!$A$11:$G$29,3),VLOOKUP(I89,Feuil1!$A$11:$G$29,2))))),IF(OR(H89="SEN",H89<1995),VLOOKUP(I89,Feuil1!$G$11:$L$25,6),IF(AND(H89>1994,H89<1998),VLOOKUP(I89,Feuil1!$G$11:$L$25,5),IF(AND(H89>1997,H89<2000),VLOOKUP(I89,Feuil1!$G$11:$L$25,4),IF(AND(H89>1999,H89<2002),VLOOKUP(I89,Feuil1!$G$11:$L$25,3),VLOOKUP(I89,Feuil1!$G$11:$L$25,2))))))) -> C1 69 | Y89: 139.8721766 | AB89: =T89-HLOOKUP(X89,Feuil1!$C$1:$BL$10,2,FALSE) -> 18 | AC89: =T89-HLOOKUP(X89,Feuil1!$C$1:$BL$10,3,FALSE) -> -2 | AD89: =T89-HLOOKUP(X89,Feuil1!$C$1:$BL$10,4,FALSE) -> -12 | AE89: =T89-HLOOKUP(X89,Feuil1!$C$1:$BL$10,5,FALSE) -> -27 | AF89: =T89-HLOOKUP(X89,Feuil1!$C$1:$BL$10,6,FALSE) -> -47 | AG89: =T89-HLOOKUP(X89,Feuil1!$C$1:$BL$10,7,FALSE) -> -67 | AH89: =T89-HLOOKUP(X89,Feuil1!$C$1:$BL$10,8,FALSE) -> -87 | AI89: =T89-HLOOKUP(X89,Feuil1!$C$1:$BL$10,9,FALSE) -> -107 | AJ89: =T89-HLOOKUP(X89,Feuil1!$C$1:$BL$10,10,FALSE) -> -897 | AQ89: DEB
A90: H | B90: NE | C90: ALS | D90: 4 | E90: 381284 | F90: MARTELLI | G90: ALESSANDRO | H90: 2000 | I90: 67.4 | J90: SR Obernai HM | K90: F | L90: 35 | M90: 40 | N90: 45 | O90: 45 | P90: 48 | Q90: 52 | R90: 56 | S90: 56 | T90: 101 | U90: -33.8 | V90: DEB | W90: 16 | X90: =IF(I90="","",IF(A90="H",IF(OR(H90="SEN",H90<1995),VLOOKUP(I90,Feuil1!$A$11:$G$29,6),IF(AND(H90>1994,H90<1998),VLOOKUP(I90,Feuil1!$A$11:$G$29,5),IF(AND(H90>1997,H90<2000),VLOOKUP(I90,Feuil1!$A$11:$G$29,4),IF(AND(H90>1999,H90<2002),VLOOKUP(I90,Feuil1!$A$11:$G$29,3),VLOOKUP(I90,Feuil1!$A$11:$G$29,2))))),IF(OR(H90="SEN",H90<1995),VLOOKUP(I90,Feuil1!$G$11:$L$25,6),IF(AND(H90>1994,H90<1998),VLOOKUP(I90,Feuil1!$G$11:$L$25,5),IF(AND(H90>1997,H90<2000),VLOOKUP(I90,Feuil1!$G$11:$L$25,4),IF(AND(H90>1999,H90<2002),VLOOKUP(I90,Feuil1!$G$11:$L$25,3),VLOOKUP(I90,Feuil1!$G$11:$L$25,2))))))) -> C1 69 | Y90: 137.9521288 | AB90: =T90-HLOOKUP(X90,Feuil1!$C$1:$BL$10,2,FALSE) -> 16 | AC90: =T90-HLOOKUP(X90,Feuil1!$C$1:$BL$10,3,FALSE) -> -4 | AD90: =T90-HLOOKUP(X90,Feuil1!$C$1:$BL$10,4,FALSE) -> -14 | AE90: =T90-HLOOKUP(X90,Feuil1!$C$1:$BL$10,5,FALSE) -> -29 | AF90: =T90-HLOOKUP(X90,Feuil1!$C$1:$BL$10,6,FALSE) -> -49 | AG90: =T90-HLOOKUP(X90,Feuil1!$C$1:$BL$10,7,FALSE) -> -69 | AH90: =T90-HLOOKUP(X90,Feuil1!$C$1:$BL$10,8,FALSE) -> -89 | AI90: =T90-HLOOKUP(X90,Feuil1!$C$1:$BL$10,9,FALSE) -> -109 | AJ90: =T90-HLOOKUP(X90,Feuil1!$C$1:$BL$10,10,FALSE) -> -899 | AQ90: DEB
A91: H | B91: NE | C91: ALS | D91: 5 | E91: 339324 | F91: CERDAN | G91: TOM | H91: 2000 | I91: 69 | J91: US Wittenheim | K91: F | L91: 37 | M91: -40 | N91: 40 | O91: 40 | P91: 52 | Q91: 56 | R91: 60 | S91: 60 | T91: 100 | U91: -38 | V91: DEB | W91: 15 | X91: =IF(I91="","",IF(A91="H",IF(OR(H91="SEN",H91<1995),VLOOKUP(I91,Feuil1!$A$11:$G$29,6),IF(AND(H91>1994,H91<1998),VLOOKUP(I91,Feuil1!$A$11:$G$29,5),IF(AND(H91>1997,H91<2000),VLOOKUP(I91,Feuil1!$A$11:$G$29,4),IF(AND(H91>1999,H91<2002),VLOOKUP(I91,Feuil1!$A$11:$G$29,3),VLOOKUP(I91,Feuil1!$A$11:$G$29,2))))),IF(OR(H91="SEN",H91<1995),VLOOKUP(I91,Feuil1!$G$11:$L$25,6),IF(AND(H91>1994,H91<1998),VLOOKUP(I91,Feuil1!$G$11:$L$25,5),IF(AND(H91>1997,H91<2000),VLOOKUP(I91,Feuil1!$G$11:$L$25,4),IF(AND(H91>1999,H91<2002),VLOOKUP(I91,Feuil1!$G$11:$L$25,3),VLOOKUP(I91,Feuil1!$G$11:$L$25,2))))))) -> C1 69 | Y91: 134.5259554 | AB91: =T91-HLOOKUP(X91,Feuil1!$C$1:$BL$10,2,FALSE) -> 15 | AC91: =T91-HLOOKUP(X91,Feuil1!$C$1:$BL$10,3,FALSE) -> -5 | AD91: =T91-HLOOKUP(X91,Feuil1!$C$1:$BL$10,4,FALSE) -> -15 | AE91: =T91-HLOOKUP(X91,Feuil1!$C$1:$BL$10,5,FALSE) -> -30 | AF91: =T91-HLOOKUP(X91,Feuil1!$C$1:$BL$10,6,FALSE) -> -50 | AG91: =T91-HLOOKUP(X91,Feuil1!$C$1:$BL$10,7,FALSE) -> -70 | AH91: =T91-HLOOKUP(X91,Feuil1!$C$1:$BL$10,8,FALSE) -> -90 | AI91: =T91-HLOOKUP(X91,Feuil1!$C$1:$BL$10,9,FALSE) -> -110 | AJ91: =T91-HLOOKUP(X91,Feuil1!$C$1:$BL$10,10,FALSE) -> -900 | AQ91: DEB
A92: H | B92: NE | C92: ALS | D92: 6 | E92: 343986 | F92: BASTOS | G92: ANTHONY | H92: 2000 | I92: 67.8 | J92: US Wittenheim | K92: F | L92: 41 | M92: 45 | N92: -48 | O92: 45 | P92: 50 | Q92: 53 | R92: -56 | S92: 53 | T92: 98 | U92: -37.6 | V92: DEB | W92: 13 | X92: =IF(I92="","",IF(A92="H",IF(OR(H92="SEN",H92<1995),VLOOKUP(I92,Feuil1!$A$11:$G$29,6),IF(AND(H92>1994,H92<1998),VLOOKUP(I92,Feuil1!$A$11:$G$29,5),IF(AND(H92>1997,H92<2000),VLOOKUP(I92,Feuil1!$A$11:$G$29,4),IF(AND(H92>1999,H92<2002),VLOOKUP(I92,Feuil1!$A$11:$G$29,3),VLOOKUP(I92,Feuil1!$A$11:$G$29,2))))),IF(OR(H92="SEN",H92<1995),VLOOKUP(I92,Feuil1!$G$11:$L$25,6),IF(AND(H92>1994,H92<1998),VLOOKUP(I92,Feuil1!$G$11:$L$25,5),IF(AND(H92>1997,H92<2000),VLOOKUP(I92,Feuil1!$G$11:$L$25,4),IF(AND(H92>1999,H92<2002),VLOOKUP(I92,Feuil1!$G$11:$L$25,3),VLOOKUP(I92,Feuil1!$G$11:$L$25,2))))))) -> C1 69 | Y92: 133.3376333 | AB92: =T92-HLOOKUP(X92,Feuil1!$C$1:$BL$10,2,FALSE) -> 13 | AC92: =T92-HLOOKUP(X92,Feuil1!$C$1:$BL$10,3,FALSE) -> -7 | AD92: =T92-HLOOKUP(X92,Feuil1!$C$1:$BL$10,4,FALSE) -> -17 | AE92: =T92-HLOOKUP(X92,Feuil1!$C$1:$BL$10,5,FALSE) -> -32 | AF92: =T92-HLOOKUP(X92,Feuil1!$C$1:$BL$10,6,FALSE) -> -52 | AG92: =T92-HLOOKUP(X92,Feuil1!$C$1:$BL$10,7,FALSE) -> -72 | AH92: =T92-HLOOKUP(X92,Feuil1!$C$1:$BL$10,8,FALSE) -> -92 | AI92: =T92-HLOOKUP(X92,Feuil1!$C$1:$BL$10,9,FALSE) -> -112 | AJ92: =T92-HLOOKUP(X92,Feuil1!$C$1:$BL$10,10,FALSE) -> -902 | AQ92: DEB
A93: H | B93: N | C93: NPC | D93: 7 | E93: 312409 | F93: PEREZ | G93: Endy | H93: 2000 | I93: 68.8 | J93: COMINES | K93: F | L93: 40 | M93: 43 | N93: -45 | O93: 43 | P93: 47 | Q93: 50 | R93: 54 | S93: 54 | T93: 97 | U93: -40.6 | V93: DEB | W93: 12 | X93: =IF(I93="","",IF(A93="H",IF(OR(H93="SEN",H93<1995),VLOOKUP(I93,Feuil1!$A$11:$G$29,6),IF(AND(H93>1994,H93<1998),VLOOKUP(I93,Feuil1!$A$11:$G$29,5),IF(AND(H93>1997,H93<2000),VLOOKUP(I93,Feuil1!$A$11:$G$29,4),IF(AND(H93>1999,H93<2002),VLOOKUP(I93,Feuil1!$A$11:$G$29,3),VLOOKUP(I93,Feuil1!$A$11:$G$29,2))))),IF(OR(H93="SEN",H93<1995),VLOOKUP(I93,Feuil1!$G$11:$L$25,6),IF(AND(H93>1994,H93<1998),VLOOKUP(I93,Feuil1!$G$11:$L$25,5),IF(AND(H93>1997,H93<2000),VLOOKUP(I93,Feuil1!$G$11:$L$25,4),IF(AND(H93>1999,H93<2002),VLOOKUP(I93,Feuil1!$G$11:$L$25,3),VLOOKUP(I93,Feuil1!$G$11:$L$25,2))))))) -> C1 69 | Y93: 130.7331052 | AB93: =T93-HLOOKUP(X93,Feuil1!$C$1:$BL$10,2,FALSE) -> 12 | AC93: =T93-HLOOKUP(X93,Feuil1!$C$1:$BL$10,3,FALSE) -> -8 | AD93: =T93-HLOOKUP(X93,Feuil1!$C$1:$BL$10,4,FALSE) -> -18 | AE93: =T93-HLOOKUP(X93,Feuil1!$C$1:$BL$10,5,FALSE) -> -33 | AF93: =T93-HLOOKUP(X93,Feuil1!$C$1:$BL$10,6,FALSE) -> -53 | AG93: =T93-HLOOKUP(X93,Feuil1!$C$1:$BL$10,7,FALSE) -> -73 | AH93: =T93-HLOOKUP(X93,Feuil1!$C$1:$BL$10,8,FALSE) -> -93 | AI93: =T93-HLOOKUP(X93,Feuil1!$C$1:$BL$10,9,FALSE) -> -113 | AJ93: =T93-HLOOKUP(X93,Feuil1!$C$1:$BL$10,10,FALSE) -> -903 | AQ93: DEB
A94: H | B94: NE | C94: ALS | D94: 8 | E94: 383298 | F94: POTENZA | G94: FLORIAN | H94: 2001 | I94: 64.7 | J94: CHM Andlau | K94: F | L94: 33 | M94: 37 | N94: -41 | O94: 37 | P94: 40 | Q94: 47 | R94: -52 | S94: 47 | T94: 84 | U94: -45.4 | V94: DEB | W94: -1 | X94: =IF(I94="","",IF(A94="H",IF(OR(H94="SEN",H94<1995),VLOOKUP(I94,Feuil1!$A$11:$G$29,6),IF(AND(H94>1994,H94<1998),VLOOKUP(I94,Feuil1!$A$11:$G$29,5),IF(AND(H94>1997,H94<2000),VLOOKUP(I94,Feuil1!$A$11:$G$29,4),IF(AND(H94>1999,H94<2002),VLOOKUP(I94,Feuil1!$A$11:$G$29,3),VLOOKUP(I94,Feuil1!$A$11:$G$29,2))))),IF(OR(H94="SEN",H94<1995),VLOOKUP(I94,Feuil1!$G$11:$L$25,6),IF(AND(H94>1994,H94<1998),VLOOKUP(I94,Feuil1!$G$11:$L$25,5),IF(AND(H94>1997,H94<2000),VLOOKUP(I94,Feuil1!$G$11:$L$25,4),IF(AND(H94>1999,H94<2002),VLOOKUP(I94,Feuil1!$G$11:$L$25,3),VLOOKUP(I94,Feuil1!$G$11:$L$25,2))))))) -> C1 69 | Y94: 117.9188474 | AB94: =T94-HLOOKUP(X94,Feuil1!$C$1:$BL$10,2,FALSE) -> -1 | AC94: =T94-HLOOKUP(X94,Feuil1!$C$1:$BL$10,3,FALSE) -> -21 | AD94: =T94-HLOOKUP(X94,Feuil1!$C$1:$BL$10,4,FALSE) -> -31 | AE94: =T94-HLOOKUP(X94,Feuil1!$C$1:$BL$10,5,FALSE) -> -46 | AF94: =T94-HLOOKUP(X94,Feuil1!$C$1:$BL$10,6,FALSE) -> -66 | AG94: =T94-HLOOKUP(X94,Feuil1!$C$1:$BL$10,7,FALSE) -> -86 | AH94: =T94-HLOOKUP(X94,Feuil1!$C$1:$BL$10,8,FALSE) -> -106 | AI94: =T94-HLOOKUP(X94,Feuil1!$C$1:$BL$10,9,FALSE) -> -126 | AJ94: =T94-HLOOKUP(X94,Feuil1!$C$1:$BL$10,10,FALSE) -> -916 | AQ94: DEB
A95: H | B95: N | C95: PIC | D95: 9 | E95: 351882 | F95: LELY | G95: Valentin | H95: 2001 | I95: 62.8 | J95: La Ferté Milon CMHM | K95: F | L95: 30 | M95: 34 | N95: -37 | O95: 34 | P95: 42 | Q95: 47 | R95: -50 | S95: 47 | T95: 81 | U95: -44.6 | V95: DEB | W95: -4 | X95: =IF(I95="","",IF(A95="H",IF(OR(H95="SEN",H95<1995),VLOOKUP(I95,Feuil1!$A$11:$G$29,6),IF(AND(H95>1994,H95<1998),VLOOKUP(I95,Feuil1!$A$11:$G$29,5),IF(AND(H95>1997,H95<2000),VLOOKUP(I95,Feuil1!$A$11:$G$29,4),IF(AND(H95>1999,H95<2002),VLOOKUP(I95,Feuil1!$A$11:$G$29,3),VLOOKUP(I95,Feuil1!$A$11:$G$29,2))))),IF(OR(H95="SEN",H95<1995),VLOOKUP(I95,Feuil1!$G$11:$L$25,6),IF(AND(H95>1994,H95<1998),VLOOKUP(I95,Feuil1!$G$11:$L$25,5),IF(AND(H95>1997,H95<2000),VLOOKUP(I95,Feuil1!$G$11:$L$25,4),IF(AND(H95>1999,H95<2002),VLOOKUP(I95,Feuil1!$G$11:$L$25,3),VLOOKUP(I95,Feuil1!$G$11:$L$25,2))))))) -> C1 69 | Y95: 116.0855104 | AB95: =T95-HLOOKUP(X95,Feuil1!$C$1:$BL$10,2,FALSE) -> -4 | AC95: =T95-HLOOKUP(X95,Feuil1!$C$1:$BL$10,3,FALSE) -> -24 | AD95: =T95-HLOOKUP(X95,Feuil1!$C$1:$BL$10,4,FALSE) -> -34 | AE95: =T95-HLOOKUP(X95,Feuil1!$C$1:$BL$10,5,FALSE) -> -49 | AF95: =T95-HLOOKUP(X95,Feuil1!$C$1:$BL$10,6,FALSE) -> -69 | AG95: =T95-HLOOKUP(X95,Feuil1!$C$1:$BL$10,7,FALSE) -> -89 | AH95: =T95-HLOOKUP(X95,Feuil1!$C$1:$BL$10,8,FALSE) -> -109 | AI95: =T95-HLOOKUP(X95,Feuil1!$C$1:$BL$10,9,FALSE) -> -129 | AJ95: =T95-HLOOKUP(X95,Feuil1!$C$1:$BL$10,10,FALSE) -> -919 | AQ95: DEB
A96: H | B96: SEST | C96: PRO | D96: 10 | E96: 315320 | F96: BARTHAS | G96: LUCA | H96: 2001 | I96: 69 | J96: EEAR MONTEUX | K96: F | L96: 30 | M96: 33 | N96: -36 | O96: 33 | P96: 42 | Q96: 47 | R96: -50 | S96: 47 | T96: 80 | U96: -58 | V96: DEB | W96: -5 | X96: =IF(I96="","",IF(A96="H",IF(OR(H96="SEN",H96<1995),VLOOKUP(I96,Feuil1!$A$11:$G$29,6),IF(AND(H96>1994,H96<1998),VLOOKUP(I96,Feuil1!$A$11:$G$29,5),IF(AND(H96>1997,H96<2000),VLOOKUP(I96,Feuil1!$A$11:$G$29,4),IF(AND(H96>1999,H96<2002),VLOOKUP(I96,Feuil1!$A$11:$G$29,3),VLOOKUP(I96,Feuil1!$A$11:$G$29,2))))),IF(OR(H96="SEN",H96<1995),VLOOKUP(I96,Feuil1!$G$11:$L$25,6),IF(AND(H96>1994,H96<1998),VLOOKUP(I96,Feuil1!$G$11:$L$25,5),IF(AND(H96>1997,H96<2000),VLOOKUP(I96,Feuil1!$G$11:$L$25,4),IF(AND(H96>1999,H96<2002),VLOOKUP(I96,Feuil1!$G$11:$L$25,3),VLOOKUP(I96,Feuil1!$G$11:$L$25,2))))))) -> C1 69 | Y96: 107.6207643 | AB96: =T96-HLOOKUP(X96,Feuil1!$C$1:$BL$10,2,FALSE) -> -5 | AC96: =T96-HLOOKUP(X96,Feuil1!$C$1:$BL$10,3,FALSE) -> -25 | AD96: =T96-HLOOKUP(X96,Feuil1!$C$1:$BL$10,4,FALSE) -> -35 | AE96: =T96-HLOOKUP(X96,Feuil1!$C$1:$BL$10,5,FALSE) -> -50 | AF96: =T96-HLOOKUP(X96,Feuil1!$C$1:$BL$10,6,FALSE) -> -70 | AG96: =T96-HLOOKUP(X96,Feuil1!$C$1:$BL$10,7,FALSE) -> -90 | AH96: =T96-HLOOKUP(X96,Feuil1!$C$1:$BL$10,8,FALSE) -> -110 | AI96: =T96-HLOOKUP(X96,Feuil1!$C$1:$BL$10,9,FALSE) -> -130 | AJ96: =T96-HLOOKUP(X96,Feuil1!$C$1:$BL$10,10,FALSE) -> -920 | AQ96: DEB
A97: H | B97: NE | C97: BOU | D97: 11 | E97: 393972 | F97: MICHOT | G97: Pierre | H97: 2000 | I97: 63.4 | J97: Varennes Vauzelles | K97: F | L97: 29 | M97: -33 | N97: 33 | O97: 33 | P97: 33 | Q97: 35 | R97: -37 | S97: 35 | T97: 68 | U97: -58.8 | V97: DEB | W97: -17 | X97: =IF(I97="","",IF(A97="H",IF(OR(H97="SEN",H97<1995),VLOOKUP(I97,Feuil1!$A$11:$G$29,6),IF(AND(H97>1994,H97<1998),VLOOKUP(I97,Feuil1!$A$11:$G$29,5),IF(AND(H97>1997,H97<2000),VLOOKUP(I97,Feuil1!$A$11:$G$29,4),IF(AND(H97>1999,H97<2002),VLOOKUP(I97,Feuil1!$A$11:$G$29,3),VLOOKUP(I97,Feuil1!$A$11:$G$29,2))))),IF(OR(H97="SEN",H97<1995),VLOOKUP(I97,Feuil1!$G$11:$L$25,6),IF(AND(H97>1994,H97<1998),VLOOKUP(I97,Feuil1!$G$11:$L$25,5),IF(AND(H97>1997,H97<2000),VLOOKUP(I97,Feuil1!$G$11:$L$25,4),IF(AND(H97>1999,H97<2002),VLOOKUP(I97,Feuil1!$G$11:$L$25,3),VLOOKUP(I97,Feuil1!$G$11:$L$25,2))))))) -> C1 69 | Y97: 96.80667242 | AB97: =T97-HLOOKUP(X97,Feuil1!$C$1:$BL$10,2,FALSE) -> -17 | AC97: =T97-HLOOKUP(X97,Feuil1!$C$1:$BL$10,3,FALSE) -> -37 | AD97: =T97-HLOOKUP(X97,Feuil1!$C$1:$BL$10,4,FALSE) -> -47 | AE97: =T97-HLOOKUP(X97,Feuil1!$C$1:$BL$10,5,FALSE) -> -62 | AF97: =T97-HLOOKUP(X97,Feuil1!$C$1:$BL$10,6,FALSE) -> -82 | AG97: =T97-HLOOKUP(X97,Feuil1!$C$1:$BL$10,7,FALSE) -> -102 | AH97: =T97-HLOOKUP(X97,Feuil1!$C$1:$BL$10,8,FALSE) -> -122 | AI97: =T97-HLOOKUP(X97,Feuil1!$C$1:$BL$10,9,FALSE) -> -142 | AJ97: =T97-HLOOKUP(X97,Feuil1!$C$1:$BL$10,10,FALSE) -> -932 | AQ97: DEB
A98: H | B98: SEST | C98: PRO | D98: 12 | E98: 361674 | F98: LE COZ | G98: KILLIAN | H98: 2001 | I98: 62.1 | J98: ISTRES SPORTS | K98: F | L98: 20 | M98: 23 | N98: 26 | O98: 26 | P98: 30 | Q98: 35 | R98: -38 | S98: 35 | T98: 61 | U98: -63.2 | V98: DEB | W98: -24 | X98: =IF(I98="","",IF(A98="H",IF(OR(H98="SEN",H98<1995),VLOOKUP(I98,Feuil1!$A$11:$G$29,6),IF(AND(H98>1994,H98<1998),VLOOKUP(I98,Feuil1!$A$11:$G$29,5),IF(AND(H98>1997,H98<2000),VLOOKUP(I98,Feuil1!$A$11:$G$29,4),IF(AND(H98>1999,H98<2002),VLOOKUP(I98,Feuil1!$A$11:$G$29,3),VLOOKUP(I98,Feuil1!$A$11:$G$29,2))))),IF(OR(H98="SEN",H98<1995),VLOOKUP(I98,Feuil1!$G$11:$L$25,6),IF(AND(H98>1994,H98<1998),VLOOKUP(I98,Feuil1!$G$11:$L$25,5),IF(AND(H98>1997,H98<2000),VLOOKUP(I98,Feuil1!$G$11:$L$25,4),IF(AND(H98>1999,H98<2002),VLOOKUP(I98,Feuil1!$G$11:$L$25,3),VLOOKUP(I98,Feuil1!$G$11:$L$25,2))))))) -> C1 69 | Y98: 88.11953467 | AB98: =T98-HLOOKUP(X98,Feuil1!$C$1:$BL$10,2,FALSE) -> -24 | AC98: =T98-HLOOKUP(X98,Feuil1!$C$1:$BL$10,3,FALSE) -> -44 | AD98: =T98-HLOOKUP(X98,Feuil1!$C$1:$BL$10,4,FALSE) -> -54 | AE98: =T98-HLOOKUP(X98,Feuil1!$C$1:$BL$10,5,FALSE) -> -69 | AF98: =T98-HLOOKUP(X98,Feuil1!$C$1:$BL$10,6,FALSE) -> -89 | AG98: =T98-HLOOKUP(X98,Feuil1!$C$1:$BL$10,7,FALSE) -> -109 | AH98: =T98-HLOOKUP(X98,Feuil1!$C$1:$BL$10,8,FALSE) -> -129 | AI98: =T98-HLOOKUP(X98,Feuil1!$C$1:$BL$10,9,FALSE) -> -149 | AJ98: =T98-HLOOKUP(X98,Feuil1!$C$1:$BL$10,10,FALSE) -> -939 | AQ98: DEB
A99: H | B99: CO | C99: PDL | D99: 13 | E99: 378500 | F99: AIT SAGGOUT | G99: Zakaria | H99: 2000 | I99: 66.9 | J99: CJF LAVAL - VOUTRÉ | K99: It | L99: 20 | M99: 22 | N99: -23 | O99: 22 | P99: 25 | Q99: 27 | R99: 30 | S99: 30 | T99: 52 | U99: -81.8 | V99: DEB | W99: -33 | X99: =IF(I99="","",IF(A99="H",IF(OR(H99="SEN",H99<1995),VLOOKUP(I99,Feuil1!$A$11:$G$29,6),IF(AND(H99>1994,H99<1998),VLOOKUP(I99,Feuil1!$A$11:$G$29,5),IF(AND(H99>1997,H99<2000),VLOOKUP(I99,Feuil1!$A$11:$G$29,4),IF(AND(H99>1999,H99<2002),VLOOKUP(I99,Feuil1!$A$11:$G$29,3),VLOOKUP(I99,Feuil1!$A$11:$G$29,2))))),IF(OR(H99="SEN",H99<1995),VLOOKUP(I99,Feuil1!$G$11:$L$25,6),IF(AND(H99>1994,H99<1998),VLOOKUP(I99,Feuil1!$G$11:$L$25,5),IF(AND(H99>1997,H99<2000),VLOOKUP(I99,Feuil1!$G$11:$L$25,4),IF(AND(H99>1999,H99<2002),VLOOKUP(I99,Feuil1!$G$11:$L$25,3),VLOOKUP(I99,Feuil1!$G$11:$L$25,2))))))) -> C1 69 | Y99: 71.37396477 | AB99: =T99-HLOOKUP(X99,Feuil1!$C$1:$BL$10,2,FALSE) -> -33 | AC99: =T99-HLOOKUP(X99,Feuil1!$C$1:$BL$10,3,FALSE) -> -53 | AD99: =T99-HLOOKUP(X99,Feuil1!$C$1:$BL$10,4,FALSE) -> -63 | AE99: =T99-HLOOKUP(X99,Feuil1!$C$1:$BL$10,5,FALSE) -> -78 | AF99: =T99-HLOOKUP(X99,Feuil1!$C$1:$BL$10,6,FALSE) -> -98 | AG99: =T99-HLOOKUP(X99,Feuil1!$C$1:$BL$10,7,FALSE) -> -118 | AH99: =T99-HLOOKUP(X99,Feuil1!$C$1:$BL$10,8,FALSE) -> -138 | AI99: =T99-HLOOKUP(X99,Feuil1!$C$1:$BL$10,9,FALSE) -> -158 | AJ99: =T99-HLOOKUP(X99,Feuil1!$C$1:$BL$10,10,FALSE) -> -948 | AQ99: DEB
A100: H | B100: CO | C100: BNO | D100: 14 | E100: 377472 | F100: Houillard | G100: Melvin | H100: 2001 | I100: 67.7 | J100: Blainville | K100: F | L100: 15 | M100: 18 | N100: 20 | O100: 20 | P100: 20 | Q100: 23 | R100: 25 | S100: 25 | T100: 45 | U100: -90.4 | V100: DEB | W100: -40 | X100: =IF(I100="","",IF(A100="H",IF(OR(H100="SEN",H100<1995),VLOOKUP(I100,Feuil1!$A$11:$G$29,6),IF(AND(H100>1994,H100<1998),VLOOKUP(I100,Feuil1!$A$11:$G$29,5),IF(AND(H100>1997,H100<2000),VLOOKUP(I100,Feuil1!$A$11:$G$29,4),IF(AND(H100>1999,H100<2002),VLOOKUP(I100,Feuil1!$A$11:$G$29,3),VLOOKUP(I100,Feuil1!$A$11:$G$29,2))))),IF(OR(H100="SEN",H100<1995),VLOOKUP(I100,Feuil1!$G$11:$L$25,6),IF(AND(H100>1994,H100<1998),VLOOKUP(I100,Feuil1!$G$11:$L$25,5),IF(AND(H100>1997,H100<2000),VLOOKUP(I100,Feuil1!$G$11:$L$25,4),IF(AND(H100>1999,H100<2002),VLOOKUP(I100,Feuil1!$G$11:$L$25,3),VLOOKUP(I100,Feuil1!$G$11:$L$25,2))))))) -> C1 69 | Y100: 61.28544706 | AB100: =T100-HLOOKUP(X100,Feuil1!$C$1:$BL$10,2,FALSE) -> -40 | AC100: =T100-HLOOKUP(X100,Feuil1!$C$1:$BL$10,3,FALSE) -> -60 | AD100: =T100-HLOOKUP(X100,Feuil1!$C$1:$BL$10,4,FALSE) -> -70 | AE100: =T100-HLOOKUP(X100,Feuil1!$C$1:$BL$10,5,FALSE) -> -85 | AF100: =T100-HLOOKUP(X100,Feuil1!$C$1:$BL$10,6,FALSE) -> -105 | AG100: =T100-HLOOKUP(X100,Feuil1!$C$1:$BL$10,7,FALSE) -> -125 | AH100: =T100-HLOOKUP(X100,Feuil1!$C$1:$BL$10,8,FALSE) -> -145 | AI100: =T100-HLOOKUP(X100,Feuil1!$C$1:$BL$10,9,FALSE) -> -165 | AJ100: =T100-HLOOKUP(X100,Feuil1!$C$1:$BL$10,10,FALSE) -> -955 | AQ100: DEB
AB101: =T101-HLOOKUP(X101,Feuil1!$C$1:$BL$10,2,FALSE) ->  | AC101: =T101-HLOOKUP(X101,Feuil1!$C$1:$BL$10,3,FALSE) ->  | AD101: =T101-HLOOKUP(X101,Feuil1!$C$1:$BL$10,4,FALSE) ->  | AE101: =T101-HLOOKUP(X101,Feuil1!$C$1:$BL$10,5,FALSE) ->  | AF101: =T101-HLOOKUP(X101,Feuil1!$C$1:$BL$10,6,FALSE) ->  | AG101: =T101-HLOOKUP(X101,Feuil1!$C$1:$BL$10,7,FALSE) ->  | AH101: =T101-HLOOKUP(X101,Feuil1!$C$1:$BL$10,8,FALSE) ->  | AI101: =T101-HLOOKUP(X101,Feuil1!$C$1:$BL$10,9,FALSE) ->  | AJ101: =T101-HLOOKUP(X101,Feuil1!$C$1:$BL$10,10,FALSE) ->  | AQ101: =IF(AJ101>=0,$AJ$4,IF(AI101>=0,$AI$4,IF(AH101>=0,$AH$4,IF(AG101>=0,$AG$4,IF(AF101>=0,$AF$4,IF(AE101>=0,$AE$4,IF(AD101>=0,$AD$4,IF(AC101>=0,$AC$4,$AB$4)))))))) -> 
A102: H | B102: NE | C102: LOR | D102: 1 | E102: 304107 | F102: BÉNÉ | G102: Dylan | H102: 2000 | I102: 70.8 | J102: A.O.C.Pte-ROSSELLE | K102: F | L102: 54 | M102: 56 | N102: -60 | O102: =IF(H102="","",IF(MAXA(L102:N102)<=0,0,MAXA(L102:N102))) -> 56 | P102: 72 | Q102: 76 | R102: 81 | S102: =IF(H102="","",IF(MAXA(P102:R102)<=0,0,MAXA(P102:R102))) -> 81 | T102: =IF(H102="","",IF(OR(O102=0,S102=0),0,O102+S102)) -> 137 | U102: =T102-I102*2 -> -4.6 | V102: =IF(H102="","",AQ102) -> REG + | W102: =IF(AJ102>=0,AJ102,IF(AI102>=0,AI102,IF(AH102>=0,AH102,IF(AG102>=0,AG102,IF(AF102>=0,AF102,IF(AE102>=0,AE102,IF(AD102>=0,AD102,IF(AC102>=0,AC102,AB102)))))))) -> 7 | X102: =IF(I102="","",IF(A102="H",IF(OR(H102="SEN",H102<1995),VLOOKUP(I102,Feuil1!$A$11:$G$29,6),IF(AND(H102>1994,H102<1998),VLOOKUP(I102,Feuil1!$A$11:$G$29,5),IF(AND(H102>1997,H102<2000),VLOOKUP(I102,Feuil1!$A$11:$G$29,4),IF(AND(H102>1999,H102<2002),VLOOKUP(I102,Feuil1!$A$11:$G$29,3),VLOOKUP(I102,Feuil1!$A$11:$G$29,2))))),IF(OR(H102="SEN",H102<1995),VLOOKUP(I102,Feuil1!$G$11:$L$25,6),IF(AND(H102>1994,H102<1998),VLOOKUP(I102,Feuil1!$G$11:$L$25,5),IF(AND(H102>1997,H102<2000),VLOOKUP(I102,Feuil1!$G$11:$L$25,4),IF(AND(H102>1999,H102<2002),VLOOKUP(I102,Feuil1!$G$11:$L$25,3),VLOOKUP(I102,Feuil1!$G$11:$L$25,2))))))) -> C1 77 | Y102: =IF(I102="","",IF(A102="H",10^(0.794358141*LOG(I102/174.393)^2)*T102,IF(A102="F",10^(0.89726074*LOG(I102/148.026)^2)*T102,""))) -> 181.3305625 | AB102: =T102-HLOOKUP(X102,Feuil1!$C$1:$BL$10,2,FALSE) -> 47 | AC102: =T102-HLOOKUP(X102,Feuil1!$C$1:$BL$10,3,FALSE) -> 27 | AD102: =T102-HLOOKUP(X102,Feuil1!$C$1:$BL$10,4,FALSE) -> 7 | AE102: =T102-HLOOKUP(X102,Feuil1!$C$1:$BL$10,5,FALSE) -> -13 | AF102: =T102-HLOOKUP(X102,Feuil1!$C$1:$BL$10,6,FALSE) -> -33 | AG102: =T102-HLOOKUP(X102,Feuil1!$C$1:$BL$10,7,FALSE) -> -48 | AH102: =T102-HLOOKUP(X102,Feuil1!$C$1:$BL$10,8,FALSE) -> -63 | AI102: =T102-HLOOKUP(X102,Feuil1!$C$1:$BL$10,9,FALSE) -> -83 | AJ102: =T102-HLOOKUP(X102,Feuil1!$C$1:$BL$10,10,FALSE) -> -863 | AQ102: =IF(AJ102>=0,$AJ$4,IF(AI102>=0,$AI$4,IF(AH102>=0,$AH$4,IF(AG102>=0,$AG$4,IF(AF102>=0,$AF$4,IF(AE102>=0,$AE$4,IF(AD102>=0,$AD$4,IF(AC102>=0,$AC$4,$AB$4)))))))) -> REG +
A103: H | B103: SE | C103: AUV | D103: 2 | E103: 332459 | F103: DAUBIGIE | G103: Kévin | H103: 2000 | I103: 72.3 | J103: CHM AURILLAC | K103: F | L103: 40 | M103: 43 | N103: 45 | O103: 45 | P103: 58 | Q103: 63 | R103: 65 | S103: 65 | T103: 110 | U103: -34.6 | V103: DEP + | W103: 0 | X103: =IF(I103="","",IF(A103="H",IF(OR(H103="SEN",H103<1995),VLOOKUP(I103,Feuil1!$A$11:$G$29,6),IF(AND(H103>1994,H103<1998),VLOOKUP(I103,Feuil1!$A$11:$G$29,5),IF(AND(H103>1997,H103<2000),VLOOKUP(I103,Feuil1!$A$11:$G$29,4),IF(AND(H103>1999,H103<2002),VLOOKUP(I103,Feuil1!$A$11:$G$29,3),VLOOKUP(I103,Feuil1!$A$11:$G$29,2))))),IF(OR(H103="SEN",H103<1995),VLOOKUP(I103,Feuil1!$G$11:$L$25,6),IF(AND(H103>1994,H103<1998),VLOOKUP(I103,Feuil1!$G$11:$L$25,5),IF(AND(H103>1997,H103<2000),VLOOKUP(I103,Feuil1!$G$11:$L$25,4),IF(AND(H103>1999,H103<2002),VLOOKUP(I103,Feuil1!$G$11:$L$25,3),VLOOKUP(I103,Feuil1!$G$11:$L$25,2))))))) -> C1 77 | Y103: 143.7294841 | AB103: =T103-HLOOKUP(X103,Feuil1!$C$1:$BL$10,2,FALSE) -> 20 | AC103: =T103-HLOOKUP(X103,Feuil1!$C$1:$BL$10,3,FALSE) -> 0 | AD103: =T103-HLOOKUP(X103,Feuil1!$C$1:$BL$10,4,FALSE) -> -20 | AE103: =T103-HLOOKUP(X103,Feuil1!$C$1:$BL$10,5,FALSE) -> -40 | AF103: =T103-HLOOKUP(X103,Feuil1!$C$1:$BL$10,6,FALSE) -> -60 | AG103: =T103-HLOOKUP(X103,Feuil1!$C$1:$BL$10,7,FALSE) -> -75 | AH103: =T103-HLOOKUP(X103,Feuil1!$C$1:$BL$10,8,FALSE) -> -90 | AI103: =T103-HLOOKUP(X103,Feuil1!$C$1:$BL$10,9,FALSE) -> -110 | AJ103: =T103-HLOOKUP(X103,Feuil1!$C$1:$BL$10,10,FALSE) -> -890 | AQ103: DEP +
A104: H | B104: SO | C104: MPY | D104: 3 | E104: 300311 | F104: SAHRAOUI | G104: Lemine | H104: 2001 | I104: 74.8 | J104: TOULOUSE HC | K104: F | L104: 47 | M104: -50 | N104: -50 | O104: 47 | P104: 57 | Q104: -61 | R104: 61 | S104: 61 | T104: 108 | U104: -41.6 | V104: DEB | W104: 18 | X104: =IF(I104="","",IF(A104="H",IF(OR(H104="SEN",H104<1995),VLOOKUP(I104,Feuil1!$A$11:$G$29,6),IF(AND(H104>1994,H104<1998),VLOOKUP(I104,Feuil1!$A$11:$G$29,5),IF(AND(H104>1997,H104<2000),VLOOKUP(I104,Feuil1!$A$11:$G$29,4),IF(AND(H104>1999,H104<2002),VLOOKUP(I104,Feuil1!$A$11:$G$29,3),VLOOKUP(I104,Feuil1!$A$11:$G$29,2))))),IF(OR(H104="SEN",H104<1995),VLOOKUP(I104,Feuil1!$G$11:$L$25,6),IF(AND(H104>1994,H104<1998),VLOOKUP(I104,Feuil1!$G$11:$L$25,5),IF(AND(H104>1997,H104<2000),VLOOKUP(I104,Feuil1!$G$11:$L$25,4),IF(AND(H104>1999,H104<2002),VLOOKUP(I104,Feuil1!$G$11:$L$25,3),VLOOKUP(I104,Feuil1!$G$11:$L$25,2))))))) -> C1 77 | Y104: 138.2869546 | AB104: =T104-HLOOKUP(X104,Feuil1!$C$1:$BL$10,2,FALSE) -> 18 | AC104: =T104-HLOOKUP(X104,Feuil1!$C$1:$BL$10,3,FALSE) -> -2 | AD104: =T104-HLOOKUP(X104,Feuil1!$C$1:$BL$10,4,FALSE) -> -22 | AE104: =T104-HLOOKUP(X104,Feuil1!$C$1:$BL$10,5,FALSE) -> -42 | AF104: =T104-HLOOKUP(X104,Feuil1!$C$1:$BL$10,6,FALSE) -> -62 | AG104: =T104-HLOOKUP(X104,Feuil1!$C$1:$BL$10,7,FALSE) -> -77 | AH104: =T104-HLOOKUP(X104,Feuil1!$C$1:$BL$10,8,FALSE) -> -92 | AI104: =T104-HLOOKUP(X104,Feuil1!$C$1:$BL$10,9,FALSE) -> -112 | AJ104: =T104-HLOOKUP(X104,Feuil1!$C$1:$BL$10,10,FALSE) -> -892 | AQ104: DEB
A105: H | B105: NE | C105: ALS | D105: 4 | E105: 377281 | F105: MAHAMAT SALEH | G105: BRAHIM | H105: 2001 | I105: 70.9 | J105: ASPTT Strasbourg | K105: TCD | L105: 37 | M105: 40 | N105: 43 | O105: 43 | P105: 51 | Q105: -54 | R105: 54 | S105: 54 | T105: 97 | U105: -44.8 | V105: DEB | W105: 7 | X105: =IF(I105="","",IF(A105="H",IF(OR(H105="SEN",H105<1995),VLOOKUP(I105,Feuil1!$A$11:$G$29,6),IF(AND(H105>1994,H105<1998),VLOOKUP(I105,Feuil1!$A$11:$G$29,5),IF(AND(H105>1997,H105<2000),VLOOKUP(I105,Feuil1!$A$11:$G$29,4),IF(AND(H105>1999,H105<2002),VLOOKUP(I105,Feuil1!$A$11:$G$29,3),VLOOKUP(I105,Feuil1!$A$11:$G$29,2))))),IF(OR(H105="SEN",H105<1995),VLOOKUP(I105,Feuil1!$G$11:$L$25,6),IF(AND(H105>1994,H105<1998),VLOOKUP(I105,Feuil1!$G$11:$L$25,5),IF(AND(H105>1997,H105<2000),VLOOKUP(I105,Feuil1!$G$11:$L$25,4),IF(AND(H105>1999,H105<2002),VLOOKUP(I105,Feuil1!$G$11:$L$25,3),VLOOKUP(I105,Feuil1!$G$11:$L$25,2))))))) -> C1 77 | Y105: 128.2747619 | AB105: =T105-HLOOKUP(X105,Feuil1!$C$1:$BL$10,2,FALSE) -> 7 | AC105: =T105-HLOOKUP(X105,Feuil1!$C$1:$BL$10,3,FALSE) -> -13 | AD105: =T105-HLOOKUP(X105,Feuil1!$C$1:$BL$10,4,FALSE) -> -33 | AE105: =T105-HLOOKUP(X105,Feuil1!$C$1:$BL$10,5,FALSE) -> -53 | AF105: =T105-HLOOKUP(X105,Feuil1!$C$1:$BL$10,6,FALSE) -> -73 | AG105: =T105-HLOOKUP(X105,Feuil1!$C$1:$BL$10,7,FALSE) -> -88 | AH105: =T105-HLOOKUP(X105,Feuil1!$C$1:$BL$10,8,FALSE) -> -103 | AI105: =T105-HLOOKUP(X105,Feuil1!$C$1:$BL$10,9,FALSE) -> -123 | AJ105: =T105-HLOOKUP(X105,Feuil1!$C$1:$BL$10,10,FALSE) -> -903 | AQ105: DEB
A106: H | B106: SEST | C106: CAZ | D106: 5 | E106: 372596 | F106: GANDINO | G106: Charly | H106: 2000 | I106: 70.39 | J106: ASPTT DRAGUIGNAN | K106: F | L106: 35 | M106: -40 | N106: -40 | O106: 35 | P106: 45 | Q106: 50 | R106: -53 | S106: 50 | T106: 85 | U106: -55.78 | V106: DEB | W106: -5 | X106: =IF(I106="","",IF(A106="H",IF(OR(H106="SEN",H106<1995),VLOOKUP(I106,Feuil1!$A$11:$G$29,6),IF(AND(H106>1994,H106<1998),VLOOKUP(I106,Feuil1!$A$11:$G$29,5),IF(AND(H106>1997,H106<2000),VLOOKUP(I106,Feuil1!$A$11:$G$29,4),IF(AND(H106>1999,H106<2002),VLOOKUP(I106,Feuil1!$A$11:$G$29,3),VLOOKUP(I106,Feuil1!$A$11:$G$29,2))))),IF(OR(H106="SEN",H106<1995),VLOOKUP(I106,Feuil1!$G$11:$L$25,6),IF(AND(H106>1994,H106<1998),VLOOKUP(I106,Feuil1!$G$11:$L$25,5),IF(AND(H106>1997,H106<2000),VLOOKUP(I106,Feuil1!$G$11:$L$25,4),IF(AND(H106>1999,H106<2002),VLOOKUP(I106,Feuil1!$G$11:$L$25,3),VLOOKUP(I106,Feuil1!$G$11:$L$25,2))))))) -> C1 77 | Y106: 112.9128127 | AB106: =T106-HLOOKUP(X106,Feuil1!$C$1:$BL$10,2,FALSE) -> -5 | AC106: =T106-HLOOKUP(X106,Feuil1!$C$1:$BL$10,3,FALSE) -> -25 | AD106: =T106-HLOOKUP(X106,Feuil1!$C$1:$BL$10,4,FALSE) -> -45 | AE106: =T106-HLOOKUP(X106,Feuil1!$C$1:$BL$10,5,FALSE) -> -65 | AF106: =T106-HLOOKUP(X106,Feuil1!$C$1:$BL$10,6,FALSE) -> -85 | AG106: =T106-HLOOKUP(X106,Feuil1!$C$1:$BL$10,7,FALSE) -> -100 | AH106: =T106-HLOOKUP(X106,Feuil1!$C$1:$BL$10,8,FALSE) -> -115 | AI106: =T106-HLOOKUP(X106,Feuil1!$C$1:$BL$10,9,FALSE) -> -135 | AJ106: =T106-HLOOKUP(X106,Feuil1!$C$1:$BL$10,10,FALSE) -> -915 | AQ106: DEB
A107: H | B107: N | C107: PIC | D107: 6 | E107: 374913 | F107: QUERTELET | G107: Dylan | H107: 2000 | I107: 76.1 | J107: La Vaillante Saint Quentin | K107: F | L107: 30 | M107: 33 | N107: 35 | O107: 35 | P107: 40 | Q107: 43 | R107: 46 | S107: 46 | T107: 81 | U107: -71.2 | V107: DEB | W107: -9 | X107: =IF(I107="","",IF(A107="H",IF(OR(H107="SEN",H107<1995),VLOOKUP(I107,Feuil1!$A$11:$G$29,6),IF(AND(H107>1994,H107<1998),VLOOKUP(I107,Feuil1!$A$11:$G$29,5),IF(AND(H107>1997,H107<2000),VLOOKUP(I107,Feuil1!$A$11:$G$29,4),IF(AND(H107>1999,H107<2002),VLOOKUP(I107,Feuil1!$A$11:$G$29,3),VLOOKUP(I107,Feuil1!$A$11:$G$29,2))))),IF(OR(H107="SEN",H107<1995),VLOOKUP(I107,Feuil1!$G$11:$L$25,6),IF(AND(H107>1994,H107<1998),VLOOKUP(I107,Feuil1!$G$11:$L$25,5),IF(AND(H107>1997,H107<2000),VLOOKUP(I107,Feuil1!$G$11:$L$25,4),IF(AND(H107>1999,H107<2002),VLOOKUP(I107,Feuil1!$G$11:$L$25,3),VLOOKUP(I107,Feuil1!$G$11:$L$25,2))))))) -> C1 77 | Y107: 102.6872288 | AB107: =T107-HLOOKUP(X107,Feuil1!$C$1:$BL$10,2,FALSE) -> -9 | AC107: =T107-HLOOKUP(X107,Feuil1!$C$1:$BL$10,3,FALSE) -> -29 | AD107: =T107-HLOOKUP(X107,Feuil1!$C$1:$BL$10,4,FALSE) -> -49 | AE107: =T107-HLOOKUP(X107,Feuil1!$C$1:$BL$10,5,FALSE) -> -69 | AF107: =T107-HLOOKUP(X107,Feuil1!$C$1:$BL$10,6,FALSE) -> -89 | AG107: =T107-HLOOKUP(X107,Feuil1!$C$1:$BL$10,7,FALSE) -> -104 | AH107: =T107-HLOOKUP(X107,Feuil1!$C$1:$BL$10,8,FALSE) -> -119 | AI107: =T107-HLOOKUP(X107,Feuil1!$C$1:$BL$10,9,FALSE) -> -139 | AJ107: =T107-HLOOKUP(X107,Feuil1!$C$1:$BL$10,10,FALSE) -> -919 | AQ107: DEB
A108: H | B108: CO | C108: CEN | D108: 7 | E108: 388375 | F108: OLIVEIRA | G108: Vincent | H108: 2000 | I108: 70 | J108: CHM AVRAIS | K108: F | L108: 25 | M108: 30 | N108: 32 | O108: 32 | P108: 30 | Q108: 33 | R108: 37 | S108: 37 | T108: 69 | U108: -71 | V108: DEB | W108: -21 | X108: =IF(I108="","",IF(A108="H",IF(OR(H108="SEN",H108<1995),VLOOKUP(I108,Feuil1!$A$11:$G$29,6),IF(AND(H108>1994,H108<1998),VLOOKUP(I108,Feuil1!$A$11:$G$29,5),IF(AND(H108>1997,H108<2000),VLOOKUP(I108,Feuil1!$A$11:$G$29,4),IF(AND(H108>1999,H108<2002),VLOOKUP(I108,Feuil1!$A$11:$G$29,3),VLOOKUP(I108,Feuil1!$A$11:$G$29,2))))),IF(OR(H108="SEN",H108<1995),VLOOKUP(I108,Feuil1!$G$11:$L$25,6),IF(AND(H108>1994,H108<1998),VLOOKUP(I108,Feuil1!$G$11:$L$25,5),IF(AND(H108>1997,H108<2000),VLOOKUP(I108,Feuil1!$G$11:$L$25,4),IF(AND(H108>1999,H108<2002),VLOOKUP(I108,Feuil1!$G$11:$L$25,3),VLOOKUP(I108,Feuil1!$G$11:$L$25,2))))))) -> C1 77 | Y108: 91.97895386 | AB108: =T108-HLOOKUP(X108,Feuil1!$C$1:$BL$10,2,FALSE) -> -21 | AC108: =T108-HLOOKUP(X108,Feuil1!$C$1:$BL$10,3,FALSE) -> -41 | AD108: =T108-HLOOKUP(X108,Feuil1!$C$1:$BL$10,4,FALSE) -> -61 | AE108: =T108-HLOOKUP(X108,Feuil1!$C$1:$BL$10,5,FALSE) -> -81 | AF108: =T108-HLOOKUP(X108,Feuil1!$C$1:$BL$10,6,FALSE) -> -101 | AG108: =T108-HLOOKUP(X108,Feuil1!$C$1:$BL$10,7,FALSE) -> -116 | AH108: =T108-HLOOKUP(X108,Feuil1!$C$1:$BL$10,8,FALSE) -> -131 | AI108: =T108-HLOOKUP(X108,Feuil1!$C$1:$BL$10,9,FALSE) -> -151 | AJ108: =T108-HLOOKUP(X108,Feuil1!$C$1:$BL$10,10,FALSE) -> -931 | AQ108: DEB
A109: H | B109: DOM | C109: GUA | D109: 8 | E109: 387921 | F109: MARCHEL | G109: Méalov Noah | H109: 2001 | I109: 75 | J109: AHCS/Pointe à Pitre | K109: F | L109: 25 | M109: 30 | N109: -33 | O109: 30 | P109: 30 | Q109: 35 | R109: -38 | S109: 35 | T109: 65 | U109: -85 | V109: DEB | W109: -25 | X109: =IF(I109="","",IF(A109="H",IF(OR(H109="SEN",H109<1995),VLOOKUP(I109,Feuil1!$A$11:$G$29,6),IF(AND(H109>1994,H109<1998),VLOOKUP(I109,Feuil1!$A$11:$G$29,5),IF(AND(H109>1997,H109<2000),VLOOKUP(I109,Feuil1!$A$11:$G$29,4),IF(AND(H109>1999,H109<2002),VLOOKUP(I109,Feuil1!$A$11:$G$29,3),VLOOKUP(I109,Feuil1!$A$11:$G$29,2))))),IF(OR(H109="SEN",H109<1995),VLOOKUP(I109,Feuil1!$G$11:$L$25,6),IF(AND(H109>1994,H109<1998),VLOOKUP(I109,Feuil1!$G$11:$L$25,5),IF(AND(H109>1997,H109<2000),VLOOKUP(I109,Feuil1!$G$11:$L$25,4),IF(AND(H109>1999,H109<2002),VLOOKUP(I109,Feuil1!$G$11:$L$25,3),VLOOKUP(I109,Feuil1!$G$11:$L$25,2))))))) -> C1 77 | Y109: 83.09876565 | AB109: =T109-HLOOKUP(X109,Feuil1!$C$1:$BL$10,2,FALSE) -> -25 | AC109: =T109-HLOOKUP(X109,Feuil1!$C$1:$BL$10,3,FALSE) -> -45 | AD109: =T109-HLOOKUP(X109,Feuil1!$C$1:$BL$10,4,FALSE) -> -65 | AE109: =T109-HLOOKUP(X109,Feuil1!$C$1:$BL$10,5,FALSE) -> -85 | AF109: =T109-HLOOKUP(X109,Feuil1!$C$1:$BL$10,6,FALSE) -> -105 | AG109: =T109-HLOOKUP(X109,Feuil1!$C$1:$BL$10,7,FALSE) -> -120 | AH109: =T109-HLOOKUP(X109,Feuil1!$C$1:$BL$10,8,FALSE) -> -135 | AI109: =T109-HLOOKUP(X109,Feuil1!$C$1:$BL$10,9,FALSE) -> -155 | AJ109: =T109-HLOOKUP(X109,Feuil1!$C$1:$BL$10,10,FALSE) -> -935 | AQ109: DEB
A110: H | B110: NE | C110: LOR | D110: 9 | E110: 366667 | F110: LAMBINÉ | G110: Tristan | H110: 2001 | I110: 76.2 | J110: A.O.C.Pte-ROSSELLE | K110: F | L110: 25 | M110: 28 | N110: -30 | O110: 28 | P110: 29 | Q110: 31 | R110: 33 | S110: 33 | T110: 61 | U110: -91.4 | V110: DEB | W110: -29 | X110: =IF(I110="","",IF(A110="H",IF(OR(H110="SEN",H110<1995),VLOOKUP(I110,Feuil1!$A$11:$G$29,6),IF(AND(H110>1994,H110<1998),VLOOKUP(I110,Feuil1!$A$11:$G$29,5),IF(AND(H110>1997,H110<2000),VLOOKUP(I110,Feuil1!$A$11:$G$29,4),IF(AND(H110>1999,H110<2002),VLOOKUP(I110,Feuil1!$A$11:$G$29,3),VLOOKUP(I110,Feuil1!$A$11:$G$29,2))))),IF(OR(H110="SEN",H110<1995),VLOOKUP(I110,Feuil1!$G$11:$L$25,6),IF(AND(H110>1994,H110<1998),VLOOKUP(I110,Feuil1!$G$11:$L$25,5),IF(AND(H110>1997,H110<2000),VLOOKUP(I110,Feuil1!$G$11:$L$25,4),IF(AND(H110>1999,H110<2002),VLOOKUP(I110,Feuil1!$G$11:$L$25,3),VLOOKUP(I110,Feuil1!$G$11:$L$25,2))))))) -> C1 77 | Y110: 77.27432015 | AB110: =T110-HLOOKUP(X110,Feuil1!$C$1:$BL$10,2,FALSE) -> -29 | AC110: =T110-HLOOKUP(X110,Feuil1!$C$1:$BL$10,3,FALSE) -> -49 | AD110: =T110-HLOOKUP(X110,Feuil1!$C$1:$BL$10,4,FALSE) -> -69 | AE110: =T110-HLOOKUP(X110,Feuil1!$C$1:$BL$10,5,FALSE) -> -89 | AF110: =T110-HLOOKUP(X110,Feuil1!$C$1:$BL$10,6,FALSE) -> -109 | AG110: =T110-HLOOKUP(X110,Feuil1!$C$1:$BL$10,7,FALSE) -> -124 | AH110: =T110-HLOOKUP(X110,Feuil1!$C$1:$BL$10,8,FALSE) -> -139 | AI110: =T110-HLOOKUP(X110,Feuil1!$C$1:$BL$10,9,FALSE) -> -159 | AJ110: =T110-HLOOKUP(X110,Feuil1!$C$1:$BL$10,10,FALSE) -> -939 | AQ110: DEB
A111: H | B111: NE | C111: ALS | D111: 10 | E111: 380460 | F111: EDDIB | G111: ABDESLAM | H111: 2001 | I111: 75.8 | J111: SA Koenigshoffen | K111: ESP | L111: 20 | M111: 23 | N111: -25 | O111: 23 | P111: 25 | Q111: 28 | R111: 30 | S111: 30 | T111: 53 | U111: -98.6 | V111: DEB | W111: -37 | X111: =IF(I111="","",IF(A111="H",IF(OR(H111="SEN",H111<1995),VLOOKUP(I111,Feuil1!$A$11:$G$29,6),IF(AND(H111>1994,H111<1998),VLOOKUP(I111,Feuil1!$A$11:$G$29,5),IF(AND(H111>1997,H111<2000),VLOOKUP(I111,Feuil1!$A$11:$G$29,4),IF(AND(H111>1999,H111<2002),VLOOKUP(I111,Feuil1!$A$11:$G$29,3),VLOOKUP(I111,Feuil1!$A$11:$G$29,2))))),IF(OR(H111="SEN",H111<1995),VLOOKUP(I111,Feuil1!$G$11:$L$25,6),IF(AND(H111>1994,H111<1998),VLOOKUP(I111,Feuil1!$G$11:$L$25,5),IF(AND(H111>1997,H111<2000),VLOOKUP(I111,Feuil1!$G$11:$L$25,4),IF(AND(H111>1999,H111<2002),VLOOKUP(I111,Feuil1!$G$11:$L$25,3),VLOOKUP(I111,Feuil1!$G$11:$L$25,2))))))) -> C1 77 | Y111: 67.34279649 | AB111: =T111-HLOOKUP(X111,Feuil1!$C$1:$BL$10,2,FALSE) -> -37 | AC111: =T111-HLOOKUP(X111,Feuil1!$C$1:$BL$10,3,FALSE) -> -57 | AD111: =T111-HLOOKUP(X111,Feuil1!$C$1:$BL$10,4,FALSE) -> -77 | AE111: =T111-HLOOKUP(X111,Feuil1!$C$1:$BL$10,5,FALSE) -> -97 | AF111: =T111-HLOOKUP(X111,Feuil1!$C$1:$BL$10,6,FALSE) -> -117 | AG111: =T111-HLOOKUP(X111,Feuil1!$C$1:$BL$10,7,FALSE) -> -132 | AH111: =T111-HLOOKUP(X111,Feuil1!$C$1:$BL$10,8,FALSE) -> -147 | AI111: =T111-HLOOKUP(X111,Feuil1!$C$1:$BL$10,9,FALSE) -> -167 | AJ111: =T111-HLOOKUP(X111,Feuil1!$C$1:$BL$10,10,FALSE) -> -947 | AQ111: DEB
AB112: =T112-HLOOKUP(X112,Feuil1!$C$1:$BL$10,2,FALSE) ->  | AC112: =T112-HLOOKUP(X112,Feuil1!$C$1:$BL$10,3,FALSE) ->  | AD112: =T112-HLOOKUP(X112,Feuil1!$C$1:$BL$10,4,FALSE) ->  | AE112: =T112-HLOOKUP(X112,Feuil1!$C$1:$BL$10,5,FALSE) ->  | AF112: =T112-HLOOKUP(X112,Feuil1!$C$1:$BL$10,6,FALSE) ->  | AG112: =T112-HLOOKUP(X112,Feuil1!$C$1:$BL$10,7,FALSE) ->  | AH112: =T112-HLOOKUP(X112,Feuil1!$C$1:$BL$10,8,FALSE) ->  | AI112: =T112-HLOOKUP(X112,Feuil1!$C$1:$BL$10,9,FALSE) ->  | AJ112: =T112-HLOOKUP(X112,Feuil1!$C$1:$BL$10,10,FALSE) -> 
A113: H | B113: CO | C113: PDL | D113: 1 | E113: 370720 | F113: IBRAHIMI | G113: Rron | H113: 2000 | I113: 81.5 | J113: CJF LAVAL - VOUTRÉ | K113: Kos | L113: -60 | M113: -60 | N113: 62 | O113: =IF(H113="","",IF(MAXA(L113:N113)<=0,0,MAXA(L113:N113))) -> 62 | P113: 70 | Q113: 77 | R113: 80 | S113: =IF(H113="","",IF(MAXA(P113:R113)<=0,0,MAXA(P113:R113))) -> 80 | T113: =IF(H113="","",IF(OR(O113=0,S113=0),0,O113+S113)) -> 142 | U113: =T113-I113*2 -> -21 | V113: =IF(H113="","",AQ113) -> REG + | W113: =IF(AJ113>=0,AJ113,IF(AI113>=0,AI113,IF(AH113>=0,AH113,IF(AG113>=0,AG113,IF(AF113>=0,AF113,IF(AE113>=0,AE113,IF(AD113>=0,AD113,IF(AC113>=0,AC113,AB113)))))))) -> 2 | X113: =IF(I113="","",IF(A113="H",IF(OR(H113="SEN",H113<1995),VLOOKUP(I113,Feuil1!$A$11:$G$29,6),IF(AND(H113>1994,H113<1998),VLOOKUP(I113,Feuil1!$A$11:$G$29,5),IF(AND(H113>1997,H113<2000),VLOOKUP(I113,Feuil1!$A$11:$G$29,4),IF(AND(H113>1999,H113<2002),VLOOKUP(I113,Feuil1!$A$11:$G$29,3),VLOOKUP(I113,Feuil1!$A$11:$G$29,2))))),IF(OR(H113="SEN",H113<1995),VLOOKUP(I113,Feuil1!$G$11:$L$25,6),IF(AND(H113>1994,H113<1998),VLOOKUP(I113,Feuil1!$G$11:$L$25,5),IF(AND(H113>1997,H113<2000),VLOOKUP(I113,Feuil1!$G$11:$L$25,4),IF(AND(H113>1999,H113<2002),VLOOKUP(I113,Feuil1!$G$11:$L$25,3),VLOOKUP(I113,Feuil1!$G$11:$L$25,2))))))) -> C1 85 | Y113: =IF(I113="","",IF(A113="H",10^(0.794358141*LOG(I113/174.393)^2)*T113,IF(A113="F",10^(0.89726074*LOG(I113/148.026)^2)*T113,""))) -> 173.3759256 | AB113: =T113-HLOOKUP(X113,Feuil1!$C$1:$BL$10,2,FALSE) -> 42 | AC113: =T113-HLOOKUP(X113,Feuil1!$C$1:$BL$10,3,FALSE) -> 22 | AD113: =T113-HLOOKUP(X113,Feuil1!$C$1:$BL$10,4,FALSE) -> 2 | AE113: =T113-HLOOKUP(X113,Feuil1!$C$1:$BL$10,5,FALSE) -> -18 | AF113: =T113-HLOOKUP(X113,Feuil1!$C$1:$BL$10,6,FALSE) -> -38 | AG113: =T113-HLOOKUP(X113,Feuil1!$C$1:$BL$10,7,FALSE) -> -58 | AH113: =T113-HLOOKUP(X113,Feuil1!$C$1:$BL$10,8,FALSE) -> -78 | AI113: =T113-HLOOKUP(X113,Feuil1!$C$1:$BL$10,9,FALSE) -> -98 | AJ113: =T113-HLOOKUP(X113,Feuil1!$C$1:$BL$10,10,FALSE) -> -9858 | AQ113: =IF(AJ113>=0,$AJ$4,IF(AI113>=0,$AI$4,IF(AH113>=0,$AH$4,IF(AG113>=0,$AG$4,IF(AF113>=0,$AF$4,IF(AE113>=0,$AE$4,IF(AD113>=0,$AD$4,IF(AC113>=0,$AC$4,$AB$4)))))))) -> REG +
A114: H | B114: NE | C114: LOR | D114: 2 | E114: 304103 | F114: FLAUS | G114: Alexis | H114: 2001 | I114: 82.7 | J114: A.O.C.Pte-ROSSELLE | K114: F | L114: -50 | M114: 52 | N114: 55 | O114: 55 | P114: -62 | Q114: 62 | R114: 66 | S114: 66 | T114: 121 | U114: -44.4 | V114: DEP + | W114: 1 | X114: =IF(I114="","",IF(A114="H",IF(OR(H114="SEN",H114<1995),VLOOKUP(I114,Feuil1!$A$11:$G$29,6),IF(AND(H114>1994,H114<1998),VLOOKUP(I114,Feuil1!$A$11:$G$29,5),IF(AND(H114>1997,H114<2000),VLOOKUP(I114,Feuil1!$A$11:$G$29,4),IF(AND(H114>1999,H114<2002),VLOOKUP(I114,Feuil1!$A$11:$G$29,3),VLOOKUP(I114,Feuil1!$A$11:$G$29,2))))),IF(OR(H114="SEN",H114<1995),VLOOKUP(I114,Feuil1!$G$11:$L$25,6),IF(AND(H114>1994,H114<1998),VLOOKUP(I114,Feuil1!$G$11:$L$25,5),IF(AND(H114>1997,H114<2000),VLOOKUP(I114,Feuil1!$G$11:$L$25,4),IF(AND(H114>1999,H114<2002),VLOOKUP(I114,Feuil1!$G$11:$L$25,3),VLOOKUP(I114,Feuil1!$G$11:$L$25,2))))))) -> C1 85 | Y114: 146.6175735 | AB114: =T114-HLOOKUP(X114,Feuil1!$C$1:$BL$10,2,FALSE) -> 21 | AC114: =T114-HLOOKUP(X114,Feuil1!$C$1:$BL$10,3,FALSE) -> 1 | AD114: =T114-HLOOKUP(X114,Feuil1!$C$1:$BL$10,4,FALSE) -> -19 | AE114: =T114-HLOOKUP(X114,Feuil1!$C$1:$BL$10,5,FALSE) -> -39 | AF114: =T114-HLOOKUP(X114,Feuil1!$C$1:$BL$10,6,FALSE) -> -59 | AG114: =T114-HLOOKUP(X114,Feuil1!$C$1:$BL$10,7,FALSE) -> -79 | AH114: =T114-HLOOKUP(X114,Feuil1!$C$1:$BL$10,8,FALSE) -> -99 | AI114: =T114-HLOOKUP(X114,Feuil1!$C$1:$BL$10,9,FALSE) -> -119 | AJ114: =T114-HLOOKUP(X114,Feuil1!$C$1:$BL$10,10,FALSE) -> -9879 | AQ114: DEP +
A115: H | B115: CO | C115: PDL | D115: 3 | E115: 353572 | F115: De OLIVEIRA | G115: Ayrton | H115: 2001 | I115: 82.85 | J115: CJF LAVAL - VOUTRÉ | K115: F | L115: 37 | M115: 40 | N115: 43 | O115: 43 | P115: 42 | Q115: 45 | R115: 47 | S115: 47 | T115: 90 | U115: -75.7 | V115: DEB | W115: -10 | X115: =IF(I115="","",IF(A115="H",IF(OR(H115="SEN",H115<1995),VLOOKUP(I115,Feuil1!$A$11:$G$29,6),IF(AND(H115>1994,H115<1998),VLOOKUP(I115,Feuil1!$A$11:$G$29,5),IF(AND(H115>1997,H115<2000),VLOOKUP(I115,Feuil1!$A$11:$G$29,4),IF(AND(H115>1999,H115<2002),VLOOKUP(I115,Feuil1!$A$11:$G$29,3),VLOOKUP(I115,Feuil1!$A$11:$G$29,2))))),IF(OR(H115="SEN",H115<1995),VLOOKUP(I115,Feuil1!$G$11:$L$25,6),IF(AND(H115>1994,H115<1998),VLOOKUP(I115,Feuil1!$G$11:$L$25,5),IF(AND(H115>1997,H115<2000),VLOOKUP(I115,Feuil1!$G$11:$L$25,4),IF(AND(H115>1999,H115<2002),VLOOKUP(I115,Feuil1!$G$11:$L$25,3),VLOOKUP(I115,Feuil1!$G$11:$L$25,2))))))) -> C1 85 | Y115: 108.9528322 | AB115: =T115-HLOOKUP(X115,Feuil1!$C$1:$BL$10,2,FALSE) -> -10 | AC115: =T115-HLOOKUP(X115,Feuil1!$C$1:$BL$10,3,FALSE) -> -30 | AD115: =T115-HLOOKUP(X115,Feuil1!$C$1:$BL$10,4,FALSE) -> -50 | AE115: =T115-HLOOKUP(X115,Feuil1!$C$1:$BL$10,5,FALSE) -> -70 | AF115: =T115-HLOOKUP(X115,Feuil1!$C$1:$BL$10,6,FALSE) -> -90 | AG115: =T115-HLOOKUP(X115,Feuil1!$C$1:$BL$10,7,FALSE) -> -110 | AH115: =T115-HLOOKUP(X115,Feuil1!$C$1:$BL$10,8,FALSE) -> -130 | AI115: =T115-HLOOKUP(X115,Feuil1!$C$1:$BL$10,9,FALSE) -> -150 | AJ115: =T115-HLOOKUP(X115,Feuil1!$C$1:$BL$10,10,FALSE) -> -9910 | AQ115: DEB
A116: H | B116: DOM | C116: GUA | D116: 4 | E116: 392887 | F116: SAMSON | G116: Terry | H116: 2001 | I116: 85 | J116: AHCS/Pointe à Pitre | K116: F | L116: 30 | M116: 35 | N116: 40 | O116: 40 | P116: 40 | Q116: 45 | R116: -50 | S116: 45 | T116: 85 | U116: -85 | V116: DEB | W116: -15 | X116: =IF(I116="","",IF(A116="H",IF(OR(H116="SEN",H116<1995),VLOOKUP(I116,Feuil1!$A$11:$G$29,6),IF(AND(H116>1994,H116<1998),VLOOKUP(I116,Feuil1!$A$11:$G$29,5),IF(AND(H116>1997,H116<2000),VLOOKUP(I116,Feuil1!$A$11:$G$29,4),IF(AND(H116>1999,H116<2002),VLOOKUP(I116,Feuil1!$A$11:$G$29,3),VLOOKUP(I116,Feuil1!$A$11:$G$29,2))))),IF(OR(H116="SEN",H116<1995),VLOOKUP(I116,Feuil1!$G$11:$L$25,6),IF(AND(H116>1994,H116<1998),VLOOKUP(I116,Feuil1!$G$11:$L$25,5),IF(AND(H116>1997,H116<2000),VLOOKUP(I116,Feuil1!$G$11:$L$25,4),IF(AND(H116>1999,H116<2002),VLOOKUP(I116,Feuil1!$G$11:$L$25,3),VLOOKUP(I116,Feuil1!$G$11:$L$25,2))))))) -> C1 85 | Y116: 101.5779678 | AB116: =T116-HLOOKUP(X116,Feuil1!$C$1:$BL$10,2,FALSE) -> -15 | AC116: =T116-HLOOKUP(X116,Feuil1!$C$1:$BL$10,3,FALSE) -> -35 | AD116: =T116-HLOOKUP(X116,Feuil1!$C$1:$BL$10,4,FALSE) -> -55 | AE116: =T116-HLOOKUP(X116,Feuil1!$C$1:$BL$10,5,FALSE) -> -75 | AF116: =T116-HLOOKUP(X116,Feuil1!$C$1:$BL$10,6,FALSE) -> -95 | AG116: =T116-HLOOKUP(X116,Feuil1!$C$1:$BL$10,7,FALSE) -> -115 | AH116: =T116-HLOOKUP(X116,Feuil1!$C$1:$BL$10,8,FALSE) -> -135 | AI116: =T116-HLOOKUP(X116,Feuil1!$C$1:$BL$10,9,FALSE) -> -155 | AJ116: =T116-HLOOKUP(X116,Feuil1!$C$1:$BL$10,10,FALSE) -> -9915 | AQ116: DEB
A117: H | B117: CO | C117: PDL | D117: 5 | E117: 378499 | F117: RENOIR | G117: Erwan | H117: 2001 | I117: 81 | J117: CJF LAVAL - VOUTRÉ | K117: F | L117: 20 | M117: 22 | N117: 25 | O117: 25 | P117: -32 | Q117: 32 | R117: 34 | S117: 34 | T117: 59 | U117: -103 | V117: DEB | W117: -41 | X117: =IF(I117="","",IF(A117="H",IF(OR(H117="SEN",H117<1995),VLOOKUP(I117,Feuil1!$A$11:$G$29,6),IF(AND(H117>1994,H117<1998),VLOOKUP(I117,Feuil1!$A$11:$G$29,5),IF(AND(H117>1997,H117<2000),VLOOKUP(I117,Feuil1!$A$11:$G$29,4),IF(AND(H117>1999,H117<2002),VLOOKUP(I117,Feuil1!$A$11:$G$29,3),VLOOKUP(I117,Feuil1!$A$11:$G$29,2))))),IF(OR(H117="SEN",H117<1995),VLOOKUP(I117,Feuil1!$G$11:$L$25,6),IF(AND(H117>1994,H117<1998),VLOOKUP(I117,Feuil1!$G$11:$L$25,5),IF(AND(H117>1997,H117<2000),VLOOKUP(I117,Feuil1!$G$11:$L$25,4),IF(AND(H117>1999,H117<2002),VLOOKUP(I117,Feuil1!$G$11:$L$25,3),VLOOKUP(I117,Feuil1!$G$11:$L$25,2))))))) -> C1 85 | Y117: 72.27047127 | AB117: =T117-HLOOKUP(X117,Feuil1!$C$1:$BL$10,2,FALSE) -> -41 | AC117: =T117-HLOOKUP(X117,Feuil1!$C$1:$BL$10,3,FALSE) -> -61 | AD117: =T117-HLOOKUP(X117,Feuil1!$C$1:$BL$10,4,FALSE) -> -81 | AE117: =T117-HLOOKUP(X117,Feuil1!$C$1:$BL$10,5,FALSE) -> -101 | AF117: =T117-HLOOKUP(X117,Feuil1!$C$1:$BL$10,6,FALSE) -> -121 | AG117: =T117-HLOOKUP(X117,Feuil1!$C$1:$BL$10,7,FALSE) -> -141 | AH117: =T117-HLOOKUP(X117,Feuil1!$C$1:$BL$10,8,FALSE) -> -161 | AI117: =T117-HLOOKUP(X117,Feuil1!$C$1:$BL$10,9,FALSE) -> -181 | AJ117: =T117-HLOOKUP(X117,Feuil1!$C$1:$BL$10,10,FALSE) -> -9941 | AQ117: DEB
A118: H | B118: N | C118: PIC | D118: 6 | E118: 390170 | F118: BARRÉ | G118: Augustin | H118: 2001 | I118: 79 | J118: La Vaillante Saint Quentin | K118: F | L118: 10 | M118: 13 | N118: 16 | O118: 16 | P118: 18 | Q118: 20 | R118: 22 | S118: 22 | T118: 38 | U118: -120 | V118: DEB | W118: -62 | X118: =IF(I118="","",IF(A118="H",IF(OR(H118="SEN",H118<1995),VLOOKUP(I118,Feuil1!$A$11:$G$29,6),IF(AND(H118>1994,H118<1998),VLOOKUP(I118,Feuil1!$A$11:$G$29,5),IF(AND(H118>1997,H118<2000),VLOOKUP(I118,Feuil1!$A$11:$G$29,4),IF(AND(H118>1999,H118<2002),VLOOKUP(I118,Feuil1!$A$11:$G$29,3),VLOOKUP(I118,Feuil1!$A$11:$G$29,2))))),IF(OR(H118="SEN",H118<1995),VLOOKUP(I118,Feuil1!$G$11:$L$25,6),IF(AND(H118>1994,H118<1998),VLOOKUP(I118,Feuil1!$G$11:$L$25,5),IF(AND(H118>1997,H118<2000),VLOOKUP(I118,Feuil1!$G$11:$L$25,4),IF(AND(H118>1999,H118<2002),VLOOKUP(I118,Feuil1!$G$11:$L$25,3),VLOOKUP(I118,Feuil1!$G$11:$L$25,2))))))) -> C1 85 | Y118: 47.17709414 | AB118: =T118-HLOOKUP(X118,Feuil1!$C$1:$BL$10,2,FALSE) -> -62 | AC118: =T118-HLOOKUP(X118,Feuil1!$C$1:$BL$10,3,FALSE) -> -82 | AD118: =T118-HLOOKUP(X118,Feuil1!$C$1:$BL$10,4,FALSE) -> -102 | AE118: =T118-HLOOKUP(X118,Feuil1!$C$1:$BL$10,5,FALSE) -> -122 | AF118: =T118-HLOOKUP(X118,Feuil1!$C$1:$BL$10,6,FALSE) -> -142 | AG118: =T118-HLOOKUP(X118,Feuil1!$C$1:$BL$10,7,FALSE) -> -162 | AH118: =T118-HLOOKUP(X118,Feuil1!$C$1:$BL$10,8,FALSE) -> -182 | AI118: =T118-HLOOKUP(X118,Feuil1!$C$1:$BL$10,9,FALSE) -> -202 | AJ118: =T118-HLOOKUP(X118,Feuil1!$C$1:$BL$10,10,FALSE) -> -9962 | AQ118: DEB
AB119: =T119-HLOOKUP(X119,Feuil1!$C$1:$BL$10,2,FALSE) ->  | AC119: =T119-HLOOKUP(X119,Feuil1!$C$1:$BL$10,3,FALSE) ->  | AD119: =T119-HLOOKUP(X119,Feuil1!$C$1:$BL$10,4,FALSE) ->  | AE119: =T119-HLOOKUP(X119,Feuil1!$C$1:$BL$10,5,FALSE) ->  | AF119: =T119-HLOOKUP(X119,Feuil1!$C$1:$BL$10,6,FALSE) ->  | AG119: =T119-HLOOKUP(X119,Feuil1!$C$1:$BL$10,7,FALSE) ->  | AH119: =T119-HLOOKUP(X119,Feuil1!$C$1:$BL$10,8,FALSE) ->  | AI119: =T119-HLOOKUP(X119,Feuil1!$C$1:$BL$10,9,FALSE) ->  | AJ119: =T119-HLOOKUP(X119,Feuil1!$C$1:$BL$10,10,FALSE) -> 
A120: H | B120: NE | C120: ALS | D120: 1 | E120: 297886 | F120: BOIGEOL | G120: AURELIEN | H120: 2000 | I120: 86.7 | J120: US Wittenheim | K120: F | L120: 56 | M120: 61 | N120: -64 | O120: =IF(H120="","",IF(MAXA(L120:N120)<=0,0,MAXA(L120:N120))) -> 61 | P120: 72 | Q120: 77 | R120: -84 | S120: =IF(H120="","",IF(MAXA(P120:R120)<=0,0,MAXA(P120:R120))) -> 77 | T120: =IF(H120="","",IF(OR(O120=0,S120=0),0,O120+S120)) -> 138 | U120: =T120-I120*2 -> -35.4 | V120: =IF(H120="","",AQ120) -> DEP + | W120: =IF(AJ120>=0,AJ120,IF(AI120>=0,AI120,IF(AH120>=0,AH120,IF(AG120>=0,AG120,IF(AF120>=0,AF120,IF(AE120>=0,AE120,IF(AD120>=0,AD120,IF(AC120>=0,AC120,AB120)))))))) -> 8 | X120: =IF(I120="","",IF(A120="H",IF(OR(H120="SEN",H120<1995),VLOOKUP(I120,Feuil1!$A$11:$G$29,6),IF(AND(H120>1994,H120<1998),VLOOKUP(I120,Feuil1!$A$11:$G$29,5),IF(AND(H120>1997,H120<2000),VLOOKUP(I120,Feuil1!$A$11:$G$29,4),IF(AND(H120>1999,H120<2002),VLOOKUP(I120,Feuil1!$A$11:$G$29,3),VLOOKUP(I120,Feuil1!$A$11:$G$29,2))))),IF(OR(H120="SEN",H120<1995),VLOOKUP(I120,Feuil1!$G$11:$L$25,6),IF(AND(H120>1994,H120<1998),VLOOKUP(I120,Feuil1!$G$11:$L$25,5),IF(AND(H120>1997,H120<2000),VLOOKUP(I120,Feuil1!$G$11:$L$25,4),IF(AND(H120>1999,H120<2002),VLOOKUP(I120,Feuil1!$G$11:$L$25,3),VLOOKUP(I120,Feuil1!$G$11:$L$25,2))))))) -> C1 94 | Y120: =IF(I120="","",IF(A120="H",10^(0.794358141*LOG(I120/174.393)^2)*T120,IF(A120="F",10^(0.89726074*LOG(I120/148.026)^2)*T120,""))) -> 163.3255015 | AB120: =T120-HLOOKUP(X120,Feuil1!$C$1:$BL$10,2,FALSE) -> 28 | AC120: =T120-HLOOKUP(X120,Feuil1!$C$1:$BL$10,3,FALSE) -> 8 | AD120: =T120-HLOOKUP(X120,Feuil1!$C$1:$BL$10,4,FALSE) -> -7 | AE120: =T120-HLOOKUP(X120,Feuil1!$C$1:$BL$10,5,FALSE) -> -27 | AF120: =T120-HLOOKUP(X120,Feuil1!$C$1:$BL$10,6,FALSE) -> -47 | AG120: =T120-HLOOKUP(X120,Feuil1!$C$1:$BL$10,7,FALSE) -> -72 | AH120: =T120-HLOOKUP(X120,Feuil1!$C$1:$BL$10,8,FALSE) -> -87 | AI120: =T120-HLOOKUP(X120,Feuil1!$C$1:$BL$10,9,FALSE) -> -112 | AJ120: =T120-HLOOKUP(X120,Feuil1!$C$1:$BL$10,10,FALSE) -> -862 | AQ120: =IF(AJ120>=0,$AJ$4,IF(AI120>=0,$AI$4,IF(AH120>=0,$AH$4,IF(AG120>=0,$AG$4,IF(AF120>=0,$AF$4,IF(AE120>=0,$AE$4,IF(AD120>=0,$AD$4,IF(AC120>=0,$AC$4,$AB$4)))))))) -> DEP +
A121: H | B121: N | C121: PIC | D121: 2 | E121: 376368 | F121: KRAUSHAAR | G121: Wilfrid | H121: 2000 | I121: 89.7 | J121: Péronne AAEEP | K121: F | L121: 53 | M121: 58 | N121: 60 | O121: 60 | P121: 70 | Q121: 75 | R121: -80 | S121: 75 | T121: 135 | U121: -44.4 | V121: DEP + | W121: 5 | X121: =IF(I121="","",IF(A121="H",IF(OR(H121="SEN",H121<1995),VLOOKUP(I121,Feuil1!$A$11:$G$29,6),IF(AND(H121>1994,H121<1998),VLOOKUP(I121,Feuil1!$A$11:$G$29,5),IF(AND(H121>1997,H121<2000),VLOOKUP(I121,Feuil1!$A$11:$G$29,4),IF(AND(H121>1999,H121<2002),VLOOKUP(I121,Feuil1!$A$11:$G$29,3),VLOOKUP(I121,Feuil1!$A$11:$G$29,2))))),IF(OR(H121="SEN",H121<1995),VLOOKUP(I121,Feuil1!$G$11:$L$25,6),IF(AND(H121>1994,H121<1998),VLOOKUP(I121,Feuil1!$G$11:$L$25,5),IF(AND(H121>1997,H121<2000),VLOOKUP(I121,Feuil1!$G$11:$L$25,4),IF(AND(H121>1999,H121<2002),VLOOKUP(I121,Feuil1!$G$11:$L$25,3),VLOOKUP(I121,Feuil1!$G$11:$L$25,2))))))) -> C1 94 | Y121: 157.2383491 | AB121: =T121-HLOOKUP(X121,Feuil1!$C$1:$BL$10,2,FALSE) -> 25 | AC121: =T121-HLOOKUP(X121,Feuil1!$C$1:$BL$10,3,FALSE) -> 5 | AD121: =T121-HLOOKUP(X121,Feuil1!$C$1:$BL$10,4,FALSE) -> -10 | AE121: =T121-HLOOKUP(X121,Feuil1!$C$1:$BL$10,5,FALSE) -> -30 | AF121: =T121-HLOOKUP(X121,Feuil1!$C$1:$BL$10,6,FALSE) -> -50 | AG121: =T121-HLOOKUP(X121,Feuil1!$C$1:$BL$10,7,FALSE) -> -75 | AH121: =T121-HLOOKUP(X121,Feuil1!$C$1:$BL$10,8,FALSE) -> -90 | AI121: =T121-HLOOKUP(X121,Feuil1!$C$1:$BL$10,9,FALSE) -> -115 | AJ121: =T121-HLOOKUP(X121,Feuil1!$C$1:$BL$10,10,FALSE) -> -865 | AQ121: DEP +
A122: H | B122: DOM | C122: REU | D122: 3 | E122: 288586 | F122: RICHARD | G122: KENNY | H122: 2000 | I122: 88.12 | J122: SCHM St Paul | K122: F | L122: 47 | M122: 52 | N122: -57 | O122: 52 | P122: 65 | Q122: 70 | R122: 75 | S122: 75 | T122: 127 | U122: -49.24 | V122: DEB | W122: 17 | X122: =IF(I122="","",IF(A122="H",IF(OR(H122="SEN",H122<1995),VLOOKUP(I122,Feuil1!$A$11:$G$29,6),IF(AND(H122>1994,H122<1998),VLOOKUP(I122,Feuil1!$A$11:$G$29,5),IF(AND(H122>1997,H122<2000),VLOOKUP(I122,Feuil1!$A$11:$G$29,4),IF(AND(H122>1999,H122<2002),VLOOKUP(I122,Feuil1!$A$11:$G$29,3),VLOOKUP(I122,Feuil1!$A$11:$G$29,2))))),IF(OR(H122="SEN",H122<1995),VLOOKUP(I122,Feuil1!$G$11:$L$25,6),IF(AND(H122>1994,H122<1998),VLOOKUP(I122,Feuil1!$G$11:$L$25,5),IF(AND(H122>1997,H122<2000),VLOOKUP(I122,Feuil1!$G$11:$L$25,4),IF(AND(H122>1999,H122<2002),VLOOKUP(I122,Feuil1!$G$11:$L$25,3),VLOOKUP(I122,Feuil1!$G$11:$L$25,2))))))) -> C1 94 | Y122: 149.147552 | AB122: =T122-HLOOKUP(X122,Feuil1!$C$1:$BL$10,2,FALSE) -> 17 | AC122: =T122-HLOOKUP(X122,Feuil1!$C$1:$BL$10,3,FALSE) -> -3 | AD122: =T122-HLOOKUP(X122,Feuil1!$C$1:$BL$10,4,FALSE) -> -18 | AE122: =T122-HLOOKUP(X122,Feuil1!$C$1:$BL$10,5,FALSE) -> -38 | AF122: =T122-HLOOKUP(X122,Feuil1!$C$1:$BL$10,6,FALSE) -> -58 | AG122: =T122-HLOOKUP(X122,Feuil1!$C$1:$BL$10,7,FALSE) -> -83 | AH122: =T122-HLOOKUP(X122,Feuil1!$C$1:$BL$10,8,FALSE) -> -98 | AI122: =T122-HLOOKUP(X122,Feuil1!$C$1:$BL$10,9,FALSE) -> -123 | AJ122: =T122-HLOOKUP(X122,Feuil1!$C$1:$BL$10,10,FALSE) -> -873 | AQ122: DEB
A123: H | B123: N | C123: PIC | D123: 4 | E123: 357297 | F123: MESSE | G123: Gabriel | H123: 2001 | I123: 87 | J123: Villers-Bretonneux KC | K123: F | L123: 50 | M123: 55 | N123: 57 | O123: 57 | P123: 60 | Q123: 65 | R123: -68 | S123: 65 | T123: 122 | U123: -52 | V123: DEB | W123: 12 | X123: =IF(I123="","",IF(A123="H",IF(OR(H123="SEN",H123<1995),VLOOKUP(I123,Feuil1!$A$11:$G$29,6),IF(AND(H123>1994,H123<1998),VLOOKUP(I123,Feuil1!$A$11:$G$29,5),IF(AND(H123>1997,H123<2000),VLOOKUP(I123,Feuil1!$A$11:$G$29,4),IF(AND(H123>1999,H123<2002),VLOOKUP(I123,Feuil1!$A$11:$G$29,3),VLOOKUP(I123,Feuil1!$A$11:$G$29,2))))),IF(OR(H123="SEN",H123<1995),VLOOKUP(I123,Feuil1!$G$11:$L$25,6),IF(AND(H123>1994,H123<1998),VLOOKUP(I123,Feuil1!$G$11:$L$25,5),IF(AND(H123>1997,H123<2000),VLOOKUP(I123,Feuil1!$G$11:$L$25,4),IF(AND(H123>1999,H123<2002),VLOOKUP(I123,Feuil1!$G$11:$L$25,3),VLOOKUP(I123,Feuil1!$G$11:$L$25,2))))))) -> C1 94 | Y123: 144.1495101 | AB123: =T123-HLOOKUP(X123,Feuil1!$C$1:$BL$10,2,FALSE) -> 12 | AC123: =T123-HLOOKUP(X123,Feuil1!$C$1:$BL$10,3,FALSE) -> -8 | AD123: =T123-HLOOKUP(X123,Feuil1!$C$1:$BL$10,4,FALSE) -> -23 | AE123: =T123-HLOOKUP(X123,Feuil1!$C$1:$BL$10,5,FALSE) -> -43 | AF123: =T123-HLOOKUP(X123,Feuil1!$C$1:$BL$10,6,FALSE) -> -63 | AG123: =T123-HLOOKUP(X123,Feuil1!$C$1:$BL$10,7,FALSE) -> -88 | AH123: =T123-HLOOKUP(X123,Feuil1!$C$1:$BL$10,8,FALSE) -> -103 | AI123: =T123-HLOOKUP(X123,Feuil1!$C$1:$BL$10,9,FALSE) -> -128 | AJ123: =T123-HLOOKUP(X123,Feuil1!$C$1:$BL$10,10,FALSE) -> -878 | AQ123: DEB
A124: H | B124: CO | C124: BRE | D124: 5 | E124: 378686 | F124: SQUIVIDAN | G124: Sam | H124: 2001 | I124: 87.9 | J124: PLOUHINEC PDR | K124: F | L124: 45 | M124: 48 | N124: 51 | O124: 51 | P124: 60 | Q124: -63 | R124: -63 | S124: 60 | T124: 111 | U124: -64.8 | V124: DEB | W124: 1 | X124: =IF(I124="","",IF(A124="H",IF(OR(H124="SEN",H124<1995),VLOOKUP(I124,Feuil1!$A$11:$G$29,6),IF(AND(H124>1994,H124<1998),VLOOKUP(I124,Feuil1!$A$11:$G$29,5),IF(AND(H124>1997,H124<2000),VLOOKUP(I124,Feuil1!$A$11:$G$29,4),IF(AND(H124>1999,H124<2002),VLOOKUP(I124,Feuil1!$A$11:$G$29,3),VLOOKUP(I124,Feuil1!$A$11:$G$29,2))))),IF(OR(H124="SEN",H124<1995),VLOOKUP(I124,Feuil1!$G$11:$L$25,6),IF(AND(H124>1994,H124<1998),VLOOKUP(I124,Feuil1!$G$11:$L$25,5),IF(AND(H124>1997,H124<2000),VLOOKUP(I124,Feuil1!$G$11:$L$25,4),IF(AND(H124>1999,H124<2002),VLOOKUP(I124,Feuil1!$G$11:$L$25,3),VLOOKUP(I124,Feuil1!$G$11:$L$25,2))))))) -> C1 94 | Y124: 130.5111535 | AB124: =T124-HLOOKUP(X124,Feuil1!$C$1:$BL$10,2,FALSE) -> 1 | AC124: =T124-HLOOKUP(X124,Feuil1!$C$1:$BL$10,3,FALSE) -> -19 | AD124: =T124-HLOOKUP(X124,Feuil1!$C$1:$BL$10,4,FALSE) -> -34 | AE124: =T124-HLOOKUP(X124,Feuil1!$C$1:$BL$10,5,FALSE) -> -54 | AF124: =T124-HLOOKUP(X124,Feuil1!$C$1:$BL$10,6,FALSE) -> -74 | AG124: =T124-HLOOKUP(X124,Feuil1!$C$1:$BL$10,7,FALSE) -> -99 | AH124: =T124-HLOOKUP(X124,Feuil1!$C$1:$BL$10,8,FALSE) -> -114 | AI124: =T124-HLOOKUP(X124,Feuil1!$C$1:$BL$10,9,FALSE) -> -139 | AJ124: =T124-HLOOKUP(X124,Feuil1!$C$1:$BL$10,10,FALSE) -> -889 | AQ124: DEB
A125: H | B125: SEST | C125: RAL | D125: 6 | E125: 326656 | F125: LLORED | G125: Yoan | H125: 2001 | I125: 89.21 | J125: ST QUENTIN FALLAVIER | K125: F | L125: 34 | M125: 37 | N125: 39 | O125: 39 | P125: 45 | Q125: 48 | R125: -51 | S125: 48 | T125: 87 | U125: -91.42 | V125: DEB | W125: -23 | X125: =IF(I125="","",IF(A125="H",IF(OR(H125="SEN",H125<1995),VLOOKUP(I125,Feuil1!$A$11:$G$29,6),IF(AND(H125>1994,H125<1998),VLOOKUP(I125,Feuil1!$A$11:$G$29,5),IF(AND(H125>1997,H125<2000),VLOOKUP(I125,Feuil1!$A$11:$G$29,4),IF(AND(H125>1999,H125<2002),VLOOKUP(I125,Feuil1!$A$11:$G$29,3),VLOOKUP(I125,Feuil1!$A$11:$G$29,2))))),IF(OR(H125="SEN",H125<1995),VLOOKUP(I125,Feuil1!$G$11:$L$25,6),IF(AND(H125>1994,H125<1998),VLOOKUP(I125,Feuil1!$G$11:$L$25,5),IF(AND(H125>1997,H125<2000),VLOOKUP(I125,Feuil1!$G$11:$L$25,4),IF(AND(H125>1999,H125<2002),VLOOKUP(I125,Feuil1!$G$11:$L$25,3),VLOOKUP(I125,Feuil1!$G$11:$L$25,2))))))) -> C1 94 | Y125: 101.5873676 | AB125: =T125-HLOOKUP(X125,Feuil1!$C$1:$BL$10,2,FALSE) -> -23 | AC125: =T125-HLOOKUP(X125,Feuil1!$C$1:$BL$10,3,FALSE) -> -43 | AD125: =T125-HLOOKUP(X125,Feuil1!$C$1:$BL$10,4,FALSE) -> -58 | AE125: =T125-HLOOKUP(X125,Feuil1!$C$1:$BL$10,5,FALSE) -> -78 | AF125: =T125-HLOOKUP(X125,Feuil1!$C$1:$BL$10,6,FALSE) -> -98 | AG125: =T125-HLOOKUP(X125,Feuil1!$C$1:$BL$10,7,FALSE) -> -123 | AH125: =T125-HLOOKUP(X125,Feuil1!$C$1:$BL$10,8,FALSE) -> -138 | AI125: =T125-HLOOKUP(X125,Feuil1!$C$1:$BL$10,9,FALSE) -> -163 | AJ125: =T125-HLOOKUP(X125,Feuil1!$C$1:$BL$10,10,FALSE) -> -913 | AQ125: DEB
AB126: =T126-HLOOKUP(X126,Feuil1!$C$1:$BL$10,2,FALSE) ->  | AC126: =T126-HLOOKUP(X126,Feuil1!$C$1:$BL$10,3,FALSE) ->  | AD126: =T126-HLOOKUP(X126,Feuil1!$C$1:$BL$10,4,FALSE) ->  | AE126: =T126-HLOOKUP(X126,Feuil1!$C$1:$BL$10,5,FALSE) ->  | AF126: =T126-HLOOKUP(X126,Feuil1!$C$1:$BL$10,6,FALSE) ->  | AG126: =T126-HLOOKUP(X126,Feuil1!$C$1:$BL$10,7,FALSE) ->  | AH126: =T126-HLOOKUP(X126,Feuil1!$C$1:$BL$10,8,FALSE) ->  | AI126: =T126-HLOOKUP(X126,Feuil1!$C$1:$BL$10,9,FALSE) ->  | AJ126: =T126-HLOOKUP(X126,Feuil1!$C$1:$BL$10,10,FALSE) ->  | AQ126: =IF(AJ126>=0,$AJ$4,IF(AI126>=0,$AI$4,IF(AH126>=0,$AH$4,IF(AG126>=0,$AG$4,IF(AF126>=0,$AF$4,IF(AE126>=0,$AE$4,IF(AD126>=0,$AD$4,IF(AC126>=0,$AC$4,$AB$4)))))))) -> 
A127: H | B127: DOM | C127: REU | D127: 1 | E127: 325488 | F127: ROUGET | G127: LOUCHIANO | H127: 2001 | I127: 100.86 | J127: LES DEUX PETITS NANOS | K127: F | L127: 70 | M127: 72 | N127: -74 | O127: =IF(H127="","",IF(MAXA(L127:N127)<=0,0,MAXA(L127:N127))) -> 72 | P127: 80 | Q127: 85 | R127: -90 | S127: =IF(H127="","",IF(MAXA(P127:R127)<=0,0,MAXA(P127:R127))) -> 85 | T127: =IF(H127="","",IF(OR(O127=0,S127=0),0,O127+S127)) -> 157 | U127: =T127-I127*2 -> -44.72 | V127: =IF(H127="","",AQ127) -> REG + | W127: =IF(AJ127>=0,AJ127,IF(AI127>=0,AI127,IF(AH127>=0,AH127,IF(AG127>=0,AG127,IF(AF127>=0,AF127,IF(AE127>=0,AE127,IF(AD127>=0,AD127,IF(AC127>=0,AC127,AB127)))))))) -> 2 | X127: =IF(I127="","",IF(A127="H",IF(OR(H127="SEN",H127<1995),VLOOKUP(I127,Feuil1!$A$11:$G$29,6),IF(AND(H127>1994,H127<1998),VLOOKUP(I127,Feuil1!$A$11:$G$29,5),IF(AND(H127>1997,H127<2000),VLOOKUP(I127,Feuil1!$A$11:$G$29,4),IF(AND(H127>1999,H127<2002),VLOOKUP(I127,Feuil1!$A$11:$G$29,3),VLOOKUP(I127,Feuil1!$A$11:$G$29,2))))),IF(OR(H127="SEN",H127<1995),VLOOKUP(I127,Feuil1!$G$11:$L$25,6),IF(AND(H127>1994,H127<1998),VLOOKUP(I127,Feuil1!$G$11:$L$25,5),IF(AND(H127>1997,H127<2000),VLOOKUP(I127,Feuil1!$G$11:$L$25,4),IF(AND(H127>1999,H127<2002),VLOOKUP(I127,Feuil1!$G$11:$L$25,3),VLOOKUP(I127,Feuil1!$G$11:$L$25,2))))))) -> C1 +94 | Y127: =IF(I127="","",IF(A127="H",10^(0.794358141*LOG(I127/174.393)^2)*T127,IF(A127="F",10^(0.89726074*LOG(I127/148.026)^2)*T127,""))) -> 174.1099112 | AB127: =T127-HLOOKUP(X127,Feuil1!$C$1:$BL$10,2,FALSE) -> 37 | AC127: =T127-HLOOKUP(X127,Feuil1!$C$1:$BL$10,3,FALSE) -> 17 | AD127: =T127-HLOOKUP(X127,Feuil1!$C$1:$BL$10,4,FALSE) -> 2 | AE127: =T127-HLOOKUP(X127,Feuil1!$C$1:$BL$10,5,FALSE) -> -18 | AF127: =T127-HLOOKUP(X127,Feuil1!$C$1:$BL$10,6,FALSE) -> -38 | AG127: =T127-HLOOKUP(X127,Feuil1!$C$1:$BL$10,7,FALSE) -> -63 | AH127: =T127-HLOOKUP(X127,Feuil1!$C$1:$BL$10,8,FALSE) -> -78 | AI127: =T127-HLOOKUP(X127,Feuil1!$C$1:$BL$10,9,FALSE) -> -103 | AJ127: =T127-HLOOKUP(X127,Feuil1!$C$1:$BL$10,10,FALSE) -> -843 | AQ127: =IF(AJ127>=0,$AJ$4,IF(AI127>=0,$AI$4,IF(AH127>=0,$AH$4,IF(AG127>=0,$AG$4,IF(AF127>=0,$AF$4,IF(AE127>=0,$AE$4,IF(AD127>=0,$AD$4,IF(AC127>=0,$AC$4,$AB$4)))))))) -> REG +
A128: H | B128: CO | C128: PDL | D128: 2 | E128: 277176 | F128: RIBOT | G128: Baptiste | H128: 2000 | I128: 113.3 | J128: CJF LAVAL - VOUTRÉ | K128: F | L128: 55 | M128: 59 | N128: 62 | O128: 62 | P128: 75 | Q128: 80 | R128: 84 | S128: 84 | T128: 146 | U128: -80.6 | V128: DEP + | W128: 6 | X128: =IF(I128="","",IF(A128="H",IF(OR(H128="SEN",H128<1995),VLOOKUP(I128,Feuil1!$A$11:$G$29,6),IF(AND(H128>1994,H128<1998),VLOOKUP(I128,Feuil1!$A$11:$G$29,5),IF(AND(H128>1997,H128<2000),VLOOKUP(I128,Feuil1!$A$11:$G$29,4),IF(AND(H128>1999,H128<2002),VLOOKUP(I128,Feuil1!$A$11:$G$29,3),VLOOKUP(I128,Feuil1!$A$11:$G$29,2))))),IF(OR(H128="SEN",H128<1995),VLOOKUP(I128,Feuil1!$G$11:$L$25,6),IF(AND(H128>1994,H128<1998),VLOOKUP(I128,Feuil1!$G$11:$L$25,5),IF(AND(H128>1997,H128<2000),VLOOKUP(I128,Feuil1!$G$11:$L$25,4),IF(AND(H128>1999,H128<2002),VLOOKUP(I128,Feuil1!$G$11:$L$25,3),VLOOKUP(I128,Feuil1!$G$11:$L$25,2))))))) -> C1 +94 | Y128: 155.6752988 | AB128: =T128-HLOOKUP(X128,Feuil1!$C$1:$BL$10,2,FALSE) -> 26 | AC128: =T128-HLOOKUP(X128,Feuil1!$C$1:$BL$10,3,FALSE) -> 6 | AD128: =T128-HLOOKUP(X128,Feuil1!$C$1:$BL$10,4,FALSE) -> -9 | AE128: =T128-HLOOKUP(X128,Feuil1!$C$1:$BL$10,5,FALSE) -> -29 | AF128: =T128-HLOOKUP(X128,Feuil1!$C$1:$BL$10,6,FALSE) -> -49 | AG128: =T128-HLOOKUP(X128,Feuil1!$C$1:$BL$10,7,FALSE) -> -74 | AH128: =T128-HLOOKUP(X128,Feuil1!$C$1:$BL$10,8,FALSE) -> -89 | AI128: =T128-HLOOKUP(X128,Feuil1!$C$1:$BL$10,9,FALSE) -> -114 | AJ128: =T128-HLOOKUP(X128,Feuil1!$C$1:$BL$10,10,FALSE) -> -854 | AQ128: DEP +
A129: H | B129: CO | C129: BNO | D129: 3 | E129: 376347 | F129: DUCHEMIN | G129: Ismael | H129: 2001 | I129: 99.9 | J129: Caen CHM | K129: F | L129: 45 | M129: 50 | N129: 55 | O129: 55 | P129: 57 | Q129: 60 | R129: 62 | S129: 62 | T129: 117 | U129: -82.8 | V129: DEB | W129: -3 | X129: =IF(I129="","",IF(A129="H",IF(OR(H129="SEN",H129<1995),VLOOKUP(I129,Feuil1!$A$11:$G$29,6),IF(AND(H129>1994,H129<1998),VLOOKUP(I129,Feuil1!$A$11:$G$29,5),IF(AND(H129>1997,H129<2000),VLOOKUP(I129,Feuil1!$A$11:$G$29,4),IF(AND(H129>1999,H129<2002),VLOOKUP(I129,Feuil1!$A$11:$G$29,3),VLOOKUP(I129,Feuil1!$A$11:$G$29,2))))),IF(OR(H129="SEN",H129<1995),VLOOKUP(I129,Feuil1!$G$11:$L$25,6),IF(AND(H129>1994,H129<1998),VLOOKUP(I129,Feuil1!$G$11:$L$25,5),IF(AND(H129>1997,H129<2000),VLOOKUP(I129,Feuil1!$G$11:$L$25,4),IF(AND(H129>1999,H129<2002),VLOOKUP(I129,Feuil1!$G$11:$L$25,3),VLOOKUP(I129,Feuil1!$G$11:$L$25,2))))))) -> C1 +94 | Y129: 130.2244833 | AB129: =T129-HLOOKUP(X129,Feuil1!$C$1:$BL$10,2,FALSE) -> -3 | AC129: =T129-HLOOKUP(X129,Feuil1!$C$1:$BL$10,3,FALSE) -> -23 | AD129: =T129-HLOOKUP(X129,Feuil1!$C$1:$BL$10,4,FALSE) -> -38 | AE129: =T129-HLOOKUP(X129,Feuil1!$C$1:$BL$10,5,FALSE) -> -58 | AF129: =T129-HLOOKUP(X129,Feuil1!$C$1:$BL$10,6,FALSE) -> -78 | AG129: =T129-HLOOKUP(X129,Feuil1!$C$1:$BL$10,7,FALSE) -> -103 | AH129: =T129-HLOOKUP(X129,Feuil1!$C$1:$BL$10,8,FALSE) -> -118 | AI129: =T129-HLOOKUP(X129,Feuil1!$C$1:$BL$10,9,FALSE) -> -143 | AJ129: =T129-HLOOKUP(X129,Feuil1!$C$1:$BL$10,10,FALSE) -> -883 | AQ129: DEB
A130: H | B130: CO | C130: CEN | D130: 4 | E130: 380986 | F130: FONTENELLE | G130: Thomas | H130: 2000 | I130: 112.2 | J130: CHM AVRAIS | K130: F | L130: 44 | M130: 48 | N130: -50 | O130: 48 | P130: 54 | Q130: 60 | R130: 64 | S130: 64 | T130: 112 | U130: -112.4 | V130: DEB | W130: -8 | X130: =IF(I130="","",IF(A130="H",IF(OR(H130="SEN",H130<1995),VLOOKUP(I130,Feuil1!$A$11:$G$29,6),IF(AND(H130>1994,H130<1998),VLOOKUP(I130,Feuil1!$A$11:$G$29,5),IF(AND(H130>1997,H130<2000),VLOOKUP(I130,Feuil1!$A$11:$G$29,4),IF(AND(H130>1999,H130<2002),VLOOKUP(I130,Feuil1!$A$11:$G$29,3),VLOOKUP(I130,Feuil1!$A$11:$G$29,2))))),IF(OR(H130="SEN",H130<1995),VLOOKUP(I130,Feuil1!$G$11:$L$25,6),IF(AND(H130>1994,H130<1998),VLOOKUP(I130,Feuil1!$G$11:$L$25,5),IF(AND(H130>1997,H130<2000),VLOOKUP(I130,Feuil1!$G$11:$L$25,4),IF(AND(H130>1999,H130<2002),VLOOKUP(I130,Feuil1!$G$11:$L$25,3),VLOOKUP(I130,Feuil1!$G$11:$L$25,2))))))) -> C1 +94 | Y130: 119.7732778 | AB130: =T130-HLOOKUP(X130,Feuil1!$C$1:$BL$10,2,FALSE) -> -8 | AC130: =T130-HLOOKUP(X130,Feuil1!$C$1:$BL$10,3,FALSE) -> -28 | AD130: =T130-HLOOKUP(X130,Feuil1!$C$1:$BL$10,4,FALSE) -> -43 | AE130: =T130-HLOOKUP(X130,Feuil1!$C$1:$BL$10,5,FALSE) -> -63 | AF130: =T130-HLOOKUP(X130,Feuil1!$C$1:$BL$10,6,FALSE) -> -83 | AG130: =T130-HLOOKUP(X130,Feuil1!$C$1:$BL$10,7,FALSE) -> -108 | AH130: =T130-HLOOKUP(X130,Feuil1!$C$1:$BL$10,8,FALSE) -> -123 | AI130: =T130-HLOOKUP(X130,Feuil1!$C$1:$BL$10,9,FALSE) -> -148 | AJ130: =T130-HLOOKUP(X130,Feuil1!$C$1:$BL$10,10,FALSE) -> -888 | AQ130: DEB
A131: H | B131: N | C131: PIC | D131: 5 | E131: 386574 | F131: BOSSÉ | G131: Kévin | H131: 2001 | I131: 100.3 | J131: Hirson CEHT | K131: F | L131: 35 | M131: 40 | N131: 45 | O131: 45 | P131: 50 | Q131: 55 | R131: -60 | S131: 55 | T131: 100 | U131: -100.6 | V131: DEB | W131: -20 | X131: =IF(I131="","",IF(A131="H",IF(OR(H131="SEN",H131<1995),VLOOKUP(I131,Feuil1!$A$11:$G$29,6),IF(AND(H131>1994,H131<1998),VLOOKUP(I131,Feuil1!$A$11:$G$29,5),IF(AND(H131>1997,H131<2000),VLOOKUP(I131,Feuil1!$A$11:$G$29,4),IF(AND(H131>1999,H131<2002),VLOOKUP(I131,Feuil1!$A$11:$G$29,3),VLOOKUP(I131,Feuil1!$A$11:$G$29,2))))),IF(OR(H131="SEN",H131<1995),VLOOKUP(I131,Feuil1!$G$11:$L$25,6),IF(AND(H131>1994,H131<1998),VLOOKUP(I131,Feuil1!$G$11:$L$25,5),IF(AND(H131>1997,H131<2000),VLOOKUP(I131,Feuil1!$G$11:$L$25,4),IF(AND(H131>1999,H131<2002),VLOOKUP(I131,Feuil1!$G$11:$L$25,3),VLOOKUP(I131,Feuil1!$G$11:$L$25,2))))))) -> C1 +94 | Y131: 111.1327469 | AB131: =T131-HLOOKUP(X131,Feuil1!$C$1:$BL$10,2,FALSE) -> -20 | AC131: =T131-HLOOKUP(X131,Feuil1!$C$1:$BL$10,3,FALSE) -> -40 | AD131: =T131-HLOOKUP(X131,Feuil1!$C$1:$BL$10,4,FALSE) -> -55 | AE131: =T131-HLOOKUP(X131,Feuil1!$C$1:$BL$10,5,FALSE) -> -75 | AF131: =T131-HLOOKUP(X131,Feuil1!$C$1:$BL$10,6,FALSE) -> -95 | AG131: =T131-HLOOKUP(X131,Feuil1!$C$1:$BL$10,7,FALSE) -> -120 | AH131: =T131-HLOOKUP(X131,Feuil1!$C$1:$BL$10,8,FALSE) -> -135 | AI131: =T131-HLOOKUP(X131,Feuil1!$C$1:$BL$10,9,FALSE) -> -160 | AJ131: =T131-HLOOKUP(X131,Feuil1!$C$1:$BL$10,10,FALSE) -> -900 | AQ131: DEB
A132: H | B132: NE | C132: CHA | D132: 6 | E132: 338794 | F132: BRAHIM | G132: Ahmed | H132: 2001 | I132: 125 | J132: Reims HM | K132: F | L132: 35 | M132: 40 | N132: 43 | O132: 43 | P132: 45 | Q132: 50 | R132: 55 | S132: 55 | T132: 98 | U132: -152 | V132: DEB | W132: -22 | X132: =IF(I132="","",IF(A132="H",IF(OR(H132="SEN",H132<1995),VLOOKUP(I132,Feuil1!$A$11:$G$29,6),IF(AND(H132>1994,H132<1998),VLOOKUP(I132,Feuil1!$A$11:$G$29,5),IF(AND(H132>1997,H132<2000),VLOOKUP(I132,Feuil1!$A$11:$G$29,4),IF(AND(H132>1999,H132<2002),VLOOKUP(I132,Feuil1!$A$11:$G$29,3),VLOOKUP(I132,Feuil1!$A$11:$G$29,2))))),IF(OR(H132="SEN",H132<1995),VLOOKUP(I132,Feuil1!$G$11:$L$25,6),IF(AND(H132>1994,H132<1998),VLOOKUP(I132,Feuil1!$G$11:$L$25,5),IF(AND(H132>1997,H132<2000),VLOOKUP(I132,Feuil1!$G$11:$L$25,4),IF(AND(H132>1999,H132<2002),VLOOKUP(I132,Feuil1!$G$11:$L$25,3),VLOOKUP(I132,Feuil1!$G$11:$L$25,2))))))) -> C1 +94 | Y132: 101.821575 | AB132: =T132-HLOOKUP(X132,Feuil1!$C$1:$BL$10,2,FALSE) -> -22 | AC132: =T132-HLOOKUP(X132,Feuil1!$C$1:$BL$10,3,FALSE) -> -42 | AD132: =T132-HLOOKUP(X132,Feuil1!$C$1:$BL$10,4,FALSE) -> -57 | AE132: =T132-HLOOKUP(X132,Feuil1!$C$1:$BL$10,5,FALSE) -> -77 | AF132: =T132-HLOOKUP(X132,Feuil1!$C$1:$BL$10,6,FALSE) -> -97 | AG132: =T132-HLOOKUP(X132,Feuil1!$C$1:$BL$10,7,FALSE) -> -122 | AH132: =T132-HLOOKUP(X132,Feuil1!$C$1:$BL$10,8,FALSE) -> -137 | AI132: =T132-HLOOKUP(X132,Feuil1!$C$1:$BL$10,9,FALSE) -> -162 | AJ132: =T132-HLOOKUP(X132,Feuil1!$C$1:$BL$10,10,FALSE) -> -902 | AQ132: DEB
A133: H | B133: SEST | C133: CAZ | D133: 7 | E133: 378529 | F133: FAUCOUNIER | G133: Benjamin | H133: 2000 | I133: 102.7 | J133: ASPTT DRAGUIGNAN | K133: F | L133: -35 | M133: 35 | N133: 40 | O133: 40 | P133: 40 | Q133: 45 | R133: 50 | S133: 50 | T133: 90 | U133: -115.4 | V133: DEB | W133: -30 | X133: =IF(I133="","",IF(A133="H",IF(OR(H133="SEN",H133<1995),VLOOKUP(I133,Feuil1!$A$11:$G$29,6),IF(AND(H133>1994,H133<1998),VLOOKUP(I133,Feuil1!$A$11:$G$29,5),IF(AND(H133>1997,H133<2000),VLOOKUP(I133,Feuil1!$A$11:$G$29,4),IF(AND(H133>1999,H133<2002),VLOOKUP(I133,Feuil1!$A$11:$G$29,3),VLOOKUP(I133,Feuil1!$A$11:$G$29,2))))),IF(OR(H133="SEN",H133<1995),VLOOKUP(I133,Feuil1!$G$11:$L$25,6),IF(AND(H133>1994,H133<1998),VLOOKUP(I133,Feuil1!$G$11:$L$25,5),IF(AND(H133>1997,H133<2000),VLOOKUP(I133,Feuil1!$G$11:$L$25,4),IF(AND(H133>1999,H133<2002),VLOOKUP(I133,Feuil1!$G$11:$L$25,3),VLOOKUP(I133,Feuil1!$G$11:$L$25,2))))))) -> C1 +94 | Y133: 99.14000365 | AB133: =T133-HLOOKUP(X133,Feuil1!$C$1:$BL$10,2,FALSE) -> -30 | AC133: =T133-HLOOKUP(X133,Feuil1!$C$1:$BL$10,3,FALSE) -> -50 | AD133: =T133-HLOOKUP(X133,Feuil1!$C$1:$BL$10,4,FALSE) -> -65 | AE133: =T133-HLOOKUP(X133,Feuil1!$C$1:$BL$10,5,FALSE) -> -85 | AF133: =T133-HLOOKUP(X133,Feuil1!$C$1:$BL$10,6,FALSE) -> -105 | AG133: =T133-HLOOKUP(X133,Feuil1!$C$1:$BL$10,7,FALSE) -> -130 | AH133: =T133-HLOOKUP(X133,Feuil1!$C$1:$BL$10,8,FALSE) -> -145 | AI133: =T133-HLOOKUP(X133,Feuil1!$C$1:$BL$10,9,FALSE) -> -170 | AJ133: =T133-HLOOKUP(X133,Feuil1!$C$1:$BL$10,10,FALSE) -> -910 | AQ133: DEB
A134: H | B134: N | C134: PIC | D134: 8 | E134: 372452 | F134: DEPLUS | G134: Alexis | H134: 2001 | I134: 96.3 | J134: La Vaillante Saint Quentin | K134: F | L134: 19 | M134: 22 | N134: 25 | O134: 25 | P134: 26 | Q134: 29 | R134: -33 | S134: 29 | T134: 54 | U134: -138.6 | V134: DEB | W134: -66 | X134: =IF(I134="","",IF(A134="H",IF(OR(H134="SEN",H134<1995),VLOOKUP(I134,Feuil1!$A$11:$G$29,6),IF(AND(H134>1994,H134<1998),VLOOKUP(I134,Feuil1!$A$11:$G$29,5),IF(AND(H134>1997,H134<2000),VLOOKUP(I134,Feuil1!$A$11:$G$29,4),IF(AND(H134>1999,H134<2002),VLOOKUP(I134,Feuil1!$A$11:$G$29,3),VLOOKUP(I134,Feuil1!$A$11:$G$29,2))))),IF(OR(H134="SEN",H134<1995),VLOOKUP(I134,Feuil1!$G$11:$L$25,6),IF(AND(H134>1994,H134<1998),VLOOKUP(I134,Feuil1!$G$11:$L$25,5),IF(AND(H134>1997,H134<2000),VLOOKUP(I134,Feuil1!$G$11:$L$25,4),IF(AND(H134>1999,H134<2002),VLOOKUP(I134,Feuil1!$G$11:$L$25,3),VLOOKUP(I134,Feuil1!$G$11:$L$25,2))))))) -> C1 +94 | Y134: 60.98591803 | AB134: =T134-HLOOKUP(X134,Feuil1!$C$1:$BL$10,2,FALSE) -> -66 | AC134: =T134-HLOOKUP(X134,Feuil1!$C$1:$BL$10,3,FALSE) -> -86 | AD134: =T134-HLOOKUP(X134,Feuil1!$C$1:$BL$10,4,FALSE) -> -101 | AE134: =T134-HLOOKUP(X134,Feuil1!$C$1:$BL$10,5,FALSE) -> -121 | AF134: =T134-HLOOKUP(X134,Feuil1!$C$1:$BL$10,6,FALSE) -> -141 | AG134: =T134-HLOOKUP(X134,Feuil1!$C$1:$BL$10,7,FALSE) -> -166 | AH134: =T134-HLOOKUP(X134,Feuil1!$C$1:$BL$10,8,FALSE) -> -181 | AI134: =T134-HLOOKUP(X134,Feuil1!$C$1:$BL$10,9,FALSE) -> -206 | AJ134: =T134-HLOOKUP(X134,Feuil1!$C$1:$BL$10,10,FALSE) -> -946 | AQ134: DEB
AB135: =T135-HLOOKUP(X135,Feuil1!$C$1:$BL$10,2,FALSE) ->  | AC135: =T135-HLOOKUP(X135,Feuil1!$C$1:$BL$10,3,FALSE) ->  | AD135: =T135-HLOOKUP(X135,Feuil1!$C$1:$BL$10,4,FALSE) ->  | AE135: =T135-HLOOKUP(X135,Feuil1!$C$1:$BL$10,5,FALSE) ->  | AF135: =T135-HLOOKUP(X135,Feuil1!$C$1:$BL$10,6,FALSE) ->  | AG135: =T135-HLOOKUP(X135,Feuil1!$C$1:$BL$10,7,FALSE) ->  | AH135: =T135-HLOOKUP(X135,Feuil1!$C$1:$BL$10,8,FALSE) ->  | AI135: =T135-HLOOKUP(X135,Feuil1!$C$1:$BL$10,9,FALSE) ->  | AJ135: =T135-HLOOKUP(X135,Feuil1!$C$1:$BL$10,10,FALSE) -> 
A136: H | O136: =IF(H136="","",IF(MAXA(L136:N136)<=0,0,MAXA(L136:N136))) ->  | S136: =IF(H136="","",IF(MAXA(P136:R136)<=0,0,MAXA(P136:R136))) ->  | T136: =IF(H136="","",IF(OR(O136=0,S136=0),0,O136+S136)) ->  | U136: =T136-I136*2 ->  | V136: =IF(H136="","",AQ136) ->  | W136: =IF(AJ136>=0,AJ136,IF(AI136>=0,AI136,IF(AH136>=0,AH136,IF(AG136>=0,AG136,IF(AF136>=0,AF136,IF(AE136>=0,AE136,IF(AD136>=0,AD136,IF(AC136>=0,AC136,AB136)))))))) ->  | X136: =IF(I136="","",IF(A136="H",IF(OR(H136="SEN",H136<1995),VLOOKUP(I136,Feuil1!$A$11:$G$29,6),IF(AND(H136>1994,H136<1998),VLOOKUP(I136,Feuil1!$A$11:$G$29,5),IF(AND(H136>1997,H136<2000),VLOOKUP(I136,Feuil1!$A$11:$G$29,4),IF(AND(H136>1999,H136<2002),VLOOKUP(I136,Feuil1!$A$11:$G$29,3),VLOOKUP(I136,Feuil1!$A$11:$G$29,2))))),IF(OR(H136="SEN",H136<1995),VLOOKUP(I136,Feuil1!$G$11:$L$25,6),IF(AND(H136>1994,H136<1998),VLOOKUP(I136,Feuil1!$G$11:$L$25,5),IF(AND(H136>1997,H136<2000),VLOOKUP(I136,Feuil1!$G$11:$L$25,4),IF(AND(H136>1999,H136<2002),VLOOKUP(I136,Feuil1!$G$11:$L$25,3),VLOOKUP(I136,Feuil1!$G$11:$L$25,2))))))) ->  | Y136: =IF(I136="","",IF(A136="H",10^(0.794358141*LOG(I136/174.393)^2)*T136,IF(A136="F",10^(0.89726074*LOG(I136/148.026)^2)*T136,""))) ->  | AB136: =T136-HLOOKUP(X136,Feuil1!$C$1:$BL$10,2,FALSE) ->  | AC136: =T136-HLOOKUP(X136,Feuil1!$C$1:$BL$10,3,FALSE) ->  | AD136: =T136-HLOOKUP(X136,Feuil1!$C$1:$BL$10,4,FALSE) ->  | AE136: =T136-HLOOKUP(X136,Feuil1!$C$1:$BL$10,5,FALSE) ->  | AF136: =T136-HLOOKUP(X136,Feuil1!$C$1:$BL$10,6,FALSE) ->  | AG136: =T136-HLOOKUP(X136,Feuil1!$C$1:$BL$10,7,FALSE) ->  | AH136: =T136-HLOOKUP(X136,Feuil1!$C$1:$BL$10,8,FALSE) ->  | AI136: =T136-HLOOKUP(X136,Feuil1!$C$1:$BL$10,9,FALSE) ->  | AJ136: =T136-HLOOKUP(X136,Feuil1!$C$1:$BL$10,10,FALSE) ->  | AQ136: =IF(AJ136>=0,$AJ$4,IF(AI136>=0,$AI$4,IF(AH136>=0,$AH$4,IF(AG136>=0,$AG$4,IF(AF136>=0,$AF$4,IF(AE136>=0,$AE$4,IF(AD136>=0,$AD$4,IF(AC136>=0,$AC$4,$AB$4)))))))) -> 
AB573: J77 | AC573: J85 | AD573: J94 | AE573: J105 | AF573: J+105 | AH573: J56 | AI573: J62 | AJ573: J69 | AK573: J77 | AL573: J85 | AM573: J94 | AN573: J105 | AO573: J+105 | AQ573: S56 | AR573: S62 | AS573: S69 | AT573: S77 | AU573: S85 | AV573: S94 | AW573: S105 | AX573: S+105
AB574: 145 | AC574: 160 | AD574: 170 | AE574: 180 | AF574: 190 | AH574: 100 | AI574: 115 | AJ574: 130 | AK574: 145 | AL574: 160 | AM574: 170 | AN574: 180 | AO574: 190 | AQ574: 115 | AR574: 135 | AS574: 150 | AT574: 165 | AU574: 180 | AV574: 190 | AW574: 200 | AX574: 210
AB575: 165 | AC575: 180 | AD575: 190 | AE575: 200 | AF575: 210 | AH575: 115 | AI575: 135 | AJ575: 150 | AK575: 165 | AL575: 180 | AM575: 190 | AN575: 200 | AO575: 210 | AQ575: 130 | AR575: 150 | AS575: 165 | AT575: 185 | AU575: 200 | AV575: 210 | AW575: 220 | AX575: 230
AB576: 185 | AC576: 200 | AD576: 210 | AE576: 220 | AF576: 230 | AH576: 130 | AI576: 150 | AJ576: 165 | AK576: 185 | AL576: 200 | AM576: 210 | AN576: 220 | AO576: 230 | AQ576: 145 | AR576: 165 | AS576: 180 | AT576: 200 | AU576: 220 | AV576: 230 | AW576: 240 | AX576: 250
AB577: 200 | AC577: 220 | AD577: 230 | AE577: 240 | AF577: 250 | AH577: 145 | AI577: 165 | AJ577: 180 | AK577: 200 | AL577: 220 | AM577: 230 | AN577: 240 | AO577: 250 | AQ577: 175 | AR577: 195 | AS577: 215 | AT577: 235 | AU577: 250 | AV577: 260 | AW577: 275 | AX577: 280
AB578: 235 | AC578: 250 | AD578: 260 | AE578: 275 | AF578: 280 | AH578: 175 | AI578: 195 | AJ578: 215 | AK578: 235 | AL578: 250 | AM578: 260 | AN578: 275 | AO578: 280 | AQ578: 210 | AR578: 230 | AS578: 250 | AT578: 270 | AU578: 290 | AV578: 300 | AW578: 310 | AX578: 325
AB579: 270 | AC579: 290 | AD579: 300 | AE579: 310 | AF579: 325 | AH579: 210 | AI579: 230 | AJ579: 250 | AK579: 270 | AL579: 290 | AM579: 300 | AN579: 310 | AO579: 325 | AQ579: 230 | AR579: 255 | AS579: 275 | AT579: 300 | AU579: 315 | AV579: 335 | AW579: 345 | AX579: 355
AB580: 320 | AC580: 335 | AD580: 355 | AE580: 370 | AF580: 380 | AH580: 245 | AI580: 270 | AJ580: 295 | AK580: 320 | AL580: 335 | AM580: 355 | AN580: 370 | AO580: 380 | AQ580: 245 | AR580: 270 | AS580: 295 | AT580: 320 | AU580: 335 | AV580: 355 | AW580: 370 | AX580: 380

Sheet CADETS 2
F1: LISTING NATIONAL | H1: MASCULINS et FEMININES | Q1: DATE : | S1: 2015-03-15
G2: CHALLENGE D'HIVER 2015
A4: SEXE | B4: ZONE | C4: REG. | D4: CL. | E4: LICENCE | F4: NOMS | G4: Prénoms | H4: AN | I4: POIDS | J4: CLUB | K4: NAT | L4: 1 | M4: 2 | N4: 3 | O4: ARR | P4: 1 | Q4: 2 | R4: 3 | S4: EP-J | T4: Total | U4: KP-2PC | V4: SERIE | X4: Catég | Y4: IWF | AB4: DEB | AC4: DEP + | AD4: REG + | AE4: IRG + | AF4: FED + | AG4: NAT + | AH4: INTB + | AI4: INTA + | AJ4: OLY +
AB5: =T5-HLOOKUP(X5,Feuil1!$C$1:$BL$10,2,FALSE) ->  | AC5: =T5-HLOOKUP(X5,Feuil1!$C$1:$BL$10,3,FALSE) ->  | AD5: =T5-HLOOKUP(X5,Feuil1!$C$1:$BL$10,4,FALSE) ->  | AE5: =T5-HLOOKUP(X5,Feuil1!$C$1:$BL$10,5,FALSE) ->  | AF5: =T5-HLOOKUP(X5,Feuil1!$C$1:$BL$10,6,FALSE) ->  | AG5: =T5-HLOOKUP(X5,Feuil1!$C$1:$BL$10,7,FALSE) ->  | AH5: =T5-HLOOKUP(X5,Feuil1!$C$1:$BL$10,8,FALSE) ->  | AI5: =T5-HLOOKUP(X5,Feuil1!$C$1:$BL$10,9,FALSE) ->  | AJ5: =T5-HLOOKUP(X5,Feuil1!$C$1:$BL$10,10,FALSE) ->  | AQ5: =IF(AJ5>=0,$AJ$4,IF(AI5>=0,$AI$4,IF(AH5>=0,$AH$4,IF(AG5>=0,$AG$4,IF(AF5>=0,$AF$4,IF(AE5>=0,$AE$4,IF(AD5>=0,$AD$4,IF(AC5>=0,$AC$4,$AB$4)))))))) -> 
A6: F | B6: CO | C6: BNO | D6: 1 | E6: 380061 | F6: HELIE | G6: Pauline | H6: 1998 | I6: 52.7 | J6: Saint-Lô | K6: F | L6: 27 | M6: 30 | N6: -33 | O6: =IF(H6="","",IF(MAXA(L6:N6)<=0,0,MAXA(L6:N6))) -> 30 | P6: 35 | Q6: 40 | R6: -43 | S6: =IF(H6="","",IF(MAXA(P6:R6)<=0,0,MAXA(P6:R6))) -> 40 | T6: =IF(H6="","",IF(OR(O6=0,S6=0),0,O6+S6)) -> 70 | U6: =T6-I6*2 -> -35.4 | V6: =IF(H6="","",AQ6) -> REG + | W6: =IF(AJ6>=0,AJ6,IF(AI6>=0,AI6,IF(AH6>=0,AH6,IF(AG6>=0,AG6,IF(AF6>=0,AF6,IF(AE6>=0,AE6,IF(AD6>=0,AD6,IF(AC6>=0,AC6,AB6)))))))) -> 5 | X6: =IF(I6="","",IF(A6="H",IF(OR(H6="SEN",H6<1995),VLOOKUP(I6,Feuil1!$A$11:$G$29,6),IF(AND(H6>1994,H6<1998),VLOOKUP(I6,Feuil1!$A$11:$G$29,5),IF(AND(H6>1997,H6<2000),VLOOKUP(I6,Feuil1!$A$11:$G$29,4),IF(AND(H6>1999,H6<2002),VLOOKUP(I6,Feuil1!$A$11:$G$29,3),VLOOKUP(I6,Feuil1!$A$11:$G$29,2))))),IF(OR(H6="SEN",H6<1995),VLOOKUP(I6,Feuil1!$G$11:$L$25,6),IF(AND(H6>1994,H6<1998),VLOOKUP(I6,Feuil1!$G$11:$L$25,5),IF(AND(H6>1997,H6<2000),VLOOKUP(I6,Feuil1!$G$11:$L$25,4),IF(AND(H6>1999,H6<2002),VLOOKUP(I6,Feuil1!$G$11:$L$25,3),VLOOKUP(I6,Feuil1!$G$11:$L$25,2))))))) -> FC2 53 | Y6: =IF(I6="","",IF(A6="H",10^(0.794358141*LOG(I6/174.393)^2)*T6,IF(A6="F",10^(0.89726074*LOG(I6/148.026)^2)*T6,""))) -> 106.073305 | AB6: =T6-HLOOKUP(X6,Feuil1!$C$1:$BL$10,2,FALSE) -> 25 | AC6: =T6-HLOOKUP(X6,Feuil1!$C$1:$BL$10,3,FALSE) -> 15 | AD6: =T6-HLOOKUP(X6,Feuil1!$C$1:$BL$10,4,FALSE) -> 5 | AE6: =T6-HLOOKUP(X6,Feuil1!$C$1:$BL$10,5,FALSE) -> -5 | AF6: =T6-HLOOKUP(X6,Feuil1!$C$1:$BL$10,6,FALSE) -> -15 | AG6: =T6-HLOOKUP(X6,Feuil1!$C$1:$BL$10,7,FALSE) -> -25 | AH6: =T6-HLOOKUP(X6,Feuil1!$C$1:$BL$10,8,FALSE) -> -35 | AI6: =T6-HLOOKUP(X6,Feuil1!$C$1:$BL$10,9,FALSE) -> -50 | AJ6: =T6-HLOOKUP(X6,Feuil1!$C$1:$BL$10,10,FALSE) -> -930 | AQ6: =IF(AJ6>=0,$AJ$4,IF(AI6>=0,$AI$4,IF(AH6>=0,$AH$4,IF(AG6>=0,$AG$4,IF(AF6>=0,$AF$4,IF(AE6>=0,$AE$4,IF(AD6>=0,$AD$4,IF(AC6>=0,$AC$4,$AB$4)))))))) -> REG +
A7: F | B7: CO | C7: BNO | D7: 2 | E7: 306045 | F7: Gaultier | G7: Esther | H7: 1999 | I7: 48.6 | J7: Saint-Lô | K7: F | L7: 25 | M7: 28 | N7: 30 | O7: =IF(H7="","",IF(MAXA(L7:N7)<=0,0,MAXA(L7:N7))) -> 30 | P7: 32 | Q7: 35 | R7: -38 | S7: =IF(H7="","",IF(MAXA(P7:R7)<=0,0,MAXA(P7:R7))) -> 35 | T7: =IF(H7="","",IF(OR(O7=0,S7=0),0,O7+S7)) -> 65 | U7: =T7-I7*2 -> -32.2 | V7: =IF(H7="","",AQ7) -> REG + | W7: =IF(AJ7>=0,AJ7,IF(AI7>=0,AI7,IF(AH7>=0,AH7,IF(AG7>=0,AG7,IF(AF7>=0,AF7,IF(AE7>=0,AE7,IF(AD7>=0,AD7,IF(AC7>=0,AC7,AB7)))))))) -> 0 | X7: =IF(I7="","",IF(A7="H",IF(OR(H7="SEN",H7<1995),VLOOKUP(I7,Feuil1!$A$11:$G$29,6),IF(AND(H7>1994,H7<1998),VLOOKUP(I7,Feuil1!$A$11:$G$29,5),IF(AND(H7>1997,H7<2000),VLOOKUP(I7,Feuil1!$A$11:$G$29,4),IF(AND(H7>1999,H7<2002),VLOOKUP(I7,Feuil1!$A$11:$G$29,3),VLOOKUP(I7,Feuil1!$A$11:$G$29,2))))),IF(OR(H7="SEN",H7<1995),VLOOKUP(I7,Feuil1!$G$11:$L$25,6),IF(AND(H7>1994,H7<1998),VLOOKUP(I7,Feuil1!$G$11:$L$25,5),IF(AND(H7>1997,H7<2000),VLOOKUP(I7,Feuil1!$G$11:$L$25,4),IF(AND(H7>1999,H7<2002),VLOOKUP(I7,Feuil1!$G$11:$L$25,3),VLOOKUP(I7,Feuil1!$G$11:$L$25,2))))))) -> FC2 53 | Y7: =IF(I7="","",IF(A7="H",10^(0.794358141*LOG(I7/174.393)^2)*T7,IF(A7="F",10^(0.89726074*LOG(I7/148.026)^2)*T7,""))) -> 105.4006017 | AB7: =T7-HLOOKUP(X7,Feuil1!$C$1:$BL$10,2,FALSE) -> 20 | AC7: =T7-HLOOKUP(X7,Feuil1!$C$1:$BL$10,3,FALSE) -> 10 | AD7: =T7-HLOOKUP(X7,Feuil1!$C$1:$BL$10,4,FALSE) -> 0 | AE7: =T7-HLOOKUP(X7,Feuil1!$C$1:$BL$10,5,FALSE) -> -10 | AF7: =T7-HLOOKUP(X7,Feuil1!$C$1:$BL$10,6,FALSE) -> -20 | AG7: =T7-HLOOKUP(X7,Feuil1!$C$1:$BL$10,7,FALSE) -> -30 | AH7: =T7-HLOOKUP(X7,Feuil1!$C$1:$BL$10,8,FALSE) -> -40 | AI7: =T7-HLOOKUP(X7,Feuil1!$C$1:$BL$10,9,FALSE) -> -55 | AJ7: =T7-HLOOKUP(X7,Feuil1!$C$1:$BL$10,10,FALSE) -> -935 | AQ7: REG +
A8: F | B8: SO | C8: MPY | D8: 3 | E8: 375895 | F8: CAUSSE | G8: Lucie | H8: 1998 | I8: 50 | J8: PAMIERS HC | K8: F | L8: 25 | M8: 27 | N8: -28 | O8: =IF(H8="","",IF(MAXA(L8:N8)<=0,0,MAXA(L8:N8))) -> 27 | P8: 35 | Q8: 38 | R8: -40 | S8: =IF(H8="","",IF(MAXA(P8:R8)<=0,0,MAXA(P8:R8))) -> 38 | T8: =IF(H8="","",IF(OR(O8=0,S8=0),0,O8+S8)) -> 65 | U8: =T8-I8*2 -> -35 | V8: =IF(H8="","",AQ8) -> REG + | W8: =IF(AJ8>=0,AJ8,IF(AI8>=0,AI8,IF(AH8>=0,AH8,IF(AG8>=0,AG8,IF(AF8>=0,AF8,IF(AE8>=0,AE8,IF(AD8>=0,AD8,IF(AC8>=0,AC8,AB8)))))))) -> 0 | X8: =IF(I8="","",IF(A8="H",IF(OR(H8="SEN",H8<1995),VLOOKUP(I8,Feuil1!$A$11:$G$29,6),IF(AND(H8>1994,H8<1998),VLOOKUP(I8,Feuil1!$A$11:$G$29,5),IF(AND(H8>1997,H8<2000),VLOOKUP(I8,Feuil1!$A$11:$G$29,4),IF(AND(H8>1999,H8<2002),VLOOKUP(I8,Feuil1!$A$11:$G$29,3),VLOOKUP(I8,Feuil1!$A$11:$G$29,2))))),IF(OR(H8="SEN",H8<1995),VLOOKUP(I8,Feuil1!$G$11:$L$25,6),IF(AND(H8>1994,H8<1998),VLOOKUP(I8,Feuil1!$G$11:$L$25,5),IF(AND(H8>1997,H8<2000),VLOOKUP(I8,Feuil1!$G$11:$L$25,4),IF(AND(H8>1999,H8<2002),VLOOKUP(I8,Feuil1!$G$11:$L$25,3),VLOOKUP(I8,Feuil1!$G$11:$L$25,2))))))) -> FC2 53 | Y8: =IF(I8="","",IF(A8="H",10^(0.794358141*LOG(I8/174.393)^2)*T8,IF(A8="F",10^(0.89726074*LOG(I8/148.026)^2)*T8,""))) -> 102.8664467 | AB8: =T8-HLOOKUP(X8,Feuil1!$C$1:$BL$10,2,FALSE) -> 20 | AC8: =T8-HLOOKUP(X8,Feuil1!$C$1:$BL$10,3,FALSE) -> 10 | AD8: =T8-HLOOKUP(X8,Feuil1!$C$1:$BL$10,4,FALSE) -> 0 | AE8: =T8-HLOOKUP(X8,Feuil1!$C$1:$BL$10,5,FALSE) -> -10 | AF8: =T8-HLOOKUP(X8,Feuil1!$C$1:$BL$10,6,FALSE) -> -20 | AG8: =T8-HLOOKUP(X8,Feuil1!$C$1:$BL$10,7,FALSE) -> -30 | AH8: =T8-HLOOKUP(X8,Feuil1!$C$1:$BL$10,8,FALSE) -> -40 | AI8: =T8-HLOOKUP(X8,Feuil1!$C$1:$BL$10,9,FALSE) -> -55 | AJ8: =T8-HLOOKUP(X8,Feuil1!$C$1:$BL$10,10,FALSE) -> -935 | AQ8: REG +
A9: F | B9: NE | C9: ALS | D9: 4 | E9: 381287 | F9: NEBOIT | G9: Zoé | H9: 1999 | I9: 52.2 | J9: SR Obernai HM | K9: F | L9: 21 | M9: 23 | N9: -25 | O9: =IF(H9="","",IF(MAXA(L9:N9)<=0,0,MAXA(L9:N9))) -> 23 | P9: 27 | Q9: 30 | R9: 33 | S9: =IF(H9="","",IF(MAXA(P9:R9)<=0,0,MAXA(P9:R9))) -> 33 | T9: =IF(H9="","",IF(OR(O9=0,S9=0),0,O9+S9)) -> 56 | U9: =T9-I9*2 -> -48.4 | V9: =IF(H9="","",AQ9) -> DEP + | W9: =IF(AJ9>=0,AJ9,IF(AI9>=0,AI9,IF(AH9>=0,AH9,IF(AG9>=0,AG9,IF(AF9>=0,AF9,IF(AE9>=0,AE9,IF(AD9>=0,AD9,IF(AC9>=0,AC9,AB9)))))))) -> 1 | X9: =IF(I9="","",IF(A9="H",IF(OR(H9="SEN",H9<1995),VLOOKUP(I9,Feuil1!$A$11:$G$29,6),IF(AND(H9>1994,H9<1998),VLOOKUP(I9,Feuil1!$A$11:$G$29,5),IF(AND(H9>1997,H9<2000),VLOOKUP(I9,Feuil1!$A$11:$G$29,4),IF(AND(H9>1999,H9<2002),VLOOKUP(I9,Feuil1!$A$11:$G$29,3),VLOOKUP(I9,Feuil1!$A$11:$G$29,2))))),IF(OR(H9="SEN",H9<1995),VLOOKUP(I9,Feuil1!$G$11:$L$25,6),IF(AND(H9>1994,H9<1998),VLOOKUP(I9,Feuil1!$G$11:$L$25,5),IF(AND(H9>1997,H9<2000),VLOOKUP(I9,Feuil1!$G$11:$L$25,4),IF(AND(H9>1999,H9<2002),VLOOKUP(I9,Feuil1!$G$11:$L$25,3),VLOOKUP(I9,Feuil1!$G$11:$L$25,2))))))) -> FC2 53 | Y9: =IF(I9="","",IF(A9="H",10^(0.794358141*LOG(I9/174.393)^2)*T9,IF(A9="F",10^(0.89726074*LOG(I9/148.026)^2)*T9,""))) -> 85.51529744 | AB9: =T9-HLOOKUP(X9,Feuil1!$C$1:$BL$10,2,FALSE) -> 11 | AC9: =T9-HLOOKUP(X9,Feuil1!$C$1:$BL$10,3,FALSE) -> 1 | AD9: =T9-HLOOKUP(X9,Feuil1!$C$1:$BL$10,4,FALSE) -> -9 | AE9: =T9-HLOOKUP(X9,Feuil1!$C$1:$BL$10,5,FALSE) -> -19 | AF9: =T9-HLOOKUP(X9,Feuil1!$C$1:$BL$10,6,FALSE) -> -29 | AG9: =T9-HLOOKUP(X9,Feuil1!$C$1:$BL$10,7,FALSE) -> -39 | AH9: =T9-HLOOKUP(X9,Feuil1!$C$1:$BL$10,8,FALSE) -> -49 | AI9: =T9-HLOOKUP(X9,Feuil1!$C$1:$BL$10,9,FALSE) -> -64 | AJ9: =T9-HLOOKUP(X9,Feuil1!$C$1:$BL$10,10,FALSE) -> -944 | AQ9: DEP +
A10: F | B10: NE | C10: ALS | D10: 5 | E10: 381286 | F10: BALLANB SCHMIDT | G10: Zoé | H10: 1998 | I10: 50.2 | J10: SR Obernai HM | K10: F | L10: 20 | M10: -22 | N10: -22 | O10: =IF(H10="","",IF(MAXA(L10:N10)<=0,0,MAXA(L10:N10))) -> 20 | P10: -25 | Q10: 25 | R10: 28 | S10: =IF(H10="","",IF(MAXA(P10:R10)<=0,0,MAXA(P10:R10))) -> 28 | T10: =IF(H10="","",IF(OR(O10=0,S10=0),0,O10+S10)) -> 48 | U10: =T10-I10*2 -> -52.4 | V10: =IF(H10="","",AQ10) -> DEB | W10: =IF(AJ10>=0,AJ10,IF(AI10>=0,AI10,IF(AH10>=0,AH10,IF(AG10>=0,AG10,IF(AF10>=0,AF10,IF(AE10>=0,AE10,IF(AD10>=0,AD10,IF(AC10>=0,AC10,AB10)))))))) -> 3 | X10: =IF(I10="","",IF(A10="H",IF(OR(H10="SEN",H10<1995),VLOOKUP(I10,Feuil1!$A$11:$G$29,6),IF(AND(H10>1994,H10<1998),VLOOKUP(I10,Feuil1!$A$11:$G$29,5),IF(AND(H10>1997,H10<2000),VLOOKUP(I10,Feuil1!$A$11:$G$29,4),IF(AND(H10>1999,H10<2002),VLOOKUP(I10,Feuil1!$A$11:$G$29,3),VLOOKUP(I10,Feuil1!$A$11:$G$29,2))))),IF(OR(H10="SEN",H10<1995),VLOOKUP(I10,Feuil1!$G$11:$L$25,6),IF(AND(H10>1994,H10<1998),VLOOKUP(I10,Feuil1!$G$11:$L$25,5),IF(AND(H10>1997,H10<2000),VLOOKUP(I10,Feuil1!$G$11:$L$25,4),IF(AND(H10>1999,H10<2002),VLOOKUP(I10,Feuil1!$G$11:$L$25,3),VLOOKUP(I10,Feuil1!$G$11:$L$25,2))))))) -> FC2 53 | Y10: =IF(I10="","",IF(A10="H",10^(0.794358141*LOG(I10/174.393)^2)*T10,IF(A10="F",10^(0.89726074*LOG(I10/148.026)^2)*T10,""))) -> 75.70730784 | AB10: =T10-HLOOKUP(X10,Feuil1!$C$1:$BL$10,2,FALSE) -> 3 | AC10: =T10-HLOOKUP(X10,Feuil1!$C$1:$BL$10,3,FALSE) -> -7 | AD10: =T10-HLOOKUP(X10,Feuil1!$C$1:$BL$10,4,FALSE) -> -17 | AE10: =T10-HLOOKUP(X10,Feuil1!$C$1:$BL$10,5,FALSE) -> -27 | AF10: =T10-HLOOKUP(X10,Feuil1!$C$1:$BL$10,6,FALSE) -> -37 | AG10: =T10-HLOOKUP(X10,Feuil1!$C$1:$BL$10,7,FALSE) -> -47 | AH10: =T10-HLOOKUP(X10,Feuil1!$C$1:$BL$10,8,FALSE) -> -57 | AI10: =T10-HLOOKUP(X10,Feuil1!$C$1:$BL$10,9,FALSE) -> -72 | AJ10: =T10-HLOOKUP(X10,Feuil1!$C$1:$BL$10,10,FALSE) -> -952 | AQ10: DEB
AB11: =T11-HLOOKUP(X11,Feuil1!$C$1:$BL$10,2,FALSE) ->  | AC11: =T11-HLOOKUP(X11,Feuil1!$C$1:$BL$10,3,FALSE) ->  | AD11: =T11-HLOOKUP(X11,Feuil1!$C$1:$BL$10,4,FALSE) ->  | AE11: =T11-HLOOKUP(X11,Feuil1!$C$1:$BL$10,5,FALSE) ->  | AF11: =T11-HLOOKUP(X11,Feuil1!$C$1:$BL$10,6,FALSE) ->  | AG11: =T11-HLOOKUP(X11,Feuil1!$C$1:$BL$10,7,FALSE) ->  | AH11: =T11-HLOOKUP(X11,Feuil1!$C$1:$BL$10,8,FALSE) ->  | AI11: =T11-HLOOKUP(X11,Feuil1!$C$1:$BL$10,9,FALSE) ->  | AJ11: =T11-HLOOKUP(X11,Feuil1!$C$1:$BL$10,10,FALSE) -> 
A12: F | B12: SEST | C12: CAZ | D12: 1 | E12: 385817 | F12: POIRSON | G12: Samantha | H12: 1998 | I12: 55 | J12: ASLDD TOULON | K12: F | L12: 32 | M12: 35 | N12: 37 | O12: =IF(H12="","",IF(MAXA(L12:N12)<=0,0,MAXA(L12:N12))) -> 37 | P12: 45 | Q12: -48 | R12: -48 | S12: =IF(H12="","",IF(MAXA(P12:R12)<=0,0,MAXA(P12:R12))) -> 45 | T12: =IF(H12="","",IF(OR(O12=0,S12=0),0,O12+S12)) -> 82 | U12: =T12-I12*2 -> -28 | V12: =IF(H12="","",AQ12) -> IRG + | W12: =IF(AJ12>=0,AJ12,IF(AI12>=0,AI12,IF(AH12>=0,AH12,IF(AG12>=0,AG12,IF(AF12>=0,AF12,IF(AE12>=0,AE12,IF(AD12>=0,AD12,IF(AC12>=0,AC12,AB12)))))))) -> 2 | X12: =IF(I12="","",IF(A12="H",IF(OR(H12="SEN",H12<1995),VLOOKUP(I12,Feuil1!$A$11:$G$29,6),IF(AND(H12>1994,H12<1998),VLOOKUP(I12,Feuil1!$A$11:$G$29,5),IF(AND(H12>1997,H12<2000),VLOOKUP(I12,Feuil1!$A$11:$G$29,4),IF(AND(H12>1999,H12<2002),VLOOKUP(I12,Feuil1!$A$11:$G$29,3),VLOOKUP(I12,Feuil1!$A$11:$G$29,2))))),IF(OR(H12="SEN",H12<1995),VLOOKUP(I12,Feuil1!$G$11:$L$25,6),IF(AND(H12>1994,H12<1998),VLOOKUP(I12,Feuil1!$G$11:$L$25,5),IF(AND(H12>1997,H12<2000),VLOOKUP(I12,Feuil1!$G$11:$L$25,4),IF(AND(H12>1999,H12<2002),VLOOKUP(I12,Feuil1!$G$11:$L$25,3),VLOOKUP(I12,Feuil1!$G$11:$L$25,2))))))) -> FC2 58 | Y12: =IF(I12="","",IF(A12="H",10^(0.794358141*LOG(I12/174.393)^2)*T12,IF(A12="F",10^(0.89726074*LOG(I12/148.026)^2)*T12,""))) -> 120.1429565 | AB12: =T12-HLOOKUP(X12,Feuil1!$C$1:$BL$10,2,FALSE) -> 32 | AC12: =T12-HLOOKUP(X12,Feuil1!$C$1:$BL$10,3,FALSE) -> 22 | AD12: =T12-HLOOKUP(X12,Feuil1!$C$1:$BL$10,4,FALSE) -> 12 | AE12: =T12-HLOOKUP(X12,Feuil1!$C$1:$BL$10,5,FALSE) -> 2 | AF12: =T12-HLOOKUP(X12,Feuil1!$C$1:$BL$10,6,FALSE) -> -8 | AG12: =T12-HLOOKUP(X12,Feuil1!$C$1:$BL$10,7,FALSE) -> -18 | AH12: =T12-HLOOKUP(X12,Feuil1!$C$1:$BL$10,8,FALSE) -> -33 | AI12: =T12-HLOOKUP(X12,Feuil1!$C$1:$BL$10,9,FALSE) -> -48 | AJ12: =T12-HLOOKUP(X12,Feuil1!$C$1:$BL$10,10,FALSE) -> -918 | AQ12: IRG +
A13: F | B13: NE | C13: ALS | D13: 2 | E13: 381288 | F13: PIERRE | G13: Zoé | H13: 1998 | I13: 57.1 | J13: SR Obernai HM | K13: F | L13: 21 | M13: -23 | N13: -23 | O13: =IF(H13="","",IF(MAXA(L13:N13)<=0,0,MAXA(L13:N13))) -> 21 | P13: 26 | Q13: 28 | R13: -30 | S13: =IF(H13="","",IF(MAXA(P13:R13)<=0,0,MAXA(P13:R13))) -> 28 | T13: =IF(H13="","",IF(OR(O13=0,S13=0),0,O13+S13)) -> 49 | U13: =T13-I13*2 -> -65.2 | V13: =IF(H13="","",AQ13) -> DEB | W13: =IF(AJ13>=0,AJ13,IF(AI13>=0,AI13,IF(AH13>=0,AH13,IF(AG13>=0,AG13,IF(AF13>=0,AF13,IF(AE13>=0,AE13,IF(AD13>=0,AD13,IF(AC13>=0,AC13,AB13)))))))) -> -1 | X13: =IF(I13="","",IF(A13="H",IF(OR(H13="SEN",H13<1995),VLOOKUP(I13,Feuil1!$A$11:$G$29,6),IF(AND(H13>1994,H13<1998),VLOOKUP(I13,Feuil1!$A$11:$G$29,5),IF(AND(H13>1997,H13<2000),VLOOKUP(I13,Feuil1!$A$11:$G$29,4),IF(AND(H13>1999,H13<2002),VLOOKUP(I13,Feuil1!$A$11:$G$29,3),VLOOKUP(I13,Feuil1!$A$11:$G$29,2))))),IF(OR(H13="SEN",H13<1995),VLOOKUP(I13,Feuil1!$G$11:$L$25,6),IF(AND(H13>1994,H13<1998),VLOOKUP(I13,Feuil1!$G$11:$L$25,5),IF(AND(H13>1997,H13<2000),VLOOKUP(I13,Feuil1!$G$11:$L$25,4),IF(AND(H13>1999,H13<2002),VLOOKUP(I13,Feuil1!$G$11:$L$25,3),VLOOKUP(I13,Feuil1!$G$11:$L$25,2))))))) -> FC2 58 | Y13: =IF(I13="","",IF(A13="H",10^(0.794358141*LOG(I13/174.393)^2)*T13,IF(A13="F",10^(0.89726074*LOG(I13/148.026)^2)*T13,""))) -> 69.78492083 | AB13: =T13-HLOOKUP(X13,Feuil1!$C$1:$BL$10,2,FALSE) -> -1 | AC13: =T13-HLOOKUP(X13,Feuil1!$C$1:$BL$10,3,FALSE) -> -11 | AD13: =T13-HLOOKUP(X13,Feuil1!$C$1:$BL$10,4,FALSE) -> -21 | AE13: =T13-HLOOKUP(X13,Feuil1!$C$1:$BL$10,5,FALSE) -> -31 | AF13: =T13-HLOOKUP(X13,Feuil1!$C$1:$BL$10,6,FALSE) -> -41 | AG13: =T13-HLOOKUP(X13,Feuil1!$C$1:$BL$10,7,FALSE) -> -51 | AH13: =T13-HLOOKUP(X13,Feuil1!$C$1:$BL$10,8,FALSE) -> -66 | AI13: =T13-HLOOKUP(X13,Feuil1!$C$1:$BL$10,9,FALSE) -> -81 | AJ13: =T13-HLOOKUP(X13,Feuil1!$C$1:$BL$10,10,FALSE) -> -951 | AQ13: DEB
AB14: =T14-HLOOKUP(X14,Feuil1!$C$1:$BL$10,2,FALSE) ->  | AC14: =T14-HLOOKUP(X14,Feuil1!$C$1:$BL$10,3,FALSE) ->  | AD14: =T14-HLOOKUP(X14,Feuil1!$C$1:$BL$10,4,FALSE) ->  | AE14: =T14-HLOOKUP(X14,Feuil1!$C$1:$BL$10,5,FALSE) ->  | AF14: =T14-HLOOKUP(X14,Feuil1!$C$1:$BL$10,6,FALSE) ->  | AG14: =T14-HLOOKUP(X14,Feuil1!$C$1:$BL$10,7,FALSE) ->  | AH14: =T14-HLOOKUP(X14,Feuil1!$C$1:$BL$10,8,FALSE) ->  | AI14: =T14-HLOOKUP(X14,Feuil1!$C$1:$BL$10,9,FALSE) ->  | AJ14: =T14-HLOOKUP(X14,Feuil1!$C$1:$BL$10,10,FALSE) -> 
A15: F | B15: SO | C15: MPY | D15: 1 | E15: 269729 | F15: SYRIEIX | G15: Anne | H15: 1998 | I15: 63 | J15: DECAZEVILLE HC | K15: F | L15: 28 | M15: 30 | N15: -32 | O15: =IF(H15="","",IF(MAXA(L15:N15)<=0,0,MAXA(L15:N15))) -> 30 | P15: 35 | Q15: 40 | R15: -45 | S15: =IF(H15="","",IF(MAXA(P15:R15)<=0,0,MAXA(P15:R15))) -> 40 | T15: =IF(H15="","",IF(OR(O15=0,S15=0),0,O15+S15)) -> 70 | U15: =T15-I15*2 -> -56 | V15: =IF(H15="","",AQ15) -> DEP + | W15: =IF(AJ15>=0,AJ15,IF(AI15>=0,AI15,IF(AH15>=0,AH15,IF(AG15>=0,AG15,IF(AF15>=0,AF15,IF(AE15>=0,AE15,IF(AD15>=0,AD15,IF(AC15>=0,AC15,AB15)))))))) -> 5 | X15: =IF(I15="","",IF(A15="H",IF(OR(H15="SEN",H15<1995),VLOOKUP(I15,Feuil1!$A$11:$G$29,6),IF(AND(H15>1994,H15<1998),VLOOKUP(I15,Feuil1!$A$11:$G$29,5),IF(AND(H15>1997,H15<2000),VLOOKUP(I15,Feuil1!$A$11:$G$29,4),IF(AND(H15>1999,H15<2002),VLOOKUP(I15,Feuil1!$A$11:$G$29,3),VLOOKUP(I15,Feuil1!$A$11:$G$29,2))))),IF(OR(H15="SEN",H15<1995),VLOOKUP(I15,Feuil1!$G$11:$L$25,6),IF(AND(H15>1994,H15<1998),VLOOKUP(I15,Feuil1!$G$11:$L$25,5),IF(AND(H15>1997,H15<2000),VLOOKUP(I15,Feuil1!$G$11:$L$25,4),IF(AND(H15>1999,H15<2002),VLOOKUP(I15,Feuil1!$G$11:$L$25,3),VLOOKUP(I15,Feuil1!$G$11:$L$25,2))))))) -> FC2 63 | Y15: =IF(I15="","",IF(A15="H",10^(0.794358141*LOG(I15/174.393)^2)*T15,IF(A15="F",10^(0.89726074*LOG(I15/148.026)^2)*T15,""))) -> 93.02425715 | AB15: =T15-HLOOKUP(X15,Feuil1!$C$1:$BL$10,2,FALSE) -> 15 | AC15: =T15-HLOOKUP(X15,Feuil1!$C$1:$BL$10,3,FALSE) -> 5 | AD15: =T15-HLOOKUP(X15,Feuil1!$C$1:$BL$10,4,FALSE) -> -5 | AE15: =T15-HLOOKUP(X15,Feuil1!$C$1:$BL$10,5,FALSE) -> -15 | AF15: =T15-HLOOKUP(X15,Feuil1!$C$1:$BL$10,6,FALSE) -> -25 | AG15: =T15-HLOOKUP(X15,Feuil1!$C$1:$BL$10,7,FALSE) -> -40 | AH15: =T15-HLOOKUP(X15,Feuil1!$C$1:$BL$10,8,FALSE) -> -55 | AI15: =T15-HLOOKUP(X15,Feuil1!$C$1:$BL$10,9,FALSE) -> -70 | AJ15: =T15-HLOOKUP(X15,Feuil1!$C$1:$BL$10,10,FALSE) -> -930 | AQ15: DEP +
AB16: =T16-HLOOKUP(X16,Feuil1!$C$1:$BL$10,2,FALSE) ->  | AC16: =T16-HLOOKUP(X16,Feuil1!$C$1:$BL$10,3,FALSE) ->  | AD16: =T16-HLOOKUP(X16,Feuil1!$C$1:$BL$10,4,FALSE) ->  | AE16: =T16-HLOOKUP(X16,Feuil1!$C$1:$BL$10,5,FALSE) ->  | AF16: =T16-HLOOKUP(X16,Feuil1!$C$1:$BL$10,6,FALSE) ->  | AG16: =T16-HLOOKUP(X16,Feuil1!$C$1:$BL$10,7,FALSE) ->  | AH16: =T16-HLOOKUP(X16,Feuil1!$C$1:$BL$10,8,FALSE) ->  | AI16: =T16-HLOOKUP(X16,Feuil1!$C$1:$BL$10,9,FALSE) ->  | AJ16: =T16-HLOOKUP(X16,Feuil1!$C$1:$BL$10,10,FALSE) -> 
A17: F | B17: N | C17: PIC | D17: 1 | E17: 367780 | F17: DENAND | G17: Gwendoline | H17: 1998 | I17: 63.8 | J17: La Ferté Milon CMHM | K17: F | L17: 32 | M17: 34 | N17: 36 | O17: =IF(H17="","",IF(MAXA(L17:N17)<=0,0,MAXA(L17:N17))) -> 36 | P17: 43 | Q17: -46 | R17: 46 | S17: =IF(H17="","",IF(MAXA(P17:R17)<=0,0,MAXA(P17:R17))) -> 46 | T17: =IF(H17="","",IF(OR(O17=0,S17=0),0,O17+S17)) -> 82 | U17: =T17-I17*2 -> -45.6 | V17: =IF(H17="","",AQ17) -> REG + | W17: =IF(AJ17>=0,AJ17,IF(AI17>=0,AI17,IF(AH17>=0,AH17,IF(AG17>=0,AG17,IF(AF17>=0,AF17,IF(AE17>=0,AE17,IF(AD17>=0,AD17,IF(AC17>=0,AC17,AB17)))))))) -> 2 | X17: =IF(I17="","",IF(A17="H",IF(OR(H17="SEN",H17<1995),VLOOKUP(I17,Feuil1!$A$11:$G$29,6),IF(AND(H17>1994,H17<1998),VLOOKUP(I17,Feuil1!$A$11:$G$29,5),IF(AND(H17>1997,H17<2000),VLOOKUP(I17,Feuil1!$A$11:$G$29,4),IF(AND(H17>1999,H17<2002),VLOOKUP(I17,Feuil1!$A$11:$G$29,3),VLOOKUP(I17,Feuil1!$A$11:$G$29,2))))),IF(OR(H17="SEN",H17<1995),VLOOKUP(I17,Feuil1!$G$11:$L$25,6),IF(AND(H17>1994,H17<1998),VLOOKUP(I17,Feuil1!$G$11:$L$25,5),IF(AND(H17>1997,H17<2000),VLOOKUP(I17,Feuil1!$G$11:$L$25,4),IF(AND(H17>1999,H17<2002),VLOOKUP(I17,Feuil1!$G$11:$L$25,3),VLOOKUP(I17,Feuil1!$G$11:$L$25,2))))))) -> FC2 69 | Y17: =IF(I17="","",IF(A17="H",10^(0.794358141*LOG(I17/174.393)^2)*T17,IF(A17="F",10^(0.89726074*LOG(I17/148.026)^2)*T17,""))) -> 108.0663548 | AB17: =T17-HLOOKUP(X17,Feuil1!$C$1:$BL$10,2,FALSE) -> 22 | AC17: =T17-HLOOKUP(X17,Feuil1!$C$1:$BL$10,3,FALSE) -> 12 | AD17: =T17-HLOOKUP(X17,Feuil1!$C$1:$BL$10,4,FALSE) -> 2 | AE17: =T17-HLOOKUP(X17,Feuil1!$C$1:$BL$10,5,FALSE) -> -8 | AF17: =T17-HLOOKUP(X17,Feuil1!$C$1:$BL$10,6,FALSE) -> -23 | AG17: =T17-HLOOKUP(X17,Feuil1!$C$1:$BL$10,7,FALSE) -> -38 | AH17: =T17-HLOOKUP(X17,Feuil1!$C$1:$BL$10,8,FALSE) -> -53 | AI17: =T17-HLOOKUP(X17,Feuil1!$C$1:$BL$10,9,FALSE) -> -68 | AJ17: =T17-HLOOKUP(X17,Feuil1!$C$1:$BL$10,10,FALSE) -> -918 | AQ17: REG +
A18: F | B18: NE | C18: FCO | D18: 2 | E18: 370228 | F18: PERRAUT | G18: Fanny | H18: 1999 | I18: 66 | J18: CH Luxeuil | K18: F | L18: 25 | M18: 28 | N18: 32 | O18: =IF(H18="","",IF(MAXA(L18:N18)<=0,0,MAXA(L18:N18))) -> 32 | P18: 35 | Q18: 39 | R18: 42 | S18: =IF(H18="","",IF(MAXA(P18:R18)<=0,0,MAXA(P18:R18))) -> 42 | T18: =IF(H18="","",IF(OR(O18=0,S18=0),0,O18+S18)) -> 74 | U18: =T18-I18*2 -> -58 | V18: =IF(H18="","",AQ18) -> DEP + | W18: =IF(AJ18>=0,AJ18,IF(AI18>=0,AI18,IF(AH18>=0,AH18,IF(AG18>=0,AG18,IF(AF18>=0,AF18,IF(AE18>=0,AE18,IF(AD18>=0,AD18,IF(AC18>=0,AC18,AB18)))))))) -> 4 | X18: =IF(I18="","",IF(A18="H",IF(OR(H18="SEN",H18<1995),VLOOKUP(I18,Feuil1!$A$11:$G$29,6),IF(AND(H18>1994,H18<1998),VLOOKUP(I18,Feuil1!$A$11:$G$29,5),IF(AND(H18>1997,H18<2000),VLOOKUP(I18,Feuil1!$A$11:$G$29,4),IF(AND(H18>1999,H18<2002),VLOOKUP(I18,Feuil1!$A$11:$G$29,3),VLOOKUP(I18,Feuil1!$A$11:$G$29,2))))),IF(OR(H18="SEN",H18<1995),VLOOKUP(I18,Feuil1!$G$11:$L$25,6),IF(AND(H18>1994,H18<1998),VLOOKUP(I18,Feuil1!$G$11:$L$25,5),IF(AND(H18>1997,H18<2000),VLOOKUP(I18,Feuil1!$G$11:$L$25,4),IF(AND(H18>1999,H18<2002),VLOOKUP(I18,Feuil1!$G$11:$L$25,3),VLOOKUP(I18,Feuil1!$G$11:$L$25,2))))))) -> FC2 69 | Y18: =IF(I18="","",IF(A18="H",10^(0.794358141*LOG(I18/174.393)^2)*T18,IF(A18="F",10^(0.89726074*LOG(I18/148.026)^2)*T18,""))) -> 95.4213302 | AB18: =T18-HLOOKUP(X18,Feuil1!$C$1:$BL$10,2,FALSE) -> 14 | AC18: =T18-HLOOKUP(X18,Feuil1!$C$1:$BL$10,3,FALSE) -> 4 | AD18: =T18-HLOOKUP(X18,Feuil1!$C$1:$BL$10,4,FALSE) -> -6 | AE18: =T18-HLOOKUP(X18,Feuil1!$C$1:$BL$10,5,FALSE) -> -16 | AF18: =T18-HLOOKUP(X18,Feuil1!$C$1:$BL$10,6,FALSE) -> -31 | AG18: =T18-HLOOKUP(X18,Feuil1!$C$1:$BL$10,7,FALSE) -> -46 | AH18: =T18-HLOOKUP(X18,Feuil1!$C$1:$BL$10,8,FALSE) -> -61 | AI18: =T18-HLOOKUP(X18,Feuil1!$C$1:$BL$10,9,FALSE) -> -76 | AJ18: =T18-HLOOKUP(X18,Feuil1!$C$1:$BL$10,10,FALSE) -> -926 | AQ18: DEP +
AB19: =T19-HLOOKUP(X19,Feuil1!$C$1:$BL$10,2,FALSE) ->  | AC19: =T19-HLOOKUP(X19,Feuil1!$C$1:$BL$10,3,FALSE) ->  | AD19: =T19-HLOOKUP(X19,Feuil1!$C$1:$BL$10,4,FALSE) ->  | AE19: =T19-HLOOKUP(X19,Feuil1!$C$1:$BL$10,5,FALSE) ->  | AF19: =T19-HLOOKUP(X19,Feuil1!$C$1:$BL$10,6,FALSE) ->  | AG19: =T19-HLOOKUP(X19,Feuil1!$C$1:$BL$10,7,FALSE) ->  | AH19: =T19-HLOOKUP(X19,Feuil1!$C$1:$BL$10,8,FALSE) ->  | AI19: =T19-HLOOKUP(X19,Feuil1!$C$1:$BL$10,9,FALSE) ->  | AJ19: =T19-HLOOKUP(X19,Feuil1!$C$1:$BL$10,10,FALSE) -> 
AB20: =T20-HLOOKUP(X20,Feuil1!$C$1:$BL$10,2,FALSE) ->  | AC20: =T20-HLOOKUP(X20,Feuil1!$C$1:$BL$10,3,FALSE) ->  | AD20: =T20-HLOOKUP(X20,Feuil1!$C$1:$BL$10,4,FALSE) ->  | AE20: =T20-HLOOKUP(X20,Feuil1!$C$1:$BL$10,5,FALSE) ->  | AF20: =T20-HLOOKUP(X20,Feuil1!$C$1:$BL$10,6,FALSE) ->  | AG20: =T20-HLOOKUP(X20,Feuil1!$C$1:$BL$10,7,FALSE) ->  | AH20: =T20-HLOOKUP(X20,Feuil1!$C$1:$BL$10,8,FALSE) ->  | AI20: =T20-HLOOKUP(X20,Feuil1!$C$1:$BL$10,9,FALSE) ->  | AJ20: =T20-HLOOKUP(X20,Feuil1!$C$1:$BL$10,10,FALSE) ->  | AQ20: =IF(AJ20>=0,$AJ$4,IF(AI20>=0,$AI$4,IF(AH20>=0,$AH$4,IF(AG20>=0,$AG$4,IF(AF20>=0,$AF$4,IF(AE20>=0,$AE$4,IF(AD20>=0,$AD$4,IF(AC20>=0,$AC$4,$AB$4)))))))) -> 
A21: H | B21: CO | C21: BNO | D21: 1 | E21: 234307 | F21: Rousselet | G21: Clément | H21: 1999 | I21: 49.5 | J21: Giberville | K21: F | L21: 45 | M21: -49 | N21: -49 | O21: =IF(H21="","",IF(MAXA(L21:N21)<=0,0,MAXA(L21:N21))) -> 45 | P21: 55 | Q21: 58 | R21: 61 | S21: =IF(H21="","",IF(MAXA(P21:R21)<=0,0,MAXA(P21:R21))) -> 61 | T21: =IF(H21="","",IF(OR(O21=0,S21=0),0,O21+S21)) -> 106 | U21: =T21-I21*2 -> 7 | V21: =IF(H21="","",AQ21) -> IRG + | W21: =IF(AJ21>=0,AJ21,IF(AI21>=0,AI21,IF(AH21>=0,AH21,IF(AG21>=0,AG21,IF(AF21>=0,AF21,IF(AE21>=0,AE21,IF(AD21>=0,AD21,IF(AC21>=0,AC21,AB21)))))))) -> 11 | X21: =IF(I21="","",IF(A21="H",IF(OR(H21="SEN",H21<1995),VLOOKUP(I21,Feuil1!$A$11:$G$29,6),IF(AND(H21>1994,H21<1998),VLOOKUP(I21,Feuil1!$A$11:$G$29,5),IF(AND(H21>1997,H21<2000),VLOOKUP(I21,Feuil1!$A$11:$G$29,4),IF(AND(H21>1999,H21<2002),VLOOKUP(I21,Feuil1!$A$11:$G$29,3),VLOOKUP(I21,Feuil1!$A$11:$G$29,2))))),IF(OR(H21="SEN",H21<1995),VLOOKUP(I21,Feuil1!$G$11:$L$25,6),IF(AND(H21>1994,H21<1998),VLOOKUP(I21,Feuil1!$G$11:$L$25,5),IF(AND(H21>1997,H21<2000),VLOOKUP(I21,Feuil1!$G$11:$L$25,4),IF(AND(H21>1999,H21<2002),VLOOKUP(I21,Feuil1!$G$11:$L$25,3),VLOOKUP(I21,Feuil1!$G$11:$L$25,2))))))) -> C2 50 | Y21: =IF(I21="","",IF(A21="H",10^(0.794358141*LOG(I21/174.393)^2)*T21,IF(A21="F",10^(0.89726074*LOG(I21/148.026)^2)*T21,""))) -> 183.1971859 | AB21: =T21-HLOOKUP(X21,Feuil1!$C$1:$BL$10,2,FALSE) -> 61 | AC21: =T21-HLOOKUP(X21,Feuil1!$C$1:$BL$10,3,FALSE) -> 41 | AD21: =T21-HLOOKUP(X21,Feuil1!$C$1:$BL$10,4,FALSE) -> 26 | AE21: =T21-HLOOKUP(X21,Feuil1!$C$1:$BL$10,5,FALSE) -> 11 | AF21: =T21-HLOOKUP(X21,Feuil1!$C$1:$BL$10,6,FALSE) -> -4 | AG21: =T21-HLOOKUP(X21,Feuil1!$C$1:$BL$10,7,FALSE) -> -14 | AH21: =T21-HLOOKUP(X21,Feuil1!$C$1:$BL$10,8,FALSE) -> -29 | AI21: =T21-HLOOKUP(X21,Feuil1!$C$1:$BL$10,9,FALSE) -> -44 | AJ21: =T21-HLOOKUP(X21,Feuil1!$C$1:$BL$10,10,FALSE) -> -894 | AQ21: IRG +
A22: H | B22: NE | C22: FCO | D22: 2 | E22: 374649 | F22: CREVOISIER | G22: Jules | H22: 1999 | I22: 48.6 | J22: CHLuxeuil | K22: F | L22: -26 | M22: 26 | N22: -31 | O22: =IF(H22="","",IF(MAXA(L22:N22)<=0,0,MAXA(L22:N22))) -> 26 | P22: 35 | Q22: 40 | R22: -44 | S22: =IF(H22="","",IF(MAXA(P22:R22)<=0,0,MAXA(P22:R22))) -> 40 | T22: =IF(H22="","",IF(OR(O22=0,S22=0),0,O22+S22)) -> 66 | U22: =T22-I22*2 -> -31.2 | V22: =IF(H22="","",AQ22) -> DEP + | W22: =IF(AJ22>=0,AJ22,IF(AI22>=0,AI22,IF(AH22>=0,AH22,IF(AG22>=0,AG22,IF(AF22>=0,AF22,IF(AE22>=0,AE22,IF(AD22>=0,AD22,IF(AC22>=0,AC22,AB22)))))))) -> 1 | X22: =IF(I22="","",IF(A22="H",IF(OR(H22="SEN",H22<1995),VLOOKUP(I22,Feuil1!$A$11:$G$29,6),IF(AND(H22>1994,H22<1998),VLOOKUP(I22,Feuil1!$A$11:$G$29,5),IF(AND(H22>1997,H22<2000),VLOOKUP(I22,Feuil1!$A$11:$G$29,4),IF(AND(H22>1999,H22<2002),VLOOKUP(I22,Feuil1!$A$11:$G$29,3),VLOOKUP(I22,Feuil1!$A$11:$G$29,2))))),IF(OR(H22="SEN",H22<1995),VLOOKUP(I22,Feuil1!$G$11:$L$25,6),IF(AND(H22>1994,H22<1998),VLOOKUP(I22,Feuil1!$G$11:$L$25,5),IF(AND(H22>1997,H22<2000),VLOOKUP(I22,Feuil1!$G$11:$L$25,4),IF(AND(H22>1999,H22<2002),VLOOKUP(I22,Feuil1!$G$11:$L$25,3),VLOOKUP(I22,Feuil1!$G$11:$L$25,2))))))) -> C2 50 | Y22: =IF(I22="","",IF(A22="H",10^(0.794358141*LOG(I22/174.393)^2)*T22,IF(A22="F",10^(0.89726074*LOG(I22/148.026)^2)*T22,""))) -> 115.9128464 | AB22: =T22-HLOOKUP(X22,Feuil1!$C$1:$BL$10,2,FALSE) -> 21 | AC22: =T22-HLOOKUP(X22,Feuil1!$C$1:$BL$10,3,FALSE) -> 1 | AD22: =T22-HLOOKUP(X22,Feuil1!$C$1:$BL$10,4,FALSE) -> -14 | AE22: =T22-HLOOKUP(X22,Feuil1!$C$1:$BL$10,5,FALSE) -> -29 | AF22: =T22-HLOOKUP(X22,Feuil1!$C$1:$BL$10,6,FALSE) -> -44 | AG22: =T22-HLOOKUP(X22,Feuil1!$C$1:$BL$10,7,FALSE) -> -54 | AH22: =T22-HLOOKUP(X22,Feuil1!$C$1:$BL$10,8,FALSE) -> -69 | AI22: =T22-HLOOKUP(X22,Feuil1!$C$1:$BL$10,9,FALSE) -> -84 | AJ22: =T22-HLOOKUP(X22,Feuil1!$C$1:$BL$10,10,FALSE) -> -934 | AQ22: =IF(AJ22>=0,$AJ$4,IF(AI22>=0,$AI$4,IF(AH22>=0,$AH$4,IF(AG22>=0,$AG$4,IF(AF22>=0,$AF$4,IF(AE22>=0,$AE$4,IF(AD22>=0,$AD$4,IF(AC22>=0,$AC$4,$AB$4)))))))) -> DEP +
AB23: =T23-HLOOKUP(X23,Feuil1!$C$1:$BL$10,2,FALSE) ->  | AC23: =T23-HLOOKUP(X23,Feuil1!$C$1:$BL$10,3,FALSE) ->  | AD23: =T23-HLOOKUP(X23,Feuil1!$C$1:$BL$10,4,FALSE) ->  | AE23: =T23-HLOOKUP(X23,Feuil1!$C$1:$BL$10,5,FALSE) ->  | AF23: =T23-HLOOKUP(X23,Feuil1!$C$1:$BL$10,6,FALSE) ->  | AG23: =T23-HLOOKUP(X23,Feuil1!$C$1:$BL$10,7,FALSE) ->  | AH23: =T23-HLOOKUP(X23,Feuil1!$C$1:$BL$10,8,FALSE) ->  | AI23: =T23-HLOOKUP(X23,Feuil1!$C$1:$BL$10,9,FALSE) ->  | AJ23: =T23-HLOOKUP(X23,Feuil1!$C$1:$BL$10,10,FALSE) -> 
A24: H | B24: N | C24: PIC | D24: 1 | E24: 277201 | F24: FLAMENT | G24: Dylan | H24: 1999 | I24: 53.6 | J24: Roisel CHFM | K24: F | L24: 45 | M24: 50 | N24: -53 | O24: =IF(H24="","",IF(MAXA(L24:N24)<=0,0,MAXA(L24:N24))) -> 50 | P24: 67 | Q24: 72 | R24: -77 | S24: =IF(H24="","",IF(MAXA(P24:R24)<=0,0,MAXA(P24:R24))) -> 72 | T24: =IF(H24="","",IF(OR(O24=0,S24=0),0,O24+S24)) -> 122 | U24: =T24-I24*2 -> 14.8 | V24: =IF(H24="","",AQ24) -> IRG + | W24: =IF(AJ24>=0,AJ24,IF(AI24>=0,AI24,IF(AH24>=0,AH24,IF(AG24>=0,AG24,IF(AF24>=0,AF24,IF(AE24>=0,AE24,IF(AD24>=0,AD24,IF(AC24>=0,AC24,AB24)))))))) -> 7 | X24: =IF(I24="","",IF(A24="H",IF(OR(H24="SEN",H24<1995),VLOOKUP(I24,Feuil1!$A$11:$G$29,6),IF(AND(H24>1994,H24<1998),VLOOKUP(I24,Feuil1!$A$11:$G$29,5),IF(AND(H24>1997,H24<2000),VLOOKUP(I24,Feuil1!$A$11:$G$29,4),IF(AND(H24>1999,H24<2002),VLOOKUP(I24,Feuil1!$A$11:$G$29,3),VLOOKUP(I24,Feuil1!$A$11:$G$29,2))))),IF(OR(H24="SEN",H24<1995),VLOOKUP(I24,Feuil1!$G$11:$L$25,6),IF(AND(H24>1994,H24<1998),VLOOKUP(I24,Feuil1!$G$11:$L$25,5),IF(AND(H24>1997,H24<2000),VLOOKUP(I24,Feuil1!$G$11:$L$25,4),IF(AND(H24>1999,H24<2002),VLOOKUP(I24,Feuil1!$G$11:$L$25,3),VLOOKUP(I24,Feuil1!$G$11:$L$25,2))))))) -> C2 56 | Y24: =IF(I24="","",IF(A24="H",10^(0.794358141*LOG(I24/174.393)^2)*T24,IF(A24="F",10^(0.89726074*LOG(I24/148.026)^2)*T24,""))) -> 197.1934354 | AB24: =T24-HLOOKUP(X24,Feuil1!$C$1:$BL$10,2,FALSE) -> 57 | AC24: =T24-HLOOKUP(X24,Feuil1!$C$1:$BL$10,3,FALSE) -> 37 | AD24: =T24-HLOOKUP(X24,Feuil1!$C$1:$BL$10,4,FALSE) -> 22 | AE24: =T24-HLOOKUP(X24,Feuil1!$C$1:$BL$10,5,FALSE) -> 7 | AF24: =T24-HLOOKUP(X24,Feuil1!$C$1:$BL$10,6,FALSE) -> -8 | AG24: =T24-HLOOKUP(X24,Feuil1!$C$1:$BL$10,7,FALSE) -> -23 | AH24: =T24-HLOOKUP(X24,Feuil1!$C$1:$BL$10,8,FALSE) -> -48 | AI24: =T24-HLOOKUP(X24,Feuil1!$C$1:$BL$10,9,FALSE) -> -68 | AJ24: =T24-HLOOKUP(X24,Feuil1!$C$1:$BL$10,10,FALSE) -> -878 | AQ24: =IF(AJ24>=0,$AJ$4,IF(AI24>=0,$AI$4,IF(AH24>=0,$AH$4,IF(AG24>=0,$AG$4,IF(AF24>=0,$AF$4,IF(AE24>=0,$AE$4,IF(AD24>=0,$AD$4,IF(AC24>=0,$AC$4,$AB$4)))))))) -> IRG +
A25: H | B25: CO | C25: CEN | D25: 2 | E25: 357303 | F25: ESTEBAN | G25: Marlon | H25: 1999 | I25: 51.1 | J25: AAJ BLOIS | K25: F | L25: 48 | M25: 50 | N25: 52 | O25: 52 | P25: 60 | Q25: 63 | R25: 65 | S25: 65 | T25: 117 | U25: 14.8 | V25: IRG + | W25: 2 | X25: =IF(I25="","",IF(A25="H",IF(OR(H25="SEN",H25<1995),VLOOKUP(I25,Feuil1!$A$11:$G$29,6),IF(AND(H25>1994,H25<1998),VLOOKUP(I25,Feuil1!$A$11:$G$29,5),IF(AND(H25>1997,H25<2000),VLOOKUP(I25,Feuil1!$A$11:$G$29,4),IF(AND(H25>1999,H25<2002),VLOOKUP(I25,Feuil1!$A$11:$G$29,3),VLOOKUP(I25,Feuil1!$A$11:$G$29,2))))),IF(OR(H25="SEN",H25<1995),VLOOKUP(I25,Feuil1!$G$11:$L$25,6),IF(AND(H25>1994,H25<1998),VLOOKUP(I25,Feuil1!$G$11:$L$25,5),IF(AND(H25>1997,H25<2000),VLOOKUP(I25,Feuil1!$G$11:$L$25,4),IF(AND(H25>1999,H25<2002),VLOOKUP(I25,Feuil1!$G$11:$L$25,3),VLOOKUP(I25,Feuil1!$G$11:$L$25,2))))))) -> C2 56 | Y25: 196.7640983 | AB25: =T25-HLOOKUP(X25,Feuil1!$C$1:$BL$10,2,FALSE) -> 52 | AC25: =T25-HLOOKUP(X25,Feuil1!$C$1:$BL$10,3,FALSE) -> 32 | AD25: =T25-HLOOKUP(X25,Feuil1!$C$1:$BL$10,4,FALSE) -> 17 | AE25: =T25-HLOOKUP(X25,Feuil1!$C$1:$BL$10,5,FALSE) -> 2 | AF25: =T25-HLOOKUP(X25,Feuil1!$C$1:$BL$10,6,FALSE) -> -13 | AG25: =T25-HLOOKUP(X25,Feuil1!$C$1:$BL$10,7,FALSE) -> -28 | AH25: =T25-HLOOKUP(X25,Feuil1!$C$1:$BL$10,8,FALSE) -> -53 | AI25: =T25-HLOOKUP(X25,Feuil1!$C$1:$BL$10,9,FALSE) -> -73 | AJ25: =T25-HLOOKUP(X25,Feuil1!$C$1:$BL$10,10,FALSE) -> -883 | AQ25: IRG +
A26: H | B26: N | C26: NPC | D26: 3 | E26: 279997 | F26: RIQUIER | G26: Dimitri | H26: 1999 | I26: 51.1 | J26: COMINES | K26: F | L26: 45 | M26: 50 | N26: -52 | O26: 50 | P26: 60 | Q26: 65 | R26: -70 | S26: 65 | T26: 115 | U26: 12.8 | V26: IRG + | W26: 0 | X26: =IF(I26="","",IF(A26="H",IF(OR(H26="SEN",H26<1995),VLOOKUP(I26,Feuil1!$A$11:$G$29,6),IF(AND(H26>1994,H26<1998),VLOOKUP(I26,Feuil1!$A$11:$G$29,5),IF(AND(H26>1997,H26<2000),VLOOKUP(I26,Feuil1!$A$11:$G$29,4),IF(AND(H26>1999,H26<2002),VLOOKUP(I26,Feuil1!$A$11:$G$29,3),VLOOKUP(I26,Feuil1!$A$11:$G$29,2))))),IF(OR(H26="SEN",H26<1995),VLOOKUP(I26,Feuil1!$G$11:$L$25,6),IF(AND(H26>1994,H26<1998),VLOOKUP(I26,Feuil1!$G$11:$L$25,5),IF(AND(H26>1997,H26<2000),VLOOKUP(I26,Feuil1!$G$11:$L$25,4),IF(AND(H26>1999,H26<2002),VLOOKUP(I26,Feuil1!$G$11:$L$25,3),VLOOKUP(I26,Feuil1!$G$11:$L$25,2))))))) -> C2 56 | Y26: 193.4006094 | AB26: =T26-HLOOKUP(X26,Feuil1!$C$1:$BL$10,2,FALSE) -> 50 | AC26: =T26-HLOOKUP(X26,Feuil1!$C$1:$BL$10,3,FALSE) -> 30 | AD26: =T26-HLOOKUP(X26,Feuil1!$C$1:$BL$10,4,FALSE) -> 15 | AE26: =T26-HLOOKUP(X26,Feuil1!$C$1:$BL$10,5,FALSE) -> 0 | AF26: =T26-HLOOKUP(X26,Feuil1!$C$1:$BL$10,6,FALSE) -> -15 | AG26: =T26-HLOOKUP(X26,Feuil1!$C$1:$BL$10,7,FALSE) -> -30 | AH26: =T26-HLOOKUP(X26,Feuil1!$C$1:$BL$10,8,FALSE) -> -55 | AI26: =T26-HLOOKUP(X26,Feuil1!$C$1:$BL$10,9,FALSE) -> -75 | AJ26: =T26-HLOOKUP(X26,Feuil1!$C$1:$BL$10,10,FALSE) -> -885 | AQ26: IRG +
A27: H | B27: CO | C27: CEN | D27: 4 | E27: 360888 | F27: PARCOLLET | G27: Guillaume | H27: 1999 | I27: 54.7 | J27: CMO ORLEANS | K27: F | L27: 49 | M27: -51 | N27: -51 | O27: 49 | P27: 63 | Q27: -66 | R27: 66 | S27: 66 | T27: 115 | U27: 5.6 | V27: IRG + | W27: 0 | X27: =IF(I27="","",IF(A27="H",IF(OR(H27="SEN",H27<1995),VLOOKUP(I27,Feuil1!$A$11:$G$29,6),IF(AND(H27>1994,H27<1998),VLOOKUP(I27,Feuil1!$A$11:$G$29,5),IF(AND(H27>1997,H27<2000),VLOOKUP(I27,Feuil1!$A$11:$G$29,4),IF(AND(H27>1999,H27<2002),VLOOKUP(I27,Feuil1!$A$11:$G$29,3),VLOOKUP(I27,Feuil1!$A$11:$G$29,2))))),IF(OR(H27="SEN",H27<1995),VLOOKUP(I27,Feuil1!$G$11:$L$25,6),IF(AND(H27>1994,H27<1998),VLOOKUP(I27,Feuil1!$G$11:$L$25,5),IF(AND(H27>1997,H27<2000),VLOOKUP(I27,Feuil1!$G$11:$L$25,4),IF(AND(H27>1999,H27<2002),VLOOKUP(I27,Feuil1!$G$11:$L$25,3),VLOOKUP(I27,Feuil1!$G$11:$L$25,2))))))) -> C2 56 | Y27: 182.8566402 | AB27: =T27-HLOOKUP(X27,Feuil1!$C$1:$BL$10,2,FALSE) -> 50 | AC27: =T27-HLOOKUP(X27,Feuil1!$C$1:$BL$10,3,FALSE) -> 30 | AD27: =T27-HLOOKUP(X27,Feuil1!$C$1:$BL$10,4,FALSE) -> 15 | AE27: =T27-HLOOKUP(X27,Feuil1!$C$1:$BL$10,5,FALSE) -> 0 | AF27: =T27-HLOOKUP(X27,Feuil1!$C$1:$BL$10,6,FALSE) -> -15 | AG27: =T27-HLOOKUP(X27,Feuil1!$C$1:$BL$10,7,FALSE) -> -30 | AH27: =T27-HLOOKUP(X27,Feuil1!$C$1:$BL$10,8,FALSE) -> -55 | AI27: =T27-HLOOKUP(X27,Feuil1!$C$1:$BL$10,9,FALSE) -> -75 | AJ27: =T27-HLOOKUP(X27,Feuil1!$C$1:$BL$10,10,FALSE) -> -885 | AQ27: IRG +
A28: H | B28: SEST | C28: RAL | D28: 5 | E28: 391418 | F28: BAH | G28: Boubacar | H28: 1998 | I28: 55.06 | J28: VAULX EN VELIN | K28: F | L28: 45 | M28: -50 | N28: -50 | O28: 45 | P28: 60 | Q28: 65 | R28: 68 | S28: 68 | T28: 113 | U28: 2.88 | V28: REG + | W28: 13 | X28: =IF(I28="","",IF(A28="H",IF(OR(H28="SEN",H28<1995),VLOOKUP(I28,Feuil1!$A$11:$G$29,6),IF(AND(H28>1994,H28<1998),VLOOKUP(I28,Feuil1!$A$11:$G$29,5),IF(AND(H28>1997,H28<2000),VLOOKUP(I28,Feuil1!$A$11:$G$29,4),IF(AND(H28>1999,H28<2002),VLOOKUP(I28,Feuil1!$A$11:$G$29,3),VLOOKUP(I28,Feuil1!$A$11:$G$29,2))))),IF(OR(H28="SEN",H28<1995),VLOOKUP(I28,Feuil1!$G$11:$L$25,6),IF(AND(H28>1994,H28<1998),VLOOKUP(I28,Feuil1!$G$11:$L$25,5),IF(AND(H28>1997,H28<2000),VLOOKUP(I28,Feuil1!$G$11:$L$25,4),IF(AND(H28>1999,H28<2002),VLOOKUP(I28,Feuil1!$G$11:$L$25,3),VLOOKUP(I28,Feuil1!$G$11:$L$25,2))))))) -> C2 56 | Y28: 178.7387533 | AB28: =T28-HLOOKUP(X28,Feuil1!$C$1:$BL$10,2,FALSE) -> 48 | AC28: =T28-HLOOKUP(X28,Feuil1!$C$1:$BL$10,3,FALSE) -> 28 | AD28: =T28-HLOOKUP(X28,Feuil1!$C$1:$BL$10,4,FALSE) -> 13 | AE28: =T28-HLOOKUP(X28,Feuil1!$C$1:$BL$10,5,FALSE) -> -2 | AF28: =T28-HLOOKUP(X28,Feuil1!$C$1:$BL$10,6,FALSE) -> -17 | AG28: =T28-HLOOKUP(X28,Feuil1!$C$1:$BL$10,7,FALSE) -> -32 | AH28: =T28-HLOOKUP(X28,Feuil1!$C$1:$BL$10,8,FALSE) -> -57 | AI28: =T28-HLOOKUP(X28,Feuil1!$C$1:$BL$10,9,FALSE) -> -77 | AJ28: =T28-HLOOKUP(X28,Feuil1!$C$1:$BL$10,10,FALSE) -> -887 | AQ28: REG +
A29: H | B29: N | C29: IDF | D29: 6 | E29: 377073 | F29: BENSOUSSAN | G29: JOACHIM | H29: 1999 | I29: 50.5 | J29: FRANCONVILLE | K29: F | L29: 40 | M29: 45 | N29: -46 | O29: 45 | P29: 50 | Q29: 55 | R29: -56 | S29: 55 | T29: 100 | U29: -1 | V29: REG + | W29: 0 | X29: =IF(I29="","",IF(A29="H",IF(OR(H29="SEN",H29<1995),VLOOKUP(I29,Feuil1!$A$11:$G$29,6),IF(AND(H29>1994,H29<1998),VLOOKUP(I29,Feuil1!$A$11:$G$29,5),IF(AND(H29>1997,H29<2000),VLOOKUP(I29,Feuil1!$A$11:$G$29,4),IF(AND(H29>1999,H29<2002),VLOOKUP(I29,Feuil1!$A$11:$G$29,3),VLOOKUP(I29,Feuil1!$A$11:$G$29,2))))),IF(OR(H29="SEN",H29<1995),VLOOKUP(I29,Feuil1!$G$11:$L$25,6),IF(AND(H29>1994,H29<1998),VLOOKUP(I29,Feuil1!$G$11:$L$25,5),IF(AND(H29>1997,H29<2000),VLOOKUP(I29,Feuil1!$G$11:$L$25,4),IF(AND(H29>1999,H29<2002),VLOOKUP(I29,Feuil1!$G$11:$L$25,3),VLOOKUP(I29,Feuil1!$G$11:$L$25,2))))))) -> C2 56 | Y29: 169.8734029 | AB29: =T29-HLOOKUP(X29,Feuil1!$C$1:$BL$10,2,FALSE) -> 35 | AC29: =T29-HLOOKUP(X29,Feuil1!$C$1:$BL$10,3,FALSE) -> 15 | AD29: =T29-HLOOKUP(X29,Feuil1!$C$1:$BL$10,4,FALSE) -> 0 | AE29: =T29-HLOOKUP(X29,Feuil1!$C$1:$BL$10,5,FALSE) -> -15 | AF29: =T29-HLOOKUP(X29,Feuil1!$C$1:$BL$10,6,FALSE) -> -30 | AG29: =T29-HLOOKUP(X29,Feuil1!$C$1:$BL$10,7,FALSE) -> -45 | AH29: =T29-HLOOKUP(X29,Feuil1!$C$1:$BL$10,8,FALSE) -> -70 | AI29: =T29-HLOOKUP(X29,Feuil1!$C$1:$BL$10,9,FALSE) -> -90 | AJ29: =T29-HLOOKUP(X29,Feuil1!$C$1:$BL$10,10,FALSE) -> -900 | AQ29: REG +
A30: H | B30: NE | C30: ALS | D30: 7 | E30: 355150 | F30: ENGEL | G30: NICOLAS | H30: 1998 | I30: 55.7 | J30: SR Obernai HM | K30: F | L30: -38 | M30: -38 | N30: 38 | O30: 38 | P30: 50 | Q30: 55 | R30: -58 | S30: 55 | T30: 93 | U30: -18.4 | V30: DEP + | W30: 8 | X30: =IF(I30="","",IF(A30="H",IF(OR(H30="SEN",H30<1995),VLOOKUP(I30,Feuil1!$A$11:$G$29,6),IF(AND(H30>1994,H30<1998),VLOOKUP(I30,Feuil1!$A$11:$G$29,5),IF(AND(H30>1997,H30<2000),VLOOKUP(I30,Feuil1!$A$11:$G$29,4),IF(AND(H30>1999,H30<2002),VLOOKUP(I30,Feuil1!$A$11:$G$29,3),VLOOKUP(I30,Feuil1!$A$11:$G$29,2))))),IF(OR(H30="SEN",H30<1995),VLOOKUP(I30,Feuil1!$G$11:$L$25,6),IF(AND(H30>1994,H30<1998),VLOOKUP(I30,Feuil1!$G$11:$L$25,5),IF(AND(H30>1997,H30<2000),VLOOKUP(I30,Feuil1!$G$11:$L$25,4),IF(AND(H30>1999,H30<2002),VLOOKUP(I30,Feuil1!$G$11:$L$25,3),VLOOKUP(I30,Feuil1!$G$11:$L$25,2))))))) -> C2 56 | Y30: 145.7641891 | AB30: =T30-HLOOKUP(X30,Feuil1!$C$1:$BL$10,2,FALSE) -> 28 | AC30: =T30-HLOOKUP(X30,Feuil1!$C$1:$BL$10,3,FALSE) -> 8 | AD30: =T30-HLOOKUP(X30,Feuil1!$C$1:$BL$10,4,FALSE) -> -7 | AE30: =T30-HLOOKUP(X30,Feuil1!$C$1:$BL$10,5,FALSE) -> -22 | AF30: =T30-HLOOKUP(X30,Feuil1!$C$1:$BL$10,6,FALSE) -> -37 | AG30: =T30-HLOOKUP(X30,Feuil1!$C$1:$BL$10,7,FALSE) -> -52 | AH30: =T30-HLOOKUP(X30,Feuil1!$C$1:$BL$10,8,FALSE) -> -77 | AI30: =T30-HLOOKUP(X30,Feuil1!$C$1:$BL$10,9,FALSE) -> -97 | AJ30: =T30-HLOOKUP(X30,Feuil1!$C$1:$BL$10,10,FALSE) -> -907 | AQ30: DEP +
A31: H | B31: CO | C31: BNO | D31: 8 | E31: 312031 | F31: James | G31: Paul | H31: 1999 | I31: 52.4 | J31: Saint-Lô | K31: F | L31: -40 | M31: -40 | N31: 40 | O31: 40 | P31: 45 | Q31: -50 | R31: -50 | S31: 45 | T31: 85 | U31: -19.8 | V31: DEP + | W31: 0 | X31: =IF(I31="","",IF(A31="H",IF(OR(H31="SEN",H31<1995),VLOOKUP(I31,Feuil1!$A$11:$G$29,6),IF(AND(H31>1994,H31<1998),VLOOKUP(I31,Feuil1!$A$11:$G$29,5),IF(AND(H31>1997,H31<2000),VLOOKUP(I31,Feuil1!$A$11:$G$29,4),IF(AND(H31>1999,H31<2002),VLOOKUP(I31,Feuil1!$A$11:$G$29,3),VLOOKUP(I31,Feuil1!$A$11:$G$29,2))))),IF(OR(H31="SEN",H31<1995),VLOOKUP(I31,Feuil1!$G$11:$L$25,6),IF(AND(H31>1994,H31<1998),VLOOKUP(I31,Feuil1!$G$11:$L$25,5),IF(AND(H31>1997,H31<2000),VLOOKUP(I31,Feuil1!$G$11:$L$25,4),IF(AND(H31>1999,H31<2002),VLOOKUP(I31,Feuil1!$G$11:$L$25,3),VLOOKUP(I31,Feuil1!$G$11:$L$25,2))))))) -> C2 56 | Y31: 139.9693179 | AB31: =T31-HLOOKUP(X31,Feuil1!$C$1:$BL$10,2,FALSE) -> 20 | AC31: =T31-HLOOKUP(X31,Feuil1!$C$1:$BL$10,3,FALSE) -> 0 | AD31: =T31-HLOOKUP(X31,Feuil1!$C$1:$BL$10,4,FALSE) -> -15 | AE31: =T31-HLOOKUP(X31,Feuil1!$C$1:$BL$10,5,FALSE) -> -30 | AF31: =T31-HLOOKUP(X31,Feuil1!$C$1:$BL$10,6,FALSE) -> -45 | AG31: =T31-HLOOKUP(X31,Feuil1!$C$1:$BL$10,7,FALSE) -> -60 | AH31: =T31-HLOOKUP(X31,Feuil1!$C$1:$BL$10,8,FALSE) -> -85 | AI31: =T31-HLOOKUP(X31,Feuil1!$C$1:$BL$10,9,FALSE) -> -105 | AJ31: =T31-HLOOKUP(X31,Feuil1!$C$1:$BL$10,10,FALSE) -> -915 | AQ31: DEP +
A32: H | B32: CO | C32: BRE | D32: 9 | E32: 392691 | F32: SAM | G32: SENSAM | H32: 1999 | I32: 55.7 | J32: Essa Fitness | K32: F | L32: -30 | M32: 34 | N32: 36 | O32: 36 | P32: 36 | Q32: 42 | R32: 45 | S32: 45 | T32: 81 | U32: -30.4 | V32: DEB | W32: 16 | X32: =IF(I32="","",IF(A32="H",IF(OR(H32="SEN",H32<1995),VLOOKUP(I32,Feuil1!$A$11:$G$29,6),IF(AND(H32>1994,H32<1998),VLOOKUP(I32,Feuil1!$A$11:$G$29,5),IF(AND(H32>1997,H32<2000),VLOOKUP(I32,Feuil1!$A$11:$G$29,4),IF(AND(H32>1999,H32<2002),VLOOKUP(I32,Feuil1!$A$11:$G$29,3),VLOOKUP(I32,Feuil1!$A$11:$G$29,2))))),IF(OR(H32="SEN",H32<1995),VLOOKUP(I32,Feuil1!$G$11:$L$25,6),IF(AND(H32>1994,H32<1998),VLOOKUP(I32,Feuil1!$G$11:$L$25,5),IF(AND(H32>1997,H32<2000),VLOOKUP(I32,Feuil1!$G$11:$L$25,4),IF(AND(H32>1999,H32<2002),VLOOKUP(I32,Feuil1!$G$11:$L$25,3),VLOOKUP(I32,Feuil1!$G$11:$L$25,2))))))) -> C2 56 | Y32: 126.9559066 | AB32: =T32-HLOOKUP(X32,Feuil1!$C$1:$BL$10,2,FALSE) -> 16 | AC32: =T32-HLOOKUP(X32,Feuil1!$C$1:$BL$10,3,FALSE) -> -4 | AD32: =T32-HLOOKUP(X32,Feuil1!$C$1:$BL$10,4,FALSE) -> -19 | AE32: =T32-HLOOKUP(X32,Feuil1!$C$1:$BL$10,5,FALSE) -> -34 | AF32: =T32-HLOOKUP(X32,Feuil1!$C$1:$BL$10,6,FALSE) -> -49 | AG32: =T32-HLOOKUP(X32,Feuil1!$C$1:$BL$10,7,FALSE) -> -64 | AH32: =T32-HLOOKUP(X32,Feuil1!$C$1:$BL$10,8,FALSE) -> -89 | AI32: =T32-HLOOKUP(X32,Feuil1!$C$1:$BL$10,9,FALSE) -> -109 | AJ32: =T32-HLOOKUP(X32,Feuil1!$C$1:$BL$10,10,FALSE) -> -919 | AQ32: DEB
A33: H | B33: CO | C33: BNO | D33: 10 | E33: 383820 | F33: Renault | G33: Théo | H33: 1998 | I33: 56 | J33: Sannerville | K33: F | L33: 30 | M33: 32 | N33: 34 | O33: 34 | P33: 38 | Q33: 41 | R33: 42 | S33: 42 | T33: 76 | U33: -36 | V33: DEB | W33: 11 | X33: =IF(I33="","",IF(A33="H",IF(OR(H33="SEN",H33<1995),VLOOKUP(I33,Feuil1!$A$11:$G$29,6),IF(AND(H33>1994,H33<1998),VLOOKUP(I33,Feuil1!$A$11:$G$29,5),IF(AND(H33>1997,H33<2000),VLOOKUP(I33,Feuil1!$A$11:$G$29,4),IF(AND(H33>1999,H33<2002),VLOOKUP(I33,Feuil1!$A$11:$G$29,3),VLOOKUP(I33,Feuil1!$A$11:$G$29,2))))),IF(OR(H33="SEN",H33<1995),VLOOKUP(I33,Feuil1!$G$11:$L$25,6),IF(AND(H33>1994,H33<1998),VLOOKUP(I33,Feuil1!$G$11:$L$25,5),IF(AND(H33>1997,H33<2000),VLOOKUP(I33,Feuil1!$G$11:$L$25,4),IF(AND(H33>1999,H33<2002),VLOOKUP(I33,Feuil1!$G$11:$L$25,3),VLOOKUP(I33,Feuil1!$G$11:$L$25,2))))))) -> C2 56 | Y33: 118.617492 | AB33: =T33-HLOOKUP(X33,Feuil1!$C$1:$BL$10,2,FALSE) -> 11 | AC33: =T33-HLOOKUP(X33,Feuil1!$C$1:$BL$10,3,FALSE) -> -9 | AD33: =T33-HLOOKUP(X33,Feuil1!$C$1:$BL$10,4,FALSE) -> -24 | AE33: =T33-HLOOKUP(X33,Feuil1!$C$1:$BL$10,5,FALSE) -> -39 | AF33: =T33-HLOOKUP(X33,Feuil1!$C$1:$BL$10,6,FALSE) -> -54 | AG33: =T33-HLOOKUP(X33,Feuil1!$C$1:$BL$10,7,FALSE) -> -69 | AH33: =T33-HLOOKUP(X33,Feuil1!$C$1:$BL$10,8,FALSE) -> -94 | AI33: =T33-HLOOKUP(X33,Feuil1!$C$1:$BL$10,9,FALSE) -> -114 | AJ33: =T33-HLOOKUP(X33,Feuil1!$C$1:$BL$10,10,FALSE) -> -924 | AQ33: DEB
A34: H | B34: N | C34: NPC | D34: 11 | E34: 375379 | F34: MATHE | G34: Thomas | H34: 1999 | I34: 53.5 | J34: BULLY LES MINES | K34: F | L34: 26 | M34: 29 | N34: -31 | O34: 29 | P34: 36 | Q34: 39 | R34: 41 | S34: 41 | T34: 70 | U34: -37 | V34: DEB | W34: 5 | X34: =IF(I34="","",IF(A34="H",IF(OR(H34="SEN",H34<1995),VLOOKUP(I34,Feuil1!$A$11:$G$29,6),IF(AND(H34>1994,H34<1998),VLOOKUP(I34,Feuil1!$A$11:$G$29,5),IF(AND(H34>1997,H34<2000),VLOOKUP(I34,Feuil1!$A$11:$G$29,4),IF(AND(H34>1999,H34<2002),VLOOKUP(I34,Feuil1!$A$11:$G$29,3),VLOOKUP(I34,Feuil1!$A$11:$G$29,2))))),IF(OR(H34="SEN",H34<1995),VLOOKUP(I34,Feuil1!$G$11:$L$25,6),IF(AND(H34>1994,H34<1998),VLOOKUP(I34,Feuil1!$G$11:$L$25,5),IF(AND(H34>1997,H34<2000),VLOOKUP(I34,Feuil1!$G$11:$L$25,4),IF(AND(H34>1999,H34<2002),VLOOKUP(I34,Feuil1!$G$11:$L$25,3),VLOOKUP(I34,Feuil1!$G$11:$L$25,2))))))) -> C2 56 | Y34: 113.3160289 | AB34: =T34-HLOOKUP(X34,Feuil1!$C$1:$BL$10,2,FALSE) -> 5 | AC34: =T34-HLOOKUP(X34,Feuil1!$C$1:$BL$10,3,FALSE) -> -15 | AD34: =T34-HLOOKUP(X34,Feuil1!$C$1:$BL$10,4,FALSE) -> -30 | AE34: =T34-HLOOKUP(X34,Feuil1!$C$1:$BL$10,5,FALSE) -> -45 | AF34: =T34-HLOOKUP(X34,Feuil1!$C$1:$BL$10,6,FALSE) -> -60 | AG34: =T34-HLOOKUP(X34,Feuil1!$C$1:$BL$10,7,FALSE) -> -75 | AH34: =T34-HLOOKUP(X34,Feuil1!$C$1:$BL$10,8,FALSE) -> -100 | AI34: =T34-HLOOKUP(X34,Feuil1!$C$1:$BL$10,9,FALSE) -> -120 | AJ34: =T34-HLOOKUP(X34,Feuil1!$C$1:$BL$10,10,FALSE) -> -930 | AQ34: DEB
A35: H | B35: CO | C35: CEN | D35: 12 | E35: 388376 | F35: BENARD | G35: Julien | H35: 1999 | I35: 55.6 | J35: CHM AVRAIS | K35: F | L35: 25 | M35: -30 | N35: 30 | O35: 30 | P35: 30 | Q35: 33 | R35: 37 | S35: 37 | T35: 67 | U35: -44.2 | V35: DEB | W35: 2 | X35: =IF(I35="","",IF(A35="H",IF(OR(H35="SEN",H35<1995),VLOOKUP(I35,Feuil1!$A$11:$G$29,6),IF(AND(H35>1994,H35<1998),VLOOKUP(I35,Feuil1!$A$11:$G$29,5),IF(AND(H35>1997,H35<2000),VLOOKUP(I35,Feuil1!$A$11:$G$29,4),IF(AND(H35>1999,H35<2002),VLOOKUP(I35,Feuil1!$A$11:$G$29,3),VLOOKUP(I35,Feuil1!$A$11:$G$29,2))))),IF(OR(H35="SEN",H35<1995),VLOOKUP(I35,Feuil1!$G$11:$L$25,6),IF(AND(H35>1994,H35<1998),VLOOKUP(I35,Feuil1!$G$11:$L$25,5),IF(AND(H35>1997,H35<2000),VLOOKUP(I35,Feuil1!$G$11:$L$25,4),IF(AND(H35>1999,H35<2002),VLOOKUP(I35,Feuil1!$G$11:$L$25,3),VLOOKUP(I35,Feuil1!$G$11:$L$25,2))))))) -> C2 56 | Y35: 105.1617332 | AB35: =T35-HLOOKUP(X35,Feuil1!$C$1:$BL$10,2,FALSE) -> 2 | AC35: =T35-HLOOKUP(X35,Feuil1!$C$1:$BL$10,3,FALSE) -> -18 | AD35: =T35-HLOOKUP(X35,Feuil1!$C$1:$BL$10,4,FALSE) -> -33 | AE35: =T35-HLOOKUP(X35,Feuil1!$C$1:$BL$10,5,FALSE) -> -48 | AF35: =T35-HLOOKUP(X35,Feuil1!$C$1:$BL$10,6,FALSE) -> -63 | AG35: =T35-HLOOKUP(X35,Feuil1!$C$1:$BL$10,7,FALSE) -> -78 | AH35: =T35-HLOOKUP(X35,Feuil1!$C$1:$BL$10,8,FALSE) -> -103 | AI35: =T35-HLOOKUP(X35,Feuil1!$C$1:$BL$10,9,FALSE) -> -123 | AJ35: =T35-HLOOKUP(X35,Feuil1!$C$1:$BL$10,10,FALSE) -> -933 | AQ35: DEB
AB36: =T36-HLOOKUP(X36,Feuil1!$C$1:$BL$10,2,FALSE) ->  | AC36: =T36-HLOOKUP(X36,Feuil1!$C$1:$BL$10,3,FALSE) ->  | AD36: =T36-HLOOKUP(X36,Feuil1!$C$1:$BL$10,4,FALSE) ->  | AE36: =T36-HLOOKUP(X36,Feuil1!$C$1:$BL$10,5,FALSE) ->  | AF36: =T36-HLOOKUP(X36,Feuil1!$C$1:$BL$10,6,FALSE) ->  | AG36: =T36-HLOOKUP(X36,Feuil1!$C$1:$BL$10,7,FALSE) ->  | AH36: =T36-HLOOKUP(X36,Feuil1!$C$1:$BL$10,8,FALSE) ->  | AI36: =T36-HLOOKUP(X36,Feuil1!$C$1:$BL$10,9,FALSE) ->  | AJ36: =T36-HLOOKUP(X36,Feuil1!$C$1:$BL$10,10,FALSE) -> 
A37: H | B37: NE | C37: BOU | D37: 1 | E37: 166540 | F37: LAMBERT | G37: Brice | H37: 1998 | I37: 57.3 | J37: St Honoré Les Bains | K37: F | L37: 58 | M37: 61 | N37: 65 | O37: =IF(H37="","",IF(MAXA(L37:N37)<=0,0,MAXA(L37:N37))) -> 65 | P37: 75 | Q37: 80 | R37: -85 | S37: =IF(H37="","",IF(MAXA(P37:R37)<=0,0,MAXA(P37:R37))) -> 80 | T37: =IF(H37="","",IF(OR(O37=0,S37=0),0,O37+S37)) -> 145 | U37: =T37-I37*2 -> 30.4 | V37: =IF(H37="","",AQ37) -> IRG + | W37: =IF(AJ37>=0,AJ37,IF(AI37>=0,AI37,IF(AH37>=0,AH37,IF(AG37>=0,AG37,IF(AF37>=0,AF37,IF(AE37>=0,AE37,IF(AD37>=0,AD37,IF(AC37>=0,AC37,AB37)))))))) -> 10 | X37: =IF(I37="","",IF(A37="H",IF(OR(H37="SEN",H37<1995),VLOOKUP(I37,Feuil1!$A$11:$G$29,6),IF(AND(H37>1994,H37<1998),VLOOKUP(I37,Feuil1!$A$11:$G$29,5),IF(AND(H37>1997,H37<2000),VLOOKUP(I37,Feuil1!$A$11:$G$29,4),IF(AND(H37>1999,H37<2002),VLOOKUP(I37,Feuil1!$A$11:$G$29,3),VLOOKUP(I37,Feuil1!$A$11:$G$29,2))))),IF(OR(H37="SEN",H37<1995),VLOOKUP(I37,Feuil1!$G$11:$L$25,6),IF(AND(H37>1994,H37<1998),VLOOKUP(I37,Feuil1!$G$11:$L$25,5),IF(AND(H37>1997,H37<2000),VLOOKUP(I37,Feuil1!$G$11:$L$25,4),IF(AND(H37>1999,H37<2002),VLOOKUP(I37,Feuil1!$G$11:$L$25,3),VLOOKUP(I37,Feuil1!$G$11:$L$25,2))))))) -> C2 62 | Y37: =IF(I37="","",IF(A37="H",10^(0.794358141*LOG(I37/174.393)^2)*T37,IF(A37="F",10^(0.89726074*LOG(I37/148.026)^2)*T37,""))) -> 222.31586 | AB37: =T37-HLOOKUP(X37,Feuil1!$C$1:$BL$10,2,FALSE) -> 60 | AC37: =T37-HLOOKUP(X37,Feuil1!$C$1:$BL$10,3,FALSE) -> 40 | AD37: =T37-HLOOKUP(X37,Feuil1!$C$1:$BL$10,4,FALSE) -> 25 | AE37: =T37-HLOOKUP(X37,Feuil1!$C$1:$BL$10,5,FALSE) -> 10 | AF37: =T37-HLOOKUP(X37,Feuil1!$C$1:$BL$10,6,FALSE) -> -5 | AG37: =T37-HLOOKUP(X37,Feuil1!$C$1:$BL$10,7,FALSE) -> -25 | AH37: =T37-HLOOKUP(X37,Feuil1!$C$1:$BL$10,8,FALSE) -> -45 | AI37: =T37-HLOOKUP(X37,Feuil1!$C$1:$BL$10,9,FALSE) -> -65 | AJ37: =T37-HLOOKUP(X37,Feuil1!$C$1:$BL$10,10,FALSE) -> -855 | AQ37: =IF(AJ37>=0,$AJ$4,IF(AI37>=0,$AI$4,IF(AH37>=0,$AH$4,IF(AG37>=0,$AG$4,IF(AF37>=0,$AF$4,IF(AE37>=0,$AE$4,IF(AD37>=0,$AD$4,IF(AC37>=0,$AC$4,$AB$4)))))))) -> IRG +
A38: H | B38: NE | C38: CHA | D38: 2 | E38: 342472 | F38: CHAPLET | G38: Jason | H38: 1999 | I38: 60.6 | J38: Langres HM | K38: F | L38: 48 | M38: 52 | N38: 55 | O38: 55 | P38: 67 | Q38: 71 | R38: 74 | S38: 74 | T38: 129 | U38: 7.8 | V38: REG + | W38: 9 | X38: =IF(I38="","",IF(A38="H",IF(OR(H38="SEN",H38<1995),VLOOKUP(I38,Feuil1!$A$11:$G$29,6),IF(AND(H38>1994,H38<1998),VLOOKUP(I38,Feuil1!$A$11:$G$29,5),IF(AND(H38>1997,H38<2000),VLOOKUP(I38,Feuil1!$A$11:$G$29,4),IF(AND(H38>1999,H38<2002),VLOOKUP(I38,Feuil1!$A$11:$G$29,3),VLOOKUP(I38,Feuil1!$A$11:$G$29,2))))),IF(OR(H38="SEN",H38<1995),VLOOKUP(I38,Feuil1!$G$11:$L$25,6),IF(AND(H38>1994,H38<1998),VLOOKUP(I38,Feuil1!$G$11:$L$25,5),IF(AND(H38>1997,H38<2000),VLOOKUP(I38,Feuil1!$G$11:$L$25,4),IF(AND(H38>1999,H38<2002),VLOOKUP(I38,Feuil1!$G$11:$L$25,3),VLOOKUP(I38,Feuil1!$G$11:$L$25,2))))))) -> C2 62 | Y38: 189.6649262 | AB38: =T38-HLOOKUP(X38,Feuil1!$C$1:$BL$10,2,FALSE) -> 44 | AC38: =T38-HLOOKUP(X38,Feuil1!$C$1:$BL$10,3,FALSE) -> 24 | AD38: =T38-HLOOKUP(X38,Feuil1!$C$1:$BL$10,4,FALSE) -> 9 | AE38: =T38-HLOOKUP(X38,Feuil1!$C$1:$BL$10,5,FALSE) -> -6 | AF38: =T38-HLOOKUP(X38,Feuil1!$C$1:$BL$10,6,FALSE) -> -21 | AG38: =T38-HLOOKUP(X38,Feuil1!$C$1:$BL$10,7,FALSE) -> -41 | AH38: =T38-HLOOKUP(X38,Feuil1!$C$1:$BL$10,8,FALSE) -> -61 | AI38: =T38-HLOOKUP(X38,Feuil1!$C$1:$BL$10,9,FALSE) -> -81 | AJ38: =T38-HLOOKUP(X38,Feuil1!$C$1:$BL$10,10,FALSE) -> -871 | AQ38: REG +
A39: H | B39: CO | C39: BRE | D39: 3 | E39: 353388 | F39: LERUYET | G39: Kévin | H39: 1999 | I39: 57.3 | J39: AL QUIMPER | K39: F | L39: 52 | M39: -55 | N39: -55 | O39: 52 | P39: 62 | Q39: -65 | R39: -65 | S39: 62 | T39: 114 | U39: -0.6 | V39: DEP + | W39: 9 | X39: =IF(I39="","",IF(A39="H",IF(OR(H39="SEN",H39<1995),VLOOKUP(I39,Feuil1!$A$11:$G$29,6),IF(AND(H39>1994,H39<1998),VLOOKUP(I39,Feuil1!$A$11:$G$29,5),IF(AND(H39>1997,H39<2000),VLOOKUP(I39,Feuil1!$A$11:$G$29,4),IF(AND(H39>1999,H39<2002),VLOOKUP(I39,Feuil1!$A$11:$G$29,3),VLOOKUP(I39,Feuil1!$A$11:$G$29,2))))),IF(OR(H39="SEN",H39<1995),VLOOKUP(I39,Feuil1!$G$11:$L$25,6),IF(AND(H39>1994,H39<1998),VLOOKUP(I39,Feuil1!$G$11:$L$25,5),IF(AND(H39>1997,H39<2000),VLOOKUP(I39,Feuil1!$G$11:$L$25,4),IF(AND(H39>1999,H39<2002),VLOOKUP(I39,Feuil1!$G$11:$L$25,3),VLOOKUP(I39,Feuil1!$G$11:$L$25,2))))))) -> C2 62 | Y39: 174.7862623 | AB39: =T39-HLOOKUP(X39,Feuil1!$C$1:$BL$10,2,FALSE) -> 29 | AC39: =T39-HLOOKUP(X39,Feuil1!$C$1:$BL$10,3,FALSE) -> 9 | AD39: =T39-HLOOKUP(X39,Feuil1!$C$1:$BL$10,4,FALSE) -> -6 | AE39: =T39-HLOOKUP(X39,Feuil1!$C$1:$BL$10,5,FALSE) -> -21 | AF39: =T39-HLOOKUP(X39,Feuil1!$C$1:$BL$10,6,FALSE) -> -36 | AG39: =T39-HLOOKUP(X39,Feuil1!$C$1:$BL$10,7,FALSE) -> -56 | AH39: =T39-HLOOKUP(X39,Feuil1!$C$1:$BL$10,8,FALSE) -> -76 | AI39: =T39-HLOOKUP(X39,Feuil1!$C$1:$BL$10,9,FALSE) -> -96 | AJ39: =T39-HLOOKUP(X39,Feuil1!$C$1:$BL$10,10,FALSE) -> -886 | AQ39: DEP +
A40: H | B40: CO | C40: BRE | D40: 4 | E40: 331071 | F40: COCHINARD | G40: Mathieu | H40: 1999 | I40: 58.85 | J40: PLOUGASTEL DAOULAS | K40: F | L40: 50 | M40: 52 | N40: -54 | O40: 52 | P40: 62 | Q40: -65 | R40: -66 | S40: 62 | T40: 114 | U40: -3.7 | V40: DEP + | W40: 9 | X40: =IF(I40="","",IF(A40="H",IF(OR(H40="SEN",H40<1995),VLOOKUP(I40,Feuil1!$A$11:$G$29,6),IF(AND(H40>1994,H40<1998),VLOOKUP(I40,Feuil1!$A$11:$G$29,5),IF(AND(H40>1997,H40<2000),VLOOKUP(I40,Feuil1!$A$11:$G$29,4),IF(AND(H40>1999,H40<2002),VLOOKUP(I40,Feuil1!$A$11:$G$29,3),VLOOKUP(I40,Feuil1!$A$11:$G$29,2))))),IF(OR(H40="SEN",H40<1995),VLOOKUP(I40,Feuil1!$G$11:$L$25,6),IF(AND(H40>1994,H40<1998),VLOOKUP(I40,Feuil1!$G$11:$L$25,5),IF(AND(H40>1997,H40<2000),VLOOKUP(I40,Feuil1!$G$11:$L$25,4),IF(AND(H40>1999,H40<2002),VLOOKUP(I40,Feuil1!$G$11:$L$25,3),VLOOKUP(I40,Feuil1!$G$11:$L$25,2))))))) -> C2 62 | Y40: 171.2821621 | AB40: =T40-HLOOKUP(X40,Feuil1!$C$1:$BL$10,2,FALSE) -> 29 | AC40: =T40-HLOOKUP(X40,Feuil1!$C$1:$BL$10,3,FALSE) -> 9 | AD40: =T40-HLOOKUP(X40,Feuil1!$C$1:$BL$10,4,FALSE) -> -6 | AE40: =T40-HLOOKUP(X40,Feuil1!$C$1:$BL$10,5,FALSE) -> -21 | AF40: =T40-HLOOKUP(X40,Feuil1!$C$1:$BL$10,6,FALSE) -> -36 | AG40: =T40-HLOOKUP(X40,Feuil1!$C$1:$BL$10,7,FALSE) -> -56 | AH40: =T40-HLOOKUP(X40,Feuil1!$C$1:$BL$10,8,FALSE) -> -76 | AI40: =T40-HLOOKUP(X40,Feuil1!$C$1:$BL$10,9,FALSE) -> -96 | AJ40: =T40-HLOOKUP(X40,Feuil1!$C$1:$BL$10,10,FALSE) -> -886 | AQ40: DEP +
A41: H | B41: N | C41: PIC | D41: 5 | E41: 357554 | F41: MANZCYK | G41: Morgan | H41: 1999 | I41: 59.8 | J41: La Ferté Milon CMHM | K41: F | L41: 40 | M41: 45 | N41: 47 | O41: 47 | P41: 60 | Q41: 66 | R41: -69 | S41: 66 | T41: 113 | U41: -6.6 | V41: DEP + | W41: 8 | X41: =IF(I41="","",IF(A41="H",IF(OR(H41="SEN",H41<1995),VLOOKUP(I41,Feuil1!$A$11:$G$29,6),IF(AND(H41>1994,H41<1998),VLOOKUP(I41,Feuil1!$A$11:$G$29,5),IF(AND(H41>1997,H41<2000),VLOOKUP(I41,Feuil1!$A$11:$G$29,4),IF(AND(H41>1999,H41<2002),VLOOKUP(I41,Feuil1!$A$11:$G$29,3),VLOOKUP(I41,Feuil1!$A$11:$G$29,2))))),IF(OR(H41="SEN",H41<1995),VLOOKUP(I41,Feuil1!$G$11:$L$25,6),IF(AND(H41>1994,H41<1998),VLOOKUP(I41,Feuil1!$G$11:$L$25,5),IF(AND(H41>1997,H41<2000),VLOOKUP(I41,Feuil1!$G$11:$L$25,4),IF(AND(H41>1999,H41<2002),VLOOKUP(I41,Feuil1!$G$11:$L$25,3),VLOOKUP(I41,Feuil1!$G$11:$L$25,2))))))) -> C2 62 | Y41: 167.7688743 | AB41: =T41-HLOOKUP(X41,Feuil1!$C$1:$BL$10,2,FALSE) -> 28 | AC41: =T41-HLOOKUP(X41,Feuil1!$C$1:$BL$10,3,FALSE) -> 8 | AD41: =T41-HLOOKUP(X41,Feuil1!$C$1:$BL$10,4,FALSE) -> -7 | AE41: =T41-HLOOKUP(X41,Feuil1!$C$1:$BL$10,5,FALSE) -> -22 | AF41: =T41-HLOOKUP(X41,Feuil1!$C$1:$BL$10,6,FALSE) -> -37 | AG41: =T41-HLOOKUP(X41,Feuil1!$C$1:$BL$10,7,FALSE) -> -57 | AH41: =T41-HLOOKUP(X41,Feuil1!$C$1:$BL$10,8,FALSE) -> -77 | AI41: =T41-HLOOKUP(X41,Feuil1!$C$1:$BL$10,9,FALSE) -> -97 | AJ41: =T41-HLOOKUP(X41,Feuil1!$C$1:$BL$10,10,FALSE) -> -887 | AQ41: DEP +
A42: H | B42: NE | C42: FCO | D42: 6 | E42: 370230 | F42: PERRAUT | G42: Tristan | H42: 1999 | I42: 61.2 | J42: CHLuxeuil | K42: F | L42: 40 | M42: 45 | N42: -48 | O42: 45 | P42: 60 | Q42: 64 | R42: -66 | S42: 64 | T42: 109 | U42: -13.4 | V42: DEP + | W42: 4 | X42: =IF(I42="","",IF(A42="H",IF(OR(H42="SEN",H42<1995),VLOOKUP(I42,Feuil1!$A$11:$G$29,6),IF(AND(H42>1994,H42<1998),VLOOKUP(I42,Feuil1!$A$11:$G$29,5),IF(AND(H42>1997,H42<2000),VLOOKUP(I42,Feuil1!$A$11:$G$29,4),IF(AND(H42>1999,H42<2002),VLOOKUP(I42,Feuil1!$A$11:$G$29,3),VLOOKUP(I42,Feuil1!$A$11:$G$29,2))))),IF(OR(H42="SEN",H42<1995),VLOOKUP(I42,Feuil1!$G$11:$L$25,6),IF(AND(H42>1994,H42<1998),VLOOKUP(I42,Feuil1!$G$11:$L$25,5),IF(AND(H42>1997,H42<2000),VLOOKUP(I42,Feuil1!$G$11:$L$25,4),IF(AND(H42>1999,H42<2002),VLOOKUP(I42,Feuil1!$G$11:$L$25,3),VLOOKUP(I42,Feuil1!$G$11:$L$25,2))))))) -> C2 62 | Y42: 159.1174408 | AB42: =T42-HLOOKUP(X42,Feuil1!$C$1:$BL$10,2,FALSE) -> 24 | AC42: =T42-HLOOKUP(X42,Feuil1!$C$1:$BL$10,3,FALSE) -> 4 | AD42: =T42-HLOOKUP(X42,Feuil1!$C$1:$BL$10,4,FALSE) -> -11 | AE42: =T42-HLOOKUP(X42,Feuil1!$C$1:$BL$10,5,FALSE) -> -26 | AF42: =T42-HLOOKUP(X42,Feuil1!$C$1:$BL$10,6,FALSE) -> -41 | AG42: =T42-HLOOKUP(X42,Feuil1!$C$1:$BL$10,7,FALSE) -> -61 | AH42: =T42-HLOOKUP(X42,Feuil1!$C$1:$BL$10,8,FALSE) -> -81 | AI42: =T42-HLOOKUP(X42,Feuil1!$C$1:$BL$10,9,FALSE) -> -101 | AJ42: =T42-HLOOKUP(X42,Feuil1!$C$1:$BL$10,10,FALSE) -> -891 | AQ42: DEP +
A43: H | B43: SEST | C43: RAL | D43: 7 | E43: 357870 | F43: CAMPANA | G43: Enzo | H43: 1998 | I43: 59.85 | J43: VAULX EN VELIN | K43: F | L43: 45 | M43: -47 | N43: -47 | O43: 45 | P43: 60 | Q43: -63 | R43: -65 | S43: 60 | T43: 105 | U43: -14.7 | V43: DEP + | W43: 0 | X43: =IF(I43="","",IF(A43="H",IF(OR(H43="SEN",H43<1995),VLOOKUP(I43,Feuil1!$A$11:$G$29,6),IF(AND(H43>1994,H43<1998),VLOOKUP(I43,Feuil1!$A$11:$G$29,5),IF(AND(H43>1997,H43<2000),VLOOKUP(I43,Feuil1!$A$11:$G$29,4),IF(AND(H43>1999,H43<2002),VLOOKUP(I43,Feuil1!$A$11:$G$29,3),VLOOKUP(I43,Feuil1!$A$11:$G$29,2))))),IF(OR(H43="SEN",H43<1995),VLOOKUP(I43,Feuil1!$G$11:$L$25,6),IF(AND(H43>1994,H43<1998),VLOOKUP(I43,Feuil1!$G$11:$L$25,5),IF(AND(H43>1997,H43<2000),VLOOKUP(I43,Feuil1!$G$11:$L$25,4),IF(AND(H43>1999,H43<2002),VLOOKUP(I43,Feuil1!$G$11:$L$25,3),VLOOKUP(I43,Feuil1!$G$11:$L$25,2))))))) -> C2 62 | Y43: 155.795283 | AB43: =T43-HLOOKUP(X43,Feuil1!$C$1:$BL$10,2,FALSE) -> 20 | AC43: =T43-HLOOKUP(X43,Feuil1!$C$1:$BL$10,3,FALSE) -> 0 | AD43: =T43-HLOOKUP(X43,Feuil1!$C$1:$BL$10,4,FALSE) -> -15 | AE43: =T43-HLOOKUP(X43,Feuil1!$C$1:$BL$10,5,FALSE) -> -30 | AF43: =T43-HLOOKUP(X43,Feuil1!$C$1:$BL$10,6,FALSE) -> -45 | AG43: =T43-HLOOKUP(X43,Feuil1!$C$1:$BL$10,7,FALSE) -> -65 | AH43: =T43-HLOOKUP(X43,Feuil1!$C$1:$BL$10,8,FALSE) -> -85 | AI43: =T43-HLOOKUP(X43,Feuil1!$C$1:$BL$10,9,FALSE) -> -105 | AJ43: =T43-HLOOKUP(X43,Feuil1!$C$1:$BL$10,10,FALSE) -> -895 | AQ43: DEP +
A44: H | B44: SO | C44: MPY | D44: 8 | E44: 323476 | F44: DAVELU | G44: Erwan | H44: 1999 | I44: 61.5 | J44: PAMIERS HC | K44: F | L44: -40 | M44: 43 | N44: 46 | O44: 46 | P44: 53 | Q44: 57 | R44: 59 | S44: 59 | T44: 105 | U44: -18 | V44: DEP + | W44: 0 | X44: =IF(I44="","",IF(A44="H",IF(OR(H44="SEN",H44<1995),VLOOKUP(I44,Feuil1!$A$11:$G$29,6),IF(AND(H44>1994,H44<1998),VLOOKUP(I44,Feuil1!$A$11:$G$29,5),IF(AND(H44>1997,H44<2000),VLOOKUP(I44,Feuil1!$A$11:$G$29,4),IF(AND(H44>1999,H44<2002),VLOOKUP(I44,Feuil1!$A$11:$G$29,3),VLOOKUP(I44,Feuil1!$A$11:$G$29,2))))),IF(OR(H44="SEN",H44<1995),VLOOKUP(I44,Feuil1!$G$11:$L$25,6),IF(AND(H44>1994,H44<1998),VLOOKUP(I44,Feuil1!$G$11:$L$25,5),IF(AND(H44>1997,H44<2000),VLOOKUP(I44,Feuil1!$G$11:$L$25,4),IF(AND(H44>1999,H44<2002),VLOOKUP(I44,Feuil1!$G$11:$L$25,3),VLOOKUP(I44,Feuil1!$G$11:$L$25,2))))))) -> C2 62 | Y44: 152.7389404 | AB44: =T44-HLOOKUP(X44,Feuil1!$C$1:$BL$10,2,FALSE) -> 20 | AC44: =T44-HLOOKUP(X44,Feuil1!$C$1:$BL$10,3,FALSE) -> 0 | AD44: =T44-HLOOKUP(X44,Feuil1!$C$1:$BL$10,4,FALSE) -> -15 | AE44: =T44-HLOOKUP(X44,Feuil1!$C$1:$BL$10,5,FALSE) -> -30 | AF44: =T44-HLOOKUP(X44,Feuil1!$C$1:$BL$10,6,FALSE) -> -45 | AG44: =T44-HLOOKUP(X44,Feuil1!$C$1:$BL$10,7,FALSE) -> -65 | AH44: =T44-HLOOKUP(X44,Feuil1!$C$1:$BL$10,8,FALSE) -> -85 | AI44: =T44-HLOOKUP(X44,Feuil1!$C$1:$BL$10,9,FALSE) -> -105 | AJ44: =T44-HLOOKUP(X44,Feuil1!$C$1:$BL$10,10,FALSE) -> -895 | AQ44: DEP +
A45: H | B45: CO | C45: PDL | D45: 9 | E45: 378714 | F45: ABRAHAM | G45: Benjamin | H45: 1998 | I45: 56.9 | J45: CJF LAVAL - VOUTRÉ | K45: F | L45: 40 | M45: 43 | N45: 45 | O45: 45 | P45: 50 | Q45: 55 | R45: -58 | S45: 55 | T45: 100 | U45: -13.8 | V45: DEB | W45: 15 | X45: =IF(I45="","",IF(A45="H",IF(OR(H45="SEN",H45<1995),VLOOKUP(I45,Feuil1!$A$11:$G$29,6),IF(AND(H45>1994,H45<1998),VLOOKUP(I45,Feuil1!$A$11:$G$29,5),IF(AND(H45>1997,H45<2000),VLOOKUP(I45,Feuil1!$A$11:$G$29,4),IF(AND(H45>1999,H45<2002),VLOOKUP(I45,Feuil1!$A$11:$G$29,3),VLOOKUP(I45,Feuil1!$A$11:$G$29,2))))),IF(OR(H45="SEN",H45<1995),VLOOKUP(I45,Feuil1!$G$11:$L$25,6),IF(AND(H45>1994,H45<1998),VLOOKUP(I45,Feuil1!$G$11:$L$25,5),IF(AND(H45>1997,H45<2000),VLOOKUP(I45,Feuil1!$G$11:$L$25,4),IF(AND(H45>1999,H45<2002),VLOOKUP(I45,Feuil1!$G$11:$L$25,3),VLOOKUP(I45,Feuil1!$G$11:$L$25,2))))))) -> C2 62 | Y45: 154.1509331 | AB45: =T45-HLOOKUP(X45,Feuil1!$C$1:$BL$10,2,FALSE) -> 15 | AC45: =T45-HLOOKUP(X45,Feuil1!$C$1:$BL$10,3,FALSE) -> -5 | AD45: =T45-HLOOKUP(X45,Feuil1!$C$1:$BL$10,4,FALSE) -> -20 | AE45: =T45-HLOOKUP(X45,Feuil1!$C$1:$BL$10,5,FALSE) -> -35 | AF45: =T45-HLOOKUP(X45,Feuil1!$C$1:$BL$10,6,FALSE) -> -50 | AG45: =T45-HLOOKUP(X45,Feuil1!$C$1:$BL$10,7,FALSE) -> -70 | AH45: =T45-HLOOKUP(X45,Feuil1!$C$1:$BL$10,8,FALSE) -> -90 | AI45: =T45-HLOOKUP(X45,Feuil1!$C$1:$BL$10,9,FALSE) -> -110 | AJ45: =T45-HLOOKUP(X45,Feuil1!$C$1:$BL$10,10,FALSE) -> -900 | AQ45: DEB
A46: H | B46: DOM | C46: GUY | D46: 10 | E46: 386482 | F46: LINGUET | G46: Mickael | H46: 1999 | I46: 61.7 | J46: ASCP/Guyane | K46: F | L46: 40 | M46: 45 | N46: -48 | O46: 45 | P46: 50 | Q46: 55 | R46: -58 | S46: 55 | T46: 100 | U46: -23.4 | V46: DEB | W46: 15 | X46: =IF(I46="","",IF(A46="H",IF(OR(H46="SEN",H46<1995),VLOOKUP(I46,Feuil1!$A$11:$G$29,6),IF(AND(H46>1994,H46<1998),VLOOKUP(I46,Feuil1!$A$11:$G$29,5),IF(AND(H46>1997,H46<2000),VLOOKUP(I46,Feuil1!$A$11:$G$29,4),IF(AND(H46>1999,H46<2002),VLOOKUP(I46,Feuil1!$A$11:$G$29,3),VLOOKUP(I46,Feuil1!$A$11:$G$29,2))))),IF(OR(H46="SEN",H46<1995),VLOOKUP(I46,Feuil1!$G$11:$L$25,6),IF(AND(H46>1994,H46<1998),VLOOKUP(I46,Feuil1!$G$11:$L$25,5),IF(AND(H46>1997,H46<2000),VLOOKUP(I46,Feuil1!$G$11:$L$25,4),IF(AND(H46>1999,H46<2002),VLOOKUP(I46,Feuil1!$G$11:$L$25,3),VLOOKUP(I46,Feuil1!$G$11:$L$25,2))))))) -> C2 62 | Y46: 145.1269384 | AB46: =T46-HLOOKUP(X46,Feuil1!$C$1:$BL$10,2,FALSE) -> 15 | AC46: =T46-HLOOKUP(X46,Feuil1!$C$1:$BL$10,3,FALSE) -> -5 | AD46: =T46-HLOOKUP(X46,Feuil1!$C$1:$BL$10,4,FALSE) -> -20 | AE46: =T46-HLOOKUP(X46,Feuil1!$C$1:$BL$10,5,FALSE) -> -35 | AF46: =T46-HLOOKUP(X46,Feuil1!$C$1:$BL$10,6,FALSE) -> -50 | AG46: =T46-HLOOKUP(X46,Feuil1!$C$1:$BL$10,7,FALSE) -> -70 | AH46: =T46-HLOOKUP(X46,Feuil1!$C$1:$BL$10,8,FALSE) -> -90 | AI46: =T46-HLOOKUP(X46,Feuil1!$C$1:$BL$10,9,FALSE) -> -110 | AJ46: =T46-HLOOKUP(X46,Feuil1!$C$1:$BL$10,10,FALSE) -> -900 | AQ46: DEB
A47: H | B47: N | C47: IDF | D47: 11 | E47: 299652 | F47: TAILLANDIER | G47: REMI | H47: 1999 | I47: 61.9 | J47: CHAVILLE | K47: F | L47: 40 | M47: -45 | N47: -45 | O47: 40 | P47: 50 | Q47: 55 | R47: 57 | S47: 57 | T47: 97 | U47: -26.8 | V47: DEB | W47: 12 | X47: =IF(I47="","",IF(A47="H",IF(OR(H47="SEN",H47<1995),VLOOKUP(I47,Feuil1!$A$11:$G$29,6),IF(AND(H47>1994,H47<1998),VLOOKUP(I47,Feuil1!$A$11:$G$29,5),IF(AND(H47>1997,H47<2000),VLOOKUP(I47,Feuil1!$A$11:$G$29,4),IF(AND(H47>1999,H47<2002),VLOOKUP(I47,Feuil1!$A$11:$G$29,3),VLOOKUP(I47,Feuil1!$A$11:$G$29,2))))),IF(OR(H47="SEN",H47<1995),VLOOKUP(I47,Feuil1!$G$11:$L$25,6),IF(AND(H47>1994,H47<1998),VLOOKUP(I47,Feuil1!$G$11:$L$25,5),IF(AND(H47>1997,H47<2000),VLOOKUP(I47,Feuil1!$G$11:$L$25,4),IF(AND(H47>1999,H47<2002),VLOOKUP(I47,Feuil1!$G$11:$L$25,3),VLOOKUP(I47,Feuil1!$G$11:$L$25,2))))))) -> C2 62 | Y47: 140.4474139 | AB47: =T47-HLOOKUP(X47,Feuil1!$C$1:$BL$10,2,FALSE) -> 12 | AC47: =T47-HLOOKUP(X47,Feuil1!$C$1:$BL$10,3,FALSE) -> -8 | AD47: =T47-HLOOKUP(X47,Feuil1!$C$1:$BL$10,4,FALSE) -> -23 | AE47: =T47-HLOOKUP(X47,Feuil1!$C$1:$BL$10,5,FALSE) -> -38 | AF47: =T47-HLOOKUP(X47,Feuil1!$C$1:$BL$10,6,FALSE) -> -53 | AG47: =T47-HLOOKUP(X47,Feuil1!$C$1:$BL$10,7,FALSE) -> -73 | AH47: =T47-HLOOKUP(X47,Feuil1!$C$1:$BL$10,8,FALSE) -> -93 | AI47: =T47-HLOOKUP(X47,Feuil1!$C$1:$BL$10,9,FALSE) -> -113 | AJ47: =T47-HLOOKUP(X47,Feuil1!$C$1:$BL$10,10,FALSE) -> -903 | AQ47: DEB
A48: H | B48: CO | C48: CEN | D48: 12 | E48: 385392 | F48: MENNOTI | G48: Arthur | H48: 1998 | I48: 58 | J48: CMO ORLEANS | K48: F | L48: 37 | M48: -40 | N48: 40 | O48: 40 | P48: 45 | Q48: -50 | R48: -50 | S48: 45 | T48: 85 | U48: -31 | V48: DEB | W48: 0 | X48: =IF(I48="","",IF(A48="H",IF(OR(H48="SEN",H48<1995),VLOOKUP(I48,Feuil1!$A$11:$G$29,6),IF(AND(H48>1994,H48<1998),VLOOKUP(I48,Feuil1!$A$11:$G$29,5),IF(AND(H48>1997,H48<2000),VLOOKUP(I48,Feuil1!$A$11:$G$29,4),IF(AND(H48>1999,H48<2002),VLOOKUP(I48,Feuil1!$A$11:$G$29,3),VLOOKUP(I48,Feuil1!$A$11:$G$29,2))))),IF(OR(H48="SEN",H48<1995),VLOOKUP(I48,Feuil1!$G$11:$L$25,6),IF(AND(H48>1994,H48<1998),VLOOKUP(I48,Feuil1!$G$11:$L$25,5),IF(AND(H48>1997,H48<2000),VLOOKUP(I48,Feuil1!$G$11:$L$25,4),IF(AND(H48>1999,H48<2002),VLOOKUP(I48,Feuil1!$G$11:$L$25,3),VLOOKUP(I48,Feuil1!$G$11:$L$25,2))))))) -> C2 62 | Y48: 129.1200844 | AB48: =T48-HLOOKUP(X48,Feuil1!$C$1:$BL$10,2,FALSE) -> 0 | AC48: =T48-HLOOKUP(X48,Feuil1!$C$1:$BL$10,3,FALSE) -> -20 | AD48: =T48-HLOOKUP(X48,Feuil1!$C$1:$BL$10,4,FALSE) -> -35 | AE48: =T48-HLOOKUP(X48,Feuil1!$C$1:$BL$10,5,FALSE) -> -50 | AF48: =T48-HLOOKUP(X48,Feuil1!$C$1:$BL$10,6,FALSE) -> -65 | AG48: =T48-HLOOKUP(X48,Feuil1!$C$1:$BL$10,7,FALSE) -> -85 | AH48: =T48-HLOOKUP(X48,Feuil1!$C$1:$BL$10,8,FALSE) -> -105 | AI48: =T48-HLOOKUP(X48,Feuil1!$C$1:$BL$10,9,FALSE) -> -125 | AJ48: =T48-HLOOKUP(X48,Feuil1!$C$1:$BL$10,10,FALSE) -> -915 | AQ48: DEB
A49: H | B49: NE | C49: ALS | D49: 13 | E49: 382826 | F49: GROSS | G49: THIBAUD | H49: 1998 | I49: 60 | J49: SA Koenigshoffen | K49: F | L49: 30 | M49: -35 | N49: 35 | O49: 35 | P49: 35 | Q49: -38 | R49: 38 | S49: 38 | T49: 73 | U49: -47 | V49: DEB | W49: -12 | X49: =IF(I49="","",IF(A49="H",IF(OR(H49="SEN",H49<1995),VLOOKUP(I49,Feuil1!$A$11:$G$29,6),IF(AND(H49>1994,H49<1998),VLOOKUP(I49,Feuil1!$A$11:$G$29,5),IF(AND(H49>1997,H49<2000),VLOOKUP(I49,Feuil1!$A$11:$G$29,4),IF(AND(H49>1999,H49<2002),VLOOKUP(I49,Feuil1!$A$11:$G$29,3),VLOOKUP(I49,Feuil1!$A$11:$G$29,2))))),IF(OR(H49="SEN",H49<1995),VLOOKUP(I49,Feuil1!$G$11:$L$25,6),IF(AND(H49>1994,H49<1998),VLOOKUP(I49,Feuil1!$G$11:$L$25,5),IF(AND(H49>1997,H49<2000),VLOOKUP(I49,Feuil1!$G$11:$L$25,4),IF(AND(H49>1999,H49<2002),VLOOKUP(I49,Feuil1!$G$11:$L$25,3),VLOOKUP(I49,Feuil1!$G$11:$L$25,2))))))) -> C2 62 | Y49: 108.1151694 | AB49: =T49-HLOOKUP(X49,Feuil1!$C$1:$BL$10,2,FALSE) -> -12 | AC49: =T49-HLOOKUP(X49,Feuil1!$C$1:$BL$10,3,FALSE) -> -32 | AD49: =T49-HLOOKUP(X49,Feuil1!$C$1:$BL$10,4,FALSE) -> -47 | AE49: =T49-HLOOKUP(X49,Feuil1!$C$1:$BL$10,5,FALSE) -> -62 | AF49: =T49-HLOOKUP(X49,Feuil1!$C$1:$BL$10,6,FALSE) -> -77 | AG49: =T49-HLOOKUP(X49,Feuil1!$C$1:$BL$10,7,FALSE) -> -97 | AH49: =T49-HLOOKUP(X49,Feuil1!$C$1:$BL$10,8,FALSE) -> -117 | AI49: =T49-HLOOKUP(X49,Feuil1!$C$1:$BL$10,9,FALSE) -> -137 | AJ49: =T49-HLOOKUP(X49,Feuil1!$C$1:$BL$10,10,FALSE) -> -927 | AQ49: DEB
A50: H | B50: NE | C50: CHA | D50: 14 | E50: 387907 | F50: DELONG | G50: Frédéric | H50: 1999 | I50: 59.6 | J50: Langres HM | K50: F | L50: 25 | M50: 28 | N50: 30 | O50: 30 | P50: 33 | Q50: 36 | R50: 40 | S50: 40 | T50: 70 | U50: -49.2 | V50: DEB | W50: -15 | X50: =IF(I50="","",IF(A50="H",IF(OR(H50="SEN",H50<1995),VLOOKUP(I50,Feuil1!$A$11:$G$29,6),IF(AND(H50>1994,H50<1998),VLOOKUP(I50,Feuil1!$A$11:$G$29,5),IF(AND(H50>1997,H50<2000),VLOOKUP(I50,Feuil1!$A$11:$G$29,4),IF(AND(H50>1999,H50<2002),VLOOKUP(I50,Feuil1!$A$11:$G$29,3),VLOOKUP(I50,Feuil1!$A$11:$G$29,2))))),IF(OR(H50="SEN",H50<1995),VLOOKUP(I50,Feuil1!$G$11:$L$25,6),IF(AND(H50>1994,H50<1998),VLOOKUP(I50,Feuil1!$G$11:$L$25,5),IF(AND(H50>1997,H50<2000),VLOOKUP(I50,Feuil1!$G$11:$L$25,4),IF(AND(H50>1999,H50<2002),VLOOKUP(I50,Feuil1!$G$11:$L$25,3),VLOOKUP(I50,Feuil1!$G$11:$L$25,2))))))) -> C2 62 | Y50: 104.1854569 | AB50: =T50-HLOOKUP(X50,Feuil1!$C$1:$BL$10,2,FALSE) -> -15 | AC50: =T50-HLOOKUP(X50,Feuil1!$C$1:$BL$10,3,FALSE) -> -35 | AD50: =T50-HLOOKUP(X50,Feuil1!$C$1:$BL$10,4,FALSE) -> -50 | AE50: =T50-HLOOKUP(X50,Feuil1!$C$1:$BL$10,5,FALSE) -> -65 | AF50: =T50-HLOOKUP(X50,Feuil1!$C$1:$BL$10,6,FALSE) -> -80 | AG50: =T50-HLOOKUP(X50,Feuil1!$C$1:$BL$10,7,FALSE) -> -100 | AH50: =T50-HLOOKUP(X50,Feuil1!$C$1:$BL$10,8,FALSE) -> -120 | AI50: =T50-HLOOKUP(X50,Feuil1!$C$1:$BL$10,9,FALSE) -> -140 | AJ50: =T50-HLOOKUP(X50,Feuil1!$C$1:$BL$10,10,FALSE) -> -930 | AQ50: DEB
A51: H | B51: SEST | C51: RAL | D51: 15 | E51: 362694 | F51: BEUDAERT | G51: Yann | H51: 1999 | I51: 58.2 | J51: Oyonnax | K51: F | L51: 25 | M51: 28 | N51: 31 | O51: 31 | P51: 28 | Q51: -32 | R51: -32 | S51: 28 | T51: 59 | U51: -57.4 | V51: DEB | W51: -26 | X51: =IF(I51="","",IF(A51="H",IF(OR(H51="SEN",H51<1995),VLOOKUP(I51,Feuil1!$A$11:$G$29,6),IF(AND(H51>1994,H51<1998),VLOOKUP(I51,Feuil1!$A$11:$G$29,5),IF(AND(H51>1997,H51<2000),VLOOKUP(I51,Feuil1!$A$11:$G$29,4),IF(AND(H51>1999,H51<2002),VLOOKUP(I51,Feuil1!$A$11:$G$29,3),VLOOKUP(I51,Feuil1!$A$11:$G$29,2))))),IF(OR(H51="SEN",H51<1995),VLOOKUP(I51,Feuil1!$G$11:$L$25,6),IF(AND(H51>1994,H51<1998),VLOOKUP(I51,Feuil1!$G$11:$L$25,5),IF(AND(H51>1997,H51<2000),VLOOKUP(I51,Feuil1!$G$11:$L$25,4),IF(AND(H51>1999,H51<2002),VLOOKUP(I51,Feuil1!$G$11:$L$25,3),VLOOKUP(I51,Feuil1!$G$11:$L$25,2))))))) -> C2 62 | Y51: 89.39086026 | AB51: =T51-HLOOKUP(X51,Feuil1!$C$1:$BL$10,2,FALSE) -> -26 | AC51: =T51-HLOOKUP(X51,Feuil1!$C$1:$BL$10,3,FALSE) -> -46 | AD51: =T51-HLOOKUP(X51,Feuil1!$C$1:$BL$10,4,FALSE) -> -61 | AE51: =T51-HLOOKUP(X51,Feuil1!$C$1:$BL$10,5,FALSE) -> -76 | AF51: =T51-HLOOKUP(X51,Feuil1!$C$1:$BL$10,6,FALSE) -> -91 | AG51: =T51-HLOOKUP(X51,Feuil1!$C$1:$BL$10,7,FALSE) -> -111 | AH51: =T51-HLOOKUP(X51,Feuil1!$C$1:$BL$10,8,FALSE) -> -131 | AI51: =T51-HLOOKUP(X51,Feuil1!$C$1:$BL$10,9,FALSE) -> -151 | AJ51: =T51-HLOOKUP(X51,Feuil1!$C$1:$BL$10,10,FALSE) -> -941 | AQ51: DEB
AB52: =T52-HLOOKUP(X52,Feuil1!$C$1:$BL$10,2,FALSE) ->  | AC52: =T52-HLOOKUP(X52,Feuil1!$C$1:$BL$10,3,FALSE) ->  | AD52: =T52-HLOOKUP(X52,Feuil1!$C$1:$BL$10,4,FALSE) ->  | AE52: =T52-HLOOKUP(X52,Feuil1!$C$1:$BL$10,5,FALSE) ->  | AF52: =T52-HLOOKUP(X52,Feuil1!$C$1:$BL$10,6,FALSE) ->  | AG52: =T52-HLOOKUP(X52,Feuil1!$C$1:$BL$10,7,FALSE) ->  | AH52: =T52-HLOOKUP(X52,Feuil1!$C$1:$BL$10,8,FALSE) ->  | AI52: =T52-HLOOKUP(X52,Feuil1!$C$1:$BL$10,9,FALSE) ->  | AJ52: =T52-HLOOKUP(X52,Feuil1!$C$1:$BL$10,10,FALSE) -> 
A53: H | B53: CO | C53: BNO | D53: 1 | E53: 284350 | F53: Fauny | G53: Sébastien | H53: 1998 | I53: 67 | J53: Saint-Lô | K53: F | L53: 68 | M53: 72 | N53: 76 | O53: =IF(H53="","",IF(MAXA(L53:N53)<=0,0,MAXA(L53:N53))) -> 76 | P53: 88 | Q53: 93 | R53: -95 | S53: =IF(H53="","",IF(MAXA(P53:R53)<=0,0,MAXA(P53:R53))) -> 93 | T53: =IF(H53="","",IF(OR(O53=0,S53=0),0,O53+S53)) -> 169 | U53: =T53-I53*2 -> 35 | V53: =IF(H53="","",AQ53) -> IRG + | W53: =IF(AJ53>=0,AJ53,IF(AI53>=0,AI53,IF(AH53>=0,AH53,IF(AG53>=0,AG53,IF(AF53>=0,AF53,IF(AE53>=0,AE53,IF(AD53>=0,AD53,IF(AC53>=0,AC53,AB53)))))))) -> 19 | X53: =IF(I53="","",IF(A53="H",IF(OR(H53="SEN",H53<1995),VLOOKUP(I53,Feuil1!$A$11:$G$29,6),IF(AND(H53>1994,H53<1998),VLOOKUP(I53,Feuil1!$A$11:$G$29,5),IF(AND(H53>1997,H53<2000),VLOOKUP(I53,Feuil1!$A$11:$G$29,4),IF(AND(H53>1999,H53<2002),VLOOKUP(I53,Feuil1!$A$11:$G$29,3),VLOOKUP(I53,Feuil1!$A$11:$G$29,2))))),IF(OR(H53="SEN",H53<1995),VLOOKUP(I53,Feuil1!$G$11:$L$25,6),IF(AND(H53>1994,H53<1998),VLOOKUP(I53,Feuil1!$G$11:$L$25,5),IF(AND(H53>1997,H53<2000),VLOOKUP(I53,Feuil1!$G$11:$L$25,4),IF(AND(H53>1999,H53<2002),VLOOKUP(I53,Feuil1!$G$11:$L$25,3),VLOOKUP(I53,Feuil1!$G$11:$L$25,2))))))) -> C2 69 | Y53: =IF(I53="","",IF(A53="H",10^(0.794358141*LOG(I53/174.393)^2)*T53,IF(A53="F",10^(0.89726074*LOG(I53/148.026)^2)*T53,""))) -> 231.7366324 | AB53: =T53-HLOOKUP(X53,Feuil1!$C$1:$BL$10,2,FALSE) -> 74 | AC53: =T53-HLOOKUP(X53,Feuil1!$C$1:$BL$10,3,FALSE) -> 54 | AD53: =T53-HLOOKUP(X53,Feuil1!$C$1:$BL$10,4,FALSE) -> 39 | AE53: =T53-HLOOKUP(X53,Feuil1!$C$1:$BL$10,5,FALSE) -> 19 | AF53: =T53-HLOOKUP(X53,Feuil1!$C$1:$BL$10,6,FALSE) -> -1 | AG53: =T53-HLOOKUP(X53,Feuil1!$C$1:$BL$10,7,FALSE) -> -21 | AH53: =T53-HLOOKUP(X53,Feuil1!$C$1:$BL$10,8,FALSE) -> -41 | AI53: =T53-HLOOKUP(X53,Feuil1!$C$1:$BL$10,9,FALSE) -> -61 | AJ53: =T53-HLOOKUP(X53,Feuil1!$C$1:$BL$10,10,FALSE) -> -831 | AQ53: =IF(AJ53>=0,$AJ$4,IF(AI53>=0,$AI$4,IF(AH53>=0,$AH$4,IF(AG53>=0,$AG$4,IF(AF53>=0,$AF$4,IF(AE53>=0,$AE$4,IF(AD53>=0,$AD$4,IF(AC53>=0,$AC$4,$AB$4)))))))) -> IRG +
A54: H | B54: DOM | C54: GUA | D54: 2 | E54: 380462 | F54: RESON | G54: Nicolas | H54: 1999 | I54: 68.7 | J54: AHCS/Pointe à Pitre | K54: F | L54: 60 | M54: 65 | N54: -68 | O54: 65 | P54: 75 | Q54: 80 | R54: -85 | S54: 80 | T54: 145 | U54: 7.6 | V54: REG + | W54: 15 | X54: =IF(I54="","",IF(A54="H",IF(OR(H54="SEN",H54<1995),VLOOKUP(I54,Feuil1!$A$11:$G$29,6),IF(AND(H54>1994,H54<1998),VLOOKUP(I54,Feuil1!$A$11:$G$29,5),IF(AND(H54>1997,H54<2000),VLOOKUP(I54,Feuil1!$A$11:$G$29,4),IF(AND(H54>1999,H54<2002),VLOOKUP(I54,Feuil1!$A$11:$G$29,3),VLOOKUP(I54,Feuil1!$A$11:$G$29,2))))),IF(OR(H54="SEN",H54<1995),VLOOKUP(I54,Feuil1!$G$11:$L$25,6),IF(AND(H54>1994,H54<1998),VLOOKUP(I54,Feuil1!$G$11:$L$25,5),IF(AND(H54>1997,H54<2000),VLOOKUP(I54,Feuil1!$G$11:$L$25,4),IF(AND(H54>1999,H54<2002),VLOOKUP(I54,Feuil1!$G$11:$L$25,3),VLOOKUP(I54,Feuil1!$G$11:$L$25,2))))))) -> C2 69 | Y54: 195.608424 | AB54: =T54-HLOOKUP(X54,Feuil1!$C$1:$BL$10,2,FALSE) -> 50 | AC54: =T54-HLOOKUP(X54,Feuil1!$C$1:$BL$10,3,FALSE) -> 30 | AD54: =T54-HLOOKUP(X54,Feuil1!$C$1:$BL$10,4,FALSE) -> 15 | AE54: =T54-HLOOKUP(X54,Feuil1!$C$1:$BL$10,5,FALSE) -> -5 | AF54: =T54-HLOOKUP(X54,Feuil1!$C$1:$BL$10,6,FALSE) -> -25 | AG54: =T54-HLOOKUP(X54,Feuil1!$C$1:$BL$10,7,FALSE) -> -45 | AH54: =T54-HLOOKUP(X54,Feuil1!$C$1:$BL$10,8,FALSE) -> -65 | AI54: =T54-HLOOKUP(X54,Feuil1!$C$1:$BL$10,9,FALSE) -> -85 | AJ54: =T54-HLOOKUP(X54,Feuil1!$C$1:$BL$10,10,FALSE) -> -855 | AQ54: REG +
A55: H | B55: NE | C55: ALS | D55: 3 | E55: 328654 | F55: GREMMEL | G55: THOMAS | H55: 1998 | I55: 66.9 | J55: SR Obernai HM | K55: F | L55: 54 | M55: 58 | N55: -61 | O55: 58 | P55: 73 | Q55: -77 | R55: -79 | S55: 73 | T55: 131 | U55: -2.8 | V55: REG + | W55: 1 | X55: =IF(I55="","",IF(A55="H",IF(OR(H55="SEN",H55<1995),VLOOKUP(I55,Feuil1!$A$11:$G$29,6),IF(AND(H55>1994,H55<1998),VLOOKUP(I55,Feuil1!$A$11:$G$29,5),IF(AND(H55>1997,H55<2000),VLOOKUP(I55,Feuil1!$A$11:$G$29,4),IF(AND(H55>1999,H55<2002),VLOOKUP(I55,Feuil1!$A$11:$G$29,3),VLOOKUP(I55,Feuil1!$A$11:$G$29,2))))),IF(OR(H55="SEN",H55<1995),VLOOKUP(I55,Feuil1!$G$11:$L$25,6),IF(AND(H55>1994,H55<1998),VLOOKUP(I55,Feuil1!$G$11:$L$25,5),IF(AND(H55>1997,H55<2000),VLOOKUP(I55,Feuil1!$G$11:$L$25,4),IF(AND(H55>1999,H55<2002),VLOOKUP(I55,Feuil1!$G$11:$L$25,3),VLOOKUP(I55,Feuil1!$G$11:$L$25,2))))))) -> C2 69 | Y55: 179.8074882 | AB55: =T55-HLOOKUP(X55,Feuil1!$C$1:$BL$10,2,FALSE) -> 36 | AC55: =T55-HLOOKUP(X55,Feuil1!$C$1:$BL$10,3,FALSE) -> 16 | AD55: =T55-HLOOKUP(X55,Feuil1!$C$1:$BL$10,4,FALSE) -> 1 | AE55: =T55-HLOOKUP(X55,Feuil1!$C$1:$BL$10,5,FALSE) -> -19 | AF55: =T55-HLOOKUP(X55,Feuil1!$C$1:$BL$10,6,FALSE) -> -39 | AG55: =T55-HLOOKUP(X55,Feuil1!$C$1:$BL$10,7,FALSE) -> -59 | AH55: =T55-HLOOKUP(X55,Feuil1!$C$1:$BL$10,8,FALSE) -> -79 | AI55: =T55-HLOOKUP(X55,Feuil1!$C$1:$BL$10,9,FALSE) -> -99 | AJ55: =T55-HLOOKUP(X55,Feuil1!$C$1:$BL$10,10,FALSE) -> -869 | AQ55: REG +
A56: H | B56: NE | C56: ALS | D56: 4 | E56: 345037 | F56: ACHOURI | G56: FARES | H56: 1999 | I56: 64.7 | J56: SA Koenigshoffen | K56: F | L56: 50 | M56: 55 | N56: 58 | O56: 58 | P56: 63 | Q56: 69 | R56: -72 | S56: 69 | T56: 127 | U56: -2.4 | V56: DEP + | W56: 12 | X56: =IF(I56="","",IF(A56="H",IF(OR(H56="SEN",H56<1995),VLOOKUP(I56,Feuil1!$A$11:$G$29,6),IF(AND(H56>1994,H56<1998),VLOOKUP(I56,Feuil1!$A$11:$G$29,5),IF(AND(H56>1997,H56<2000),VLOOKUP(I56,Feuil1!$A$11:$G$29,4),IF(AND(H56>1999,H56<2002),VLOOKUP(I56,Feuil1!$A$11:$G$29,3),VLOOKUP(I56,Feuil1!$A$11:$G$29,2))))),IF(OR(H56="SEN",H56<1995),VLOOKUP(I56,Feuil1!$G$11:$L$25,6),IF(AND(H56>1994,H56<1998),VLOOKUP(I56,Feuil1!$G$11:$L$25,5),IF(AND(H56>1997,H56<2000),VLOOKUP(I56,Feuil1!$G$11:$L$25,4),IF(AND(H56>1999,H56<2002),VLOOKUP(I56,Feuil1!$G$11:$L$25,3),VLOOKUP(I56,Feuil1!$G$11:$L$25,2))))))) -> C2 69 | Y56: 178.2820669 | AB56: =T56-HLOOKUP(X56,Feuil1!$C$1:$BL$10,2,FALSE) -> 32 | AC56: =T56-HLOOKUP(X56,Feuil1!$C$1:$BL$10,3,FALSE) -> 12 | AD56: =T56-HLOOKUP(X56,Feuil1!$C$1:$BL$10,4,FALSE) -> -3 | AE56: =T56-HLOOKUP(X56,Feuil1!$C$1:$BL$10,5,FALSE) -> -23 | AF56: =T56-HLOOKUP(X56,Feuil1!$C$1:$BL$10,6,FALSE) -> -43 | AG56: =T56-HLOOKUP(X56,Feuil1!$C$1:$BL$10,7,FALSE) -> -63 | AH56: =T56-HLOOKUP(X56,Feuil1!$C$1:$BL$10,8,FALSE) -> -83 | AI56: =T56-HLOOKUP(X56,Feuil1!$C$1:$BL$10,9,FALSE) -> -103 | AJ56: =T56-HLOOKUP(X56,Feuil1!$C$1:$BL$10,10,FALSE) -> -873 | AQ56: DEP +
A57: H | B57: SEST | C57: PRO | D57: 5 | E57: 388046 | F57: BERTRAND | G57: BENOIT | H57: 1998 | I57: 66.1 | J57: CHC MONDRAGON | K57: F | L57: 45 | M57: 50 | N57: 55 | O57: 55 | P57: 62 | Q57: 68 | R57: 72 | S57: 72 | T57: 127 | U57: -5.2 | V57: DEP + | W57: 12 | X57: =IF(I57="","",IF(A57="H",IF(OR(H57="SEN",H57<1995),VLOOKUP(I57,Feuil1!$A$11:$G$29,6),IF(AND(H57>1994,H57<1998),VLOOKUP(I57,Feuil1!$A$11:$G$29,5),IF(AND(H57>1997,H57<2000),VLOOKUP(I57,Feuil1!$A$11:$G$29,4),IF(AND(H57>1999,H57<2002),VLOOKUP(I57,Feuil1!$A$11:$G$29,3),VLOOKUP(I57,Feuil1!$A$11:$G$29,2))))),IF(OR(H57="SEN",H57<1995),VLOOKUP(I57,Feuil1!$G$11:$L$25,6),IF(AND(H57>1994,H57<1998),VLOOKUP(I57,Feuil1!$G$11:$L$25,5),IF(AND(H57>1997,H57<2000),VLOOKUP(I57,Feuil1!$G$11:$L$25,4),IF(AND(H57>1999,H57<2002),VLOOKUP(I57,Feuil1!$G$11:$L$25,3),VLOOKUP(I57,Feuil1!$G$11:$L$25,2))))))) -> C2 69 | Y57: 175.7177952 | AB57: =T57-HLOOKUP(X57,Feuil1!$C$1:$BL$10,2,FALSE) -> 32 | AC57: =T57-HLOOKUP(X57,Feuil1!$C$1:$BL$10,3,FALSE) -> 12 | AD57: =T57-HLOOKUP(X57,Feuil1!$C$1:$BL$10,4,FALSE) -> -3 | AE57: =T57-HLOOKUP(X57,Feuil1!$C$1:$BL$10,5,FALSE) -> -23 | AF57: =T57-HLOOKUP(X57,Feuil1!$C$1:$BL$10,6,FALSE) -> -43 | AG57: =T57-HLOOKUP(X57,Feuil1!$C$1:$BL$10,7,FALSE) -> -63 | AH57: =T57-HLOOKUP(X57,Feuil1!$C$1:$BL$10,8,FALSE) -> -83 | AI57: =T57-HLOOKUP(X57,Feuil1!$C$1:$BL$10,9,FALSE) -> -103 | AJ57: =T57-HLOOKUP(X57,Feuil1!$C$1:$BL$10,10,FALSE) -> -873 | AQ57: DEP +
A58: H | B58: CO | C58: CEN | D58: 6 | E58: 327184 | F58: DURCOURTIOUX | G58: Brian | H58: 1999 | I58: 62.1 | J58: AAJ BLOIS | K58: F | L58: 51 | M58: 53 | N58: -55 | O58: 53 | P58: 62 | Q58: 65 | R58: -68 | S58: 65 | T58: 118 | U58: -6.2 | V58: DEP + | W58: 3 | X58: =IF(I58="","",IF(A58="H",IF(OR(H58="SEN",H58<1995),VLOOKUP(I58,Feuil1!$A$11:$G$29,6),IF(AND(H58>1994,H58<1998),VLOOKUP(I58,Feuil1!$A$11:$G$29,5),IF(AND(H58>1997,H58<2000),VLOOKUP(I58,Feuil1!$A$11:$G$29,4),IF(AND(H58>1999,H58<2002),VLOOKUP(I58,Feuil1!$A$11:$G$29,3),VLOOKUP(I58,Feuil1!$A$11:$G$29,2))))),IF(OR(H58="SEN",H58<1995),VLOOKUP(I58,Feuil1!$G$11:$L$25,6),IF(AND(H58>1994,H58<1998),VLOOKUP(I58,Feuil1!$G$11:$L$25,5),IF(AND(H58>1997,H58<2000),VLOOKUP(I58,Feuil1!$G$11:$L$25,4),IF(AND(H58>1999,H58<2002),VLOOKUP(I58,Feuil1!$G$11:$L$25,3),VLOOKUP(I58,Feuil1!$G$11:$L$25,2))))))) -> C2 69 | Y58: 170.4607392 | AB58: =T58-HLOOKUP(X58,Feuil1!$C$1:$BL$10,2,FALSE) -> 23 | AC58: =T58-HLOOKUP(X58,Feuil1!$C$1:$BL$10,3,FALSE) -> 3 | AD58: =T58-HLOOKUP(X58,Feuil1!$C$1:$BL$10,4,FALSE) -> -12 | AE58: =T58-HLOOKUP(X58,Feuil1!$C$1:$BL$10,5,FALSE) -> -32 | AF58: =T58-HLOOKUP(X58,Feuil1!$C$1:$BL$10,6,FALSE) -> -52 | AG58: =T58-HLOOKUP(X58,Feuil1!$C$1:$BL$10,7,FALSE) -> -72 | AH58: =T58-HLOOKUP(X58,Feuil1!$C$1:$BL$10,8,FALSE) -> -92 | AI58: =T58-HLOOKUP(X58,Feuil1!$C$1:$BL$10,9,FALSE) -> -112 | AJ58: =T58-HLOOKUP(X58,Feuil1!$C$1:$BL$10,10,FALSE) -> -882 | AQ58: DEP +
A59: H | B59: N | C59: PIC | D59: 7 | E59: 360904 | F59: LASSEAUX | G59: Arthur | H59: 1999 | I59: 68.3 | J59: Hirson CEHT | K59: F | L59: 53 | M59: -57 | N59: -57 | O59: 53 | P59: -63 | Q59: 63 | R59: -68 | S59: 63 | T59: 116 | U59: -20.6 | V59: DEP + | W59: 1 | X59: =IF(I59="","",IF(A59="H",IF(OR(H59="SEN",H59<1995),VLOOKUP(I59,Feuil1!$A$11:$G$29,6),IF(AND(H59>1994,H59<1998),VLOOKUP(I59,Feuil1!$A$11:$G$29,5),IF(AND(H59>1997,H59<2000),VLOOKUP(I59,Feuil1!$A$11:$G$29,4),IF(AND(H59>1999,H59<2002),VLOOKUP(I59,Feuil1!$A$11:$G$29,3),VLOOKUP(I59,Feuil1!$A$11:$G$29,2))))),IF(OR(H59="SEN",H59<1995),VLOOKUP(I59,Feuil1!$G$11:$L$25,6),IF(AND(H59>1994,H59<1998),VLOOKUP(I59,Feuil1!$G$11:$L$25,5),IF(AND(H59>1997,H59<2000),VLOOKUP(I59,Feuil1!$G$11:$L$25,4),IF(AND(H59>1999,H59<2002),VLOOKUP(I59,Feuil1!$G$11:$L$25,3),VLOOKUP(I59,Feuil1!$G$11:$L$25,2))))))) -> C2 69 | Y59: 157.0770321 | AB59: =T59-HLOOKUP(X59,Feuil1!$C$1:$BL$10,2,FALSE) -> 21 | AC59: =T59-HLOOKUP(X59,Feuil1!$C$1:$BL$10,3,FALSE) -> 1 | AD59: =T59-HLOOKUP(X59,Feuil1!$C$1:$BL$10,4,FALSE) -> -14 | AE59: =T59-HLOOKUP(X59,Feuil1!$C$1:$BL$10,5,FALSE) -> -34 | AF59: =T59-HLOOKUP(X59,Feuil1!$C$1:$BL$10,6,FALSE) -> -54 | AG59: =T59-HLOOKUP(X59,Feuil1!$C$1:$BL$10,7,FALSE) -> -74 | AH59: =T59-HLOOKUP(X59,Feuil1!$C$1:$BL$10,8,FALSE) -> -94 | AI59: =T59-HLOOKUP(X59,Feuil1!$C$1:$BL$10,9,FALSE) -> -114 | AJ59: =T59-HLOOKUP(X59,Feuil1!$C$1:$BL$10,10,FALSE) -> -884 | AQ59: DEP +
A60: H | B60: N | C60: IDF | D60: 8 | E60: 393922 | F60: CASTEL | G60: HUGO | H60: 1998 | I60: 67.5 | J60: VGA SAINT MAUR | K60: F | L60: 40 | M60: 45 | N60: 48 | O60: 48 | P60: 55 | Q60: 60 | R60: 65 | S60: 65 | T60: 113 | U60: -22 | V60: DEB | W60: 18 | X60: =IF(I60="","",IF(A60="H",IF(OR(H60="SEN",H60<1995),VLOOKUP(I60,Feuil1!$A$11:$G$29,6),IF(AND(H60>1994,H60<1998),VLOOKUP(I60,Feuil1!$A$11:$G$29,5),IF(AND(H60>1997,H60<2000),VLOOKUP(I60,Feuil1!$A$11:$G$29,4),IF(AND(H60>1999,H60<2002),VLOOKUP(I60,Feuil1!$A$11:$G$29,3),VLOOKUP(I60,Feuil1!$A$11:$G$29,2))))),IF(OR(H60="SEN",H60<1995),VLOOKUP(I60,Feuil1!$G$11:$L$25,6),IF(AND(H60>1994,H60<1998),VLOOKUP(I60,Feuil1!$G$11:$L$25,5),IF(AND(H60>1997,H60<2000),VLOOKUP(I60,Feuil1!$G$11:$L$25,4),IF(AND(H60>1999,H60<2002),VLOOKUP(I60,Feuil1!$G$11:$L$25,3),VLOOKUP(I60,Feuil1!$G$11:$L$25,2))))))) -> C2 69 | Y60: 154.1925769 | AB60: =T60-HLOOKUP(X60,Feuil1!$C$1:$BL$10,2,FALSE) -> 18 | AC60: =T60-HLOOKUP(X60,Feuil1!$C$1:$BL$10,3,FALSE) -> -2 | AD60: =T60-HLOOKUP(X60,Feuil1!$C$1:$BL$10,4,FALSE) -> -17 | AE60: =T60-HLOOKUP(X60,Feuil1!$C$1:$BL$10,5,FALSE) -> -37 | AF60: =T60-HLOOKUP(X60,Feuil1!$C$1:$BL$10,6,FALSE) -> -57 | AG60: =T60-HLOOKUP(X60,Feuil1!$C$1:$BL$10,7,FALSE) -> -77 | AH60: =T60-HLOOKUP(X60,Feuil1!$C$1:$BL$10,8,FALSE) -> -97 | AI60: =T60-HLOOKUP(X60,Feuil1!$C$1:$BL$10,9,FALSE) -> -117 | AJ60: =T60-HLOOKUP(X60,Feuil1!$C$1:$BL$10,10,FALSE) -> -887 | AQ60: DEB
A61: H | B61: DOM | C61: REU | D61: 9 | E61: 251233 | F61: HABIERA | G61: WILLIAM | H61: 1999 | I61: 68.95 | J61: CH TAMPON | K61: F | L61: 47 | M61: 50 | N61: -55 | O61: 50 | P61: 57 | Q61: 62 | R61: -65 | S61: 62 | T61: 112 | U61: -25.9 | V61: DEB | W61: 17 | X61: =IF(I61="","",IF(A61="H",IF(OR(H61="SEN",H61<1995),VLOOKUP(I61,Feuil1!$A$11:$G$29,6),IF(AND(H61>1994,H61<1998),VLOOKUP(I61,Feuil1!$A$11:$G$29,5),IF(AND(H61>1997,H61<2000),VLOOKUP(I61,Feuil1!$A$11:$G$29,4),IF(AND(H61>1999,H61<2002),VLOOKUP(I61,Feuil1!$A$11:$G$29,3),VLOOKUP(I61,Feuil1!$A$11:$G$29,2))))),IF(OR(H61="SEN",H61<1995),VLOOKUP(I61,Feuil1!$G$11:$L$25,6),IF(AND(H61>1994,H61<1998),VLOOKUP(I61,Feuil1!$G$11:$L$25,5),IF(AND(H61>1997,H61<2000),VLOOKUP(I61,Feuil1!$G$11:$L$25,4),IF(AND(H61>1999,H61<2002),VLOOKUP(I61,Feuil1!$G$11:$L$25,3),VLOOKUP(I61,Feuil1!$G$11:$L$25,2))))))) -> C2 69 | Y61: 150.7389864 | AB61: =T61-HLOOKUP(X61,Feuil1!$C$1:$BL$10,2,FALSE) -> 17 | AC61: =T61-HLOOKUP(X61,Feuil1!$C$1:$BL$10,3,FALSE) -> -3 | AD61: =T61-HLOOKUP(X61,Feuil1!$C$1:$BL$10,4,FALSE) -> -18 | AE61: =T61-HLOOKUP(X61,Feuil1!$C$1:$BL$10,5,FALSE) -> -38 | AF61: =T61-HLOOKUP(X61,Feuil1!$C$1:$BL$10,6,FALSE) -> -58 | AG61: =T61-HLOOKUP(X61,Feuil1!$C$1:$BL$10,7,FALSE) -> -78 | AH61: =T61-HLOOKUP(X61,Feuil1!$C$1:$BL$10,8,FALSE) -> -98 | AI61: =T61-HLOOKUP(X61,Feuil1!$C$1:$BL$10,9,FALSE) -> -118 | AJ61: =T61-HLOOKUP(X61,Feuil1!$C$1:$BL$10,10,FALSE) -> -888 | AQ61: DEB
A62: H | B62: SEST | C62: PRO | D62: 10 | E62: 3602528 | F62: WADJA | G62: ERWAN | H62: 1998 | I62: 65.5 | J62: ISTRES SPORTS | K62: F | L62: 42 | M62: 45 | N62: -48 | O62: 45 | P62: 55 | Q62: 58 | R62: 61 | S62: 61 | T62: 106 | U62: -25 | V62: DEB | W62: 11 | X62: =IF(I62="","",IF(A62="H",IF(OR(H62="SEN",H62<1995),VLOOKUP(I62,Feuil1!$A$11:$G$29,6),IF(AND(H62>1994,H62<1998),VLOOKUP(I62,Feuil1!$A$11:$G$29,5),IF(AND(H62>1997,H62<2000),VLOOKUP(I62,Feuil1!$A$11:$G$29,4),IF(AND(H62>1999,H62<2002),VLOOKUP(I62,Feuil1!$A$11:$G$29,3),VLOOKUP(I62,Feuil1!$A$11:$G$29,2))))),IF(OR(H62="SEN",H62<1995),VLOOKUP(I62,Feuil1!$G$11:$L$25,6),IF(AND(H62>1994,H62<1998),VLOOKUP(I62,Feuil1!$G$11:$L$25,5),IF(AND(H62>1997,H62<2000),VLOOKUP(I62,Feuil1!$G$11:$L$25,4),IF(AND(H62>1999,H62<2002),VLOOKUP(I62,Feuil1!$G$11:$L$25,3),VLOOKUP(I62,Feuil1!$G$11:$L$25,2))))))) -> C2 69 | Y62: 147.5642516 | AB62: =T62-HLOOKUP(X62,Feuil1!$C$1:$BL$10,2,FALSE) -> 11 | AC62: =T62-HLOOKUP(X62,Feuil1!$C$1:$BL$10,3,FALSE) -> -9 | AD62: =T62-HLOOKUP(X62,Feuil1!$C$1:$BL$10,4,FALSE) -> -24 | AE62: =T62-HLOOKUP(X62,Feuil1!$C$1:$BL$10,5,FALSE) -> -44 | AF62: =T62-HLOOKUP(X62,Feuil1!$C$1:$BL$10,6,FALSE) -> -64 | AG62: =T62-HLOOKUP(X62,Feuil1!$C$1:$BL$10,7,FALSE) -> -84 | AH62: =T62-HLOOKUP(X62,Feuil1!$C$1:$BL$10,8,FALSE) -> -104 | AI62: =T62-HLOOKUP(X62,Feuil1!$C$1:$BL$10,9,FALSE) -> -124 | AJ62: =T62-HLOOKUP(X62,Feuil1!$C$1:$BL$10,10,FALSE) -> -894 | AQ62: DEB
A63: H | B63: CO | C63: BNO | D63: 11 | E63: 343244 | F63: Sade | G63: Maxim | H63: 1999 | I63: 68.6 | J63: Caen CHM | K63: F | L63: 42 | M63: -45 | N63: 45 | O63: 45 | P63: 55 | Q63: 58 | R63: 60 | S63: 60 | T63: 105 | U63: -32.2 | V63: DEB | W63: 10 | X63: =IF(I63="","",IF(A63="H",IF(OR(H63="SEN",H63<1995),VLOOKUP(I63,Feuil1!$A$11:$G$29,6),IF(AND(H63>1994,H63<1998),VLOOKUP(I63,Feuil1!$A$11:$G$29,5),IF(AND(H63>1997,H63<2000),VLOOKUP(I63,Feuil1!$A$11:$G$29,4),IF(AND(H63>1999,H63<2002),VLOOKUP(I63,Feuil1!$A$11:$G$29,3),VLOOKUP(I63,Feuil1!$A$11:$G$29,2))))),IF(OR(H63="SEN",H63<1995),VLOOKUP(I63,Feuil1!$G$11:$L$25,6),IF(AND(H63>1994,H63<1998),VLOOKUP(I63,Feuil1!$G$11:$L$25,5),IF(AND(H63>1997,H63<2000),VLOOKUP(I63,Feuil1!$G$11:$L$25,4),IF(AND(H63>1999,H63<2002),VLOOKUP(I63,Feuil1!$G$11:$L$25,3),VLOOKUP(I63,Feuil1!$G$11:$L$25,2))))))) -> C2 69 | Y63: 141.7802659 | AB63: =T63-HLOOKUP(X63,Feuil1!$C$1:$BL$10,2,FALSE) -> 10 | AC63: =T63-HLOOKUP(X63,Feuil1!$C$1:$BL$10,3,FALSE) -> -10 | AD63: =T63-HLOOKUP(X63,Feuil1!$C$1:$BL$10,4,FALSE) -> -25 | AE63: =T63-HLOOKUP(X63,Feuil1!$C$1:$BL$10,5,FALSE) -> -45 | AF63: =T63-HLOOKUP(X63,Feuil1!$C$1:$BL$10,6,FALSE) -> -65 | AG63: =T63-HLOOKUP(X63,Feuil1!$C$1:$BL$10,7,FALSE) -> -85 | AH63: =T63-HLOOKUP(X63,Feuil1!$C$1:$BL$10,8,FALSE) -> -105 | AI63: =T63-HLOOKUP(X63,Feuil1!$C$1:$BL$10,9,FALSE) -> -125 | AJ63: =T63-HLOOKUP(X63,Feuil1!$C$1:$BL$10,10,FALSE) -> -895 | AQ63: DEB
A64: H | B64: NE | C64: ALS | D64: 12 | E64: 371862 | F64: CHANTELOUP | G64: FLORIAN | H64: 1998 | I64: 68.9 | J64: CS Brumath | K64: F | L64: 45 | M64: 50 | N64: -55 | O64: 50 | P64: -50 | Q64: 50 | R64: -58 | S64: 50 | T64: 100 | U64: -37.8 | V64: DEB | W64: 5 | X64: =IF(I64="","",IF(A64="H",IF(OR(H64="SEN",H64<1995),VLOOKUP(I64,Feuil1!$A$11:$G$29,6),IF(AND(H64>1994,H64<1998),VLOOKUP(I64,Feuil1!$A$11:$G$29,5),IF(AND(H64>1997,H64<2000),VLOOKUP(I64,Feuil1!$A$11:$G$29,4),IF(AND(H64>1999,H64<2002),VLOOKUP(I64,Feuil1!$A$11:$G$29,3),VLOOKUP(I64,Feuil1!$A$11:$G$29,2))))),IF(OR(H64="SEN",H64<1995),VLOOKUP(I64,Feuil1!$G$11:$L$25,6),IF(AND(H64>1994,H64<1998),VLOOKUP(I64,Feuil1!$G$11:$L$25,5),IF(AND(H64>1997,H64<2000),VLOOKUP(I64,Feuil1!$G$11:$L$25,4),IF(AND(H64>1999,H64<2002),VLOOKUP(I64,Feuil1!$G$11:$L$25,3),VLOOKUP(I64,Feuil1!$G$11:$L$25,2))))))) -> C2 69 | Y64: 134.6509293 | AB64: =T64-HLOOKUP(X64,Feuil1!$C$1:$BL$10,2,FALSE) -> 5 | AC64: =T64-HLOOKUP(X64,Feuil1!$C$1:$BL$10,3,FALSE) -> -15 | AD64: =T64-HLOOKUP(X64,Feuil1!$C$1:$BL$10,4,FALSE) -> -30 | AE64: =T64-HLOOKUP(X64,Feuil1!$C$1:$BL$10,5,FALSE) -> -50 | AF64: =T64-HLOOKUP(X64,Feuil1!$C$1:$BL$10,6,FALSE) -> -70 | AG64: =T64-HLOOKUP(X64,Feuil1!$C$1:$BL$10,7,FALSE) -> -90 | AH64: =T64-HLOOKUP(X64,Feuil1!$C$1:$BL$10,8,FALSE) -> -110 | AI64: =T64-HLOOKUP(X64,Feuil1!$C$1:$BL$10,9,FALSE) -> -130 | AJ64: =T64-HLOOKUP(X64,Feuil1!$C$1:$BL$10,10,FALSE) -> -900 | AQ64: DEB
A65: H | B65: NE | C65: ALS | D65: 13 | E65: 384061 | F65: SOLD | G65: LUCAS | H65: 1999 | I65: 64.6 | J65: CS Brumath | K65: F | L65: 35 | M65: 40 | N65: -45 | O65: 40 | P65: 45 | Q65: 50 | R65: 55 | S65: 55 | T65: 95 | U65: -34.2 | V65: DEB | W65: 0 | X65: =IF(I65="","",IF(A65="H",IF(OR(H65="SEN",H65<1995),VLOOKUP(I65,Feuil1!$A$11:$G$29,6),IF(AND(H65>1994,H65<1998),VLOOKUP(I65,Feuil1!$A$11:$G$29,5),IF(AND(H65>1997,H65<2000),VLOOKUP(I65,Feuil1!$A$11:$G$29,4),IF(AND(H65>1999,H65<2002),VLOOKUP(I65,Feuil1!$A$11:$G$29,3),VLOOKUP(I65,Feuil1!$A$11:$G$29,2))))),IF(OR(H65="SEN",H65<1995),VLOOKUP(I65,Feuil1!$G$11:$L$25,6),IF(AND(H65>1994,H65<1998),VLOOKUP(I65,Feuil1!$G$11:$L$25,5),IF(AND(H65>1997,H65<2000),VLOOKUP(I65,Feuil1!$G$11:$L$25,4),IF(AND(H65>1999,H65<2002),VLOOKUP(I65,Feuil1!$G$11:$L$25,3),VLOOKUP(I65,Feuil1!$G$11:$L$25,2))))))) -> C2 69 | Y65: 133.5019113 | AB65: =T65-HLOOKUP(X65,Feuil1!$C$1:$BL$10,2,FALSE) -> 0 | AC65: =T65-HLOOKUP(X65,Feuil1!$C$1:$BL$10,3,FALSE) -> -20 | AD65: =T65-HLOOKUP(X65,Feuil1!$C$1:$BL$10,4,FALSE) -> -35 | AE65: =T65-HLOOKUP(X65,Feuil1!$C$1:$BL$10,5,FALSE) -> -55 | AF65: =T65-HLOOKUP(X65,Feuil1!$C$1:$BL$10,6,FALSE) -> -75 | AG65: =T65-HLOOKUP(X65,Feuil1!$C$1:$BL$10,7,FALSE) -> -95 | AH65: =T65-HLOOKUP(X65,Feuil1!$C$1:$BL$10,8,FALSE) -> -115 | AI65: =T65-HLOOKUP(X65,Feuil1!$C$1:$BL$10,9,FALSE) -> -135 | AJ65: =T65-HLOOKUP(X65,Feuil1!$C$1:$BL$10,10,FALSE) -> -905 | AQ65: DEB
A66: H | B66: CO | C66: CEN | D66: 14 | E66: 388371 | F66: LAURET | G66: Jeremy | H66: 1998 | I66: 68.8 | J66: CHM AVRAIS | K66: F | L66: 35 | M66: 40 | N66: 44 | O66: 44 | P66: 40 | Q66: 44 | R66: 50 | S66: 50 | T66: 94 | U66: -43.6 | V66: DEB | W66: -1 | X66: =IF(I66="","",IF(A66="H",IF(OR(H66="SEN",H66<1995),VLOOKUP(I66,Feuil1!$A$11:$G$29,6),IF(AND(H66>1994,H66<1998),VLOOKUP(I66,Feuil1!$A$11:$G$29,5),IF(AND(H66>1997,H66<2000),VLOOKUP(I66,Feuil1!$A$11:$G$29,4),IF(AND(H66>1999,H66<2002),VLOOKUP(I66,Feuil1!$A$11:$G$29,3),VLOOKUP(I66,Feuil1!$A$11:$G$29,2))))),IF(OR(H66="SEN",H66<1995),VLOOKUP(I66,Feuil1!$G$11:$L$25,6),IF(AND(H66>1994,H66<1998),VLOOKUP(I66,Feuil1!$G$11:$L$25,5),IF(AND(H66>1997,H66<2000),VLOOKUP(I66,Feuil1!$G$11:$L$25,4),IF(AND(H66>1999,H66<2002),VLOOKUP(I66,Feuil1!$G$11:$L$25,3),VLOOKUP(I66,Feuil1!$G$11:$L$25,2))))))) -> C2 69 | Y66: 126.6898133 | AB66: =T66-HLOOKUP(X66,Feuil1!$C$1:$BL$10,2,FALSE) -> -1 | AC66: =T66-HLOOKUP(X66,Feuil1!$C$1:$BL$10,3,FALSE) -> -21 | AD66: =T66-HLOOKUP(X66,Feuil1!$C$1:$BL$10,4,FALSE) -> -36 | AE66: =T66-HLOOKUP(X66,Feuil1!$C$1:$BL$10,5,FALSE) -> -56 | AF66: =T66-HLOOKUP(X66,Feuil1!$C$1:$BL$10,6,FALSE) -> -76 | AG66: =T66-HLOOKUP(X66,Feuil1!$C$1:$BL$10,7,FALSE) -> -96 | AH66: =T66-HLOOKUP(X66,Feuil1!$C$1:$BL$10,8,FALSE) -> -116 | AI66: =T66-HLOOKUP(X66,Feuil1!$C$1:$BL$10,9,FALSE) -> -136 | AJ66: =T66-HLOOKUP(X66,Feuil1!$C$1:$BL$10,10,FALSE) -> -906 | AQ66: DEB
A67: H | B67: CO | C67: CEN | D67: 15 | E67: 391106 | F67: DA SILVA | G67: Boris | H67: 1999 | I67: 67.2 | J67: CMO ORLEANS | K67: F | L67: -37 | M67: 37 | N67: 40 | O67: 40 | P67: 45 | Q67: 50 | R67: 52 | S67: 52 | T67: 92 | U67: -42.4 | V67: DEB | W67: -3 | X67: =IF(I67="","",IF(A67="H",IF(OR(H67="SEN",H67<1995),VLOOKUP(I67,Feuil1!$A$11:$G$29,6),IF(AND(H67>1994,H67<1998),VLOOKUP(I67,Feuil1!$A$11:$G$29,5),IF(AND(H67>1997,H67<2000),VLOOKUP(I67,Feuil1!$A$11:$G$29,4),IF(AND(H67>1999,H67<2002),VLOOKUP(I67,Feuil1!$A$11:$G$29,3),VLOOKUP(I67,Feuil1!$A$11:$G$29,2))))),IF(OR(H67="SEN",H67<1995),VLOOKUP(I67,Feuil1!$G$11:$L$25,6),IF(AND(H67>1994,H67<1998),VLOOKUP(I67,Feuil1!$G$11:$L$25,5),IF(AND(H67>1997,H67<2000),VLOOKUP(I67,Feuil1!$G$11:$L$25,4),IF(AND(H67>1999,H67<2002),VLOOKUP(I67,Feuil1!$G$11:$L$25,3),VLOOKUP(I67,Feuil1!$G$11:$L$25,2))))))) -> C2 69 | Y67: 125.9049325 | AB67: =T67-HLOOKUP(X67,Feuil1!$C$1:$BL$10,2,FALSE) -> -3 | AC67: =T67-HLOOKUP(X67,Feuil1!$C$1:$BL$10,3,FALSE) -> -23 | AD67: =T67-HLOOKUP(X67,Feuil1!$C$1:$BL$10,4,FALSE) -> -38 | AE67: =T67-HLOOKUP(X67,Feuil1!$C$1:$BL$10,5,FALSE) -> -58 | AF67: =T67-HLOOKUP(X67,Feuil1!$C$1:$BL$10,6,FALSE) -> -78 | AG67: =T67-HLOOKUP(X67,Feuil1!$C$1:$BL$10,7,FALSE) -> -98 | AH67: =T67-HLOOKUP(X67,Feuil1!$C$1:$BL$10,8,FALSE) -> -118 | AI67: =T67-HLOOKUP(X67,Feuil1!$C$1:$BL$10,9,FALSE) -> -138 | AJ67: =T67-HLOOKUP(X67,Feuil1!$C$1:$BL$10,10,FALSE) -> -908 | AQ67: DEB
A68: H | B68: SEST | C68: RAL | D68: 16 | E68: 383849 | F68: PERRET | G68: Hugo | H68: 1999 | I68: 62.5 | J68: Viriat | K68: F | L68: 30 | M68: 35 | N68: -40 | O68: 35 | P68: 40 | Q68: 43 | R68: 45 | S68: 45 | T68: 80 | U68: -45 | V68: DEB | W68: -15 | X68: =IF(I68="","",IF(A68="H",IF(OR(H68="SEN",H68<1995),VLOOKUP(I68,Feuil1!$A$11:$G$29,6),IF(AND(H68>1994,H68<1998),VLOOKUP(I68,Feuil1!$A$11:$G$29,5),IF(AND(H68>1997,H68<2000),VLOOKUP(I68,Feuil1!$A$11:$G$29,4),IF(AND(H68>1999,H68<2002),VLOOKUP(I68,Feuil1!$A$11:$G$29,3),VLOOKUP(I68,Feuil1!$A$11:$G$29,2))))),IF(OR(H68="SEN",H68<1995),VLOOKUP(I68,Feuil1!$G$11:$L$25,6),IF(AND(H68>1994,H68<1998),VLOOKUP(I68,Feuil1!$G$11:$L$25,5),IF(AND(H68>1997,H68<2000),VLOOKUP(I68,Feuil1!$G$11:$L$25,4),IF(AND(H68>1999,H68<2002),VLOOKUP(I68,Feuil1!$G$11:$L$25,3),VLOOKUP(I68,Feuil1!$G$11:$L$25,2))))))) -> C2 69 | Y68: 115.0408134 | AB68: =T68-HLOOKUP(X68,Feuil1!$C$1:$BL$10,2,FALSE) -> -15 | AC68: =T68-HLOOKUP(X68,Feuil1!$C$1:$BL$10,3,FALSE) -> -35 | AD68: =T68-HLOOKUP(X68,Feuil1!$C$1:$BL$10,4,FALSE) -> -50 | AE68: =T68-HLOOKUP(X68,Feuil1!$C$1:$BL$10,5,FALSE) -> -70 | AF68: =T68-HLOOKUP(X68,Feuil1!$C$1:$BL$10,6,FALSE) -> -90 | AG68: =T68-HLOOKUP(X68,Feuil1!$C$1:$BL$10,7,FALSE) -> -110 | AH68: =T68-HLOOKUP(X68,Feuil1!$C$1:$BL$10,8,FALSE) -> -130 | AI68: =T68-HLOOKUP(X68,Feuil1!$C$1:$BL$10,9,FALSE) -> -150 | AJ68: =T68-HLOOKUP(X68,Feuil1!$C$1:$BL$10,10,FALSE) -> -920 | AQ68: DEB
A69: H | B69: NE | C69: FCO | D69: 17 | E69: 390779 | F69: SOLANET | G69: Maxime | H69: 1999 | I69: 63.5 | J69: LFBesançon | K69: F | L69: 25 | M69: 28 | N69: -30 | O69: 28 | P69: 30 | Q69: 32 | R69: 35 | S69: 35 | T69: 63 | U69: -64 | V69: DEB | W69: -32 | X69: =IF(I69="","",IF(A69="H",IF(OR(H69="SEN",H69<1995),VLOOKUP(I69,Feuil1!$A$11:$G$29,6),IF(AND(H69>1994,H69<1998),VLOOKUP(I69,Feuil1!$A$11:$G$29,5),IF(AND(H69>1997,H69<2000),VLOOKUP(I69,Feuil1!$A$11:$G$29,4),IF(AND(H69>1999,H69<2002),VLOOKUP(I69,Feuil1!$A$11:$G$29,3),VLOOKUP(I69,Feuil1!$A$11:$G$29,2))))),IF(OR(H69="SEN",H69<1995),VLOOKUP(I69,Feuil1!$G$11:$L$25,6),IF(AND(H69>1994,H69<1998),VLOOKUP(I69,Feuil1!$G$11:$L$25,5),IF(AND(H69>1997,H69<2000),VLOOKUP(I69,Feuil1!$G$11:$L$25,4),IF(AND(H69>1999,H69<2002),VLOOKUP(I69,Feuil1!$G$11:$L$25,3),VLOOKUP(I69,Feuil1!$G$11:$L$25,2))))))) -> C2 69 | Y69: 89.58998079 | AB69: =T69-HLOOKUP(X69,Feuil1!$C$1:$BL$10,2,FALSE) -> -32 | AC69: =T69-HLOOKUP(X69,Feuil1!$C$1:$BL$10,3,FALSE) -> -52 | AD69: =T69-HLOOKUP(X69,Feuil1!$C$1:$BL$10,4,FALSE) -> -67 | AE69: =T69-HLOOKUP(X69,Feuil1!$C$1:$BL$10,5,FALSE) -> -87 | AF69: =T69-HLOOKUP(X69,Feuil1!$C$1:$BL$10,6,FALSE) -> -107 | AG69: =T69-HLOOKUP(X69,Feuil1!$C$1:$BL$10,7,FALSE) -> -127 | AH69: =T69-HLOOKUP(X69,Feuil1!$C$1:$BL$10,8,FALSE) -> -147 | AI69: =T69-HLOOKUP(X69,Feuil1!$C$1:$BL$10,9,FALSE) -> -167 | AJ69: =T69-HLOOKUP(X69,Feuil1!$C$1:$BL$10,10,FALSE) -> -937 | AQ69: DEB
A70: H | B70: NE | C70: ALS | D70: 18 | E70: 382825 | F70: BENDENADJI | G70: CHEMSS EDDINE | H70: 1998 | I70: 66.9 | J70: SA Koenigshoffen | K70: F | L70: 25 | M70: -27 | N70: 27 | O70: 27 | P70: 30 | Q70: 33 | R70: 35 | S70: 35 | T70: 62 | U70: -71.8 | V70: DEB | W70: -33 | X70: =IF(I70="","",IF(A70="H",IF(OR(H70="SEN",H70<1995),VLOOKUP(I70,Feuil1!$A$11:$G$29,6),IF(AND(H70>1994,H70<1998),VLOOKUP(I70,Feuil1!$A$11:$G$29,5),IF(AND(H70>1997,H70<2000),VLOOKUP(I70,Feuil1!$A$11:$G$29,4),IF(AND(H70>1999,H70<2002),VLOOKUP(I70,Feuil1!$A$11:$G$29,3),VLOOKUP(I70,Feuil1!$A$11:$G$29,2))))),IF(OR(H70="SEN",H70<1995),VLOOKUP(I70,Feuil1!$G$11:$L$25,6),IF(AND(H70>1994,H70<1998),VLOOKUP(I70,Feuil1!$G$11:$L$25,5),IF(AND(H70>1997,H70<2000),VLOOKUP(I70,Feuil1!$G$11:$L$25,4),IF(AND(H70>1999,H70<2002),VLOOKUP(I70,Feuil1!$G$11:$L$25,3),VLOOKUP(I70,Feuil1!$G$11:$L$25,2))))))) -> C2 69 | Y70: 85.09972723 | AB70: =T70-HLOOKUP(X70,Feuil1!$C$1:$BL$10,2,FALSE) -> -33 | AC70: =T70-HLOOKUP(X70,Feuil1!$C$1:$BL$10,3,FALSE) -> -53 | AD70: =T70-HLOOKUP(X70,Feuil1!$C$1:$BL$10,4,FALSE) -> -68 | AE70: =T70-HLOOKUP(X70,Feuil1!$C$1:$BL$10,5,FALSE) -> -88 | AF70: =T70-HLOOKUP(X70,Feuil1!$C$1:$BL$10,6,FALSE) -> -108 | AG70: =T70-HLOOKUP(X70,Feuil1!$C$1:$BL$10,7,FALSE) -> -128 | AH70: =T70-HLOOKUP(X70,Feuil1!$C$1:$BL$10,8,FALSE) -> -148 | AI70: =T70-HLOOKUP(X70,Feuil1!$C$1:$BL$10,9,FALSE) -> -168 | AJ70: =T70-HLOOKUP(X70,Feuil1!$C$1:$BL$10,10,FALSE) -> -938 | AQ70: DEB
A71: H | B71: CO | C71: BRE | D71: NC | E71: 355842 | F71: LOZACHMEUR | G71: David | H71: 1998 | I71: 64.9 | J71: AL QUIMPER | K71: F | L71: 67 | M71: 71 | N71: -73 | O71: 71 | P71: -89 | Q71: -89 | R71: -90 | S71: 0 | T71: 0 | U71: -129.8 | V71: DEB | W71: -95 | X71: =IF(I71="","",IF(A71="H",IF(OR(H71="SEN",H71<1995),VLOOKUP(I71,Feuil1!$A$11:$G$29,6),IF(AND(H71>1994,H71<1998),VLOOKUP(I71,Feuil1!$A$11:$G$29,5),IF(AND(H71>1997,H71<2000),VLOOKUP(I71,Feuil1!$A$11:$G$29,4),IF(AND(H71>1999,H71<2002),VLOOKUP(I71,Feuil1!$A$11:$G$29,3),VLOOKUP(I71,Feuil1!$A$11:$G$29,2))))),IF(OR(H71="SEN",H71<1995),VLOOKUP(I71,Feuil1!$G$11:$L$25,6),IF(AND(H71>1994,H71<1998),VLOOKUP(I71,Feuil1!$G$11:$L$25,5),IF(AND(H71>1997,H71<2000),VLOOKUP(I71,Feuil1!$G$11:$L$25,4),IF(AND(H71>1999,H71<2002),VLOOKUP(I71,Feuil1!$G$11:$L$25,3),VLOOKUP(I71,Feuil1!$G$11:$L$25,2))))))) -> C2 69 | Y71: 0 | AB71: =T71-HLOOKUP(X71,Feuil1!$C$1:$BL$10,2,FALSE) -> -95 | AC71: =T71-HLOOKUP(X71,Feuil1!$C$1:$BL$10,3,FALSE) -> -115 | AD71: =T71-HLOOKUP(X71,Feuil1!$C$1:$BL$10,4,FALSE) -> -130 | AE71: =T71-HLOOKUP(X71,Feuil1!$C$1:$BL$10,5,FALSE) -> -150 | AF71: =T71-HLOOKUP(X71,Feuil1!$C$1:$BL$10,6,FALSE) -> -170 | AG71: =T71-HLOOKUP(X71,Feuil1!$C$1:$BL$10,7,FALSE) -> -190 | AH71: =T71-HLOOKUP(X71,Feuil1!$C$1:$BL$10,8,FALSE) -> -210 | AI71: =T71-HLOOKUP(X71,Feuil1!$C$1:$BL$10,9,FALSE) -> -230 | AJ71: =T71-HLOOKUP(X71,Feuil1!$C$1:$BL$10,10,FALSE) -> -1000 | AQ71: DEB
AB72: =T72-HLOOKUP(X72,Feuil1!$C$1:$BL$10,2,FALSE) ->  | AC72: =T72-HLOOKUP(X72,Feuil1!$C$1:$BL$10,3,FALSE) ->  | AD72: =T72-HLOOKUP(X72,Feuil1!$C$1:$BL$10,4,FALSE) ->  | AE72: =T72-HLOOKUP(X72,Feuil1!$C$1:$BL$10,5,FALSE) ->  | AF72: =T72-HLOOKUP(X72,Feuil1!$C$1:$BL$10,6,FALSE) ->  | AG72: =T72-HLOOKUP(X72,Feuil1!$C$1:$BL$10,7,FALSE) ->  | AH72: =T72-HLOOKUP(X72,Feuil1!$C$1:$BL$10,8,FALSE) ->  | AI72: =T72-HLOOKUP(X72,Feuil1!$C$1:$BL$10,9,FALSE) ->  | AJ72: =T72-HLOOKUP(X72,Feuil1!$C$1:$BL$10,10,FALSE) ->  | AQ72: =IF(AJ72>=0,$AJ$4,IF(AI72>=0,$AI$4,IF(AH72>=0,$AH$4,IF(AG72>=0,$AG$4,IF(AF72>=0,$AF$4,IF(AE72>=0,$AE$4,IF(AD72>=0,$AD$4,IF(AC72>=0,$AC$4,$AB$4)))))))) -> 
A73: H | B73: CO | C73: BNO | D73: 1 | E73: 247806 | F73: Panier | G73: Julien | H73: 1998 | I73: 69.4 | J73: Caen CHM | K73: F | L73: -70 | M73: 70 | N73: 75 | O73: =IF(H73="","",IF(MAXA(L73:N73)<=0,0,MAXA(L73:N73))) -> 75 | P73: 90 | Q73: 95 | R73: 100 | S73: =IF(H73="","",IF(MAXA(P73:R73)<=0,0,MAXA(P73:R73))) -> 100 | T73: =IF(H73="","",IF(OR(O73=0,S73=0),0,O73+S73)) -> 175 | U73: =T73-I73*2 -> 36.2 | V73: =IF(H73="","",AQ73) -> IRG + | W73: =IF(AJ73>=0,AJ73,IF(AI73>=0,AI73,IF(AH73>=0,AH73,IF(AG73>=0,AG73,IF(AF73>=0,AF73,IF(AE73>=0,AE73,IF(AD73>=0,AD73,IF(AC73>=0,AC73,AB73)))))))) -> 5 | X73: =IF(I73="","",IF(A73="H",IF(OR(H73="SEN",H73<1995),VLOOKUP(I73,Feuil1!$A$11:$G$29,6),IF(AND(H73>1994,H73<1998),VLOOKUP(I73,Feuil1!$A$11:$G$29,5),IF(AND(H73>1997,H73<2000),VLOOKUP(I73,Feuil1!$A$11:$G$29,4),IF(AND(H73>1999,H73<2002),VLOOKUP(I73,Feuil1!$A$11:$G$29,3),VLOOKUP(I73,Feuil1!$A$11:$G$29,2))))),IF(OR(H73="SEN",H73<1995),VLOOKUP(I73,Feuil1!$G$11:$L$25,6),IF(AND(H73>1994,H73<1998),VLOOKUP(I73,Feuil1!$G$11:$L$25,5),IF(AND(H73>1997,H73<2000),VLOOKUP(I73,Feuil1!$G$11:$L$25,4),IF(AND(H73>1999,H73<2002),VLOOKUP(I73,Feuil1!$G$11:$L$25,3),VLOOKUP(I73,Feuil1!$G$11:$L$25,2))))))) -> C2 77 | Y73: =IF(I73="","",IF(A73="H",10^(0.794358141*LOG(I73/174.393)^2)*T73,IF(A73="F",10^(0.89726074*LOG(I73/148.026)^2)*T73,""))) -> 234.5541594 | AB73: =T73-HLOOKUP(X73,Feuil1!$C$1:$BL$10,2,FALSE) -> 65 | AC73: =T73-HLOOKUP(X73,Feuil1!$C$1:$BL$10,3,FALSE) -> 45 | AD73: =T73-HLOOKUP(X73,Feuil1!$C$1:$BL$10,4,FALSE) -> 25 | AE73: =T73-HLOOKUP(X73,Feuil1!$C$1:$BL$10,5,FALSE) -> 5 | AF73: =T73-HLOOKUP(X73,Feuil1!$C$1:$BL$10,6,FALSE) -> -10 | AG73: =T73-HLOOKUP(X73,Feuil1!$C$1:$BL$10,7,FALSE) -> -25 | AH73: =T73-HLOOKUP(X73,Feuil1!$C$1:$BL$10,8,FALSE) -> -45 | AI73: =T73-HLOOKUP(X73,Feuil1!$C$1:$BL$10,9,FALSE) -> -75 | AJ73: =T73-HLOOKUP(X73,Feuil1!$C$1:$BL$10,10,FALSE) -> -825 | AQ73: =IF(AJ73>=0,$AJ$4,IF(AI73>=0,$AI$4,IF(AH73>=0,$AH$4,IF(AG73>=0,$AG$4,IF(AF73>=0,$AF$4,IF(AE73>=0,$AE$4,IF(AD73>=0,$AD$4,IF(AC73>=0,$AC$4,$AB$4)))))))) -> IRG +
A74: H | B74: NE | C74: ALS | D74: 2 | E74: 371863 | F74: TRAUTMANN | G74: GUILLAUME | H74: 1998 | I74: 75.3 | J74: CS Brumath | K74: F | L74: 75 | M74: 80 | N74: -85 | O74: 80 | P74: 85 | Q74: -92 | R74: -100 | S74: 85 | T74: 165 | U74: 14.4 | V74: REG + | W74: 15 | X74: =IF(I74="","",IF(A74="H",IF(OR(H74="SEN",H74<1995),VLOOKUP(I74,Feuil1!$A$11:$G$29,6),IF(AND(H74>1994,H74<1998),VLOOKUP(I74,Feuil1!$A$11:$G$29,5),IF(AND(H74>1997,H74<2000),VLOOKUP(I74,Feuil1!$A$11:$G$29,4),IF(AND(H74>1999,H74<2002),VLOOKUP(I74,Feuil1!$A$11:$G$29,3),VLOOKUP(I74,Feuil1!$A$11:$G$29,2))))),IF(OR(H74="SEN",H74<1995),VLOOKUP(I74,Feuil1!$G$11:$L$25,6),IF(AND(H74>1994,H74<1998),VLOOKUP(I74,Feuil1!$G$11:$L$25,5),IF(AND(H74>1997,H74<2000),VLOOKUP(I74,Feuil1!$G$11:$L$25,4),IF(AND(H74>1999,H74<2002),VLOOKUP(I74,Feuil1!$G$11:$L$25,3),VLOOKUP(I74,Feuil1!$G$11:$L$25,2))))))) -> C2 77 | Y74: 210.4544714 | AB74: =T74-HLOOKUP(X74,Feuil1!$C$1:$BL$10,2,FALSE) -> 55 | AC74: =T74-HLOOKUP(X74,Feuil1!$C$1:$BL$10,3,FALSE) -> 35 | AD74: =T74-HLOOKUP(X74,Feuil1!$C$1:$BL$10,4,FALSE) -> 15 | AE74: =T74-HLOOKUP(X74,Feuil1!$C$1:$BL$10,5,FALSE) -> -5 | AF74: =T74-HLOOKUP(X74,Feuil1!$C$1:$BL$10,6,FALSE) -> -20 | AG74: =T74-HLOOKUP(X74,Feuil1!$C$1:$BL$10,7,FALSE) -> -35 | AH74: =T74-HLOOKUP(X74,Feuil1!$C$1:$BL$10,8,FALSE) -> -55 | AI74: =T74-HLOOKUP(X74,Feuil1!$C$1:$BL$10,9,FALSE) -> -85 | AJ74: =T74-HLOOKUP(X74,Feuil1!$C$1:$BL$10,10,FALSE) -> -835 | AQ74: REG +
